Workbook

Sheet PI vs x
A1: Measurement | B1: Hall
A2: Type | B2: Off-axis
A4: Project | B4: ='10 x=-2'!B5 -> 504314
A5: PS serial no | B5: ='10 x=-2'!B7 -> 2410093
A7: Measurement date | B7: =LEFT('10 x=-2'!B4,10) -> 04-09-2024
C11: Nominal gap [mm] | D11: Encoder [counts] | E11: Encoder [mm] | F11: PI [T^2mm^3] | G11: x [mm] | H11: Encoder value at 10 mm gap:
B12: ='PI vs x'!$C$12 & "mm gap" -> 10mm gap | C12: ='10 x=-2'!B48 -> 10 | D12: ='10 x=-2'!$B$50 -> 19.9702 | E12: =D12-$H$12+10 -> 9.9976 | F12: ='10 x=-2'!$K$3 -> 10440.71173 | G12: -2 | H12: 19.9726
C13: =C12 -> 10 | D13: ='10 x=-1'!$B$50 -> 19.9702 | E13: =D13-$H$12+10 -> 9.9976 | F13: ='10 x=-1'!$K$3 -> 10444.16523 | G13: -1
C14: =C13 -> 10 | D14: ='10 x=0'!$B$50 -> 19.9702 | E14: 9.9976 | F14: ='10 x=0'!$K$3 -> 10446.63204 | G14: 0
C15: 10 | D15: ='10 x=1'!$B$50 -> 19.9702 | E15: 9.9976 | F15: ='10 x=1'!$K$3 -> 10444.07492 | G15: 1
C16: 10 | D16: ='10 x=2'!$B$50 -> 19.9702 | E16: 9.9976 | F16: ='10 x=2'!$K$3 -> 10436.81201 | G16: 2
B17: ='PI vs x'!$C$17 & "mm gap" -> 30mm gap | C17: ='30 x=-2'!B48 -> 30 | D17: ='30 x=-2'!$B$50 -> 39.9777 | E17: 30.0051 | F17: ='30 x=-2'!$K$3 -> 2417.310899 | G17: =G12 -> -2
C18: 30 | D18: ='30 x=-1'!$B$50 -> 39.9777 | E18: 30.0051 | F18: ='30 x=-1'!$K$3 -> 2419.901045 | G18: =G13 -> -1
C19: 30 | D19: ='30 x=0'!$B$50 -> 39.9777 | E19: 30.0051 | F19: ='30 x=0'!$K$3 -> 2420.873979 | G19: 0
C20: 30 | D20: ='30 x=1'!$B$50 -> 39.9777 | E20: 30.0051 | F20: ='30 x=1'!$K$3 -> 2419.431449 | G20: 1
C21: 30 | D21: ='30 x=2'!$B$50 -> 39.9777 | E21: 30.0051 | F21: ='30 x=2'!$K$3 -> 2413.745049 | G21: 2

Sheet 10 x=-2
A1: =IF('DF raw data'!A1="","",'DF raw data'!A1) -> Number of header lines | B1: =IF('DF raw data'!B1="","",'DF raw data'!B1) -> 54 | C1: =IF('DF raw data'!C1="","",'DF raw data'!C1) ->  | D1: =IF('DF raw data'!D1="","",'DF raw data'!D1) ->  | F1: T_coeff | G1: -0.001 | H1: /degC | J1: IBy total | K1: =J1262*1000 -> -2.232211213 | L1: muTm | M1: =L1262*1000 -> 80.0733338 | R1: DF ref | S1: 1
A2: =IF('DF raw data'!A2="","",'DF raw data'!A2) -> Measured by | B2: =IF('DF raw data'!B2="","",'DF raw data'!B2) -> Danfysik | C2: =IF('DF raw data'!C2="","",'DF raw data'!C2) ->  | D2: =IF('DF raw data'!D2="","",'DF raw data'!D2) ->  | F2: Tcorr | G2: 20 | H2: degC | J2: JBy total | K2: =K1262 -> -16.22576907 | L2: muTm^2 | M2: =M1262 -> 23.35187873
A3: =IF('DF raw data'!A3="","",'DF raw data'!A3) -> Operator | B3: =IF('DF raw data'!B3="","",'DF raw data'!B3) -> PMHA | C3: =IF('DF raw data'!C3="","",'DF raw data'!C3) ->  | D3: =IF('DF raw data'!D3="","",'DF raw data'!D3) ->  | F3: Step | G3: =A63-A62 -> 0.5 | H3: mm | J3: PI total | K3: =N1262 -> 10440.71173 | L3: T^2mm^3
A4: =IF('DF raw data'!A4="","",'DF raw data'!A4) -> Data-time | B4: =IF('DF raw data'!B4="","",'DF raw data'!B4) -> 04-09-2024, 12:58:13 | C4: =IF('DF raw data'!C4="","",'DF raw data'!C4) ->  | D4: =IF('DF raw data'!D4="","",'DF raw data'!D4) -> 
A5: =IF('DF raw data'!A5="","",'DF raw data'!A5) -> Project | B5: =IF('DF raw data'!B5="","",'DF raw data'!B5) -> 504314 | C5: =IF('DF raw data'!C5="","",'DF raw data'!C5) ->  | D5: =IF('DF raw data'!D5="","",'DF raw data'!D5) -> 
A6: =IF('DF raw data'!A6="","",'DF raw data'!A6) -> Magnet type | B6: =IF('DF raw data'!B6="","",'DF raw data'!B6) -> Dipole | C6: =IF('DF raw data'!C6="","",'DF raw data'!C6) ->  | D6: =IF('DF raw data'!D6="","",'DF raw data'!D6) -> 
A7: =IF('DF raw data'!A7="","",'DF raw data'!A7) -> Magnet nr. | B7: =IF('DF raw data'!B7="","",'DF raw data'!B7) -> 2410093 | C7: =IF('DF raw data'!C7="","",'DF raw data'!C7) ->  | D7: =IF('DF raw data'!D7="","",'DF raw data'!D7) -> 
A8: =IF('DF raw data'!A8="","",'DF raw data'!A8) -> Meas. number | B8: =IF('DF raw data'!B8="","",'DF raw data'!B8) -> 339 | C8: =IF('DF raw data'!C8="","",'DF raw data'!C8) ->  | D8: =IF('DF raw data'!D8="","",'DF raw data'!D8) -> 
A9: =IF('DF raw data'!A9="","",'DF raw data'!A9) -> Add. info | B9: =IF('DF raw data'!B9="","",'DF raw data'!B9) -> X-alignment scan 1) | C9: =IF('DF raw data'!C9="","",'DF raw data'!C9) ->  | D9: =IF('DF raw data'!D9="","",'DF raw data'!D9) -> 
A10: =IF('DF raw data'!A10="","",'DF raw data'!A10) -> Device | B10: =IF('DF raw data'!B10="","",'DF raw data'!B10) -> (HAL) HALL-PROBE | C10: =IF('DF raw data'!C10="","",'DF raw data'!C10) ->  | D10: =IF('DF raw data'!D10="","",'DF raw data'!D10) -> 
A11: =IF('DF raw data'!A11="","",'DF raw data'!A11) -> Goal | B11: =IF('DF raw data'!B11="","",'DF raw data'!B11) -> (AXI) AXis Integral (Line, EFB) | C11: =IF('DF raw data'!C11="","",'DF raw data'!C11) ->  | D11: =IF('DF raw data'!D11="","",'DF raw data'!D11) -> 
A12: =IF('DF raw data'!A12="","",'DF raw data'!A12) -> Power supply mode | B12: =IF('DF raw data'!B12="","",'DF raw data'!B12) -> (PM) Permanent Magnet (no MPS in use) | C12: =IF('DF raw data'!C12="","",'DF raw data'!C12) ->  | D12: =IF('DF raw data'!D12="","",'DF raw data'!D12) -> 
A13: =IF('DF raw data'!A13="","",'DF raw data'!A13) -> Data format | B13: =IF('DF raw data'!B13="","",'DF raw data'!B13) -> Raw data text file | C13: =IF('DF raw data'!C13="","",'DF raw data'!C13) ->  | D13: =IF('DF raw data'!D13="","",'DF raw data'!D13) -> 
A14: =IF('DF raw data'!A14="","",'DF raw data'!A14) -> Direction of the pos. x-axis | B14: =IF('DF raw data'!B14="","",'DF raw data'!B14) -> See test program | C14: =IF('DF raw data'!C14="","",'DF raw data'!C14) ->  | D14: =IF('DF raw data'!D14="","",'DF raw data'!D14) -> 
A15: =IF('DF raw data'!A15="","",'DF raw data'!A15) -> Direction of the pos. y-axis | B15: =IF('DF raw data'!B15="","",'DF raw data'!B15) -> Vertical up | C15: =IF('DF raw data'!C15="","",'DF raw data'!C15) ->  | D15: =IF('DF raw data'!D15="","",'DF raw data'!D15) -> 
A16: =IF('DF raw data'!A16="","",'DF raw data'!A16) -> Direction of the pos. z-axis | B16: =IF('DF raw data'!B16="","",'DF raw data'!B16) -> See test program | C16: =IF('DF raw data'!C16="","",'DF raw data'!C16) ->  | D16: =IF('DF raw data'!D16="","",'DF raw data'!D16) -> 
A17: =IF('DF raw data'!A17="","",'DF raw data'!A17) -> Mapper type | B17: =IF('DF raw data'!B17="","",'DF raw data'!B17) -> Precision Hall Mapper | C17: =IF('DF raw data'!C17="","",'DF raw data'!C17) ->  | D17: =IF('DF raw data'!D17="","",'DF raw data'!D17) -> 
A18: =IF('DF raw data'!A18="","",'DF raw data'!A18) -> Mapper Danfysik Reg. Number | B18: =IF('DF raw data'!B18="","",'DF raw data'!B18) -> 2033-D (mapper 1) | C18: =IF('DF raw data'!C18="","",'DF raw data'!C18) ->  | D18: =IF('DF raw data'!D18="","",'DF raw data'!D18) -> 
A19: =IF('DF raw data'!A19="","",'DF raw data'!A19) -> Measurement consept | B19: =IF('DF raw data'!B19="","",'DF raw data'!B19) -> Square line grid | C19: =IF('DF raw data'!C19="","",'DF raw data'!C19) ->  | D19: =IF('DF raw data'!D19="","",'DF raw data'!D19) -> 
A20: =IF('DF raw data'!A20="","",'DF raw data'!A20) -> Mode | B20: =IF('DF raw data'!B20="","",'DF raw data'!B20) -> On-the-fly measurement | C20: =IF('DF raw data'!C20="","",'DF raw data'!C20) ->  | D20: =IF('DF raw data'!D20="","",'DF raw data'!D20) -> 
A21: =IF('DF raw data'!A21="","",'DF raw data'!A21) ->  | B21: =IF('DF raw data'!B21="","",'DF raw data'!B21) ->  | C21: =IF('DF raw data'!C21="","",'DF raw data'!C21) ->  | D21: =IF('DF raw data'!D21="","",'DF raw data'!D21) -> 
A22: =IF('DF raw data'!A22="","",'DF raw data'!A22) -> Probe Name | B22: =IF('DF raw data'!B22="","",'DF raw data'!B22) -> ID12_By | C22: =IF('DF raw data'!C22="","",'DF raw data'!C22) ->  | D22: =IF('DF raw data'!D22="","",'DF raw data'!D22) -> 
A23: =IF('DF raw data'!A23="","",'DF raw data'!A23) -> Probe Type | B23: =IF('DF raw data'!B23="","",'DF raw data'!B23) -> DF_ID_3D_Bxyz | C23: =IF('DF raw data'!C23="","",'DF raw data'!C23) ->  | D23: =IF('DF raw data'!D23="","",'DF raw data'!D23) -> 
A24: =IF('DF raw data'!A24="","",'DF raw data'!A24) -> Probe Danfysik Reg. Number | B24: =IF('DF raw data'!B24="","",'DF raw data'!B24) -> 2277 | C24: =IF('DF raw data'!C24="","",'DF raw data'!C24) ->  | D24: =IF('DF raw data'!D24="","",'DF raw data'!D24) -> 
A25: =IF('DF raw data'!A25="","",'DF raw data'!A25) -> Probe Axis | B25: =IF('DF raw data'!B25="","",'DF raw data'!B25) -> By | C25: =IF('DF raw data'!C25="","",'DF raw data'!C25) ->  | D25: =IF('DF raw data'!D25="","",'DF raw data'!D25) -> 
A26: =IF('DF raw data'!A26="","",'DF raw data'!A26) -> Probe Current Supply | B26: =IF('DF raw data'!B26="","",'DF raw data'!B26) -> 1825-D | C26: =IF('DF raw data'!C26="","",'DF raw data'!C26) ->  | D26: =IF('DF raw data'!D26="","",'DF raw data'!D26) -> 
A27: =IF('DF raw data'!A27="","",'DF raw data'!A27) -> Probe Gain Correction | B27: =IF('DF raw data'!B27="","",'DF raw data'!B27) -> 0.99616 | C27: =IF('DF raw data'!C27="","",'DF raw data'!C27) ->  | D27: =IF('DF raw data'!D27="","",'DF raw data'!D27) -> 
A28: =IF('DF raw data'!A28="","",'DF raw data'!A28) -> Probe Offset Correction | B28: =IF('DF raw data'!B28="","",'DF raw data'!B28) -> 0.0027367 | C28: =IF('DF raw data'!C28="","",'DF raw data'!C28) ->  | D28: =IF('DF raw data'!D28="","",'DF raw data'!D28) -> 
A29: =IF('DF raw data'!A29="","",'DF raw data'!A29) -> DVM Number | B29: =IF('DF raw data'!B29="","",'DF raw data'!B29) -> 2 | C29: =IF('DF raw data'!C29="","",'DF raw data'!C29) ->  | D29: =IF('DF raw data'!D29="","",'DF raw data'!D29) -> 
A30: =IF('DF raw data'!A30="","",'DF raw data'!A30) -> DVM Type | B30: =IF('DF raw data'!B30="","",'DF raw data'!B30) -> K2701 | C30: =IF('DF raw data'!C30="","",'DF raw data'!C30) ->  | D30: =IF('DF raw data'!D30="","",'DF raw data'!D30) -> 
A31: =IF('DF raw data'!A31="","",'DF raw data'!A31) -> DVM Danfysik Reg. Number | B31: =IF('DF raw data'!B31="","",'DF raw data'!B31) -> 1743-D | C31: =IF('DF raw data'!C31="","",'DF raw data'!C31) ->  | D31: =IF('DF raw data'!D31="","",'DF raw data'!D31) -> 
A32: =IF('DF raw data'!A32="","",'DF raw data'!A32) -> Probe Name | B32: =IF('DF raw data'!B32="","",'DF raw data'!B32) -> ID12_Bx | C32: =IF('DF raw data'!C32="","",'DF raw data'!C32) ->  | D32: =IF('DF raw data'!D32="","",'DF raw data'!D32) -> 
A33: =IF('DF raw data'!A33="","",'DF raw data'!A33) -> Probe Type | B33: =IF('DF raw data'!B33="","",'DF raw data'!B33) -> DF_ID_3D_Bxyz | C33: =IF('DF raw data'!C33="","",'DF raw data'!C33) ->  | D33: =IF('DF raw data'!D33="","",'DF raw data'!D33) -> 
A34: =IF('DF raw data'!A34="","",'DF raw data'!A34) -> Probe Danfysik Reg. Number | B34: =IF('DF raw data'!B34="","",'DF raw data'!B34) -> 2277 | C34: =IF('DF raw data'!C34="","",'DF raw data'!C34) ->  | D34: =IF('DF raw data'!D34="","",'DF raw data'!D34) -> 
A35: =IF('DF raw data'!A35="","",'DF raw data'!A35) -> Probe Axis | B35: =IF('DF raw data'!B35="","",'DF raw data'!B35) -> Bx | C35: =IF('DF raw data'!C35="","",'DF raw data'!C35) ->  | D35: =IF('DF raw data'!D35="","",'DF raw data'!D35) -> 
A36: =IF('DF raw data'!A36="","",'DF raw data'!A36) -> Probe Current Supply | B36: =IF('DF raw data'!B36="","",'DF raw data'!B36) -> 1825-D | C36: =IF('DF raw data'!C36="","",'DF raw data'!C36) ->  | D36: =IF('DF raw data'!D36="","",'DF raw data'!D36) -> 
A37: =IF('DF raw data'!A37="","",'DF raw data'!A37) -> Probe Gain Correction | B37: =IF('DF raw data'!B37="","",'DF raw data'!B37) -> 1 | C37: =IF('DF raw data'!C37="","",'DF raw data'!C37) ->  | D37: =IF('DF raw data'!D37="","",'DF raw data'!D37) -> 
A38: =IF('DF raw data'!A38="","",'DF raw data'!A38) -> Probe Offset Correction | B38: =IF('DF raw data'!B38="","",'DF raw data'!B38) -> -0.1757 | C38: =IF('DF raw data'!C38="","",'DF raw data'!C38) ->  | D38: =IF('DF raw data'!D38="","",'DF raw data'!D38) -> 
A39: =IF('DF raw data'!A39="","",'DF raw data'!A39) -> DVM Number | B39: =IF('DF raw data'!B39="","",'DF raw data'!B39) -> 3 | C39: =IF('DF raw data'!C39="","",'DF raw data'!C39) ->  | D39: =IF('DF raw data'!D39="","",'DF raw data'!D39) -> 
A40: =IF('DF raw data'!A40="","",'DF raw data'!A40) -> DVM Type | B40: =IF('DF raw data'!B40="","",'DF raw data'!B40) -> K2701 | C40: =IF('DF raw data'!C40="","",'DF raw data'!C40) ->  | D40: =IF('DF raw data'!D40="","",'DF raw data'!D40) -> 
A41: =IF('DF raw data'!A41="","",'DF raw data'!A41) -> DVM Danfysik Reg. Number | B41: =IF('DF raw data'!B41="","",'DF raw data'!B41) -> 1744-D | C41: =IF('DF raw data'!C41="","",'DF raw data'!C41) ->  | D41: =IF('DF raw data'!D41="","",'DF raw data'!D41) -> 
A42: =IF('DF raw data'!A42="","",'DF raw data'!A42) -> Probe Name | B42: =IF('DF raw data'!B42="","",'DF raw data'!B42) -> ID12_Bz | C42: =IF('DF raw data'!C42="","",'DF raw data'!C42) ->  | D42: =IF('DF raw data'!D42="","",'DF raw data'!D42) -> 
A43: =IF('DF raw data'!A43="","",'DF raw data'!A43) -> Probe Type | B43: =IF('DF raw data'!B43="","",'DF raw data'!B43) -> DF_ID_3D_Bxyz | C43: =IF('DF raw data'!C43="","",'DF raw data'!C43) ->  | D43: =IF('DF raw data'!D43="","",'DF raw data'!D43) -> 
A44: =IF('DF raw data'!A44="","",'DF raw data'!A44) -> Probe Danfysik Reg. Number | B44: =IF('DF raw data'!B44="","",'DF raw data'!B44) -> 2277 | C44: =IF('DF raw data'!C44="","",'DF raw data'!C44) ->  | D44: =IF('DF raw data'!D44="","",'DF raw data'!D44) -> 
A45: =IF('DF raw data'!A45="","",'DF raw data'!A45) -> Probe Axis | B45: =IF('DF raw data'!B45="","",'DF raw data'!B45) -> Bz | C45: =IF('DF raw data'!C45="","",'DF raw data'!C45) ->  | D45: =IF('DF raw data'!D45="","",'DF raw data'!D45) -> 
A46: =IF('DF raw data'!A46="","",'DF raw data'!A46) -> Probe Current Supply | B46: =IF('DF raw data'!B46="","",'DF raw data'!B46) -> 1825-D | C46: =IF('DF raw data'!C46="","",'DF raw data'!C46) ->  | D46: =IF('DF raw data'!D46="","",'DF raw data'!D46) -> 
A47: =IF('DF raw data'!A47="","",'DF raw data'!A47) -> Probe Gain Correction | B47: =IF('DF raw data'!B47="","",'DF raw data'!B47) -> 1 | C47: =IF('DF raw data'!C47="","",'DF raw data'!C47) ->  | D47: =IF('DF raw data'!D47="","",'DF raw data'!D47) -> 
A48: =IF('DF raw data'!A53="","",'DF raw data'!A53) -> PS-Gap: | B48: =IF('DF raw data'!B53="","",'DF raw data'!B53) -> 10 | C48: =IF('DF raw data'!C53="","",'DF raw data'!C53) ->  | D48: =IF('DF raw data'!D53="","",'DF raw data'!D53) -> 
A49: =IF('DF raw data'!A54="","",'DF raw data'!A54) -> PS-Temperature: | B49: =IF('DF raw data'!B54="","",'DF raw data'!B54) -> 25 | C49: =IF('DF raw data'!C54="","",'DF raw data'!C54) ->  | D49: =IF('DF raw data'!D54="","",'DF raw data'!D54) -> 
A50: =IF('DF raw data'!A55="","",'DF raw data'!A55) -> PS-Encoder: | B50: =IF('DF raw data'!B55="","",'DF raw data'!B55) -> 19.9702 | C50: =IF('DF raw data'!C55="","",'DF raw data'!C55) ->  | D50: =IF('DF raw data'!D55="","",'DF raw data'!D55) -> 
A51: =IF('DF raw data'!A56="","",'DF raw data'!A56) ->  | B51: =IF('DF raw data'!B56="","",'DF raw data'!B56) ->  | C51: =IF('DF raw data'!C56="","",'DF raw data'!C56) ->  | D51: =IF('DF raw data'!D56="","",'DF raw data'!D56) -> 
A52: =IF('DF raw data'!A57="","",'DF raw data'!A57) -> Monitor-Index | B52: =IF('DF raw data'!B57="","",'DF raw data'!B57) -> [1,1,4] | C52: =IF('DF raw data'!C57="","",'DF raw data'!C57) ->  | D52: =IF('DF raw data'!D57="","",'DF raw data'!D57) -> 
A53: =IF('DF raw data'!A58="","",'DF raw data'!A58) ->  | B53: =IF('DF raw data'!B58="","",'DF raw data'!B58) ->  | C53: =IF('DF raw data'!C58="","",'DF raw data'!C58) ->  | D53: =IF('DF raw data'!D58="","",'DF raw data'!D58) -> 
A54: =IF('DF raw data'!A59="","",'DF raw data'!A59) -> Time [s] | B54: =IF('DF raw data'!B59="","",'DF raw data'!B59) -> Y [mm] | C54: =IF('DF raw data'!C59="","",'DF raw data'!C59) -> X [mm] | D54: =IF('DF raw data'!D59="","",'DF raw data'!D59) -> Nominal current [A]
A55: =IF('DF raw data'!A60="","",'DF raw data'!A60) ->  | B55: =IF('DF raw data'!B60="","",'DF raw data'!B60) ->  | C55: =IF('DF raw data'!C60="","",'DF raw data'!C60) ->  | D55: =IF('DF raw data'!D60="","",'DF raw data'!D60) -> 
A56: =IF('DF raw data'!A61="","",'DF raw data'!A61) -> 217.3 | B56: =IF('DF raw data'!B61="","",'DF raw data'!B61) -> 31.46 | C56: =IF('DF raw data'!C61="","",'DF raw data'!C61) -> 299.8 | D56: =IF('DF raw data'!D61="","",'DF raw data'!D61) -> 0
A57: =IF('DF raw data'!A62="","",'DF raw data'!A62) ->  | B57: =IF('DF raw data'!B62="","",'DF raw data'!B62) ->  | C57: =IF('DF raw data'!C62="","",'DF raw data'!C62) ->  | D57: =IF('DF raw data'!D62="","",'DF raw data'!D62) -> 
A58: =IF('DF raw data'!A63="","",'DF raw data'!A63) -> Measurement-Index | B58: =IF('DF raw data'!B63="","",'DF raw data'!B63) -> [1,1,1201,2] | C58: =IF('DF raw data'!C63="","",'DF raw data'!C63) ->  | D58: =IF('DF raw data'!D63="","",'DF raw data'!D63) -> 
A59: =IF('DF raw data'!A64="","",'DF raw data'!A64) ->  | B59: =IF('DF raw data'!B64="","",'DF raw data'!B64) ->  | C59: =IF('DF raw data'!C64="","",'DF raw data'!C64) ->  | D59: =IF('DF raw data'!D64="","",'DF raw data'!D64) -> 
A60: =IF('DF raw data'!A65="","",'DF raw data'!A65) -> Z [mm] | B60: =IF('DF raw data'!B65="","",'DF raw data'!B65) -> By [T] | C60: =IF('DF raw data'!C65="","",'DF raw data'!C65) -> Bx [T] | D60: =IF('DF raw data'!D65="","",'DF raw data'!D65) -> Bz [T] | F60: By_corr | G60: Bx_corr | H60: Bz_corr | J60: Iy | K60: Jy | L60: Ix | M60: Jx | N60: PI
A62: =IF('DF raw data'!A67="","",'DF raw data'!A67) -> -300 | B62: =IF('DF raw data'!B67="","",'DF raw data'!B67) -> -2.92813e-05 | C62: =IF('DF raw data'!C67="","",'DF raw data'!C67) -> 0.000142707 | D62: =IF('DF raw data'!D67="","",'DF raw data'!D67) -> -1.62501e-05 | F62: =(1-$G$1*($B$49))*B62 -> -3.00133325e-05 | G62: =(1-$G$1*($B$49-$G$2))*C62 -> 0.000143420535 | H62: =(1-$G$1*($B$49-$G$2))*D62 -> -1.63313505e-05 | J62: =F62*$G$3 -> -1.500666625e-05 | K62: =J62*$G$3 -> -7.503333125e-06 | L62: =G62*$G$3 -> 7.17102675e-05 | M62: =L62*$G$3 -> 3.585513375e-05 | N62: =(J62^2+L62^2)*$G$3 -> 2.683781248e-09
A63: =IF('DF raw data'!A68="","",'DF raw data'!A68) -> -299.5 | B63: =IF('DF raw data'!B68="","",'DF raw data'!B68) -> -1.57538e-05 | C63: =IF('DF raw data'!C68="","",'DF raw data'!C68) -> 0.000146172 | D63: =IF('DF raw data'!D68="","",'DF raw data'!D68) -> -1.68715e-05 | F63: =(1-$G$1*($B$49-$G$2))*B63 -> -1.5832569e-05 | G63: =(1-$G$1*($B$49-$G$2))*C63 -> 0.00014690286 | H63: -1.69558575e-05 | J63: =F63*$G$3+J62 -> -2.292295075e-05 | K63: =J63*$G$3+K62 -> -1.89648085e-05 | L63: =G63*$G$3+L62 -> 0.0001451616975 | M63: =L63*$G$3+M62 -> 0.0001084359825 | N63: =(J63^2+L63^2)*$G$3+N62 -> 1.348247129e-08
A64: =IF('DF raw data'!A69="","",'DF raw data'!A69) -> -299 | B64: =IF('DF raw data'!B69="","",'DF raw data'!B69) -> -1.9087e-05 | C64: =IF('DF raw data'!C69="","",'DF raw data'!C69) -> 0.000155815 | D64: =IF('DF raw data'!D69="","",'DF raw data'!D69) -> -1.77272e-05 | F64: =(1-$G$1*($B$49-$G$2))*B64 -> -1.9182435e-05 | G64: 0.000156594075 | H64: -1.7815836e-05 | J64: =F64*$G$3+J63 -> -3.251416825e-05 | K64: =J64*$G$3+K63 -> -3.522189262e-05 | L64: =G64*$G$3+L63 -> 0.000223458735 | M64: =L64*$G$3+M63 -> 0.00022016535 | N64: =(J64^2+L64^2)*$G$3+N63 -> 3.897795999e-08
A65: =IF('DF raw data'!A70="","",'DF raw data'!A70) -> -298.5 | B65: =IF('DF raw data'!B70="","",'DF raw data'!B70) -> -1.78046e-05 | C65: =IF('DF raw data'!C70="","",'DF raw data'!C70) -> 0.000158323 | D65: =IF('DF raw data'!D70="","",'DF raw data'!D70) -> -1.82691e-05 | F65: -1.7893623e-05 | G65: 0.000159114615 | H65: -1.83604455e-05 | J65: -4.146097975e-05 | K65: -5.59523825e-05 | L65: 0.0003030160425 | M65: 0.0003716733712 | N65: 8.574682741e-08
A66: =IF('DF raw data'!A71="","",'DF raw data'!A71) -> -298 | B66: =IF('DF raw data'!B71="","",'DF raw data'!B71) -> -8.2519e-06 | C66: =IF('DF raw data'!C71="","",'DF raw data'!C71) -> 0.000159512 | D66: =IF('DF raw data'!D71="","",'DF raw data'!D71) -> -1.902e-05 | F66: -8.2931595e-06 | G66: 0.00016030956 | H66: -1.91151e-05 | J66: -4.56075595e-05 | K66: -7.875616225e-05 | L66: 0.0003831708225 | M66: 0.0005632587825 | N66: 1.601967918e-07
A67: =IF('DF raw data'!A72="","",'DF raw data'!A72) -> -297.5 | B67: =IF('DF raw data'!B72="","",'DF raw data'!B72) -> -2.05604e-05 | C67: =IF('DF raw data'!C72="","",'DF raw data'!C72) -> 0.000152485 | D67: =IF('DF raw data'!D72="","",'DF raw data'!D72) -> -1.95279e-05 | F67: -2.0663202e-05 | G67: 0.000153247425 | H67: -1.96255395e-05 | J67: -5.59391605e-05 | K67: -0.0001067257425 | L67: 0.000459794535 | M67: 0.00079315605 | N67: 2.674668938e-07
A68: =IF('DF raw data'!A73="","",'DF raw data'!A73) -> -297 | B68: =IF('DF raw data'!B73="","",'DF raw data'!B73) -> -2.15863e-05 | C68: =IF('DF raw data'!C73="","",'DF raw data'!C73) -> 0.00015619 | D68: =IF('DF raw data'!D73="","",'DF raw data'!D73) -> -1.93118e-05 | F68: -2.16942315e-05 | G68: 0.00015697095 | H68: -1.9408359e-05 | J68: -6.678627625e-05 | K68: -0.0001401188806 | L68: 0.00053828001 | M68: 0.001062296055 | N68: 4.145697817e-07
A69: =IF('DF raw data'!A74="","",'DF raw data'!A74) -> -296.5 | B69: =IF('DF raw data'!B74="","",'DF raw data'!B74) -> -2.10095e-05 | C69: =IF('DF raw data'!C74="","",'DF raw data'!C74) -> 0.000154488 | D69: =IF('DF raw data'!D74="","",'DF raw data'!D74) -> -1.87364e-05 | F69: -2.11145475e-05 | G69: 0.00015526044 | H69: -1.8830082e-05 | J69: -7.734355e-05 | K69: -0.0001787906556 | L69: 0.00061591023 | M69: 0.00137025117 | N69: 6.072334998e-07
A70: =IF('DF raw data'!A75="","",'DF raw data'!A75) -> -296 | B70: =IF('DF raw data'!B75="","",'DF raw data'!B75) -> -2.29331e-05 | C70: =IF('DF raw data'!C75="","",'DF raw data'!C75) -> 0.000149101 | D70: =IF('DF raw data'!D75="","",'DF raw data'!D75) -> -1.81396e-05 | F70: -2.30477655e-05 | G70: 0.000149846505 | H70: -1.8230298e-05 | J70: -8.886743275e-05 | K70: -0.000223224372 | L70: 0.0006908334825 | M70: 0.001715667911 | N70: 8.498076604e-07
A71: =IF('DF raw data'!A76="","",'DF raw data'!A76) -> -295.5 | B71: =IF('DF raw data'!B76="","",'DF raw data'!B76) -> -1.90227e-05 | C71: =IF('DF raw data'!C76="","",'DF raw data'!C76) -> 0.000158322 | D71: =IF('DF raw data'!D76="","",'DF raw data'!D76) -> -1.78023e-05 | F71: -1.91178135e-05 | G71: 0.00015911361 | H71: -1.78913115e-05 | J71: -9.84263395e-05 | K71: -0.0002724375417 | L71: 0.0007703902875 | M71: 0.002100863055 | N71: 1.15140213e-06
A72: =IF('DF raw data'!A77="","",'DF raw data'!A77) -> -295 | B72: =IF('DF raw data'!B77="","",'DF raw data'!B77) -> -1.24835e-05 | C72: =IF('DF raw data'!C77="","",'DF raw data'!C77) -> 0.000159878 | D72: =IF('DF raw data'!D77="","",'DF raw data'!D77) -> -1.81671e-05 | F72: -1.25459175e-05 | G72: 0.00016067739 | H72: -1.82579355e-05 | J72: -0.0001046992983 | K72: -0.0003247871909 | L72: 0.0008507289825 | M72: 0.002526227546 | N72: 1.518753002e-06
A73: =IF('DF raw data'!A78="","",'DF raw data'!A78) -> -294.5 | B73: =IF('DF raw data'!B78="","",'DF raw data'!B78) -> -1.29957e-05 | C73: =IF('DF raw data'!C78="","",'DF raw data'!C78) -> 0.000157781 | D73: =IF('DF raw data'!D78="","",'DF raw data'!D78) -> -1.89871e-05 | F73: -1.30606785e-05 | G73: 0.000158569905 | H73: -1.90820355e-05 | J73: -0.0001112296375 | K73: -0.0003804020096 | L73: 0.000930013935 | M73: 0.002991234514 | N73: 1.957401978e-06
A74: =IF('DF raw data'!A79="","",'DF raw data'!A79) -> -294 | B74: =IF('DF raw data'!B79="","",'DF raw data'!B79) -> -1.72267e-05 | C74: =IF('DF raw data'!C79="","",'DF raw data'!C79) -> 0.000151665 | D74: =IF('DF raw data'!D79="","",'DF raw data'!D79) -> -1.94777e-05 | F74: -1.73128335e-05 | G74: 0.000152423325 | H74: -1.95750885e-05 | J74: -0.0001198860542 | K74: -0.0004403450367 | L74: 0.001006225597 | M74: 0.003494347312 | N74: 2.470833288e-06
A75: =IF('DF raw data'!A80="","",'DF raw data'!A80) -> -293.5 | B75: =IF('DF raw data'!B80="","",'DF raw data'!B80) -> -1.95346e-05 | C75: =IF('DF raw data'!C80="","",'DF raw data'!C80) -> 0.000154276 | D75: =IF('DF raw data'!D80="","",'DF raw data'!D80) -> -1.92957e-05 | F75: -1.9632273e-05 | G75: 0.00015504738 | H75: -1.93921785e-05 | J75: -0.0001297021907 | K75: -0.0005051961321 | L75: 0.001083749287 | M75: 0.004036221956 | N75: 3.066500876e-06
A76: =IF('DF raw data'!A81="","",'DF raw data'!A81) -> -293 | B76: =IF('DF raw data'!B81="","",'DF raw data'!B81) -> -2.44072e-05 | C76: =IF('DF raw data'!C81="","",'DF raw data'!C81) -> 0.000149241 | D76: =IF('DF raw data'!D81="","",'DF raw data'!D81) -> -1.88438e-05 | F76: -2.4529236e-05 | G76: 0.000149987205 | H76: -1.8938019e-05 | J76: -0.0001419668087 | K76: -0.0005761795365 | L76: 0.00115874289 | M76: 0.004615593401 | N76: 3.747920706e-06
A77: =IF('DF raw data'!A82="","",'DF raw data'!A82) -> -292.5 | B77: =IF('DF raw data'!B82="","",'DF raw data'!B82) -> -1.5945e-05 | C77: =IF('DF raw data'!C82="","",'DF raw data'!C82) -> 0.000149923 | D77: =IF('DF raw data'!D82="","",'DF raw data'!D82) -> -1.87645e-05 | F77: -1.6024725e-05 | G77: 0.000150672615 | H77: -1.88583225e-05 | J77: -0.0001499791712 | K77: -0.0006511691221 | L77: 0.001234079197 | M77: 0.005232633 | N77: 4.520643315e-06
A78: =IF('DF raw data'!A83="","",'DF raw data'!A83) -> -292 | B78: =IF('DF raw data'!B83="","",'DF raw data'!B83) -> -2.47277e-05 | C78: =IF('DF raw data'!C83="","",'DF raw data'!C83) -> 0.000157823 | D78: =IF('DF raw data'!D83="","",'DF raw data'!D83) -> -1.91169e-05 | F78: -2.48513385e-05 | G78: 0.000158612115 | H78: -1.92124845e-05 | J78: -0.0001624048405 | K78: -0.0007323715424 | L78: 0.001313385255 | M78: 0.005889325627 | N78: 5.396321395e-06
A79: =IF('DF raw data'!A84="","",'DF raw data'!A84) -> -291.5 | B79: =IF('DF raw data'!B84="","",'DF raw data'!B84) -> -1.74872e-05 | C79: =IF('DF raw data'!C84="","",'DF raw data'!C84) -> 0.000162242 | D79: =IF('DF raw data'!D84="","",'DF raw data'!D84) -> -1.32234e-05 | F79: -1.7574636e-05 | G79: 0.00016305321 | H79: -1.3289517e-05 | J79: -0.0001711921585 | K79: -0.0008179676216 | L79: 0.00139491186 | M79: 0.006586781557 | N79: 6.383864321e-06
A80: =IF('DF raw data'!A85="","",'DF raw data'!A85) -> -291 | B80: =IF('DF raw data'!B85="","",'DF raw data'!B85) -> -2.98512e-05 | C80: =IF('DF raw data'!C85="","",'DF raw data'!C85) -> 0.000168208 | D80: =IF('DF raw data'!D85="","",'DF raw data'!D85) -> -2.67977e-05 | F80: -3.0000456e-05 | G80: 0.00016904904 | H80: -2.69316885e-05 | J80: -0.0001861923865 | K80: -0.0009110638149 | L80: 0.00147943638 | M80: 0.007326499747 | N80: 7.495564125e-06
A81: =IF('DF raw data'!A86="","",'DF raw data'!A86) -> -290.5 | B81: =IF('DF raw data'!B86="","",'DF raw data'!B86) -> -3.38301e-05 | C81: =IF('DF raw data'!C86="","",'DF raw data'!C86) -> 0.000166765 | D81: =IF('DF raw data'!D86="","",'DF raw data'!D86) -> -2.04919e-05 | F81: -3.39992505e-05 | G81: 0.000167598825 | H81: -2.05943595e-05 | J81: -0.0002031920117 | K81: -0.001012659821 | L81: 0.001563235792 | M81: 0.008108117644 | N81: 8.738060693e-06
A82: =IF('DF raw data'!A87="","",'DF raw data'!A87) -> -290 | B82: =IF('DF raw data'!B87="","",'DF raw data'!B87) -> -2.76715e-05 | C82: =IF('DF raw data'!C87="","",'DF raw data'!C87) -> 0.000162806 | D82: =IF('DF raw data'!D87="","",'DF raw data'!D87) -> -2.69938e-05 | F82: -2.78098575e-05 | G82: 0.00016362003 | H82: -2.7128769e-05 | J82: -0.0002170969405 | K82: -0.001121208291 | L82: 0.001645045807 | M82: 0.008930640547 | N82: 1.011471409e-05
A83: =IF('DF raw data'!A88="","",'DF raw data'!A88) -> -289.5 | B83: =IF('DF raw data'!B88="","",'DF raw data'!B88) -> -2.60768e-05 | C83: =IF('DF raw data'!C88="","",'DF raw data'!C88) -> 0.000162548 | D83: =IF('DF raw data'!D88="","",'DF raw data'!D88) -> -1.45254e-05 | F83: -2.6207184e-05 | G83: 0.00016336074 | H83: -1.4598027e-05 | J83: -0.0002302005325 | K83: -0.001236308557 | L83: 0.001726726177 | M83: 0.009794003636 | N83: 1.163200188e-05
A84: =IF('DF raw data'!A89="","",'DF raw data'!A89) -> -289 | B84: =IF('DF raw data'!B89="","",'DF raw data'!B89) -> -2.29318e-05 | C84: =IF('DF raw data'!C89="","",'DF raw data'!C89) -> 0.000159969 | D84: =IF('DF raw data'!D89="","",'DF raw data'!D89) -> -2.01959e-05 | F84: -2.3046459e-05 | G84: 0.000160768845 | H84: -2.02968795e-05 | J84: -0.000241723762 | K84: -0.001357170438 | L84: 0.0018071106 | M84: 0.01069755894 | N84: 1.329404143e-05
A85: =IF('DF raw data'!A90="","",'DF raw data'!A90) -> -288.5 | B85: =IF('DF raw data'!B90="","",'DF raw data'!B90) -> -2.11946e-05 | C85: =IF('DF raw data'!C90="","",'DF raw data'!C90) -> 0.000161222 | D85: =IF('DF raw data'!D90="","",'DF raw data'!D90) -> -3.0128e-05 | F85: -2.1300573e-05 | G85: 0.00016202811 | H85: -3.027864e-05 | J85: -0.0002523740485 | K85: -0.001483357463 | L85: 0.001888124655 | M85: 0.01164162126 | N85: 1.510839511e-05
A86: =IF('DF raw data'!A91="","",'DF raw data'!A91) -> -288 | B86: =IF('DF raw data'!B91="","",'DF raw data'!B91) -> -1.48528e-05 | C86: =IF('DF raw data'!C91="","",'DF raw data'!C91) -> 0.000165892 | D86: =IF('DF raw data'!D91="","",'DF raw data'!D91) -> -2.225e-05 | F86: -1.4927064e-05 | G86: 0.00016672146 | H86: -2.236125e-05 | J86: -0.0002598375805 | K86: -0.001613276253 | L86: 0.001971485385 | M86: 0.01262736396 | N86: 1.708553021e-05
A87: =IF('DF raw data'!A92="","",'DF raw data'!A92) -> -287.5 | B87: =IF('DF raw data'!B92="","",'DF raw data'!B92) -> -1.31825e-05 | C87: =IF('DF raw data'!C92="","",'DF raw data'!C92) -> 0.000166912 | D87: =IF('DF raw data'!D92="","",'DF raw data'!D92) -> -2.77943e-05 | F87: -1.32484125e-05 | G87: 0.00016774656 | H87: -2.79332715e-05 | J87: -0.0002664617868 | K87: -0.001746507146 | L87: 0.002055358665 | M87: 0.01365504329 | N87: 1.923328077e-05
A88: =IF('DF raw data'!A93="","",'DF raw data'!A93) -> -287 | B88: =IF('DF raw data'!B93="","",'DF raw data'!B93) -> -2.4215e-05 | C88: =IF('DF raw data'!C93="","",'DF raw data'!C93) -> 0.000162931 | D88: =IF('DF raw data'!D93="","",'DF raw data'!D93) -> -1.88305e-05 | F88: -2.4336075e-05 | G88: 0.000163745655 | H88: -1.89246525e-05 | J88: -0.0002786298243 | K88: -0.001885822058 | L88: 0.002137231492 | M88: 0.01472365903 | N88: 2.155597729e-05
A89: =IF('DF raw data'!A94="","",'DF raw data'!A94) -> -286.5 | B89: =IF('DF raw data'!B94="","",'DF raw data'!B94) -> -2.22899e-05 | C89: =IF('DF raw data'!C94="","",'DF raw data'!C94) -> 0.000160036 | D89: =IF('DF raw data'!D94="","",'DF raw data'!D94) -> -2.1504e-05 | F89: -2.24013495e-05 | G89: 0.00016083618 | H89: -2.161152e-05 | J89: -0.000289830499 | K89: -0.002030737308 | L89: 0.002217649582 | M89: 0.01583248383 | N89: 2.405696298e-05
A90: =IF('DF raw data'!A95="","",'DF raw data'!A95) -> -286 | B90: =IF('DF raw data'!B95="","",'DF raw data'!B95) -> -3.4468e-05 | C90: =IF('DF raw data'!C95="","",'DF raw data'!C95) -> 0.000152395 | D90: =IF('DF raw data'!D95="","",'DF raw data'!D95) -> -2.524e-05 | F90: -3.464034e-05 | G90: 0.000153156975 | H90: -2.53662e-05 | J90: -0.000307150669 | K90: -0.002184312642 | L90: 0.00229422807 | M90: 0.01697959786 | N90: 2.673587497e-05
A91: =IF('DF raw data'!A96="","",'DF raw data'!A96) -> -285.5 | B91: =IF('DF raw data'!B96="","",'DF raw data'!B96) -> -1.90131e-05 | C91: =IF('DF raw data'!C96="","",'DF raw data'!C96) -> 0.000156587 | D91: =IF('DF raw data'!D96="","",'DF raw data'!D96) -> -3.27962e-05 | F91: -1.91081655e-05 | G91: 0.000157369935 | H91: -3.2960181e-05 | J91: -0.0003167047518 | K91: -0.002342665018 | L91: 0.002372913037 | M91: 0.01816605438 | N91: 2.960138406e-05
A92: =IF('DF raw data'!A97="","",'DF raw data'!A97) -> -285 | B92: =IF('DF raw data'!B97="","",'DF raw data'!B97) -> -1.09367e-05 | C92: =IF('DF raw data'!C97="","",'DF raw data'!C97) -> 0.000155492 | D92: =IF('DF raw data'!D97="","",'DF raw data'!D97) -> -3.07138e-05 | F92: -1.09913835e-05 | G92: 0.00015626946 | H92: -3.0867369e-05 | J92: -0.0003222004435 | K92: -0.00250376524 | L92: 0.002451047767 | M92: 0.01939157826 | N92: 3.26571082e-05
A93: =IF('DF raw data'!A98="","",'DF raw data'!A98) -> -284.5 | B93: =IF('DF raw data'!B98="","",'DF raw data'!B98) -> -3.17714e-05 | C93: =IF('DF raw data'!C98="","",'DF raw data'!C98) -> 0.000164398 | D93: =IF('DF raw data'!D98="","",'DF raw data'!D98) -> -3.22049e-05 | F93: -3.1930257e-05 | G93: 0.00016521999 | H93: -3.23659245e-05 | J93: -0.000338165572 | K93: -0.002672848026 | L93: 0.002533657762 | M93: 0.02065840714 | N93: 3.592399701e-05
A94: =IF('DF raw data'!A99="","",'DF raw data'!A99) -> -284 | B94: =IF('DF raw data'!B99="","",'DF raw data'!B99) -> -1.79252e-05 | C94: =IF('DF raw data'!C99="","",'DF raw data'!C99) -> 0.000169304 | D94: =IF('DF raw data'!D99="","",'DF raw data'!D99) -> -2.97721e-05 | F94: -1.8014826e-05 | G94: 0.00017015052 | H94: -2.99209605e-05 | J94: -0.000347172985 | K94: -0.002846434518 | L94: 0.002618733022 | M94: 0.02196777366 | N94: 3.941314287e-05
A95: =IF('DF raw data'!A100="","",'DF raw data'!A100) -> -283.5 | B95: =IF('DF raw data'!B100="","",'DF raw data'!B100) -> -2.06215e-05 | C95: =IF('DF raw data'!C100="","",'DF raw data'!C100) -> 0.000161691 | D95: =IF('DF raw data'!D100="","",'DF raw data'!D100) -> -2.43362e-05 | F95: -2.07246075e-05 | G95: 0.000162499455 | H95: -2.4457881e-05 | J95: -0.0003575352888 | K95: -0.003025202163 | L95: 0.00269998275 | M95: 0.02331776503 | N95: 4.312201203e-05
A96: =IF('DF raw data'!A101="","",'DF raw data'!A101) -> -283 | B96: =IF('DF raw data'!B101="","",'DF raw data'!B101) -> -2.19674e-05 | C96: =IF('DF raw data'!C101="","",'DF raw data'!C101) -> 0.000160292 | D96: =IF('DF raw data'!D101="","",'DF raw data'!D101) -> -2.45393e-05 | F96: -2.2077237e-05 | G96: 0.00016109346 | H96: -2.46619965e-05 | J96: -0.0003685739073 | K96: -0.003209489116 | L96: 0.00278052948 | M96: 0.02470802977 | N96: 4.705560749e-05
A97: =IF('DF raw data'!A102="","",'DF raw data'!A102) -> -282.5 | B97: =IF('DF raw data'!B102="","",'DF raw data'!B102) -> -2.421e-05 | C97: =IF('DF raw data'!C102="","",'DF raw data'!C102) -> 0.000163555 | D97: =IF('DF raw data'!D102="","",'DF raw data'!D102) -> -2.69048e-05 | F97: -2.433105e-05 | G97: 0.000164372775 | H97: -2.7039324e-05 | J97: -0.0003807394323 | K97: -0.003399858833 | L97: 0.002862715867 | M97: 0.0261393877 | N97: 5.122565982e-05
A98: =IF('DF raw data'!A103="","",'DF raw data'!A103) -> -282 | B98: =IF('DF raw data'!B103="","",'DF raw data'!B103) -> -3.61297e-05 | C98: =IF('DF raw data'!C103="","",'DF raw data'!C103) -> 0.000166854 | D98: =IF('DF raw data'!D103="","",'DF raw data'!D103) -> -3.26684e-05 | F98: -3.63103485e-05 | G98: 0.00016768827 | H98: -3.2831742e-05 | J98: -0.0003988946065 | K98: -0.003599306136 | L98: 0.002946560002 | M98: 0.02761266771 | N98: 5.56463262e-05
A99: =IF('DF raw data'!A104="","",'DF raw data'!A104) -> -281.5 | B99: =IF('DF raw data'!B104="","",'DF raw data'!B104) -> -2.56752e-05 | C99: =IF('DF raw data'!C104="","",'DF raw data'!C104) -> 0.00016284 | D99: =IF('DF raw data'!D104="","",'DF raw data'!D104) -> -4.10587e-05 | F99: -2.5803576e-05 | G99: 0.0001636542 | H99: -4.12639935e-05 | J99: -0.0004117963945 | K99: -0.003805204333 | L99: 0.003028387102 | M99: 0.02912686126 | N99: 6.031667855e-05
A100: =IF('DF raw data'!A105="","",'DF raw data'!A105) -> -281 | B100: =IF('DF raw data'!B105="","",'DF raw data'!B105) -> -2.74126e-05 | C100: =IF('DF raw data'!C105="","",'DF raw data'!C105) -> 0.0001647 | D100: =IF('DF raw data'!D105="","",'DF raw data'!D105) -> -3.04137e-05 | F100: -2.7549663e-05 | G100: 0.0001655235 | H100: -3.05657685e-05 | J100: -0.000425571226 | K100: -0.004017989946 | L100: 0.003111148852 | M100: 0.03068243568 | N100: 6.524685758e-05
A101: =IF('DF raw data'!A106="","",'DF raw data'!A106) -> -280.5 | B101: =IF('DF raw data'!B106="","",'DF raw data'!B106) -> -2.04154e-05 | C101: =IF('DF raw data'!C106="","",'DF raw data'!C106) -> 0.000163635 | D101: =IF('DF raw data'!D106="","",'DF raw data'!D106) -> -4.53798e-05 | F101: -2.0517477e-05 | G101: 0.000164453175 | H101: -4.5606699e-05 | J101: -0.0004358299645 | K101: -0.004235904928 | L101: 0.00319337544 | M101: 0.0322791234 | N101: 7.044065481e-05
A102: =IF('DF raw data'!A107="","",'DF raw data'!A107) -> -280 | B102: =IF('DF raw data'!B107="","",'DF raw data'!B107) -> -2.58702e-05 | C102: =IF('DF raw data'!C107="","",'DF raw data'!C107) -> 0.000160147 | D102: =IF('DF raw data'!D107="","",'DF raw data'!D107) -> -3.63039e-05 | F102: -2.5999551e-05 | G102: 0.000160947735 | H102: -3.64854195e-05 | J102: -0.00044882974 | K102: -0.004460319798 | L102: 0.003273849307 | M102: 0.03391604806 | N102: 7.590042352e-05
A103: =IF('DF raw data'!A108="","",'DF raw data'!A108) -> -279.5 | B103: =IF('DF raw data'!B108="","",'DF raw data'!B108) -> -2.89527e-05 | C103: =IF('DF raw data'!C108="","",'DF raw data'!C108) -> 0.000164553 | D103: =IF('DF raw data'!D108="","",'DF raw data'!D108) -> -2.87439e-05 | F103: -2.90974635e-05 | G103: 0.000165375765 | H103: -2.88876195e-05 | J103: -0.0004633784718 | K103: -0.004692009034 | L103: 0.00335653719 | M103: 0.03559431665 | N103: 8.164095428e-05
A104: =IF('DF raw data'!A109="","",'DF raw data'!A109) -> -279 | B104: =IF('DF raw data'!B109="","",'DF raw data'!B109) -> -2.51722e-05 | C104: =IF('DF raw data'!C109="","",'DF raw data'!C109) -> 0.000166567 | D104: =IF('DF raw data'!D109="","",'DF raw data'!D109) -> -2.50063e-05 | F104: -2.5298061e-05 | G104: 0.000167399835 | H104: -2.51313315e-05 | J104: -0.0004760275023 | K104: -0.004930022785 | L104: 0.003440237107 | M104: 0.03731443521 | N104: 8.767187105e-05
A105: =IF('DF raw data'!A110="","",'DF raw data'!A110) -> -278.5 | B105: =IF('DF raw data'!B110="","",'DF raw data'!B110) -> -2.27924e-05 | C105: =IF('DF raw data'!C110="","",'DF raw data'!C110) -> 0.000164107 | D105: =IF('DF raw data'!D110="","",'DF raw data'!D110) -> -3.78178e-05 | F105: -2.2906362e-05 | G105: 0.000164927535 | H105: -3.8006889e-05 | J105: -0.0004874806833 | K105: -0.005173763127 | L105: 0.003522700875 | M105: 0.03907578564 | N105: 9.399540048e-05
A106: =IF('DF raw data'!A111="","",'DF raw data'!A111) -> -278 | B106: =IF('DF raw data'!B111="","",'DF raw data'!B111) -> -2.91513e-05 | C106: =IF('DF raw data'!C111="","",'DF raw data'!C111) -> 0.000159463 | D106: =IF('DF raw data'!D111="","",'DF raw data'!D111) -> -1.84064e-05 | F106: -2.92970565e-05 | G106: 0.000160260315 | H106: -1.8498432e-05 | J106: -0.0005021292115 | K106: -0.005424827733 | L106: 0.003602831032 | M106: 0.04087720116 | N106: 0.0001006116631
A107: =IF('DF raw data'!A112="","",'DF raw data'!A112) -> -277.5 | B107: =IF('DF raw data'!B112="","",'DF raw data'!B112) -> -3.16518e-05 | C107: =IF('DF raw data'!C112="","",'DF raw data'!C112) -> 0.000159311 | D107: =IF('DF raw data'!D112="","",'DF raw data'!D112) -> -1.89513e-05 | F107: -3.1810059e-05 | G107: 0.000160107555 | H107: -1.90460565e-05 | J107: -0.000518034241 | K107: -0.005683844853 | L107: 0.00368288481 | M107: 0.04271864356 | N107: 0.0001075276631
A108: =IF('DF raw data'!A113="","",'DF raw data'!A113) -> -277 | B108: =IF('DF raw data'!B113="","",'DF raw data'!B113) -> -3.41519e-05 | C108: =IF('DF raw data'!C113="","",'DF raw data'!C113) -> 0.000159312 | D108: =IF('DF raw data'!D113="","",'DF raw data'!D113) -> -1.83255e-05 | F108: -3.43226595e-05 | G108: 0.00016010856 | H108: -1.84171275e-05 | J108: -0.0005351955708 | K108: -0.005951442639 | L108: 0.00376293909 | M108: 0.04460011311 | N108: 0.0001147507355
A109: =IF('DF raw data'!A114="","",'DF raw data'!A114) -> -276.5 | B109: =IF('DF raw data'!B114="","",'DF raw data'!B114) -> -2.51759e-05 | C109: =IF('DF raw data'!C114="","",'DF raw data'!C114) -> 0.000164906 | D109: =IF('DF raw data'!D114="","",'DF raw data'!D114) -> -2.02437e-05 | F109: -2.53017795e-05 | G109: 0.00016573053 | H109: -2.03449185e-05 | J109: -0.0005478464605 | K109: -0.006225365869 | L109: 0.003845804355 | M109: 0.04652301529 | N109: 0.000122295909
A110: =IF('DF raw data'!A115="","",'DF raw data'!A115) -> -276 | B110: =IF('DF raw data'!B115="","",'DF raw data'!B115) -> -2.40251e-05 | C110: =IF('DF raw data'!C115="","",'DF raw data'!C115) -> 0.000169395 | D110: =IF('DF raw data'!D115="","",'DF raw data'!D115) -> -1.46412e-05 | F110: -2.41452255e-05 | G110: 0.000170241975 | H110: -1.4714406e-05 | J110: -0.0005599190733 | K110: -0.006505325405 | L110: 0.003930925342 | M110: 0.04848847796 | N110: 0.0001301787507
A111: =IF('DF raw data'!A116="","",'DF raw data'!A116) -> -275.5 | B111: =IF('DF raw data'!B116="","",'DF raw data'!B116) -> -3.13348e-05 | C111: =IF('DF raw data'!C116="","",'DF raw data'!C116) -> 0.000176109 | D111: =IF('DF raw data'!D116="","",'DF raw data'!D116) -> -1.34973e-05 | F111: -3.1491474e-05 | G111: 0.000176989545 | H111: -1.35647865e-05 | J111: -0.0005756648103 | K111: -0.006793157811 | L111: 0.004019420115 | M111: 0.05049818802 | N111: 0.0001384223147
A112: =IF('DF raw data'!A117="","",'DF raw data'!A117) -> -275 | B112: =IF('DF raw data'!B117="","",'DF raw data'!B117) -> -2.70982e-05 | C112: =IF('DF raw data'!C117="","",'DF raw data'!C117) -> 0.000173085 | D112: =IF('DF raw data'!D117="","",'DF raw data'!D117) -> -2.05605e-05 | F112: -2.7233691e-05 | G112: 0.000173950425 | H112: -2.06633025e-05 | J112: -0.0005892816558 | K112: -0.007087798638 | L112: 0.004106395327 | M112: 0.05255138568 | N112: 0.0001470271824
A113: =IF('DF raw data'!A118="","",'DF raw data'!A118) -> -274.5 | B113: =IF('DF raw data'!B118="","",'DF raw data'!B118) -> -2.58816e-05 | C113: =IF('DF raw data'!C118="","",'DF raw data'!C118) -> 0.000166433 | D113: =IF('DF raw data'!D118="","",'DF raw data'!D118) -> -1.97018e-05 | F113: -2.6011008e-05 | G113: 0.000167265165 | H113: -1.9800309e-05 | J113: -0.0006022871598 | K113: -0.007388942218 | L113: 0.00419002791 | M113: 0.05464639963 | N113: 0.0001559867243
A114: =IF('DF raw data'!A119="","",'DF raw data'!A119) -> -274 | B114: =IF('DF raw data'!B119="","",'DF raw data'!B119) -> -3.08852e-05 | C114: =IF('DF raw data'!C119="","",'DF raw data'!C119) -> 0.000165031 | D114: =IF('DF raw data'!D119="","",'DF raw data'!D119) -> -1.3713e-05 | F114: -3.1039626e-05 | G114: 0.000165856155 | H114: -1.3781565e-05 | J114: -0.0006178069728 | K114: -0.007697845705 | L114: 0.004272955987 | M114: 0.05678287763 | N114: 0.0001653066434
A115: =IF('DF raw data'!A120="","",'DF raw data'!A120) -> -273.5 | B115: =IF('DF raw data'!B120="","",'DF raw data'!B120) -> -3.80594e-05 | C115: =IF('DF raw data'!C120="","",'DF raw data'!C120) -> 0.000164935 | D115: =IF('DF raw data'!D120="","",'DF raw data'!D120) -> -2.46291e-05 | F115: -3.8249697e-05 | G115: 0.000165759675 | H115: -2.47522455e-05 | J115: -0.0006369318213 | K115: -0.008016311615 | L115: 0.004355835825 | M115: 0.05896079554 | N115: 0.0001749961374
A116: =IF('DF raw data'!A121="","",'DF raw data'!A121) -> -273 | B116: =IF('DF raw data'!B121="","",'DF raw data'!B121) -> -2.54941e-05 | C116: =IF('DF raw data'!C121="","",'DF raw data'!C121) -> 0.000162828 | D116: =IF('DF raw data'!D121="","",'DF raw data'!D121) -> -2.29036e-05 | F116: -2.56215705e-05 | G116: 0.00016364214 | H116: -2.3018118e-05 | J116: -0.0006497426065 | K116: -0.008341182919 | L116: 0.004437656895 | M116: 0.06117962399 | N116: 0.0001850536195
A117: =IF('DF raw data'!A122="","",'DF raw data'!A122) -> -272.5 | B117: =IF('DF raw data'!B122="","",'DF raw data'!B122) -> -2.85731e-05 | C117: =IF('DF raw data'!C122="","",'DF raw data'!C122) -> 0.000164459 | D117: =IF('DF raw data'!D122="","",'DF raw data'!D122) -> -2.13916e-05 | F117: -2.87159655e-05 | G117: 0.000165281295 | H117: -2.1498558e-05 | J117: -0.0006641005893 | K117: -0.008673233213 | L117: 0.004520297542 | M117: 0.06343977276 | N117: 0.0001954906792
A118: =IF('DF raw data'!A123="","",'DF raw data'!A123) -> -272 | B118: =IF('DF raw data'!B123="","",'DF raw data'!B123) -> -2.00452e-05 | C118: =IF('DF raw data'!C123="","",'DF raw data'!C123) -> 0.00016209 | D118: =IF('DF raw data'!D123="","",'DF raw data'!D123) -> -2.21754e-05 | F118: -2.0145426e-05 | G118: 0.00016290045 | H118: -2.2286277e-05 | J118: -0.0006741733023 | K118: -0.009010319864 | L118: 0.004601747767 | M118: 0.06574064664 | N118: 0.0002063059753
A119: =IF('DF raw data'!A124="","",'DF raw data'!A124) -> -271.5 | B119: =IF('DF raw data'!B124="","",'DF raw data'!B124) -> -1.59324e-05 | C119: =IF('DF raw data'!C124="","",'DF raw data'!C124) -> 0.00015766 | D119: =IF('DF raw data'!D124="","",'DF raw data'!D124) -> -3.88732e-05 | F119: -1.6012062e-05 | G119: 0.0001584483 | H119: -3.9067566e-05 | J119: -0.0006821793333 | K119: -0.009351409531 | L119: 0.004680971917 | M119: 0.0680811326 | N119: 0.0002174944086
A120: =IF('DF raw data'!A125="","",'DF raw data'!A125) -> -271 | B120: =IF('DF raw data'!B125="","",'DF raw data'!B125) -> -1.9141e-05 | C120: =IF('DF raw data'!C125="","",'DF raw data'!C125) -> 0.000166588 | D120: =IF('DF raw data'!D125="","",'DF raw data'!D125) -> -3.23261e-05 | F120: -1.9236705e-05 | G120: 0.00016742094 | H120: -3.24877305e-05 | J120: -0.0006917976858 | K120: -0.009697308374 | L120: 0.004764682387 | M120: 0.0704634738 | N120: 0.0002290847998
A121: =IF('DF raw data'!A126="","",'DF raw data'!A126) -> -270.5 | B121: =IF('DF raw data'!B126="","",'DF raw data'!B126) -> -1.81201e-05 | C121: =IF('DF raw data'!C126="","",'DF raw data'!C126) -> 0.000159516 | D121: =IF('DF raw data'!D126="","",'DF raw data'!D126) -> -2.65059e-05 | F121: -1.82107005e-05 | G121: 0.00016031358 | H121: -2.66384295e-05 | J121: -0.000700903036 | K121: -0.01004775989 | L121: 0.004844839177 | M121: 0.07288589338 | N121: 0.0002410666656
A122: =IF('DF raw data'!A127="","",'DF raw data'!A127) -> -270 | B122: =IF('DF raw data'!B127="","",'DF raw data'!B127) -> -1.42817e-05 | C122: =IF('DF raw data'!C127="","",'DF raw data'!C127) -> 0.000149027 | D122: =IF('DF raw data'!D127="","",'DF raw data'!D127) -> -1.29287e-05 | F122: -1.43531085e-05 | G122: 0.000149772135 | H122: -1.29933435e-05 | J122: -0.0007080795903 | K122: -0.01040179969 | L122: 0.004919725245 | M122: 0.07534575601 | N122: 0.0002534192022
A123: =IF('DF raw data'!A128="","",'DF raw data'!A128) -> -269.5 | B123: =IF('DF raw data'!B128="","",'DF raw data'!B128) -> -2.54316e-05 | C123: =IF('DF raw data'!C128="","",'DF raw data'!C128) -> 0.000155168 | D123: =IF('DF raw data'!D128="","",'DF raw data'!D128) -> -2.2005e-05 | F123: -2.5558758e-05 | G123: 0.00015594384 | H123: -2.2115025e-05 | J123: -0.0007208589693 | K123: -0.01076222917 | L123: 0.004997697165 | M123: 0.07784460459 | N123: 0.0002661675095
A124: =IF('DF raw data'!A129="","",'DF raw data'!A129) -> -269 | B124: =IF('DF raw data'!B129="","",'DF raw data'!B129) -> -1.30567e-05 | C124: =IF('DF raw data'!C129="","",'DF raw data'!C129) -> 0.000161951 | D124: =IF('DF raw data'!D129="","",'DF raw data'!D129) -> -2.34056e-05 | F124: -1.31219835e-05 | G124: 0.000162760755 | H124: -2.3522628e-05 | J124: -0.000727419961 | K124: -0.01112593915 | L124: 0.005079077542 | M124: 0.08038414336 | N124: 0.0002793305938
A125: =IF('DF raw data'!A130="","",'DF raw data'!A130) -> -268.5 | B125: =IF('DF raw data'!B130="","",'DF raw data'!B130) -> -2.12664e-05 | C125: =IF('DF raw data'!C130="","",'DF raw data'!C130) -> 0.0001525 | D125: =IF('DF raw data'!D130="","",'DF raw data'!D130) -> -1.90776e-05 | F125: -2.1372732e-05 | G125: 0.0001532625 | H125: -1.9172988e-05 | J125: -0.000738106327 | K125: -0.01149499232 | L125: 0.005155708792 | M125: 0.08296199776 | N125: 0.0002928936608
A126: =IF('DF raw data'!A131="","",'DF raw data'!A131) -> -268 | B126: =IF('DF raw data'!B131="","",'DF raw data'!B131) -> -2.72869e-05 | C126: =IF('DF raw data'!C131="","",'DF raw data'!C131) -> 0.000156919 | D126: =IF('DF raw data'!D131="","",'DF raw data'!D131) -> -2.55242e-05 | F126: -2.74233345e-05 | G126: 0.000157703595 | H126: -2.5651821e-05 | J126: -0.0007518179943 | K126: -0.01187090131 | L126: 0.00523456059 | M126: 0.08557927805 | N126: 0.0003068765883
A127: =IF('DF raw data'!A132="","",'DF raw data'!A132) -> -267.5 | B127: =IF('DF raw data'!B132="","",'DF raw data'!B132) -> -1.05532e-05 | C127: =IF('DF raw data'!C132="","",'DF raw data'!C132) -> 0.000161275 | D127: =IF('DF raw data'!D132="","",'DF raw data'!D132) -> -2.95731e-05 | F127: -1.0605966e-05 | G127: 0.000162081375 | H127: -2.97209655e-05 | J127: -0.0007571209773 | K127: -0.0122494618 | L127: 0.005315601277 | M127: 0.08823707869 | N127: 0.0003212910128
A128: =IF('DF raw data'!A133="","",'DF raw data'!A133) -> -267 | B128: =IF('DF raw data'!B133="","",'DF raw data'!B133) -> -1.27988e-05 | C128: =IF('DF raw data'!C133="","",'DF raw data'!C133) -> 0.00015703 | D128: =IF('DF raw data'!D133="","",'DF raw data'!D133) -> -2.56878e-05 | F128: =(1-$G$1*($B$49-$G$2))*B128 -> -1.2862794e-05 | G128: 0.00015781515 | H128: -2.5816239e-05 | J128: =F128*$G$3+J127 -> -0.0007635523743 | K128: =J128*$G$3+K127 -> -0.01263123799 | L128: =G128*$G$3+L127 -> 0.005394508852 | M128: =L128*$G$3+M127 -> 0.09093433312 | N128: =(J128^2+L128^2)*$G$3+N127 -> 0.0003361328818
A129: =IF('DF raw data'!A134="","",'DF raw data'!A134) -> -266.5 | B129: =IF('DF raw data'!B134="","",'DF raw data'!B134) -> -2.38318e-05 | C129: =IF('DF raw data'!C134="","",'DF raw data'!C134) -> 0.00015327 | D129: =IF('DF raw data'!D134="","",'DF raw data'!D134) -> -1.80938e-05 | F129: -2.3950959e-05 | G129: 0.00015403635 | H129: -1.8184269e-05 | J129: -0.0007755278538 | K129: -0.01301900192 | L129: 0.005471527027 | M129: 0.09367009663 | N129: 0.0003514024076
A130: =IF('DF raw data'!A135="","",'DF raw data'!A135) -> -266 | B130: =IF('DF raw data'!B135="","",'DF raw data'!B135) -> -2.89483e-05 | C130: =IF('DF raw data'!C135="","",'DF raw data'!C135) -> 0.00015802 | D130: =IF('DF raw data'!D135="","",'DF raw data'!D135) -> -3.37195e-05 | F130: -2.90930415e-05 | G130: 0.0001588101 | H130: -3.38880975e-05 | J130: -0.0007900743745 | K130: -0.0134140391 | L130: 0.005550932077 | M130: 0.09644556267 | N130: 0.0003671209398
A131: =IF('DF raw data'!A136="","",'DF raw data'!A136) -> -265.5 | B131: =IF('DF raw data'!B136="","",'DF raw data'!B136) -> -3.36314e-05 | C131: =IF('DF raw data'!C136="","",'DF raw data'!C136) -> 0.000154615 | D131: =IF('DF raw data'!D136="","",'DF raw data'!D136) -> -3.19834e-05 | F131: -3.3799557e-05 | G131: 0.000155388075 | H131: -3.2143317e-05 | J131: -0.000806974153 | K131: -0.01381752618 | L131: 0.005628626115 | M131: 0.09925987573 | N131: 0.0003832872594
A132: =IF('DF raw data'!A137="","",'DF raw data'!A137) -> -265 | B132: =IF('DF raw data'!B137="","",'DF raw data'!B137) -> -2.08096e-05 | C132: =IF('DF raw data'!C137="","",'DF raw data'!C137) -> 0.000151514 | D132: =IF('DF raw data'!D137="","",'DF raw data'!D137) -> -2.95947e-05 | F132: -2.0913648e-05 | G132: 0.00015227157 | H132: -2.97426735e-05 | J132: -0.000817430977 | K132: -0.01422624167 | L132: 0.0057047619 | M132: 0.1021122567 | N132: 0.0003998935103
A133: =IF('DF raw data'!A138="","",'DF raw data'!A138) -> -264.5 | B133: =IF('DF raw data'!B138="","",'DF raw data'!B138) -> -2.0941e-05 | C133: =IF('DF raw data'!C138="","",'DF raw data'!C138) -> 0.000154815 | D133: =IF('DF raw data'!D138="","",'DF raw data'!D138) -> -2.68414e-05 | F133: -2.1045705e-05 | G133: 0.000155589075 | H133: -2.6975607e-05 | J133: -0.0008279538295 | K133: -0.01464021858 | L133: 0.005782556437 | M133: 0.1050035349 | N133: 0.0004169552435
A134: =IF('DF raw data'!A139="","",'DF raw data'!A139) -> -264 | B134: =IF('DF raw data'!B139="","",'DF raw data'!B139) -> -2.11398e-05 | C134: =IF('DF raw data'!C139="","",'DF raw data'!C139) -> 0.000157988 | D134: =IF('DF raw data'!D139="","",'DF raw data'!D139) -> -1.45326e-05 | F134: -2.1245499e-05 | G134: 0.00015877794 | H134: -1.4605263e-05 | J134: -0.000838576579 | K134: -0.01505950687 | L134: 0.005861945407 | M134: 0.1079345076 | N134: 0.0004344880508
A135: =IF('DF raw data'!A140="","",'DF raw data'!A140) -> -263.5 | B135: =IF('DF raw data'!B140="","",'DF raw data'!B140) -> -1.79279e-05 | C135: =IF('DF raw data'!C140="","",'DF raw data'!C140) -> 0.000159435 | D135: =IF('DF raw data'!D140="","",'DF raw data'!D140) -> -2.66923e-05 | F135: -1.80175395e-05 | G135: 0.000160232175 | H135: -2.68257615e-05 | J135: -0.0008475853488 | K135: -0.01548329955 | L135: 0.005942061495 | M135: 0.1109055383 | N135: 0.0004525012987
A136: =IF('DF raw data'!A141="","",'DF raw data'!A141) -> -263 | B136: =IF('DF raw data'!B141="","",'DF raw data'!B141) -> -1.81191e-05 | C136: =IF('DF raw data'!C141="","",'DF raw data'!C141) -> 0.000158894 | D136: =IF('DF raw data'!D141="","",'DF raw data'!D141) -> -2.64252e-05 | F136: -1.82096955e-05 | G136: 0.00015968847 | H136: -2.6557326e-05 | J136: -0.0008566901965 | K136: -0.01591164464 | L136: 0.00602190573 | M136: 0.1139164912 | N136: 0.0004709999321
A137: =IF('DF raw data'!A142="","",'DF raw data'!A142) -> -262.5 | B137: =IF('DF raw data'!B142="","",'DF raw data'!B142) -> -2.69006e-05 | C137: =IF('DF raw data'!C142="","",'DF raw data'!C142) -> 0.000155084 | D137: =IF('DF raw data'!D142="","",'DF raw data'!D142) -> -3.08953e-05 | F137: -2.7035103e-05 | G137: 0.00015585942 | H137: -3.10497765e-05 | J137: -0.000870207748 | K137: -0.01634674852 | L137: 0.00609983544 | M137: 0.1169664089 | N137: 0.000489982559
A138: =IF('DF raw data'!A143="","",'DF raw data'!A143) -> -262 | B138: =IF('DF raw data'!B143="","",'DF raw data'!B143) -> -2.32394e-05 | C138: =IF('DF raw data'!C143="","",'DF raw data'!C143) -> 0.000163102 | D138: =IF('DF raw data'!D143="","",'DF raw data'!D143) -> -3.90583e-05 | F138: -2.3355597e-05 | G138: 0.00016391751 | H138: -3.92535915e-05 | J138: -0.0008818855465 | K138: -0.01678769129 | L138: 0.006181794195 | M138: 0.120057306 | N138: 0.0005094787098
A139: =IF('DF raw data'!A144="","",'DF raw data'!A144) -> -261.5 | B139: =IF('DF raw data'!B144="","",'DF raw data'!B144) -> -2.38906e-05 | C139: =IF('DF raw data'!C144="","",'DF raw data'!C144) -> 0.000160986 | D139: =IF('DF raw data'!D144="","",'DF raw data'!D144) -> -2.60127e-05 | F139: -2.4010053e-05 | G139: 0.00016179093 | H139: -2.61427635e-05 | J139: -0.000893890573 | K139: -0.01723463658 | L139: 0.00626268966 | M139: 0.1231886509 | N139: 0.0005294888709
A140: =IF('DF raw data'!A145="","",'DF raw data'!A145) -> -261 | B140: =IF('DF raw data'!B145="","",'DF raw data'!B145) -> -1.51094e-05 | C140: =IF('DF raw data'!C145="","",'DF raw data'!C145) -> 0.000163421 | D140: =IF('DF raw data'!D145="","",'DF raw data'!D145) -> -2.11821e-05 | F140: -1.5184947e-05 | G140: 0.000164238105 | H140: -2.12880105e-05 | J140: -0.0009014830465 | K140: -0.0176853781 | L140: 0.006344808712 | M140: 0.1263610552 | N140: 0.0005500235055
A141: =IF('DF raw data'!A146="","",'DF raw data'!A146) -> -260.5 | B141: =IF('DF raw data'!B146="","",'DF raw data'!B146) -> -3.03661e-05 | C141: =IF('DF raw data'!C146="","",'DF raw data'!C146) -> 0.000165772 | D141: =IF('DF raw data'!D146="","",'DF raw data'!D146) -> -2.55217e-05 | F141: -3.05179305e-05 | G141: 0.00016660086 | H141: -2.56493085e-05 | J141: -0.0009167420118 | K141: -0.01814374911 | L141: 0.006428109142 | M141: 0.1295751098 | N141: 0.000571104007
A142: =IF('DF raw data'!A147="","",'DF raw data'!A147) -> -260 | B142: =IF('DF raw data'!B147="","",'DF raw data'!B147) -> -2.39481e-05 | C142: =IF('DF raw data'!C147="","",'DF raw data'!C147) -> 0.000167345 | D142: =IF('DF raw data'!D147="","",'DF raw data'!D147) -> -3.35489e-05 | F142: -2.40678405e-05 | G142: 0.000168181725 | H142: -3.37166445e-05 | J142: -0.000928775932 | K142: -0.01860813707 | L142: 0.006512200005 | M142: 0.1328312098 | N142: 0.0005927396939
A143: =IF('DF raw data'!A148="","",'DF raw data'!A148) -> -259.5 | B143: =IF('DF raw data'!B148="","",'DF raw data'!B148) -> -2.72827e-05 | C143: =IF('DF raw data'!C148="","",'DF raw data'!C148) -> 0.00016874 | D143: =IF('DF raw data'!D148="","",'DF raw data'!D148) -> -3.52785e-05 | F143: -2.74191135e-05 | G143: 0.0001695837 | H143: -3.54548925e-05 | J143: -0.0009424854888 | K143: -0.01907937982 | L143: 0.006596991855 | M143: 0.1361297057 | N143: 0.0006149439841
A144: =IF('DF raw data'!A149="","",'DF raw data'!A149) -> -259 | B144: =IF('DF raw data'!B149="","",'DF raw data'!B149) -> -3.77311e-05 | C144: =IF('DF raw data'!C149="","",'DF raw data'!C149) -> 0.000170898 | D144: =IF('DF raw data'!D149="","",'DF raw data'!D149) -> -3.27069e-05 | F144: -3.79197555e-05 | G144: 0.00017175249 | H144: -3.28704345e-05 | J144: -0.0009614453665 | K144: -0.0195601025 | L144: 0.0066828681 | M144: 0.1394711398 | N144: 0.0006377365357
A145: =IF('DF raw data'!A150="","",'DF raw data'!A150) -> -258.5 | B145: =IF('DF raw data'!B150="","",'DF raw data'!B150) -> -2.10692e-05 | C145: =IF('DF raw data'!C150="","",'DF raw data'!C150) -> 0.000170635 | D145: =IF('DF raw data'!D150="","",'DF raw data'!D150) -> -2.72252e-05 | F145: -2.1174546e-05 | G145: 0.000171488175 | H145: -2.7361326e-05 | J145: -0.0009720326395 | K145: -0.02004611882 | L145: 0.006768612187 | M145: 0.1428554459 | N145: 0.0006611160149
A146: =IF('DF raw data'!A151="","",'DF raw data'!A151) -> -258 | B146: =IF('DF raw data'!B151="","",'DF raw data'!B151) -> -3.0804e-05 | C146: =IF('DF raw data'!C151="","",'DF raw data'!C151) -> 0.000167268 | D146: =IF('DF raw data'!D151="","",'DF raw data'!D151) -> -3.8201e-05 | F146: -3.095802e-05 | G146: 0.00016810434 | H146: -3.8392005e-05 | J146: -0.0009875116495 | K146: -0.02053987465 | L146: 0.006852664357 | M146: 0.146281778 | N146: 0.0006850831089
A147: =IF('DF raw data'!A152="","",'DF raw data'!A152) -> -257.5 | B147: =IF('DF raw data'!B152="","",'DF raw data'!B152) -> -2.84464e-05 | C147: =IF('DF raw data'!C152="","",'DF raw data'!C152) -> 0.000166288 | D147: =IF('DF raw data'!D152="","",'DF raw data'!D152) -> -2.04812e-05 | F147: -2.8588632e-05 | G147: 0.00016711944 | H147: -2.0583606e-05 | J147: -0.001001805966 | K147: -0.02104077763 | L147: 0.006936224077 | M147: 0.1497498901 | N147: 0.0007096405187
A148: =IF('DF raw data'!A153="","",'DF raw data'!A153) -> -257 | B148: =IF('DF raw data'!B153="","",'DF raw data'!B153) -> -2.35654e-05 | C148: =IF('DF raw data'!C153="","",'DF raw data'!C153) -> 0.00017374 | D148: =IF('DF raw data'!D153="","",'DF raw data'!D153) -> -2.98236e-05 | F148: -2.3683227e-05 | G148: 0.0001746087 | H148: -2.9972718e-05 | J148: -0.001013647579 | K148: -0.02154760142 | L148: 0.007023528427 | M148: 0.1532616543 | N148: 0.0007348192352
A149: =IF('DF raw data'!A154="","",'DF raw data'!A154) -> -256.5 | B149: =IF('DF raw data'!B154="","",'DF raw data'!B154) -> -3.65185e-05 | C149: =IF('DF raw data'!C154="","",'DF raw data'!C154) -> 0.000164841 | D149: =IF('DF raw data'!D154="","",'DF raw data'!D154) -> -2.96571e-05 | F149: -3.67010925e-05 | G149: 0.000165665205 | H149: -2.98053855e-05 | J149: -0.001031998125 | K149: -0.02206360048 | L149: 0.00710636103 | M149: 0.1568148348 | N149: 0.0007606019289
A150: =IF('DF raw data'!A155="","",'DF raw data'!A155) -> -256 | B150: =IF('DF raw data'!B155="","",'DF raw data'!B155) -> -1.6319e-05 | C150: =IF('DF raw data'!C155="","",'DF raw data'!C155) -> 0.000160372 | D150: =IF('DF raw data'!D155="","",'DF raw data'!D155) -> -3.38172e-05 | F150: -1.6400595e-05 | G150: 0.00016117386 | H150: -3.3986286e-05 | J150: -0.001040198423 | K150: -0.02258369969 | L150: 0.00718694796 | M150: 0.1604083088 | N150: 0.0007869690457
A151: =IF('DF raw data'!A156="","",'DF raw data'!A156) -> -255.5 | B151: =IF('DF raw data'!B156="","",'DF raw data'!B156) -> -3.38229e-05 | C151: =IF('DF raw data'!C156="","",'DF raw data'!C156) -> 0.000154825 | D151: =IF('DF raw data'!D156="","",'DF raw data'!D156) -> -3.44159e-05 | F151: -3.39920145e-05 | G151: 0.000155599125 | H151: -3.45879795e-05 | J151: -0.00105719443 | K151: -0.02311229691 | L151: 0.007264747522 | M151: 0.1640406825 | N151: 0.000813916154
A152: =IF('DF raw data'!A157="","",'DF raw data'!A157) -> -255 | B152: =IF('DF raw data'!B157="","",'DF raw data'!B157) -> -2.49748e-05 | C152: =IF('DF raw data'!C157="","",'DF raw data'!C157) -> 0.000156314 | D152: =IF('DF raw data'!D157="","",'DF raw data'!D157) -> -3.12876e-05 | F152: -2.5099674e-05 | G152: 0.00015709557 | H152: -3.1444038e-05 | J152: -0.001069744267 | K152: -0.02364716904 | L152: 0.007343295307 | M152: 0.1677123302 | N152: 0.0008414503234
A153: =IF('DF raw data'!A158="","",'DF raw data'!A158) -> -254.5 | B153: =IF('DF raw data'!B158="","",'DF raw data'!B158) -> -3.88233e-05 | C153: =IF('DF raw data'!C158="","",'DF raw data'!C158) -> 0.000158654 | D153: =IF('DF raw data'!D158="","",'DF raw data'!D158) -> -3.51142e-05 | F153: -3.90174165e-05 | G153: 0.00015944727 | H153: -3.5289771e-05 | J153: -0.001089252975 | K153: -0.02419179553 | L153: 0.007423018942 | M153: 0.1714238397 | N153: 0.0008695941646
A154: =IF('DF raw data'!A159="","",'DF raw data'!A159) -> -254 | B154: =IF('DF raw data'!B159="","",'DF raw data'!B159) -> -2.33811e-05 | C154: =IF('DF raw data'!C159="","",'DF raw data'!C159) -> 0.000165492 | D154: =IF('DF raw data'!D159="","",'DF raw data'!D159) -> -1.73333e-05 | F154: -2.34980055e-05 | G154: 0.00016631946 | H154: -1.74199665e-05 | J154: -0.001101001978 | K154: -0.02474229652 | L154: 0.007506178672 | M154: 0.175176929 | N154: 0.0008983716264
A155: =IF('DF raw data'!A160="","",'DF raw data'!A160) -> -253.5 | B155: =IF('DF raw data'!B160="","",'DF raw data'!B160) -> -2.49145e-05 | C155: =IF('DF raw data'!C160="","",'DF raw data'!C160) -> 0.000159119 | D155: =IF('DF raw data'!D160="","",'DF raw data'!D160) -> -2.95547e-05 | F155: -2.50390725e-05 | G155: 0.000159914595 | H155: -2.97024735e-05 | J155: -0.001113521514 | K155: -0.02529905727 | L155: 0.00758613597 | M155: 0.178969997 | N155: 0.0009277663209
A156: =IF('DF raw data'!A161="","",'DF raw data'!A161) -> -253 | B156: =IF('DF raw data'!B161="","",'DF raw data'!B161) -> -1.88195e-05 | C156: =IF('DF raw data'!C161="","",'DF raw data'!C161) -> 0.000170292 | D156: =IF('DF raw data'!D161="","",'DF raw data'!D161) -> -3.31769e-05 | F156: -1.89135975e-05 | G156: 0.00017114346 | H156: -3.33427845e-05 | J156: -0.001122978313 | K156: -0.02586054643 | L156: 0.0076717077 | M156: 0.1828058508 | N156: 0.0009578244106
A157: =IF('DF raw data'!A162="","",'DF raw data'!A162) -> -252.5 | B157: =IF('DF raw data'!B162="","",'DF raw data'!B162) -> -2.38873e-05 | C157: =IF('DF raw data'!C162="","",'DF raw data'!C162) -> 0.000167636 | D157: =IF('DF raw data'!D162="","",'DF raw data'!D162) -> -3.17337e-05 | F157: -2.40067365e-05 | G157: 0.00016847418 | H157: -3.18923685e-05 | J157: -0.001134981681 | K157: -0.02642803727 | L157: 0.00775594479 | M157: 0.1866838232 | N157: 0.0009885458421
A158: =IF('DF raw data'!A163="","",'DF raw data'!A163) -> -252 | B158: =IF('DF raw data'!B163="","",'DF raw data'!B163) -> -3.08142e-05 | C158: =IF('DF raw data'!C163="","",'DF raw data'!C163) -> 0.000161221 | D158: =IF('DF raw data'!D163="","",'DF raw data'!D163) -> -2.21714e-05 | F158: -3.0968271e-05 | G158: 0.000162027105 | H158: -2.2282257e-05 | J158: -0.001150465817 | K158: -0.02700327018 | L158: 0.007836958342 | M158: 0.1906023024 | N158: 0.001019916586
A159: =IF('DF raw data'!A164="","",'DF raw data'!A164) -> -251.5 | B159: =IF('DF raw data'!B164="","",'DF raw data'!B164) -> -4.38943e-05 | C159: =IF('DF raw data'!C164="","",'DF raw data'!C164) -> 0.000159509 | D159: =IF('DF raw data'!D164="","",'DF raw data'!D164) -> -2.54338e-05 | F159: -4.41137715e-05 | G159: 0.000160306545 | H159: -2.5560969e-05 | J159: -0.001172522703 | K159: -0.02758953153 | L159: 0.007917111615 | M159: 0.1945608582 | N159: 0.001051944319
A160: =IF('DF raw data'!A165="","",'DF raw data'!A165) -> -251 | B160: =IF('DF raw data'!B165="","",'DF raw data'!B165) -> -1.3758e-05 | C160: =IF('DF raw data'!C165="","",'DF raw data'!C165) -> 0.000159481 | D160: =IF('DF raw data'!D165="","",'DF raw data'!D165) -> -2.86172e-05 | F160: -1.382679e-05 | G160: 0.000160278405 | H160: -2.8760286e-05 | J160: -0.001179436098 | K160: -0.02817924958 | L160: 0.007997250817 | M160: 0.1985594836 | N160: 0.001084617864
A161: =IF('DF raw data'!A166="","",'DF raw data'!A166) -> -250.5 | B161: =IF('DF raw data'!B166="","",'DF raw data'!B166) -> -1.73514e-05 | C161: =IF('DF raw data'!C166="","",'DF raw data'!C166) -> 0.000154266 | D161: =IF('DF raw data'!D166="","",'DF raw data'!D166) -> -2.61826e-05 | F161: -1.7438157e-05 | G161: 0.00015503733 | H161: -2.6313513e-05 | J161: -0.001188155176 | K161: -0.02877332717 | L161: 0.008074769482 | M161: 0.2025968684 | N161: 0.001117924671
A162: =IF('DF raw data'!A167="","",'DF raw data'!A167) -> -250 | B162: =IF('DF raw data'!B167="","",'DF raw data'!B167) -> -9.72386e-06 | C162: =IF('DF raw data'!C167="","",'DF raw data'!C167) -> 0.000163018 | D162: =IF('DF raw data'!D167="","",'DF raw data'!D167) -> -2.17784e-05 | F162: -9.7724793e-06 | G162: 0.00016383309 | H162: -2.1887292e-05 | J162: -0.001193041416 | K162: -0.02936984788 | L162: 0.008156686027 | M162: 0.2066752114 | N162: 0.001151902109
A163: =IF('DF raw data'!A168="","",'DF raw data'!A168) -> -249.5 | B163: =IF('DF raw data'!B168="","",'DF raw data'!B168) -> -1.6328e-05 | C163: =IF('DF raw data'!C168="","",'DF raw data'!C168) -> 0.000159557 | D163: =IF('DF raw data'!D168="","",'DF raw data'!D168) -> -2.2606e-05 | F163: -1.640964e-05 | G163: 0.000160354785 | H163: -2.271903e-05 | J163: -0.001201246236 | K163: -0.02997047099 | L163: 0.00823686342 | M163: 0.2107936431 | N163: 0.001186546564
A164: =IF('DF raw data'!A169="","",'DF raw data'!A169) -> -249 | B164: =IF('DF raw data'!B169="","",'DF raw data'!B169) -> -2.44026e-05 | C164: =IF('DF raw data'!C169="","",'DF raw data'!C169) -> 0.000155405 | D164: =IF('DF raw data'!D169="","",'DF raw data'!D169) -> -2.39494e-05 | F164: -2.4524613e-05 | G164: 0.000156182025 | H164: -2.4069147e-05 | J164: -0.001213508542 | K164: -0.03057722526 | L164: 0.008314954432 | M164: 0.2149511203 | N164: 0.0012218521
A165: =IF('DF raw data'!A170="","",'DF raw data'!A170) -> -248.5 | B165: =IF('DF raw data'!B170="","",'DF raw data'!B170) -> -2.88896e-05 | C165: =IF('DF raw data'!C170="","",'DF raw data'!C170) -> 0.000154978 | D165: =IF('DF raw data'!D170="","",'DF raw data'!D170) -> -2.94386e-05 | F165: -2.9034048e-05 | G165: 0.00015575289 | H165: -2.9585793e-05 | J165: -0.001228025566 | K165: -0.03119123805 | L165: 0.008392830877 | M165: 0.2191475357 | N165: 0.001257825928
A166: =IF('DF raw data'!A171="","",'DF raw data'!A171) -> -248 | B166: =IF('DF raw data'!B171="","",'DF raw data'!B171) -> -2.26701e-05 | C166: =IF('DF raw data'!C171="","",'DF raw data'!C171) -> 0.000158796 | D166: =IF('DF raw data'!D171="","",'DF raw data'!D171) -> -2.64739e-05 | F166: -2.27834505e-05 | G166: 0.00015958998 | H166: -2.66062695e-05 | J166: -0.001239417291 | K166: -0.03181094669 | L166: 0.008472625867 | M166: 0.2233838487 | N166: 0.0012944867
A167: =IF('DF raw data'!A172="","",'DF raw data'!A172) -> -247.5 | B167: =IF('DF raw data'!B172="","",'DF raw data'!B172) -> -2.09972e-05 | C167: =IF('DF raw data'!C172="","",'DF raw data'!C172) -> 0.000152129 | D167: =IF('DF raw data'!D172="","",'DF raw data'!D172) -> -3.9402e-05 | F167: -2.1102186e-05 | G167: 0.000152889645 | H167: -3.959901e-05 | J167: -0.001249968384 | K167: -0.03243593089 | L167: 0.00854907069 | M167: 0.227658384 | N167: 0.001331811216
A168: =IF('DF raw data'!A173="","",'DF raw data'!A173) -> -247 | B168: =IF('DF raw data'!B173="","",'DF raw data'!B173) -> -1.58739e-05 | C168: =IF('DF raw data'!C173="","",'DF raw data'!C173) -> 0.000161339 | D168: =IF('DF raw data'!D173="","",'DF raw data'!D173) -> -2.8032e-05 | F168: -1.59532695e-05 | G168: 0.000162145695 | H168: -2.817216e-05 | J168: -0.001257945019 | K168: -0.03306490339 | L168: 0.008630143537 | M168: 0.2319734558 | N168: 0.001369842117
A169: =IF('DF raw data'!A174="","",'DF raw data'!A174) -> -246.5 | B169: =IF('DF raw data'!B174="","",'DF raw data'!B174) -> -2.1587e-05 | C169: =IF('DF raw data'!C174="","",'DF raw data'!C174) -> 0.000170241 | D169: =IF('DF raw data'!D174="","",'DF raw data'!D174) -> -1.98014e-05 | F169: -2.1694935e-05 | G169: 0.000171092205 | H169: -1.9900407e-05 | J169: -0.001268792487 | K169: -0.03369929964 | L169: 0.00871568964 | M169: 0.2363313006 | N169: 0.001408628657
A170: =IF('DF raw data'!A175="","",'DF raw data'!A175) -> -246 | B170: =IF('DF raw data'!B175="","",'DF raw data'!B175) -> -2.58098e-05 | C170: =IF('DF raw data'!C175="","",'DF raw data'!C175) -> 0.000168731 | D170: =IF('DF raw data'!D175="","",'DF raw data'!D175) -> -2.87097e-05 | F170: -2.5938849e-05 | G170: 0.000169574655 | H170: -2.88532485e-05 | J170: -0.001281761911 | K170: -0.03434018059 | L170: 0.008800476967 | M170: 0.2407315391 | N170: 0.001448174311
A171: =IF('DF raw data'!A176="","",'DF raw data'!A176) -> -245.5 | B171: =IF('DF raw data'!B176="","",'DF raw data'!B176) -> -1.52333e-05 | C171: =IF('DF raw data'!C176="","",'DF raw data'!C176) -> 0.000168822 | D171: =IF('DF raw data'!D176="","",'DF raw data'!D176) -> -2.97403e-05 | F171: -1.53094665e-05 | G171: 0.00016966611 | H171: -2.98890015e-05 | J171: -0.001289416644 | K171: -0.03498488892 | L171: 0.008885310022 | M171: 0.2451741941 | N171: 0.001488479976
A172: =IF('DF raw data'!A177="","",'DF raw data'!A177) -> -245 | B172: =IF('DF raw data'!B177="","",'DF raw data'!B177) -> -1.8372e-05 | C172: =IF('DF raw data'!C177="","",'DF raw data'!C177) -> 0.000178412 | D172: =IF('DF raw data'!D177="","",'DF raw data'!D177) -> -3.12877e-05 | F172: -1.846386e-05 | G172: 0.00017930406 | H172: -3.14441385e-05 | J172: -0.001298648574 | K172: -0.0356342132 | L172: 0.008974962052 | M172: 0.2496616751 | N172: 0.001529598192
A173: =IF('DF raw data'!A178="","",'DF raw data'!A178) -> -244.5 | B173: =IF('DF raw data'!B178="","",'DF raw data'!B178) -> -2.7486e-05 | C173: =IF('DF raw data'!C178="","",'DF raw data'!C178) -> 0.00016451 | D173: =IF('DF raw data'!D178="","",'DF raw data'!D178) -> -1.86641e-05 | F173: -2.762343e-05 | G173: 0.00016533255 | H173: -1.87574205e-05 | J173: -0.001312460289 | K173: -0.03629044335 | L173: 0.009057628327 | M173: 0.2541904893 | N173: 0.001571479784
A174: =IF('DF raw data'!A179="","",'DF raw data'!A179) -> -244 | B174: =IF('DF raw data'!B179="","",'DF raw data'!B179) -> -2.31207e-05 | C174: =IF('DF raw data'!C179="","",'DF raw data'!C179) -> 0.000152809 | D174: =IF('DF raw data'!D179="","",'DF raw data'!D179) -> -2.38736e-05 | F174: -2.32363035e-05 | G174: 0.000153573045 | H174: -2.3992968e-05 | J174: -0.001324078441 | K174: -0.03695248257 | L174: 0.00913441485 | M174: 0.2587576967 | N174: 0.001614075143
A175: =IF('DF raw data'!A180="","",'DF raw data'!A180) -> -243.5 | B175: =IF('DF raw data'!B180="","",'DF raw data'!B180) -> -3.69712e-05 | C175: =IF('DF raw data'!C180="","",'DF raw data'!C180) -> 0.000161554 | D175: =IF('DF raw data'!D180="","",'DF raw data'!D180) -> -2.34074e-05 | F175: -3.7156056e-05 | G175: 0.00016236177 | H175: -2.3524437e-05 | J175: -0.001342656469 | K175: -0.0376238108 | L175: 0.009215595735 | M175: 0.2633654946 | N175: 0.001657440108
A176: =IF('DF raw data'!A181="","",'DF raw data'!A181) -> -243 | B176: =IF('DF raw data'!B181="","",'DF raw data'!B181) -> -2.43254e-05 | C176: =IF('DF raw data'!C181="","",'DF raw data'!C181) -> 0.000168059 | D176: =IF('DF raw data'!D181="","",'DF raw data'!D181) -> -4.4638e-05 | F176: -2.4447027e-05 | G176: 0.000168899295 | H176: -4.486119e-05 | J176: -0.001354879983 | K176: -0.03830125079 | L176: 0.009300045382 | M176: 0.2680155173 | N176: 0.00170160338
A177: =IF('DF raw data'!A182="","",'DF raw data'!A182) -> -242.5 | B177: =IF('DF raw data'!B182="","",'DF raw data'!B182) -> -2.56225e-05 | C177: =IF('DF raw data'!C182="","",'DF raw data'!C182) -> 0.000152789 | D177: =IF('DF raw data'!D182="","",'DF raw data'!D182) -> -2.47915e-05 | F177: -2.57506125e-05 | G177: 0.000153552945 | H177: -2.49154575e-05 | J177: -0.001367755289 | K177: -0.03898512844 | L177: 0.009376821855 | M177: 0.2727039282 | N177: 0.001746501152
A178: =IF('DF raw data'!A183="","",'DF raw data'!A183) -> -242 | B178: =IF('DF raw data'!B183="","",'DF raw data'!B183) -> -1.00401e-05 | C178: =IF('DF raw data'!C183="","",'DF raw data'!C183) -> 0.000162033 | D178: =IF('DF raw data'!D183="","",'DF raw data'!D183) -> -2.88148e-05 | F178: -1.00903005e-05 | G178: 0.000162843165 | H178: -2.8958874e-05 | J178: -0.001372800439 | K178: -0.03967152866 | L178: 0.009458243437 | M178: 0.2774330499 | N178: 0.001792172627
A179: =IF('DF raw data'!A184="","",'DF raw data'!A184) -> -241.5 | B179: =IF('DF raw data'!B184="","",'DF raw data'!B184) -> -2.60053e-05 | C179: =IF('DF raw data'!C184="","",'DF raw data'!C184) -> 0.000162067 | D179: =IF('DF raw data'!D184="","",'DF raw data'!D184) -> -2.75122e-05 | F179: -2.61353265e-05 | G179: 0.000162877335 | H179: -2.7649761e-05 | J179: -0.001385868102 | K179: -0.04036446271 | L179: 0.009539682105 | M179: 0.282202891 | N179: 0.001838635709
A180: =IF('DF raw data'!A185="","",'DF raw data'!A185) -> -241 | B180: =IF('DF raw data'!B185="","",'DF raw data'!B185) -> -1.85631e-05 | C180: =IF('DF raw data'!C185="","",'DF raw data'!C185) -> 0.000172292 | D180: =IF('DF raw data'!D185="","",'DF raw data'!D185) -> -3.38005e-05 | F180: -1.86559155e-05 | G180: 0.00017315346 | H180: -3.39695025e-05 | J180: -0.00139519606 | K180: -0.04106206074 | L180: 0.009626258835 | M180: 0.2870160204 | N180: 0.001885941425
A181: =IF('DF raw data'!A186="","",'DF raw data'!A186) -> -240.5 | B181: =IF('DF raw data'!B186="","",'DF raw data'!B186) -> -3.08862e-05 | C181: =IF('DF raw data'!C186="","",'DF raw data'!C186) -> 0.00017073 | D181: =IF('DF raw data'!D186="","",'DF raw data'!D186) -> -1.4394e-05 | F181: -3.1040631e-05 | G181: 0.00017158365 | H181: -1.446597e-05 | J181: -0.001410716376 | K181: -0.04176741893 | L181: 0.00971205066 | M181: 0.2918720457 | N181: 0.001934098449
A182: =IF('DF raw data'!A187="","",'DF raw data'!A187) -> -240 | B182: =IF('DF raw data'!B187="","",'DF raw data'!B187) -> -1.62636e-05 | C182: =IF('DF raw data'!C187="","",'DF raw data'!C187) -> 0.000168544 | D182: =IF('DF raw data'!D187="","",'DF raw data'!D187) -> -2.06677e-05 | F182: -1.6344918e-05 | G182: 0.00016938672 | H182: -2.07710385e-05 | J182: -0.001418888835 | K182: -0.04247686334 | L182: 0.00979674402 | M182: 0.2967704177 | N182: 0.001983093169
A183: =IF('DF raw data'!A188="","",'DF raw data'!A188) -> -239.5 | B183: =IF('DF raw data'!B188="","",'DF raw data'!B188) -> -3.23548e-05 | C183: =IF('DF raw data'!C188="","",'DF raw data'!C188) -> 0.00016154 | D183: =IF('DF raw data'!D188="","",'DF raw data'!D188) -> -2.30438e-05 | F183: -3.2516574e-05 | G183: 0.0001623477 | H183: -2.3159019e-05 | J183: -0.001435147122 | K183: -0.04319443691 | L183: 0.00987791787 | M183: 0.3017093767 | N183: 0.002032909623
A184: =IF('DF raw data'!A189="","",'DF raw data'!A189) -> -239 | B184: =IF('DF raw data'!B189="","",'DF raw data'!B189) -> -1.72263e-05 | C184: =IF('DF raw data'!C189="","",'DF raw data'!C189) -> 0.000161226 | D184: =IF('DF raw data'!D189="","",'DF raw data'!D189) -> -1.92659e-05 | F184: -1.73124315e-05 | G184: 0.00016203213 | H184: -1.93622295e-05 | J184: -0.001443803337 | K184: -0.04391633857 | L184: 0.009958933935 | M184: 0.3066888436 | N184: 0.00208354209
A185: =IF('DF raw data'!A190="","",'DF raw data'!A190) -> -238.5 | B185: =IF('DF raw data'!B190="","",'DF raw data'!B190) -> -1.24159e-05 | C185: =IF('DF raw data'!C190="","",'DF raw data'!C190) -> 0.000169973 | D185: =IF('DF raw data'!D190="","",'DF raw data'!D190) -> -2.42166e-05 | F185: -1.24779795e-05 | G185: 0.000170822865 | H185: -2.4337683e-05 | J185: -0.001450042327 | K185: -0.04464135974 | L185: 0.01004434537 | M185: 0.3117110163 | N185: 0.002135037838
A186: =IF('DF raw data'!A191="","",'DF raw data'!A191) -> -238 | B186: =IF('DF raw data'!B191="","",'DF raw data'!B191) -> -2.52207e-05 | C186: =IF('DF raw data'!C191="","",'DF raw data'!C191) -> 0.0001703 | D186: =IF('DF raw data'!D191="","",'DF raw data'!D191) -> -4.84663e-05 | F186: -2.53468035e-05 | G186: 0.0001711515 | H186: -4.87086315e-05 | J186: -0.001462715729 | K186: -0.0453727176 | L186: 0.01012992112 | M186: 0.3167759769 | N186: 0.002187415257
A187: =IF('DF raw data'!A192="","",'DF raw data'!A192) -> -237.5 | B187: =IF('DF raw data'!B192="","",'DF raw data'!B192) -> -3.67061e-05 | C187: =IF('DF raw data'!C192="","",'DF raw data'!C192) -> 0.000162925 | D187: =IF('DF raw data'!D192="","",'DF raw data'!D192) -> -3.5677e-05 | F187: -3.68896305e-05 | G187: 0.000163739625 | H187: -3.5855385e-05 | J187: -0.001481160544 | K187: -0.04611329787 | L187: 0.01021179093 | M187: 0.3218818723 | N187: 0.002240652513
A188: =IF('DF raw data'!A193="","",'DF raw data'!A193) -> -237 | B188: =IF('DF raw data'!B193="","",'DF raw data'!B193) -> -2.36962e-05 | C188: =IF('DF raw data'!C193="","",'DF raw data'!C193) -> 0.000173143 | D188: =IF('DF raw data'!D193="","",'DF raw data'!D193) -> -2.65259e-05 | F188: -2.3814681e-05 | G188: 0.000174008715 | H188: -2.66585295e-05 | J188: -0.001493067885 | K188: -0.04685983182 | L188: 0.01029879529 | M188: 0.32703127 | N188: 0.002294799731
A189: =IF('DF raw data'!A194="","",'DF raw data'!A194) -> -236.5 | B189: =IF('DF raw data'!B194="","",'DF raw data'!B194) -> -3.17158e-05 | C189: =IF('DF raw data'!C194="","",'DF raw data'!C194) -> 0.000163876 | D189: =IF('DF raw data'!D194="","",'DF raw data'!D194) -> -1.96195e-05 | F189: -3.1874379e-05 | G189: 0.00016469538 | H189: -1.97175975e-05 | J189: -0.001509005074 | K189: -0.04761433435 | L189: 0.01038114298 | M189: 0.3322218415 | N189: 0.002349822344
A190: =IF('DF raw data'!A195="","",'DF raw data'!A195) -> -236 | B190: =IF('DF raw data'!B195="","",'DF raw data'!B195) -> -1.04945e-05 | C190: =IF('DF raw data'!C195="","",'DF raw data'!C195) -> 0.000158278 | D190: =IF('DF raw data'!D195="","",'DF raw data'!D195) -> -2.00638e-05 | F190: -1.05469725e-05 | G190: 0.00015906939 | H190: -2.0164119e-05 | J190: -0.00151427856 | K190: -0.04837147363 | L190: 0.01046067767 | M190: 0.3374521803 | N190: 0.002405681752
A191: =IF('DF raw data'!A196="","",'DF raw data'!A196) -> -235.5 | B191: =IF('DF raw data'!B196="","",'DF raw data'!B196) -> -2.28641e-05 | C191: =IF('DF raw data'!C196="","",'DF raw data'!C196) -> 0.000172432 | D191: =IF('DF raw data'!D196="","",'DF raw data'!D196) -> -2.67631e-05 | F191: -2.29784205e-05 | G191: 0.00017329416 | H191: -2.68969155e-05 | J191: -0.001525767771 | K191: -0.04913435752 | L191: 0.01054732475 | M191: 0.3427258427 | N191: 0.002462468765
A192: =IF('DF raw data'!A197="","",'DF raw data'!A197) -> -235 | B192: =IF('DF raw data'!B197="","",'DF raw data'!B197) -> -4.97822e-06 | C192: =IF('DF raw data'!C197="","",'DF raw data'!C197) -> 0.000170018 | D192: =IF('DF raw data'!D197="","",'DF raw data'!D197) -> -2.52108e-05 | F192: =(1-$G$1*($B$49-$G$2))*B192 -> -5.0031111e-06 | G192: 0.00017086809 | H192: -2.5336854e-05 | J192: =F192*$G$3+J191 -> -0.001528269326 | K192: =J192*$G$3+K191 -> -0.04989849218 | L192: =G192*$G$3+L191 -> 0.0106327588 | M192: =L192*$G$3+M191 -> 0.3480422221 | N192: =(J192^2+L192^2)*$G$3+N191 -> 0.002520164349
A193: =IF('DF raw data'!A198="","",'DF raw data'!A198) -> -234.5 | B193: =IF('DF raw data'!B198="","",'DF raw data'!B198) -> -2.11366e-05 | C193: =IF('DF raw data'!C198="","",'DF raw data'!C198) -> 0.000168112 | D193: =IF('DF raw data'!D198="","",'DF raw data'!D198) -> -2.11781e-05 | F193: -2.1242283e-05 | G193: 0.00016895256 | H193: -2.12839905e-05 | J193: -0.001538890468 | K193: -0.05066793742 | L193: 0.01071723508 | M193: 0.3534008396 | N193: 0.002578778005
A194: =IF('DF raw data'!A199="","",'DF raw data'!A199) -> -234 | B194: =IF('DF raw data'!B199="","",'DF raw data'!B199) -> -1.95917e-05 | C194: =IF('DF raw data'!C199="","",'DF raw data'!C199) -> 0.000163566 | D194: =IF('DF raw data'!D199="","",'DF raw data'!D199) -> -2.94911e-05 | F194: -1.96896585e-05 | G194: 0.00016438383 | H194: -2.96385555e-05 | J194: -0.001548735297 | K194: -0.05144230506 | L194: 0.01079942699 | M194: 0.3588005531 | N194: 0.002638291107
A195: =IF('DF raw data'!A200="","",'DF raw data'!A200) -> -233.5 | B195: =IF('DF raw data'!B200="","",'DF raw data'!B200) -> -2.52461e-05 | C195: =IF('DF raw data'!C200="","",'DF raw data'!C200) -> 0.000166963 | D195: =IF('DF raw data'!D200="","",'DF raw data'!D200) -> -1.13794e-05 | F195: -2.53723305e-05 | G195: 0.000167797815 | H195: -1.1436297e-05 | J195: -0.001561421462 | K195: -0.0522230158 | L195: 0.0108833259 | M195: 0.3642422161 | N195: 0.002698733517
A196: =IF('DF raw data'!A201="","",'DF raw data'!A201) -> -233 | B196: =IF('DF raw data'!B201="","",'DF raw data'!B201) -> -9.07836e-06 | C196: =IF('DF raw data'!C201="","",'DF raw data'!C201) -> 0.000161491 | D196: =IF('DF raw data'!D201="","",'DF raw data'!D201) -> -2.91282e-05 | F196: -9.1237518e-06 | G196: 0.000162298455 | H196: -2.9273841e-05 | J196: -0.001565983338 | K196: -0.05300600746 | L196: 0.01096447513 | M196: 0.3697244536 | N196: 0.002760069526
A197: =IF('DF raw data'!A202="","",'DF raw data'!A202) -> -232.5 | B197: =IF('DF raw data'!B202="","",'DF raw data'!B202) -> -2.26103e-05 | C197: =IF('DF raw data'!C202="","",'DF raw data'!C202) -> 0.000160428 | D197: =IF('DF raw data'!D202="","",'DF raw data'!D202) -> -2.25239e-05 | F197: -2.27233515e-05 | G197: 0.00016123014 | H197: -2.26365195e-05 | J197: -0.001577345014 | K197: -0.05379467997 | L197: 0.0110450902 | M197: 0.3752469987 | N197: 0.002822310543
A198: =IF('DF raw data'!A203="","",'DF raw data'!A203) -> -232 | B198: =IF('DF raw data'!B203="","",'DF raw data'!B203) -> -1.70258e-05 | C198: =IF('DF raw data'!C203="","",'DF raw data'!C203) -> 0.00016274 | D198: =IF('DF raw data'!D203="","",'DF raw data'!D203) -> -3.18422e-05 | F198: -1.7110929e-05 | G198: 0.0001635537 | H198: -3.2001411e-05 | J198: -0.001585900478 | K198: -0.05458763021 | L198: 0.01112686705 | M198: 0.3808104323 | N198: 0.002885471669
A199: =IF('DF raw data'!A204="","",'DF raw data'!A204) -> -231.5 | B199: =IF('DF raw data'!B204="","",'DF raw data'!B204) -> -3.29351e-05 | C199: =IF('DF raw data'!C204="","",'DF raw data'!C204) -> 0.000157968 | D199: =IF('DF raw data'!D204="","",'DF raw data'!D204) -> -1.75525e-05 | F199: -3.30997755e-05 | G199: 0.00015875784 | H199: -1.76402625e-05 | J199: -0.001602450366 | K199: -0.05538885539 | L199: 0.01120624597 | M199: 0.3864135552 | N199: 0.002949545567
A200: =IF('DF raw data'!A205="","",'DF raw data'!A205) -> -231 | B200: =IF('DF raw data'!B205="","",'DF raw data'!B205) -> -1.76077e-05 | C200: =IF('DF raw data'!C205="","",'DF raw data'!C205) -> 0.000162826 | D200: =IF('DF raw data'!D205="","",'DF raw data'!D205) -> -2.45049e-05 | F200: -1.76957385e-05 | G200: 0.00016364013 | H200: -2.46274245e-05 | J200: -0.001611298235 | K200: -0.05619450451 | L200: 0.01128806603 | M200: 0.3920575883 | N200: 0.003014553925
A201: =IF('DF raw data'!A206="","",'DF raw data'!A206) -> -230.5 | B201: =IF('DF raw data'!B206="","",'DF raw data'!B206) -> -2.1523e-05 | C201: =IF('DF raw data'!C206="","",'DF raw data'!C206) -> 0.00016352 | D201: =IF('DF raw data'!D206="","",'DF raw data'!D206) -> -1.83073e-05 | F201: -2.1630615e-05 | G201: 0.0001643376 | H201: -1.83988365e-05 | J201: -0.001622113543 | K201: -0.05700556128 | L201: 0.01137023483 | M201: 0.3977427057 | N201: 0.003080510671
... 1061 more rows

Sheet 10 x=-1
A1: =IF('DF raw data'!E1="","",'DF raw data'!E1) -> Number of header lines | B1: =IF('DF raw data'!F1="","",'DF raw data'!F1) -> 54 | C1: =IF('DF raw data'!G1="","",'DF raw data'!G1) ->  | D1: =IF('DF raw data'!H1="","",'DF raw data'!H1) ->  | F1: T_coeff | G1: -0.001 | H1: /degC | J1: IBy total | K1: =J1262*1000 -> 0.176911889 | L1: muTm | M1: =L1262*1000 -> 63.48064466 | R1: DF ref | S1: ='10 x=-2'!S1 -> 1
A2: =IF('DF raw data'!E2="","",'DF raw data'!E2) -> Measured by | B2: =IF('DF raw data'!F2="","",'DF raw data'!F2) -> Danfysik | C2: =IF('DF raw data'!G2="","",'DF raw data'!G2) ->  | D2: =IF('DF raw data'!H2="","",'DF raw data'!H2) ->  | F2: Tcorr | G2: 20 | H2: degC | J2: JBy total | K2: =K1262 -> -15.07650229 | L2: muTm^2 | M2: =M1262 -> 18.6776213
A3: =IF('DF raw data'!E3="","",'DF raw data'!E3) -> Operator | B3: =IF('DF raw data'!F3="","",'DF raw data'!F3) -> PMHA | C3: =IF('DF raw data'!G3="","",'DF raw data'!G3) ->  | D3: =IF('DF raw data'!H3="","",'DF raw data'!H3) ->  | F3: Step | G3: =A63-A62 -> 0.5 | H3: mm | J3: PI total | K3: =N1262 -> 10444.16523 | L3: T^2mm^3
A4: =IF('DF raw data'!E4="","",'DF raw data'!E4) -> Data-time | B4: =IF('DF raw data'!F4="","",'DF raw data'!F4) -> 04-09-2024, 13:01:42 | C4: =IF('DF raw data'!G4="","",'DF raw data'!G4) ->  | D4: =IF('DF raw data'!H4="","",'DF raw data'!H4) -> 
A5: =IF('DF raw data'!E5="","",'DF raw data'!E5) -> Project | B5: =IF('DF raw data'!F5="","",'DF raw data'!F5) -> 504314 | C5: =IF('DF raw data'!G5="","",'DF raw data'!G5) ->  | D5: =IF('DF raw data'!H5="","",'DF raw data'!H5) -> 
A6: =IF('DF raw data'!E6="","",'DF raw data'!E6) -> Magnet type | B6: =IF('DF raw data'!F6="","",'DF raw data'!F6) -> Dipole | C6: =IF('DF raw data'!G6="","",'DF raw data'!G6) ->  | D6: =IF('DF raw data'!H6="","",'DF raw data'!H6) -> 
A7: =IF('DF raw data'!E7="","",'DF raw data'!E7) -> Magnet nr. | B7: =IF('DF raw data'!F7="","",'DF raw data'!F7) -> 2410093 | C7: =IF('DF raw data'!G7="","",'DF raw data'!G7) ->  | D7: =IF('DF raw data'!H7="","",'DF raw data'!H7) -> 
A8: =IF('DF raw data'!E8="","",'DF raw data'!E8) -> Meas. number | B8: =IF('DF raw data'!F8="","",'DF raw data'!F8) -> 340 | C8: =IF('DF raw data'!G8="","",'DF raw data'!G8) ->  | D8: =IF('DF raw data'!H8="","",'DF raw data'!H8) -> 
A9: =IF('DF raw data'!E9="","",'DF raw data'!E9) -> Add. info | B9: =IF('DF raw data'!F9="","",'DF raw data'!F9) -> X-alignment scan 2) | C9: =IF('DF raw data'!G9="","",'DF raw data'!G9) ->  | D9: =IF('DF raw data'!H9="","",'DF raw data'!H9) -> 
A10: =IF('DF raw data'!E10="","",'DF raw data'!E10) -> Device | B10: =IF('DF raw data'!F10="","",'DF raw data'!F10) -> (HAL) HALL-PROBE | C10: =IF('DF raw data'!G10="","",'DF raw data'!G10) ->  | D10: =IF('DF raw data'!H10="","",'DF raw data'!H10) -> 
A11: =IF('DF raw data'!E11="","",'DF raw data'!E11) -> Goal | B11: =IF('DF raw data'!F11="","",'DF raw data'!F11) -> (AXI) AXis Integral (Line, EFB) | C11: =IF('DF raw data'!G11="","",'DF raw data'!G11) ->  | D11: =IF('DF raw data'!H11="","",'DF raw data'!H11) -> 
A12: =IF('DF raw data'!E12="","",'DF raw data'!E12) -> Power supply mode | B12: =IF('DF raw data'!F12="","",'DF raw data'!F12) -> (PM) Permanent Magnet (no MPS in use) | C12: =IF('DF raw data'!G12="","",'DF raw data'!G12) ->  | D12: =IF('DF raw data'!H12="","",'DF raw data'!H12) -> 
A13: =IF('DF raw data'!E13="","",'DF raw data'!E13) -> Data format | B13: =IF('DF raw data'!F13="","",'DF raw data'!F13) -> Raw data text file | C13: =IF('DF raw data'!G13="","",'DF raw data'!G13) ->  | D13: =IF('DF raw data'!H13="","",'DF raw data'!H13) -> 
A14: =IF('DF raw data'!E14="","",'DF raw data'!E14) -> Direction of the pos. x-axis | B14: =IF('DF raw data'!F14="","",'DF raw data'!F14) -> See test program | C14: =IF('DF raw data'!G14="","",'DF raw data'!G14) ->  | D14: =IF('DF raw data'!H14="","",'DF raw data'!H14) -> 
A15: =IF('DF raw data'!E15="","",'DF raw data'!E15) -> Direction of the pos. y-axis | B15: =IF('DF raw data'!F15="","",'DF raw data'!F15) -> Vertical up | C15: =IF('DF raw data'!G15="","",'DF raw data'!G15) ->  | D15: =IF('DF raw data'!H15="","",'DF raw data'!H15) -> 
A16: =IF('DF raw data'!E16="","",'DF raw data'!E16) -> Direction of the pos. z-axis | B16: =IF('DF raw data'!F16="","",'DF raw data'!F16) -> See test program | C16: =IF('DF raw data'!G16="","",'DF raw data'!G16) ->  | D16: =IF('DF raw data'!H16="","",'DF raw data'!H16) -> 
A17: =IF('DF raw data'!E17="","",'DF raw data'!E17) -> Mapper type | B17: =IF('DF raw data'!F17="","",'DF raw data'!F17) -> Precision Hall Mapper | C17: =IF('DF raw data'!G17="","",'DF raw data'!G17) ->  | D17: =IF('DF raw data'!H17="","",'DF raw data'!H17) -> 
A18: =IF('DF raw data'!E18="","",'DF raw data'!E18) -> Mapper Danfysik Reg. Number | B18: =IF('DF raw data'!F18="","",'DF raw data'!F18) -> 2033-D (mapper 1) | C18: =IF('DF raw data'!G18="","",'DF raw data'!G18) ->  | D18: =IF('DF raw data'!H18="","",'DF raw data'!H18) -> 
A19: =IF('DF raw data'!E19="","",'DF raw data'!E19) -> Measurement consept | B19: =IF('DF raw data'!F19="","",'DF raw data'!F19) -> Square line grid | C19: =IF('DF raw data'!G19="","",'DF raw data'!G19) ->  | D19: =IF('DF raw data'!H19="","",'DF raw data'!H19) -> 
A20: =IF('DF raw data'!E20="","",'DF raw data'!E20) -> Mode | B20: =IF('DF raw data'!F20="","",'DF raw data'!F20) -> On-the-fly measurement | C20: =IF('DF raw data'!G20="","",'DF raw data'!G20) ->  | D20: =IF('DF raw data'!H20="","",'DF raw data'!H20) -> 
A21: =IF('DF raw data'!E21="","",'DF raw data'!E21) ->  | B21: =IF('DF raw data'!F21="","",'DF raw data'!F21) ->  | C21: =IF('DF raw data'!G21="","",'DF raw data'!G21) ->  | D21: =IF('DF raw data'!H21="","",'DF raw data'!H21) -> 
A22: =IF('DF raw data'!E22="","",'DF raw data'!E22) -> Probe Name | B22: =IF('DF raw data'!F22="","",'DF raw data'!F22) -> ID12_By | C22: =IF('DF raw data'!G22="","",'DF raw data'!G22) ->  | D22: =IF('DF raw data'!H22="","",'DF raw data'!H22) -> 
A23: =IF('DF raw data'!E23="","",'DF raw data'!E23) -> Probe Type | B23: =IF('DF raw data'!F23="","",'DF raw data'!F23) -> DF_ID_3D_Bxyz | C23: =IF('DF raw data'!G23="","",'DF raw data'!G23) ->  | D23: =IF('DF raw data'!H23="","",'DF raw data'!H23) -> 
A24: =IF('DF raw data'!E24="","",'DF raw data'!E24) -> Probe Danfysik Reg. Number | B24: =IF('DF raw data'!F24="","",'DF raw data'!F24) -> 2277 | C24: =IF('DF raw data'!G24="","",'DF raw data'!G24) ->  | D24: =IF('DF raw data'!H24="","",'DF raw data'!H24) -> 
A25: =IF('DF raw data'!E25="","",'DF raw data'!E25) -> Probe Axis | B25: =IF('DF raw data'!F25="","",'DF raw data'!F25) -> By | C25: =IF('DF raw data'!G25="","",'DF raw data'!G25) ->  | D25: =IF('DF raw data'!H25="","",'DF raw data'!H25) -> 
A26: =IF('DF raw data'!E26="","",'DF raw data'!E26) -> Probe Current Supply | B26: =IF('DF raw data'!F26="","",'DF raw data'!F26) -> 1825-D | C26: =IF('DF raw data'!G26="","",'DF raw data'!G26) ->  | D26: =IF('DF raw data'!H26="","",'DF raw data'!H26) -> 
A27: =IF('DF raw data'!E27="","",'DF raw data'!E27) -> Probe Gain Correction | B27: =IF('DF raw data'!F27="","",'DF raw data'!F27) -> 0.99616 | C27: =IF('DF raw data'!G27="","",'DF raw data'!G27) ->  | D27: =IF('DF raw data'!H27="","",'DF raw data'!H27) -> 
A28: =IF('DF raw data'!E28="","",'DF raw data'!E28) -> Probe Offset Correction | B28: =IF('DF raw data'!F28="","",'DF raw data'!F28) -> 0.0027367 | C28: =IF('DF raw data'!G28="","",'DF raw data'!G28) ->  | D28: =IF('DF raw data'!H28="","",'DF raw data'!H28) -> 
A29: =IF('DF raw data'!E29="","",'DF raw data'!E29) -> DVM Number | B29: =IF('DF raw data'!F29="","",'DF raw data'!F29) -> 2 | C29: =IF('DF raw data'!G29="","",'DF raw data'!G29) ->  | D29: =IF('DF raw data'!H29="","",'DF raw data'!H29) -> 
A30: =IF('DF raw data'!E30="","",'DF raw data'!E30) -> DVM Type | B30: =IF('DF raw data'!F30="","",'DF raw data'!F30) -> K2701 | C30: =IF('DF raw data'!G30="","",'DF raw data'!G30) ->  | D30: =IF('DF raw data'!H30="","",'DF raw data'!H30) -> 
A31: =IF('DF raw data'!E31="","",'DF raw data'!E31) -> DVM Danfysik Reg. Number | B31: =IF('DF raw data'!F31="","",'DF raw data'!F31) -> 1743-D | C31: =IF('DF raw data'!G31="","",'DF raw data'!G31) ->  | D31: =IF('DF raw data'!H31="","",'DF raw data'!H31) -> 
A32: =IF('DF raw data'!E32="","",'DF raw data'!E32) -> Probe Name | B32: =IF('DF raw data'!F32="","",'DF raw data'!F32) -> ID12_Bx | C32: =IF('DF raw data'!G32="","",'DF raw data'!G32) ->  | D32: =IF('DF raw data'!H32="","",'DF raw data'!H32) -> 
A33: =IF('DF raw data'!E33="","",'DF raw data'!E33) -> Probe Type | B33: =IF('DF raw data'!F33="","",'DF raw data'!F33) -> DF_ID_3D_Bxyz | C33: =IF('DF raw data'!G33="","",'DF raw data'!G33) ->  | D33: =IF('DF raw data'!H33="","",'DF raw data'!H33) -> 
A34: =IF('DF raw data'!E34="","",'DF raw data'!E34) -> Probe Danfysik Reg. Number | B34: =IF('DF raw data'!F34="","",'DF raw data'!F34) -> 2277 | C34: =IF('DF raw data'!G34="","",'DF raw data'!G34) ->  | D34: =IF('DF raw data'!H34="","",'DF raw data'!H34) -> 
A35: =IF('DF raw data'!E35="","",'DF raw data'!E35) -> Probe Axis | B35: =IF('DF raw data'!F35="","",'DF raw data'!F35) -> Bx | C35: =IF('DF raw data'!G35="","",'DF raw data'!G35) ->  | D35: =IF('DF raw data'!H35="","",'DF raw data'!H35) -> 
A36: =IF('DF raw data'!E36="","",'DF raw data'!E36) -> Probe Current Supply | B36: =IF('DF raw data'!F36="","",'DF raw data'!F36) -> 1825-D | C36: =IF('DF raw data'!G36="","",'DF raw data'!G36) ->  | D36: =IF('DF raw data'!H36="","",'DF raw data'!H36) -> 
A37: =IF('DF raw data'!E37="","",'DF raw data'!E37) -> Probe Gain Correction | B37: =IF('DF raw data'!F37="","",'DF raw data'!F37) -> 1 | C37: =IF('DF raw data'!G37="","",'DF raw data'!G37) ->  | D37: =IF('DF raw data'!H37="","",'DF raw data'!H37) -> 
A38: =IF('DF raw data'!E38="","",'DF raw data'!E38) -> Probe Offset Correction | B38: =IF('DF raw data'!F38="","",'DF raw data'!F38) -> -0.1757 | C38: =IF('DF raw data'!G38="","",'DF raw data'!G38) ->  | D38: =IF('DF raw data'!H38="","",'DF raw data'!H38) -> 
A39: =IF('DF raw data'!E39="","",'DF raw data'!E39) -> DVM Number | B39: =IF('DF raw data'!F39="","",'DF raw data'!F39) -> 3 | C39: =IF('DF raw data'!G39="","",'DF raw data'!G39) ->  | D39: =IF('DF raw data'!H39="","",'DF raw data'!H39) -> 
A40: =IF('DF raw data'!E40="","",'DF raw data'!E40) -> DVM Type | B40: =IF('DF raw data'!F40="","",'DF raw data'!F40) -> K2701 | C40: =IF('DF raw data'!G40="","",'DF raw data'!G40) ->  | D40: =IF('DF raw data'!H40="","",'DF raw data'!H40) -> 
A41: =IF('DF raw data'!E41="","",'DF raw data'!E41) -> DVM Danfysik Reg. Number | B41: =IF('DF raw data'!F41="","",'DF raw data'!F41) -> 1744-D | C41: =IF('DF raw data'!G41="","",'DF raw data'!G41) ->  | D41: =IF('DF raw data'!H41="","",'DF raw data'!H41) -> 
A42: =IF('DF raw data'!E42="","",'DF raw data'!E42) -> Probe Name | B42: =IF('DF raw data'!F42="","",'DF raw data'!F42) -> ID12_Bz | C42: =IF('DF raw data'!G42="","",'DF raw data'!G42) ->  | D42: =IF('DF raw data'!H42="","",'DF raw data'!H42) -> 
A43: =IF('DF raw data'!E43="","",'DF raw data'!E43) -> Probe Type | B43: =IF('DF raw data'!F43="","",'DF raw data'!F43) -> DF_ID_3D_Bxyz | C43: =IF('DF raw data'!G43="","",'DF raw data'!G43) ->  | D43: =IF('DF raw data'!H43="","",'DF raw data'!H43) -> 
A44: =IF('DF raw data'!E44="","",'DF raw data'!E44) -> Probe Danfysik Reg. Number | B44: =IF('DF raw data'!F44="","",'DF raw data'!F44) -> 2277 | C44: =IF('DF raw data'!G44="","",'DF raw data'!G44) ->  | D44: =IF('DF raw data'!H44="","",'DF raw data'!H44) -> 
A45: =IF('DF raw data'!E45="","",'DF raw data'!E45) -> Probe Axis | B45: =IF('DF raw data'!F45="","",'DF raw data'!F45) -> Bz | C45: =IF('DF raw data'!G45="","",'DF raw data'!G45) ->  | D45: =IF('DF raw data'!H45="","",'DF raw data'!H45) -> 
A46: =IF('DF raw data'!E46="","",'DF raw data'!E46) -> Probe Current Supply | B46: =IF('DF raw data'!F46="","",'DF raw data'!F46) -> 1825-D | C46: =IF('DF raw data'!G46="","",'DF raw data'!G46) ->  | D46: =IF('DF raw data'!H46="","",'DF raw data'!H46) -> 
A47: =IF('DF raw data'!E47="","",'DF raw data'!E47) -> Probe Gain Correction | B47: =IF('DF raw data'!F47="","",'DF raw data'!F47) -> 1 | C47: =IF('DF raw data'!G47="","",'DF raw data'!G47) ->  | D47: =IF('DF raw data'!H47="","",'DF raw data'!H47) -> 
A48: =IF('DF raw data'!E53="","",'DF raw data'!E53) -> PS-Gap: | B48: =IF('DF raw data'!F53="","",'DF raw data'!F53) -> 10 | C48: =IF('DF raw data'!G53="","",'DF raw data'!G53) ->  | D48: =IF('DF raw data'!H53="","",'DF raw data'!H53) -> 
A49: =IF('DF raw data'!E54="","",'DF raw data'!E54) -> PS-Temperature: | B49: =IF('DF raw data'!F54="","",'DF raw data'!F54) -> 25 | C49: =IF('DF raw data'!G54="","",'DF raw data'!G54) ->  | D49: =IF('DF raw data'!H54="","",'DF raw data'!H54) -> 
A50: =IF('DF raw data'!E55="","",'DF raw data'!E55) -> PS-Encoder: | B50: =IF('DF raw data'!F55="","",'DF raw data'!F55) -> 19.9702 | C50: =IF('DF raw data'!G55="","",'DF raw data'!G55) ->  | D50: =IF('DF raw data'!H55="","",'DF raw data'!H55) -> 
A51: =IF('DF raw data'!E56="","",'DF raw data'!E56) ->  | B51: =IF('DF raw data'!F56="","",'DF raw data'!F56) ->  | C51: =IF('DF raw data'!G56="","",'DF raw data'!G56) ->  | D51: =IF('DF raw data'!H56="","",'DF raw data'!H56) -> 
A52: =IF('DF raw data'!E57="","",'DF raw data'!E57) -> Monitor-Index | B52: =IF('DF raw data'!F57="","",'DF raw data'!F57) -> [1,1,4] | C52: =IF('DF raw data'!G57="","",'DF raw data'!G57) ->  | D52: =IF('DF raw data'!H57="","",'DF raw data'!H57) -> 
A53: =IF('DF raw data'!E58="","",'DF raw data'!E58) ->  | B53: =IF('DF raw data'!F58="","",'DF raw data'!F58) ->  | C53: =IF('DF raw data'!G58="","",'DF raw data'!G58) ->  | D53: =IF('DF raw data'!H58="","",'DF raw data'!H58) -> 
A54: =IF('DF raw data'!E59="","",'DF raw data'!E59) -> Time [s] | B54: =IF('DF raw data'!F59="","",'DF raw data'!F59) -> Y [mm] | C54: =IF('DF raw data'!G59="","",'DF raw data'!G59) -> X [mm] | D54: =IF('DF raw data'!H59="","",'DF raw data'!H59) -> Nominal current [A]
A55: =IF('DF raw data'!E60="","",'DF raw data'!E60) ->  | B55: =IF('DF raw data'!F60="","",'DF raw data'!F60) ->  | C55: =IF('DF raw data'!G60="","",'DF raw data'!G60) ->  | D55: =IF('DF raw data'!H60="","",'DF raw data'!H60) -> 
A56: =IF('DF raw data'!E61="","",'DF raw data'!E61) -> 208.2 | B56: =IF('DF raw data'!F61="","",'DF raw data'!F61) -> 31.46 | C56: =IF('DF raw data'!G61="","",'DF raw data'!G61) -> 300.8 | D56: =IF('DF raw data'!H61="","",'DF raw data'!H61) -> 0
A57: =IF('DF raw data'!E62="","",'DF raw data'!E62) ->  | B57: =IF('DF raw data'!F62="","",'DF raw data'!F62) ->  | C57: =IF('DF raw data'!G62="","",'DF raw data'!G62) ->  | D57: =IF('DF raw data'!H62="","",'DF raw data'!H62) -> 
A58: =IF('DF raw data'!E63="","",'DF raw data'!E63) -> Measurement-Index | B58: =IF('DF raw data'!F63="","",'DF raw data'!F63) -> [1,1,1201,2] | C58: =IF('DF raw data'!G63="","",'DF raw data'!G63) ->  | D58: =IF('DF raw data'!H63="","",'DF raw data'!H63) -> 
A59: =IF('DF raw data'!E64="","",'DF raw data'!E64) ->  | B59: =IF('DF raw data'!F64="","",'DF raw data'!F64) ->  | C59: =IF('DF raw data'!G64="","",'DF raw data'!G64) ->  | D59: =IF('DF raw data'!H64="","",'DF raw data'!H64) -> 
A60: =IF('DF raw data'!E65="","",'DF raw data'!E65) -> Z [mm] | B60: By [T] | C60: Bx [T] | D60: Bz [T] | F60: By_corr | G60: Bx_corr | H60: Bz_corr | J60: Iy | K60: Jy | L60: Ix | M60: Jx | N60: PI
A62: =IF('DF raw data'!E67="","",'DF raw data'!E67) -> -300 | B62: =IF('DF raw data'!F67="","",'DF raw data'!F67) -> -1.35249e-05 | C62: =IF('DF raw data'!G67="","",'DF raw data'!G67) -> 0.000143173 | D62: =IF('DF raw data'!H67="","",'DF raw data'!H67) -> -3.00404e-05 | F62: =(1-$G$1*($B$49))*B62 -> -1.38630225e-05 | G62: =(1-$G$1*($B$49-$G$2))*C62 -> 0.000143888865 | H62: =(1-$G$1*($B$49-$G$2))*D62 -> -3.0190602e-05 | J62: =F62*$G$3 -> -6.93151125e-06 | K62: =J62*$G$3 -> -3.465755625e-06 | L62: =G62*$G$3 -> 7.19444325e-05 | M62: =L62*$G$3 -> 3.597221625e-05 | N62: =(J62^2+L62^2)*$G$3 -> 2.612023608e-09
A63: =IF('DF raw data'!E68="","",'DF raw data'!E68) -> -299.5 | B63: =IF('DF raw data'!F68="","",'DF raw data'!F68) -> -2.43598e-05 | C63: =IF('DF raw data'!G68="","",'DF raw data'!G68) -> 0.000143624 | D63: =IF('DF raw data'!H68="","",'DF raw data'!H68) -> -2.91895e-05 | F63: =(1-$G$1*($B$49-$G$2))*B63 -> -2.4481599e-05 | G63: =(1-$G$1*($B$49-$G$2))*C63 -> 0.00014434212 | H63: -2.93354475e-05 | J63: =F63*$G$3+J62 -> -1.917231075e-05 | K63: =J63*$G$3+K62 -> -1.3051911e-05 | L63: =G63*$G$3+L62 -> 0.0001441154925 | M63: =L63*$G$3+M62 -> 0.0001080299625 | N63: =(J63^2+L63^2)*$G$3+N62 -> 1.318044995e-08
A64: =IF('DF raw data'!E69="","",'DF raw data'!E69) -> -299 | B64: =IF('DF raw data'!F69="","",'DF raw data'!F69) -> -2.28865e-05 | C64: =IF('DF raw data'!G69="","",'DF raw data'!G69) -> 0.000148344 | D64: =IF('DF raw data'!H69="","",'DF raw data'!H69) -> -2.76926e-05 | F64: =(1-$G$1*($B$49-$G$2))*B64 -> -2.30009325e-05 | G64: 0.00014908572 | H64: -2.7831063e-05 | J64: =F64*$G$3+J63 -> -3.0672777e-05 | K64: =J64*$G$3+K63 -> -2.83882995e-05 | L64: =G64*$G$3+L63 -> 0.0002186583525 | M64: =L64*$G$3+M63 -> 0.0002173591387 | N64: =(J64^2+L64^2)*$G$3+N63 -> 3.755659713e-08
A65: =IF('DF raw data'!E70="","",'DF raw data'!E70) -> -298.5 | B65: =IF('DF raw data'!F70="","",'DF raw data'!F70) -> -1.46168e-05 | C65: =IF('DF raw data'!G70="","",'DF raw data'!G70) -> 0.00014849 | D65: =IF('DF raw data'!H70="","",'DF raw data'!H70) -> -2.69618e-05 | F65: -1.4689884e-05 | G65: 0.00014923245 | H65: -2.7096609e-05 | J65: -3.8017719e-05 | K65: -4.7397159e-05 | L65: 0.0002932745775 | M65: 0.0003639964275 | N65: 8.128425951e-08
A66: =IF('DF raw data'!E71="","",'DF raw data'!E71) -> -298 | B66: =IF('DF raw data'!F71="","",'DF raw data'!F71) -> -1.38474e-05 | C66: =IF('DF raw data'!G71="","",'DF raw data'!G71) -> 0.000140371 | D66: =IF('DF raw data'!H71="","",'DF raw data'!H71) -> -2.7217e-05 | F66: -1.3916637e-05 | G66: 0.000141072855 | H66: -2.7353085e-05 | J66: -4.49760375e-05 | K66: -6.988517775e-05 | L66: 0.000363811005 | M66: 0.00054590193 | N66: 1.484749052e-07
A67: =IF('DF raw data'!E72="","",'DF raw data'!E72) -> -297.5 | B67: =IF('DF raw data'!F72="","",'DF raw data'!F72) -> -5.0639e-06 | C67: =IF('DF raw data'!G72="","",'DF raw data'!G72) -> 0.000144544 | D67: =IF('DF raw data'!H72="","",'DF raw data'!H72) -> -2.79068e-05 | F67: -5.0892195e-06 | G67: 0.00014526672 | H67: -2.8046334e-05 | J67: -4.752064725e-05 | K67: -9.364550137e-05 | L67: 0.000436444365 | M67: 0.0007641241125 | N67: 2.44845853e-07
A68: =IF('DF raw data'!E73="","",'DF raw data'!E73) -> -297 | B68: =IF('DF raw data'!F73="","",'DF raw data'!F73) -> -1.56416e-05 | C68: =IF('DF raw data'!G73="","",'DF raw data'!G73) -> 0.000146218 | D68: =IF('DF raw data'!H73="","",'DF raw data'!H73) -> -2.83892e-05 | F68: -1.5719808e-05 | G68: 0.00014694909 | H68: -2.8531146e-05 | J68: -5.538055125e-05 | K68: -0.000121335777 | L68: 0.00050991891 | M68: 0.001019083567 | N68: 3.763880031e-07
A69: =IF('DF raw data'!E74="","",'DF raw data'!E74) -> -296.5 | B69: =IF('DF raw data'!F74="","",'DF raw data'!F74) -> -5.96118e-06 | C69: =IF('DF raw data'!G74="","",'DF raw data'!G74) -> 0.000142675 | D69: =IF('DF raw data'!H74="","",'DF raw data'!H74) -> -2.86477e-05 | F69: -5.9909859e-06 | G69: 0.000143388375 | H69: -2.87909385e-05 | J69: -5.83760442e-05 | K69: -0.0001505237991 | L69: 0.0005816130975 | M69: 0.001309890116 | N69: 5.47228782e-07
A70: =IF('DF raw data'!E75="","",'DF raw data'!E75) -> -296 | B70: =IF('DF raw data'!F75="","",'DF raw data'!F75) -> -1.92317e-05 | C70: =IF('DF raw data'!G75="","",'DF raw data'!G75) -> 0.000139959 | D70: =IF('DF raw data'!H75="","",'DF raw data'!H75) -> -2.85502e-05 | F70: -1.93278585e-05 | G70: 0.000140658795 | H70: -2.8692951e-05 | J70: -6.803997345e-05 | K70: -0.0001845437858 | L70: 0.000651942495 | M70: 0.001635861364 | N70: 7.620580094e-07
A71: =IF('DF raw data'!E76="","",'DF raw data'!E76) -> -295.5 | B71: =IF('DF raw data'!F76="","",'DF raw data'!F76) -> -1.05132e-05 | C71: =IF('DF raw data'!G76="","",'DF raw data'!G76) -> 0.000139778 | D71: =IF('DF raw data'!H76="","",'DF raw data'!H76) -> -2.82194e-05 | F71: -1.0565766e-05 | G71: 0.00014047689 | H71: -2.8360497e-05 | J71: -7.332285645e-05 | K71: -0.000221205214 | L71: 0.00072218094 | M71: 0.001996951834 | N71: 1.025518785e-06
A72: =IF('DF raw data'!E77="","",'DF raw data'!E77) -> -295 | B72: =IF('DF raw data'!F77="","",'DF raw data'!F77) -> -1.87194e-05 | C72: =IF('DF raw data'!G77="","",'DF raw data'!G77) -> 0.000141948 | D72: =IF('DF raw data'!H77="","",'DF raw data'!H77) -> -2.77546e-05 | F72: -1.8812997e-05 | G72: 0.00014265774 | H72: -2.7893373e-05 | J72: -8.272935495e-05 | K72: -0.0002625698915 | L72: 0.00079350981 | M72: 0.002393706739 | N72: 1.343769767e-06
A73: =IF('DF raw data'!E78="","",'DF raw data'!E78) -> -294.5 | B73: =IF('DF raw data'!F78="","",'DF raw data'!F78) -> -9.0389e-06 | C73: =IF('DF raw data'!G78="","",'DF raw data'!G78) -> 0.000147009 | D73: =IF('DF raw data'!H78="","",'DF raw data'!H78) -> -2.77196e-05 | F73: -9.0840945e-06 | G73: 0.000147744045 | H73: -2.7858198e-05 | J73: -8.72714022e-05 | K73: -0.0003062055926 | L73: 0.0008673818325 | M73: 0.002827397655 | N73: 1.723753538e-06
A74: =IF('DF raw data'!E79="","",'DF raw data'!E79) -> -294 | B74: =IF('DF raw data'!F79="","",'DF raw data'!F79) -> -9.35931e-06 | C74: =IF('DF raw data'!G79="","",'DF raw data'!G79) -> 0.000147041 | D74: =IF('DF raw data'!H79="","",'DF raw data'!H79) -> -2.81236e-05 | F74: -9.40610655e-06 | G74: 0.000147776205 | H74: -2.8264218e-05 | J74: -9.197445547e-05 | K74: -0.0003521928204 | L74: 0.000941269935 | M74: 0.003298032622 | N74: 2.170977733e-06
A75: =IF('DF raw data'!E80="","",'DF raw data'!E80) -> -293.5 | B75: =IF('DF raw data'!F80="","",'DF raw data'!F80) -> -1.26283e-05 | C75: =IF('DF raw data'!G80="","",'DF raw data'!G80) -> 0.000149678 | D75: =IF('DF raw data'!H80="","",'DF raw data'!H80) -> -2.85772e-05 | F75: -1.26914415e-05 | G75: 0.00015042639 | H75: -2.8720086e-05 | J75: -9.832017622e-05 | K75: -0.0004013529085 | L75: 0.00101648313 | M75: 0.003806274187 | N75: 2.692430139e-06
A76: =IF('DF raw data'!E81="","",'DF raw data'!E81) -> -293 | B76: =IF('DF raw data'!F81="","",'DF raw data'!F81) -> -1.08974e-05 | C76: =IF('DF raw data'!G81="","",'DF raw data'!G81) -> 0.000155254 | D76: =IF('DF raw data'!H81="","",'DF raw data'!H81) -> -2.88103e-05 | F76: -1.0951887e-05 | G76: 0.00015603027 | H76: -2.89543515e-05 | J76: -0.0001037961197 | K76: -0.0004532509683 | L76: 0.001094498265 | M76: 0.00435352332 | N76: 3.296780182e-06
A77: =IF('DF raw data'!E82="","",'DF raw data'!E82) -> -292.5 | B77: =IF('DF raw data'!F82="","",'DF raw data'!F82) -> -1.74367e-05 | C77: =IF('DF raw data'!G82="","",'DF raw data'!G82) -> 0.000156565 | D77: =IF('DF raw data'!H82="","",'DF raw data'!H82) -> -2.86067e-05 | F77: -1.75238835e-05 | G77: 0.000157347825 | H77: -2.87497335e-05 | J77: -0.0001125580615 | K77: -0.0005095299991 | L77: 0.001173172177 | M77: 0.004940109409 | N77: 3.99128132e-06
A78: =IF('DF raw data'!E83="","",'DF raw data'!E83) -> -292 | B78: =IF('DF raw data'!F83="","",'DF raw data'!F83) -> -1.71165e-05 | C78: =IF('DF raw data'!G83="","",'DF raw data'!G83) -> 0.000145937 | D78: =IF('DF raw data'!H83="","",'DF raw data'!H83) -> -2.79079e-05 | F78: -1.72020825e-05 | G78: 0.000146666685 | H78: -2.80474395e-05 | J78: -0.0001211591027 | K78: -0.0005701095504 | L78: 0.00124650552 | M78: 0.005563362169 | N78: 4.775509089e-06
A79: =IF('DF raw data'!E84="","",'DF raw data'!E84) -> -291.5 | B79: =IF('DF raw data'!F84="","",'DF raw data'!F84) -> -1.62827e-05 | C79: =IF('DF raw data'!G84="","",'DF raw data'!G84) -> 0.000147163 | D79: =IF('DF raw data'!H84="","",'DF raw data'!H84) -> -2.82031e-05 | F79: -1.63641135e-05 | G79: 0.000147898815 | H79: -2.83441155e-05 | J79: -0.0001293411595 | K79: -0.0006347801302 | L79: 0.001320454927 | M79: 0.006223589632 | N79: 5.655674265e-06
A80: =IF('DF raw data'!E85="","",'DF raw data'!E85) -> -291 | B80: =IF('DF raw data'!F85="","",'DF raw data'!F85) -> -7.76467e-06 | C80: =IF('DF raw data'!G85="","",'DF raw data'!G85) -> 0.00014183 | D80: =IF('DF raw data'!H85="","",'DF raw data'!H85) -> -1.55494e-05 | F80: -7.80349335e-06 | G80: 0.00014253915 | H80: -1.5627147e-05 | J80: -0.0001332429061 | K80: -0.0007014015832 | L80: 0.001391724502 | M80: 0.006919451884 | N80: 6.632999646e-06
A81: =IF('DF raw data'!E86="","",'DF raw data'!E86) -> -290.5 | B81: =IF('DF raw data'!F86="","",'DF raw data'!F86) -> -5.51622e-06 | C81: =IF('DF raw data'!G86="","",'DF raw data'!G86) -> 0.000138704 | D81: =IF('DF raw data'!H86="","",'DF raw data'!H86) -> -2.25777e-05 | F81: -5.5438011e-06 | G81: 0.00013939752 | H81: -2.26905885e-05 | J81: -0.0001360148067 | K81: -0.0007694089866 | L81: 0.001461423262 | M81: 0.007650163515 | N81: 7.710128636e-06
A82: =IF('DF raw data'!E87="","",'DF raw data'!E87) -> -290 | B82: =IF('DF raw data'!F87="","",'DF raw data'!F87) -> -1.02564e-05 | C82: =IF('DF raw data'!G87="","",'DF raw data'!G87) -> 0.000143789 | D82: =IF('DF raw data'!H87="","",'DF raw data'!H87) -> -2.88022e-05 | F82: -1.0307682e-05 | G82: 0.000144507945 | H82: -2.8946211e-05 | J82: -0.0001411686477 | K82: -0.0008399933104 | L82: 0.001533677235 | M82: 0.008417002132 | N82: 8.89617586e-06
A83: =IF('DF raw data'!E88="","",'DF raw data'!E88) -> -289.5 | B83: =IF('DF raw data'!F88="","",'DF raw data'!F88) -> -1.42409e-05 | C83: =IF('DF raw data'!G88="","",'DF raw data'!G88) -> 0.000142754 | D83: =IF('DF raw data'!H88="","",'DF raw data'!H88) -> -1.33906e-05 | F83: -1.43121045e-05 | G83: 0.00014346777 | H83: -1.3457553e-05 | J83: -0.0001483246999 | K83: -0.0009141556604 | L83: 0.00160541112 | M83: 0.009219707692 | N83: 1.01958484e-05
A84: =IF('DF raw data'!E89="","",'DF raw data'!E89) -> -289 | B84: =IF('DF raw data'!F89="","",'DF raw data'!F89) -> -1.66095e-05 | C84: =IF('DF raw data'!G89="","",'DF raw data'!G89) -> 0.000149122 | D84: =IF('DF raw data'!H89="","",'DF raw data'!H89) -> -1.89281e-05 | F84: -1.66925475e-05 | G84: 0.00014986761 | H84: -1.90227405e-05 | J84: -0.0001566709737 | K84: -0.0009924911473 | L84: 0.001680344925 | M84: 0.01005988015 | N84: 1.161990083e-05
A85: =IF('DF raw data'!E90="","",'DF raw data'!E90) -> -288.5 | B85: =IF('DF raw data'!F90="","",'DF raw data'!F90) -> -1.41037e-05 | C85: =IF('DF raw data'!G90="","",'DF raw data'!G90) -> 0.000156273 | D85: =IF('DF raw data'!H90="","",'DF raw data'!H90) -> -2.72412e-05 | F85: -1.41742185e-05 | G85: 0.000157054365 | H85: -2.7377406e-05 | J85: -0.0001637580829 | K85: -0.001074370189 | L85: 0.001758872107 | M85: 0.01093931621 | N85: 1.318012473e-05
A86: =IF('DF raw data'!E91="","",'DF raw data'!E91) -> -288 | B86: =IF('DF raw data'!F91="","",'DF raw data'!F91) -> -1.60947e-05 | C86: =IF('DF raw data'!G91="","",'DF raw data'!G91) -> 0.000156402 | D86: =IF('DF raw data'!H91="","",'DF raw data'!H91) -> -2.2058e-05 | F86: -1.61751735e-05 | G86: 0.00015718401 | H86: -2.216829e-05 | J86: -0.0001718456697 | K86: -0.001160293024 | L86: 0.001837464112 | M86: 0.01185804826 | N86: 1.488302738e-05
A87: =IF('DF raw data'!E92="","",'DF raw data'!E92) -> -287.5 | B87: =IF('DF raw data'!F92="","",'DF raw data'!F92) -> -1.24407e-05 | C87: =IF('DF raw data'!G92="","",'DF raw data'!G92) -> 0.000151541 | D87: =IF('DF raw data'!H92="","",'DF raw data'!H92) -> -2.13652e-05 | F87: -1.25029035e-05 | G87: 0.000152298705 | H87: -2.1472026e-05 | J87: -0.0001780971214 | K87: -0.001249341584 | L87: 0.001913613465 | M87: 0.012814855 | N87: 1.672984492e-05
A88: =IF('DF raw data'!E93="","",'DF raw data'!E93) -> -287 | B88: =IF('DF raw data'!F93="","",'DF raw data'!F93) -> -1.39248e-05 | C88: =IF('DF raw data'!G93="","",'DF raw data'!G93) -> 0.000151959 | D88: =IF('DF raw data'!H93="","",'DF raw data'!H93) -> -7.01257e-06 | F88: -1.3994424e-05 | G88: 0.000152718795 | H88: -7.04763285e-06 | J88: -0.0001850943334 | K88: -0.001341888751 | L88: 0.001989972862 | M88: 0.01380984143 | N88: 1.872697087e-05
A89: =IF('DF raw data'!E94="","",'DF raw data'!E94) -> -286.5 | B89: =IF('DF raw data'!F94="","",'DF raw data'!F94) -> -1.46837e-05 | C89: =IF('DF raw data'!G94="","",'DF raw data'!G94) -> 0.000145524 | D89: =IF('DF raw data'!H94="","",'DF raw data'!H94) -> -2.26036e-05 | F89: -1.47571185e-05 | G89: 0.00014625162 | H89: -2.2716618e-05 | J89: -0.0001924728927 | K89: -0.001438125197 | L89: 0.002063098672 | M89: 0.01484139076 | N89: 2.087368185e-05
A90: =IF('DF raw data'!E95="","",'DF raw data'!E95) -> -286 | B90: =IF('DF raw data'!F95="","",'DF raw data'!F95) -> -1.53277e-05 | C90: =IF('DF raw data'!G95="","",'DF raw data'!G95) -> 0.000142815 | D90: =IF('DF raw data'!H95="","",'DF raw data'!H95) -> -1.86951e-05 | F90: -1.54043385e-05 | G90: 0.000143529075 | H90: -1.87885755e-05 | J90: -0.0002001750619 | K90: -0.001538212728 | L90: 0.00213486321 | M90: 0.01590882237 | N90: 2.317253734e-05
A91: =IF('DF raw data'!E96="","",'DF raw data'!E96) -> -285.5 | B91: =IF('DF raw data'!F96="","",'DF raw data'!F96) -> -1.31538e-05 | C91: =IF('DF raw data'!G96="","",'DF raw data'!G96) -> 0.000142675 | D91: =IF('DF raw data'!H96="","",'DF raw data'!H96) -> -8.84139e-06 | F91: -1.3219569e-05 | G91: 0.000143388375 | H91: -8.88559695e-06 | J91: -0.0002067848464 | K91: -0.001641605152 | L91: 0.002206557397 | M91: 0.01701210107 | N91: 2.56283651e-05
A92: =IF('DF raw data'!E97="","",'DF raw data'!E97) -> -285 | B92: =IF('DF raw data'!F97="","",'DF raw data'!F97) -> -1.23121e-05 | C92: =IF('DF raw data'!G97="","",'DF raw data'!G97) -> 0.000144669 | D92: =IF('DF raw data'!H97="","",'DF raw data'!H97) -> -2.23307e-05 | F92: -1.23736605e-05 | G92: 0.000145392345 | H92: -2.24423535e-05 | J92: -0.0002129716767 | K92: -0.00174809099 | L92: 0.00227925357 | M92: 0.01815172785 | N92: 2.824854198e-05
A93: =IF('DF raw data'!E98="","",'DF raw data'!E98) -> -284.5 | B93: =IF('DF raw data'!F98="","",'DF raw data'!F98) -> -7.82279e-06 | C93: =IF('DF raw data'!G98="","",'DF raw data'!G98) -> 0.00015118 | D93: =IF('DF raw data'!H98="","",'DF raw data'!H98) -> -2.43589e-05 | F93: -7.86190395e-06 | G93: 0.0001519359 | H93: -2.44806945e-05 | J93: -0.0002169026287 | K93: -0.001856542304 | L93: 0.00235522152 | M93: 0.01932933861 | N93: 3.104559956e-05
A94: =IF('DF raw data'!E99="","",'DF raw data'!E99) -> -284 | B94: =IF('DF raw data'!F99="","",'DF raw data'!F99) -> -1.3652e-05 | C94: =IF('DF raw data'!G99="","",'DF raw data'!G99) -> 0.000156689 | D94: =IF('DF raw data'!H99="","",'DF raw data'!H99) -> -3.25052e-05 | F94: -1.372026e-05 | G94: 0.000157472445 | H94: -3.2667726e-05 | J94: -0.0002237627587 | K94: -0.001968423684 | L94: 0.002433957742 | M94: 0.02054631748 | N94: 3.403270959e-05
A95: =IF('DF raw data'!E100="","",'DF raw data'!E100) -> -283.5 | B95: =IF('DF raw data'!F100="","",'DF raw data'!F100) -> -9.10824e-06 | C95: =IF('DF raw data'!G100="","",'DF raw data'!G100) -> 0.000157931 | D95: =IF('DF raw data'!H100="","",'DF raw data'!H100) -> -1.92058e-05 | F95: -9.1537812e-06 | G95: 0.000158720655 | H95: -1.9301829e-05 | J95: -0.0002283396493 | K95: -0.002082593508 | L95: 0.00251331807 | M95: 0.02180297652 | N95: 3.721716295e-05
A96: =IF('DF raw data'!E101="","",'DF raw data'!E101) -> -283 | B96: =IF('DF raw data'!F101="","",'DF raw data'!F101) -> -2.071e-05 | C96: =IF('DF raw data'!G101="","",'DF raw data'!G101) -> 0.000137423 | D96: =IF('DF raw data'!H101="","",'DF raw data'!H101) -> -2.31085e-05 | F96: -2.081355e-05 | G96: 0.000138110115 | H96: -2.32240425e-05 | J96: -0.0002387464243 | K96: -0.00220196672 | L96: 0.002582373127 | M96: 0.02309416308 | N96: 4.057998837e-05
A97: =IF('DF raw data'!E102="","",'DF raw data'!E102) -> -282.5 | B97: =IF('DF raw data'!F102="","",'DF raw data'!F102) -> -1.5002e-05 | C97: =IF('DF raw data'!G102="","",'DF raw data'!G102) -> 0.000139569 | D97: =IF('DF raw data'!H102="","",'DF raw data'!H102) -> -2.56048e-05 | F97: -1.507701e-05 | G97: 0.000140266845 | H97: -2.5732824e-05 | J97: -0.0002462849293 | K97: -0.002325109185 | L97: 0.00265250655 | M97: 0.02442041636 | N97: 4.4128212e-05
A98: =IF('DF raw data'!E103="","",'DF raw data'!E103) -> -282 | B98: =IF('DF raw data'!F103="","",'DF raw data'!F103) -> -1.46169e-05 | C98: =IF('DF raw data'!G103="","",'DF raw data'!G103) -> 0.000141825 | D98: =IF('DF raw data'!H103="","",'DF raw data'!H103) -> -2.7215e-05 | F98: -1.46899845e-05 | G98: 0.000142534125 | H98: -2.7351075e-05 | J98: -0.0002536299215 | K98: -0.002451924146 | L98: 0.002723773612 | M98: 0.02578230316 | N98: 4.786984741e-05
A99: =IF('DF raw data'!E104="","",'DF raw data'!E104) -> -281.5 | B99: =IF('DF raw data'!F104="","",'DF raw data'!F104) -> -1.1026e-05 | C99: =IF('DF raw data'!G104="","",'DF raw data'!G104) -> 0.000139319 | D99: =IF('DF raw data'!H104="","",'DF raw data'!H104) -> -2.78531e-05 | F99: -1.108113e-05 | G99: 0.000140015595 | H99: -2.79923655e-05 | J99: -0.0002591704865 | K99: -0.002581509389 | L99: 0.00279378141 | M99: 0.02717919387 | N99: 5.180603937e-05
A100: =IF('DF raw data'!E105="","",'DF raw data'!E105) -> -281 | B100: =IF('DF raw data'!F105="","",'DF raw data'!F105) -> -1.68004e-05 | C100: =IF('DF raw data'!G105="","",'DF raw data'!G105) -> 0.00014126 | D100: =IF('DF raw data'!H105="","",'DF raw data'!H105) -> -2.13095e-05 | F100: -1.6884402e-05 | G100: 0.0001419663 | H100: -2.14160475e-05 | J100: -0.0002676126875 | K100: -0.002715315733 | L100: 0.00286476456 | M100: 0.02861157615 | N100: 5.594528563e-05
A101: =IF('DF raw data'!E106="","",'DF raw data'!E106) -> -280.5 | B101: =IF('DF raw data'!F106="","",'DF raw data'!F106) -> -2.14811e-05 | C101: =IF('DF raw data'!G106="","",'DF raw data'!G106) -> 0.000137433 | D101: =IF('DF raw data'!H106="","",'DF raw data'!H106) -> -1.92849e-05 | F101: -2.15885055e-05 | G101: 0.000138120165 | H101: -1.93813245e-05 | J101: -0.0002784069403 | K101: -0.002854519203 | L101: 0.002933824642 | M101: 0.03007848847 | N101: 6.028770436e-05
A102: =IF('DF raw data'!E107="","",'DF raw data'!E107) -> -280 | B102: =IF('DF raw data'!F107="","",'DF raw data'!F107) -> -1.89718e-05 | C102: =IF('DF raw data'!G107="","",'DF raw data'!G107) -> 0.000140724 | D102: =IF('DF raw data'!H107="","",'DF raw data'!H107) -> -3.45988e-05 | F102: -1.9066659e-05 | G102: 0.00014142762 | H102: -3.4771794e-05 | J102: -0.0002879402698 | K102: -0.002998489338 | L102: 0.003004538452 | M102: 0.0315807577 | N102: 6.484278482e-05
A103: =IF('DF raw data'!E108="","",'DF raw data'!E108) -> -279.5 | B103: =IF('DF raw data'!F108="","",'DF raw data'!F108) -> -1.75051e-05 | C103: =IF('DF raw data'!G108="","",'DF raw data'!G108) -> 0.000147533 | D103: =IF('DF raw data'!H108="","",'DF raw data'!H108) -> -2.11856e-05 | F103: -1.75926255e-05 | G103: 0.000148270665 | H103: -2.1291528e-05 | J103: -0.0002967365825 | K103: -0.003146857629 | L103: 0.003078673785 | M103: 0.03312009459 | N103: 6.962592725e-05
A104: =IF('DF raw data'!E109="","",'DF raw data'!E109) -> -279 | B104: =IF('DF raw data'!F109="","",'DF raw data'!F109) -> -7.43649e-06 | C104: =IF('DF raw data'!G109="","",'DF raw data'!G109) -> 0.000153243 | D104: =IF('DF raw data'!H109="","",'DF raw data'!H109) -> -2.73506e-05 | F104: -7.47367245e-06 | G104: 0.000154009215 | H104: -2.7487353e-05 | J104: -0.0003004734187 | K104: -0.003297094338 | L104: 0.003155678392 | M104: 0.03469793379 | N104: 7.465022245e-05
A105: =IF('DF raw data'!E110="","",'DF raw data'!E110) -> -278.5 | B105: =IF('DF raw data'!F110="","",'DF raw data'!F110) -> -2.3777e-05 | C105: =IF('DF raw data'!G110="","",'DF raw data'!G110) -> 0.000148079 | D105: =IF('DF raw data'!H110="","",'DF raw data'!H110) -> -3.77347e-05 | F105: -2.3895885e-05 | G105: 0.000148819395 | H105: -3.79233735e-05 | J105: -0.0003124213612 | K105: -0.003453305019 | L105: 0.00323008809 | M105: 0.03631297783 | N105: 7.991576054e-05
A106: =IF('DF raw data'!E111="","",'DF raw data'!E111) -> -278 | B106: =IF('DF raw data'!F111="","",'DF raw data'!F111) -> -1.20604e-05 | C106: =IF('DF raw data'!G111="","",'DF raw data'!G111) -> 0.000154972 | D106: =IF('DF raw data'!H111="","",'DF raw data'!H111) -> -1.52475e-05 | F106: -1.2120702e-05 | G106: 0.00015574686 | H106: -1.53237375e-05 | J106: -0.0003184817122 | K106: -0.003612545875 | L106: 0.00330796152 | M106: 0.03796695859 | N106: 8.543778055e-05
A107: =IF('DF raw data'!E112="","",'DF raw data'!E112) -> -277.5 | B107: =IF('DF raw data'!F112="","",'DF raw data'!F112) -> -2.17921e-05 | C107: =IF('DF raw data'!G112="","",'DF raw data'!G112) -> 0.000146361 | D107: =IF('DF raw data'!H112="","",'DF raw data'!H112) -> -3.38656e-05 | F107: -2.19010605e-05 | G107: 0.000147092805 | H107: -3.4034928e-05 | J107: -0.0003294322425 | K107: -0.003777261996 | L107: 0.003381507922 | M107: 0.03965771255 | N107: 9.120934126e-05
A108: =IF('DF raw data'!E113="","",'DF raw data'!E113) -> -277 | B108: =IF('DF raw data'!F113="","",'DF raw data'!F113) -> -1.13502e-05 | C108: =IF('DF raw data'!G113="","",'DF raw data'!G113) -> 0.000139375 | D108: =IF('DF raw data'!H113="","",'DF raw data'!H113) -> -2.28155e-05 | F108: -1.1406951e-05 | G108: 0.000140071875 | H108: -2.29295775e-05 | J108: -0.000335135718 | K108: -0.003944829855 | L108: 0.00345154386 | M108: 0.04138348448 | N108: 9.722207675e-05
A109: =IF('DF raw data'!E114="","",'DF raw data'!E114) -> -276.5 | B109: =IF('DF raw data'!F114="","",'DF raw data'!F114) -> -1.64881e-05 | C109: =IF('DF raw data'!G114="","",'DF raw data'!G114) -> 0.000142025 | D109: =IF('DF raw data'!H114="","",'DF raw data'!H114) -> -7.89788e-06 | F109: -1.65705405e-05 | G109: 0.000142735125 | H109: -7.9373694e-06 | J109: -0.0003434209882 | K109: -0.00411654035 | L109: 0.003522911422 | M109: 0.04314494019 | N109: 0.0001034864982
A110: =IF('DF raw data'!E115="","",'DF raw data'!E115) -> -276 | B110: =IF('DF raw data'!F115="","",'DF raw data'!F115) -> -3.29541e-05 | C110: =IF('DF raw data'!G115="","",'DF raw data'!G115) -> 0.00013747 | D110: =IF('DF raw data'!H115="","",'DF raw data'!H115) -> -2.46571e-05 | F110: -3.31188705e-05 | G110: 0.00013815735 | H110: -2.47803855e-05 | J110: -0.0003599804235 | K110: -0.004296530561 | L110: 0.003591990097 | M110: 0.04494093524 | N110: 0.0001100024876
A111: =IF('DF raw data'!E116="","",'DF raw data'!E116) -> -275.5 | B111: =IF('DF raw data'!F116="","",'DF raw data'!F116) -> -2.65495e-05 | C111: =IF('DF raw data'!G116="","",'DF raw data'!G116) -> 0.000141272 | D111: =IF('DF raw data'!H116="","",'DF raw data'!H116) -> -1.30919e-05 | F111: -2.66822475e-05 | G111: 0.00014197836 | H111: -1.31573595e-05 | J111: -0.0003733215472 | K111: -0.004483191335 | L111: 0.003662979277 | M111: 0.04677242488 | N111: 0.0001167808806
A112: =IF('DF raw data'!E117="","",'DF raw data'!E117) -> -275 | B112: =IF('DF raw data'!F117="","",'DF raw data'!F117) -> -1.66707e-05 | C112: =IF('DF raw data'!G117="","",'DF raw data'!G117) -> 0.000139322 | D112: =IF('DF raw data'!H117="","",'DF raw data'!H117) -> -2.37149e-05 | F112: -1.67540535e-05 | G112: 0.00014001861 | H112: -2.38334745e-05 | J112: -0.000381698574 | K112: -0.004674040622 | L112: 0.003732988582 | M112: 0.04863891917 | N112: 0.0001238213294
A113: =IF('DF raw data'!E118="","",'DF raw data'!E118) -> -274.5 | B113: =IF('DF raw data'!F118="","",'DF raw data'!F118) -> -1.73901e-05 | C113: =IF('DF raw data'!G118="","",'DF raw data'!G118) -> 0.000135302 | D113: =IF('DF raw data'!H118="","",'DF raw data'!H118) -> -7.24881e-07 | F113: -1.74770505e-05 | G113: 0.00013597851 | H113: -7.28505405e-07 | J113: -0.0003904370992 | K113: -0.004869259172 | L113: 0.003800977837 | M113: 0.05053940809 | N113: 0.0001311212663
A114: =IF('DF raw data'!E119="","",'DF raw data'!E119) -> -274 | B114: =IF('DF raw data'!F119="","",'DF raw data'!F119) -> -1.19946e-05 | C114: =IF('DF raw data'!G119="","",'DF raw data'!G119) -> 0.000134644 | D114: =IF('DF raw data'!H119="","",'DF raw data'!H119) -> -1.76923e-05 | F114: -1.2054573e-05 | G114: 0.00013531722 | H114: -1.77807615e-05 | J114: -0.0003964643857 | K114: -0.005067491364 | L114: 0.003868636447 | M114: 0.05247372631 | N114: 0.0001386830322
A115: =IF('DF raw data'!E120="","",'DF raw data'!E120) -> -273.5 | B115: =IF('DF raw data'!F120="","",'DF raw data'!F120) -> -2.01344e-05 | C115: =IF('DF raw data'!G120="","",'DF raw data'!G120) -> 0.000137589 | D115: =IF('DF raw data'!H120="","",'DF raw data'!H120) -> -1.96374e-05 | F115: -2.0235072e-05 | G115: 0.000138276945 | H115: -1.9735587e-05 | J115: -0.0004065819217 | K115: -0.005270782325 | L115: 0.00393777492 | M115: 0.05444261377 | N115: 0.0001465187223
A116: =IF('DF raw data'!E121="","",'DF raw data'!E121) -> -273 | B116: =IF('DF raw data'!F121="","",'DF raw data'!F121) -> -1.25013e-05 | C116: =IF('DF raw data'!G121="","",'DF raw data'!G121) -> 0.000143404 | D116: =IF('DF raw data'!H121="","",'DF raw data'!H121) -> -2.72894e-05 | F116: -1.25638065e-05 | G116: 0.00014412102 | H116: -2.7425847e-05 | J116: -0.000412863825 | K116: -0.005477214238 | L116: 0.00400983543 | M116: 0.05644753149 | N116: 0.0001546433407
A117: =IF('DF raw data'!E122="","",'DF raw data'!E122) -> -272.5 | B117: =IF('DF raw data'!F122="","",'DF raw data'!F122) -> -2.14096e-05 | C117: =IF('DF raw data'!G122="","",'DF raw data'!G122) -> 0.000135828 | D117: =IF('DF raw data'!H122="","",'DF raw data'!H122) -> -3.01959e-05 | F117: -2.1516648e-05 | G117: 0.00013650714 | H117: -3.03468795e-05 | J117: -0.000423622149 | K117: -0.005689025312 | L117: 0.004078089 | M117: 0.05848657599 | N117: 0.0001630484735
A118: =IF('DF raw data'!E123="","",'DF raw data'!E123) -> -272 | B118: =IF('DF raw data'!F123="","",'DF raw data'!F123) -> -1.12823e-05 | C118: =IF('DF raw data'!G123="","",'DF raw data'!G123) -> 0.000140087 | D118: =IF('DF raw data'!H123="","",'DF raw data'!H123) -> -2.90588e-05 | F118: -1.13387115e-05 | G118: 0.000140787435 | H118: -2.9204094e-05 | J118: -0.0004292915047 | K118: -0.005903671065 | L118: 0.004148482717 | M118: 0.06056081735 | N118: 0.0001717455735
A119: =IF('DF raw data'!E124="","",'DF raw data'!E124) -> -271.5 | B119: =IF('DF raw data'!F124="","",'DF raw data'!F124) -> -9.16321e-06 | C119: =IF('DF raw data'!G124="","",'DF raw data'!G124) -> 0.000142556 | D119: =IF('DF raw data'!H124="","",'DF raw data'!H124) -> -3.32742e-05 | F119: -9.20902605e-06 | G119: 0.00014326878 | H119: -3.3440571e-05 | J119: -0.0004338960178 | K119: -0.006120619074 | L119: 0.004220117108 | M119: 0.0626708759 | N119: 0.0001807444006
A120: =IF('DF raw data'!E125="","",'DF raw data'!E125) -> -271 | B120: =IF('DF raw data'!F125="","",'DF raw data'!F125) -> -2.32749e-05 | C120: =IF('DF raw data'!G125="","",'DF raw data'!G125) -> 0.000138492 | D120: =IF('DF raw data'!H125="","",'DF raw data'!H125) -> -2.32861e-05 | F120: -2.33912745e-05 | G120: 0.00013918446 | H120: -2.34025305e-05 | J120: -0.000445591655 | K120: -0.006343414901 | L120: 0.004289709338 | M120: 0.06481573057 | N120: 0.0001900444797
A121: =IF('DF raw data'!E126="","",'DF raw data'!E126) -> -270.5 | B121: =IF('DF raw data'!F126="","",'DF raw data'!F126) -> -1.57062e-05 | C121: =IF('DF raw data'!G126="","",'DF raw data'!G126) -> 0.000141267 | D121: =IF('DF raw data'!H126="","",'DF raw data'!H126) -> -2.68575e-05 | F121: -1.5784731e-05 | G121: 0.000141973335 | H121: -2.69917875e-05 | J121: -0.0004534840205 | K121: -0.006570156911 | L121: 0.004360696005 | M121: 0.06699607857 | N121: 0.0001996551384
A122: =IF('DF raw data'!E127="","",'DF raw data'!E127) -> -270 | B122: =IF('DF raw data'!F127="","",'DF raw data'!F127) -> -4.0405e-06 | C122: =IF('DF raw data'!G127="","",'DF raw data'!G127) -> 0.000139395 | D122: =IF('DF raw data'!H127="","",'DF raw data'!H127) -> -2.46194e-05 | F122: -4.0607025e-06 | G122: 0.000140091975 | H122: -2.4742497e-05 | J122: -0.0004555143718 | K122: -0.006797914097 | L122: 0.004430741992 | M122: 0.06921144957 | N122: 0.0002095746223
A123: =IF('DF raw data'!E128="","",'DF raw data'!E128) -> -269.5 | B123: =IF('DF raw data'!F128="","",'DF raw data'!F128) -> -1.36587e-05 | C123: =IF('DF raw data'!G128="","",'DF raw data'!G128) -> 0.000136732 | D123: =IF('DF raw data'!H128="","",'DF raw data'!H128) -> -2.09037e-05 | F123: -1.37269935e-05 | G123: 0.00013741566 | H123: -2.10082185e-05 | J123: -0.0004623778685 | K123: -0.007029103032 | L123: 0.004499449822 | M123: 0.07146117448 | N123: 0.0002198040433
A124: =IF('DF raw data'!E129="","",'DF raw data'!E129) -> -269 | B124: =IF('DF raw data'!F129="","",'DF raw data'!F129) -> -1.73683e-05 | C124: =IF('DF raw data'!G129="","",'DF raw data'!G129) -> 0.000143662 | D124: =IF('DF raw data'!H129="","",'DF raw data'!H129) -> -3.62203e-05 | F124: -1.74551415e-05 | G124: 0.00014438031 | H124: -3.64014015e-05 | J124: -0.0004711054393 | K124: -0.007264655751 | L124: 0.004571639977 | M124: 0.07374699447 | N124: 0.0002303649595
A125: =IF('DF raw data'!E130="","",'DF raw data'!E130) -> -268.5 | B125: =IF('DF raw data'!F130="","",'DF raw data'!F130) -> -1.92285e-05 | C125: =IF('DF raw data'!G130="","",'DF raw data'!G130) -> 0.000143624 | D125: =IF('DF raw data'!H130="","",'DF raw data'!H130) -> -3.22233e-05 | F125: -1.93246425e-05 | G125: 0.00014434212 | H125: -3.23844165e-05 | J125: -0.0004807677605 | K125: -0.007505039631 | L125: 0.004643811037 | M125: 0.07606889999 | N125: 0.0002412630188
A126: =IF('DF raw data'!E131="","",'DF raw data'!E131) -> -268 | B126: =IF('DF raw data'!F131="","",'DF raw data'!F131) -> -9.10748e-06 | C126: =IF('DF raw data'!G131="","",'DF raw data'!G131) -> 0.000138435 | D126: =IF('DF raw data'!H131="","",'DF raw data'!H131) -> -2.12673e-05 | F126: -9.1530174e-06 | G126: 0.000139127175 | H126: -2.13736365e-05 | J126: -0.0004853442692 | K126: -0.007747711766 | L126: 0.004713374625 | M126: 0.0784255873 | N126: 0.0002524887485
A127: =IF('DF raw data'!E132="","",'DF raw data'!E132) -> -267.5 | B127: =IF('DF raw data'!F132="","",'DF raw data'!F132) -> -1.80216e-06 | C127: =IF('DF raw data'!G132="","",'DF raw data'!G132) -> 0.000140555 | D127: =IF('DF raw data'!H132="","",'DF raw data'!H132) -> -1.61051e-05 | F127: -1.8111708e-06 | G127: 0.000141257775 | H127: -1.61856255e-05 | J127: -0.0004862498546 | K127: -0.007990836693 | L127: 0.004784003512 | M127: 0.08081758906 | N127: 0.0002640503128
A128: =IF('DF raw data'!E133="","",'DF raw data'!E133) -> -267 | B128: =IF('DF raw data'!F133="","",'DF raw data'!F133) -> -2.28267e-05 | C128: =IF('DF raw data'!G133="","",'DF raw data'!G133) -> 0.000145671 | D128: =IF('DF raw data'!H133="","",'DF raw data'!H133) -> -2.26467e-05 | F128: =(1-$G$1*($B$49-$G$2))*B128 -> -2.29408335e-05 | G128: 0.000146399355 | H128: -2.27599335e-05 | J128: =F128*$G$3+J127 -> -0.0004977202714 | K128: =J128*$G$3+K127 -> -0.008239696829 | L128: =G128*$G$3+L127 -> 0.00485720319 | M128: =L128*$G$3+M127 -> 0.08324619065 | N128: =(J128^2+L128^2)*$G$3+N127 -> 0.000275970387
A129: =IF('DF raw data'!E134="","",'DF raw data'!E134) -> -266.5 | B129: =IF('DF raw data'!F134="","",'DF raw data'!F134) -> -1.28898e-05 | C129: =IF('DF raw data'!G134="","",'DF raw data'!G134) -> 0.00014808 | D129: =IF('DF raw data'!H134="","",'DF raw data'!H134) -> -1.98814e-05 | F129: -1.2954249e-05 | G129: 0.0001488204 | H129: -1.9980807e-05 | J129: -0.0005041973959 | K129: -0.008491795527 | L129: 0.00493161339 | M129: 0.08571199735 | N129: 0.0002882578998
A130: =IF('DF raw data'!E135="","",'DF raw data'!E135) -> -266 | B130: =IF('DF raw data'!F135="","",'DF raw data'!F135) -> -1.17358e-05 | C130: =IF('DF raw data'!G135="","",'DF raw data'!G135) -> 0.000138892 | D130: =IF('DF raw data'!H135="","",'DF raw data'!H135) -> -2.17906e-05 | F130: -1.1794479e-05 | G130: 0.00013958646 | H130: -2.1899553e-05 | J130: -0.0005100946354 | K130: -0.008746842845 | L130: 0.00500140662 | M130: 0.08821270066 | N130: 0.0003008950321
A131: =IF('DF raw data'!E136="","",'DF raw data'!E136) -> -265.5 | B131: =IF('DF raw data'!F136="","",'DF raw data'!F136) -> -5.32778e-06 | C131: =IF('DF raw data'!G136="","",'DF raw data'!G136) -> 0.000136196 | D131: =IF('DF raw data'!H136="","",'DF raw data'!H136) -> -1.64339e-05 | F131: -5.3544189e-06 | G131: 0.00013687698 | H131: -1.65160695e-05 | J131: -0.0005127718448 | K131: -0.009003228767 | L131: 0.00506984511 | M131: 0.09074762321 | N131: 0.0003138781643
A132: =IF('DF raw data'!E137="","",'DF raw data'!E137) -> -265 | B132: =IF('DF raw data'!F137="","",'DF raw data'!F137) -> -1.05181e-05 | C132: =IF('DF raw data'!G137="","",'DF raw data'!G137) -> 0.000137412 | D132: =IF('DF raw data'!H137="","",'DF raw data'!H137) -> -2.13026e-05 | F132: -1.05706905e-05 | G132: 0.00013809906 | H132: -2.1409113e-05 | J132: -0.0005180571901 | K132: -0.009262257362 | L132: 0.00513889464 | M132: 0.09331707053 | N132: 0.000327216475
A133: =IF('DF raw data'!E138="","",'DF raw data'!E138) -> -264.5 | B133: =IF('DF raw data'!F138="","",'DF raw data'!F138) -> -1.01236e-05 | C133: =IF('DF raw data'!G138="","",'DF raw data'!G138) -> 0.000143908 | D133: =IF('DF raw data'!H138="","",'DF raw data'!H138) -> -3.50955e-05 | F133: -1.0174218e-05 | G133: 0.00014462754 | H133: -3.52709775e-05 | J133: -0.0005231442991 | K133: -0.009523829512 | L133: 0.00521120841 | M133: 0.09592267474 | N133: 0.0003409316616
A134: =IF('DF raw data'!E139="","",'DF raw data'!E139) -> -264 | B134: =IF('DF raw data'!F139="","",'DF raw data'!F139) -> -2.00705e-05 | C134: =IF('DF raw data'!G139="","",'DF raw data'!G139) -> 0.000148105 | D134: =IF('DF raw data'!H139="","",'DF raw data'!H139) -> -2.1503e-05 | F134: -2.01708525e-05 | G134: 0.000148845525 | H134: -2.1610515e-05 | J134: -0.0005332297253 | K134: -0.009790444374 | L134: 0.005285631172 | M134: 0.09856549032 | N134: 0.000355042777
A135: =IF('DF raw data'!E140="","",'DF raw data'!E140) -> -263.5 | B135: =IF('DF raw data'!F140="","",'DF raw data'!F140) -> -9.74047e-06 | C135: =IF('DF raw data'!G140="","",'DF raw data'!G140) -> 0.000147883 | D135: =IF('DF raw data'!H140="","",'DF raw data'!H140) -> -3.28002e-05 | F135: -9.78917235e-06 | G135: 0.000148622415 | H135: -3.2964201e-05 | J135: -0.0005381243115 | K135: -0.01005950653 | L135: 0.00535994238 | M135: 0.1012454615 | N135: 0.000369552057
A136: =IF('DF raw data'!E141="","",'DF raw data'!E141) -> -263 | B136: =IF('DF raw data'!F141="","",'DF raw data'!F141) -> -2.21233e-05 | C136: =IF('DF raw data'!G141="","",'DF raw data'!G141) -> 0.000145749 | D136: =IF('DF raw data'!H141="","",'DF raw data'!H141) -> -1.99651e-05 | F136: -2.22339165e-05 | G136: 0.000146477745 | H136: -2.00649255e-05 | J136: -0.0005492412697 | K136: -0.01033412716 | L136: 0.005433181252 | M136: 0.1039620521 | N136: 0.0003844626193
A137: =IF('DF raw data'!E142="","",'DF raw data'!E142) -> -262.5 | B137: =IF('DF raw data'!F142="","",'DF raw data'!F142) -> -3.97382e-06 | C137: =IF('DF raw data'!G142="","",'DF raw data'!G142) -> 0.000141595 | D137: =IF('DF raw data'!H142="","",'DF raw data'!H142) -> -2.82376e-05 | F137: -3.9936891e-06 | G137: 0.000142302975 | H137: -2.8378788e-05 | J137: -0.0005512381143 | K137: -0.01060974622 | L137: 0.00550433274 | M137: 0.1067142185 | N137: 0.0003997633904
A138: =IF('DF raw data'!E143="","",'DF raw data'!E143) -> -262 | B138: =IF('DF raw data'!F143="","",'DF raw data'!F143) -> -6.16074e-06 | C138: =IF('DF raw data'!G143="","",'DF raw data'!G143) -> 0.000148329 | D138: =IF('DF raw data'!H143="","",'DF raw data'!H143) -> -1.77357e-05 | F138: -6.1915437e-06 | G138: 0.000149070645 | H138: -1.78243785e-05 | J138: -0.0005543338861 | K138: -0.01088691317 | L138: 0.005578868062 | M138: 0.1095036525 | N138: 0.0004154789179
A139: =IF('DF raw data'!E144="","",'DF raw data'!E144) -> -261.5 | B139: =IF('DF raw data'!F144="","",'DF raw data'!F144) -> -1.75098e-05 | C139: =IF('DF raw data'!G144="","",'DF raw data'!G144) -> 0.000151087 | D139: =IF('DF raw data'!H144="","",'DF raw data'!H144) -> -1.31547e-05 | F139: -1.7597349e-05 | G139: 0.000151842435 | H139: -1.32204735e-05 | J139: -0.0005631325606 | K139: -0.01116847945 | L139: 0.00565478928 | M139: 0.1123310472 | N139: 0.0004316257979
A140: =IF('DF raw data'!E145="","",'DF raw data'!E145) -> -261 | B140: =IF('DF raw data'!F145="","",'DF raw data'!F145) -> -2.04524e-05 | C140: =IF('DF raw data'!G145="","",'DF raw data'!G145) -> 0.00014539 | D140: =IF('DF raw data'!H145="","",'DF raw data'!H145) -> -2.58549e-05 | F140: -2.0554662e-05 | G140: 0.00014611695 | H140: -2.59841745e-05 | J140: -0.0005734098916 | K140: -0.01145518439 | L140: 0.005727847755 | M140: 0.1151949711 | N140: 0.0004481943173
A141: =IF('DF raw data'!E146="","",'DF raw data'!E146) -> -260.5 | B141: =IF('DF raw data'!F146="","",'DF raw data'!F146) -> -1.09604e-05 | C141: =IF('DF raw data'!G146="","",'DF raw data'!G146) -> 0.000139629 | D141: =IF('DF raw data'!H146="","",'DF raw data'!H146) -> -2.94467e-05 | F141: -1.1015202e-05 | G141: 0.000140327145 | H141: -2.95939335e-05 | J141: -0.0005789174926 | K141: -0.01174464314 | L141: 0.005798011328 | M141: 0.1180939767 | N141: 0.0004651703578
A142: =IF('DF raw data'!E147="","",'DF raw data'!E147) -> -260 | B142: =IF('DF raw data'!F147="","",'DF raw data'!F147) -> -1.69317e-05 | C142: =IF('DF raw data'!G147="","",'DF raw data'!G147) -> 0.000135628 | D142: =IF('DF raw data'!H147="","",'DF raw data'!H147) -> -1.74397e-05 | F142: -1.70163585e-05 | G142: 0.00013630614 | H142: -1.75268985e-05 | J142: -0.0005874256719 | K142: -0.01203835597 | L142: 0.005866164398 | M142: 0.1210270589 | N142: 0.0004825488346
A143: =IF('DF raw data'!E148="","",'DF raw data'!E148) -> -259.5 | B143: =IF('DF raw data'!F148="","",'DF raw data'!F148) -> -7.62822e-06 | C143: =IF('DF raw data'!G148="","",'DF raw data'!G148) -> 0.000133814 | D143: =IF('DF raw data'!H148="","",'DF raw data'!H148) -> -2.76092e-05 | F143: -7.6663611e-06 | G143: 0.00013448307 | H143: -2.7747246e-05 | J143: -0.0005912588524 | K143: -0.0123339854 | L143: 0.005933405933 | M143: 0.1239937619 | N143: 0.0005003262811
A144: =IF('DF raw data'!E149="","",'DF raw data'!E149) -> -259 | B144: =IF('DF raw data'!F149="","",'DF raw data'!F149) -> -1.26287e-05 | C144: =IF('DF raw data'!G149="","",'DF raw data'!G149) -> 0.000140492 | D144: =IF('DF raw data'!H149="","",'DF raw data'!H149) -> -2.90601e-05 | F144: -1.26918435e-05 | G144: 0.00014119446 | H144: -2.92054005e-05 | J144: -0.0005976047742 | K144: -0.01263278779 | L144: 0.006004003163 | M144: 0.1269957635 | N144: 0.0005185288738
A145: =IF('DF raw data'!E150="","",'DF raw data'!E150) -> -258.5 | B145: =IF('DF raw data'!F150="","",'DF raw data'!F150) -> -3.07275e-06 | C145: =IF('DF raw data'!G150="","",'DF raw data'!G150) -> 0.000141296 | D145: =IF('DF raw data'!H150="","",'DF raw data'!H150) -> -3.37768e-05 | F145: -3.08811375e-06 | G145: 0.00014200248 | H145: -3.3945684e-05 | J145: -0.0005991488311 | K145: -0.0129323622 | L145: 0.006075004403 | M145: 0.1300332657 | N145: 0.0005371612027
A146: =IF('DF raw data'!E151="","",'DF raw data'!E151) -> -258 | B146: =IF('DF raw data'!F151="","",'DF raw data'!F151) -> -1.52563e-05 | C146: =IF('DF raw data'!G151="","",'DF raw data'!G151) -> 0.000138782 | D146: =IF('DF raw data'!H151="","",'DF raw data'!H151) -> -3.06733e-05 | F146: -1.53325815e-05 | G146: 0.00013947591 | H146: -3.08266665e-05 | J146: -0.0006068151218 | K146: -0.01323576976 | L146: 0.006144742358 | M146: 0.1331056368 | N146: 0.0005562242443
A147: =IF('DF raw data'!E152="","",'DF raw data'!E152) -> -257.5 | B147: =IF('DF raw data'!F152="","",'DF raw data'!F152) -> -6.98691e-06 | C147: =IF('DF raw data'!G152="","",'DF raw data'!G152) -> 0.000142446 | D147: =IF('DF raw data'!H152="","",'DF raw data'!H152) -> -2.79941e-05 | F147: -7.02184455e-06 | G147: 0.00014315823 | H147: -2.81340705e-05 | J147: -0.0006103260441 | K147: -0.01354093279 | L147: 0.006216321473 | M147: 0.1362137976 | N147: 0.0005757318196
A148: =IF('DF raw data'!E153="","",'DF raw data'!E153) -> -257 | B148: =IF('DF raw data'!F153="","",'DF raw data'!F153) -> -2.58714e-07 | C148: =IF('DF raw data'!G153="","",'DF raw data'!G153) -> 0.000145955 | D148: =IF('DF raw data'!H153="","",'DF raw data'!H153) -> -2.3386e-05 | F148: -2.6000757e-07 | G148: 0.000146684775 | H148: -2.350293e-05 | J148: -0.0006104560479 | K148: -0.01384616081 | L148: 0.00628966386 | M148: 0.1393586295 | N148: 0.0005956980836
A149: =IF('DF raw data'!E154="","",'DF raw data'!E154) -> -256.5 | B149: =IF('DF raw data'!F154="","",'DF raw data'!F154) -> -1.03878e-05 | C149: =IF('DF raw data'!G154="","",'DF raw data'!G154) -> 0.000150765 | D149: =IF('DF raw data'!H154="","",'DF raw data'!H154) -> -2.28929e-05 | F149: -1.0439739e-05 | G149: 0.000151518825 | H149: -2.30073645e-05 | J149: -0.0006156759174 | K149: -0.01415399877 | L149: 0.006365423273 | M149: 0.1425413412 | N149: 0.0006161469188
A150: =IF('DF raw data'!E155="","",'DF raw data'!E155) -> -256 | B150: =IF('DF raw data'!F155="","",'DF raw data'!F155) -> -1.6345e-05 | C150: =IF('DF raw data'!G155="","",'DF raw data'!G155) -> 0.000154116 | D150: =IF('DF raw data'!H155="","",'DF raw data'!H155) -> -3.28047e-05 | F150: -1.6426725e-05 | G150: 0.00015488658 | H150: -3.29687235e-05 | J150: -0.0006238892799 | K150: -0.01446594341 | L150: 0.006442866563 | M150: 0.1457627744 | N150: 0.0006370968024
A151: =IF('DF raw data'!E156="","",'DF raw data'!E156) -> -255.5 | B151: =IF('DF raw data'!F156="","",'DF raw data'!F156) -> -1.80187e-05 | C151: =IF('DF raw data'!G156="","",'DF raw data'!G156) -> 0.000152529 | D151: =IF('DF raw data'!H156="","",'DF raw data'!H156) -> -1.90637e-05 | F151: -1.81087935e-05 | G151: 0.000153291645 | H151: -1.91590185e-05 | J151: -0.0006329436766 | K151: -0.01478241525 | L151: 0.006519512385 | M151: 0.1490225306 | N151: 0.0006585491322
A152: =IF('DF raw data'!E157="","",'DF raw data'!E157) -> -255 | B152: =IF('DF raw data'!F157="","",'DF raw data'!F157) -> -9.94232e-06 | C152: =IF('DF raw data'!G157="","",'DF raw data'!G157) -> 0.000151489 | D152: =IF('DF raw data'!H157="","",'DF raw data'!H157) -> -1.94168e-05 | F152: -9.9920316e-06 | G152: 0.000152246445 | H152: -1.9513884e-05 | J152: -0.0006379396924 | K152: -0.01510138509 | L152: 0.006595635608 | M152: 0.1523203484 | N152: 0.0006805038202
A153: =IF('DF raw data'!E158="","",'DF raw data'!E158) -> -254.5 | B153: =IF('DF raw data'!F158="","",'DF raw data'!F158) -> -8.71479e-06 | C153: =IF('DF raw data'!G158="","",'DF raw data'!G158) -> 0.000156351 | D153: =IF('DF raw data'!H158="","",'DF raw data'!H158) -> -3.23528e-05 | F153: -8.75836395e-06 | G153: 0.000157132755 | H153: -3.2514564e-05 | J153: -0.0006423188744 | K153: -0.01542254453 | L153: 0.006674201985 | M153: 0.1556574494 | N153: 0.0007029825931
A154: =IF('DF raw data'!E159="","",'DF raw data'!E159) -> -254 | B154: =IF('DF raw data'!F159="","",'DF raw data'!F159) -> -1.76273e-05 | C154: =IF('DF raw data'!G159="","",'DF raw data'!G159) -> 0.000145859 | D154: =IF('DF raw data'!H159="","",'DF raw data'!H159) -> -3.24825e-05 | F154: -1.77154365e-05 | G154: 0.000146588295 | H154: -3.26449125e-05 | J154: -0.0006511765927 | K154: -0.01574813283 | L154: 0.006747496133 | M154: 0.1590311975 | N154: 0.0007259589606
A155: =IF('DF raw data'!E160="","",'DF raw data'!E160) -> -253.5 | B155: =IF('DF raw data'!F160="","",'DF raw data'!F160) -> -1.47998e-05 | C155: =IF('DF raw data'!G160="","",'DF raw data'!G160) -> 0.00013869 | D155: =IF('DF raw data'!H160="","",'DF raw data'!H160) -> -4.03812e-05 | F155: -1.4873799e-05 | G155: 0.00013938345 | H155: -4.0583106e-05 | J155: -0.0006586134922 | K155: -0.01607743957 | L155: 0.006817187858 | M155: 0.1624397914 | N155: 0.0007494128716
A156: =IF('DF raw data'!E161="","",'DF raw data'!E161) -> -253 | B156: =IF('DF raw data'!F161="","",'DF raw data'!F161) -> -2.1729e-05 | C156: =IF('DF raw data'!G161="","",'DF raw data'!G161) -> 0.000126828 | D156: =IF('DF raw data'!H161="","",'DF raw data'!H161) -> -3.49671e-05 | F156: -2.1837645e-05 | G156: 0.00012746214 | H156: -3.51419355e-05 | J156: -0.0006695323147 | K156: -0.01641220573 | L156: 0.006880918928 | M156: 0.1658802509 | N156: 0.000773310531
A157: =IF('DF raw data'!E162="","",'DF raw data'!E162) -> -252.5 | B157: =IF('DF raw data'!F162="","",'DF raw data'!F162) -> -2.03801e-05 | C157: =IF('DF raw data'!G162="","",'DF raw data'!G162) -> 0.000127312 | D157: =IF('DF raw data'!H162="","",'DF raw data'!H162) -> -3.55876e-05 | F157: -2.04820005e-05 | G157: 0.00012794856 | H157: -3.5765538e-05 | J157: -0.0006797733149 | K157: -0.01675209239 | L157: 0.006944893208 | M157: 0.1693526975 | N157: 0.0007976573477
A158: =IF('DF raw data'!E163="","",'DF raw data'!E163) -> -252 | B158: =IF('DF raw data'!F163="","",'DF raw data'!F163) -> -1.37285e-05 | C158: =IF('DF raw data'!G163="","",'DF raw data'!G163) -> 0.000138459 | D158: =IF('DF raw data'!H163="","",'DF raw data'!H163) -> -1.39039e-05 | F158: -1.37971425e-05 | G158: 0.000139151295 | H158: -1.39734195e-05 | J158: -0.0006866718862 | K158: -0.01709542833 | L158: 0.007014468855 | M158: 0.1728599319 | N158: 0.0008224944935
A159: =IF('DF raw data'!E164="","",'DF raw data'!E164) -> -251.5 | B159: =IF('DF raw data'!F164="","",'DF raw data'!F164) -> -4.87656e-06 | C159: =IF('DF raw data'!G164="","",'DF raw data'!G164) -> 0.000146554 | D159: =IF('DF raw data'!H164="","",'DF raw data'!H164) -> -2.00614e-05 | F159: -4.9009428e-06 | G159: 0.00014728677 | H159: -2.0161707e-05 | J159: -0.0006891223576 | K159: -0.01743998951 | L159: 0.00708811224 | M159: 0.176403988 | N159: 0.0008478526059
A160: =IF('DF raw data'!E165="","",'DF raw data'!E165) -> -251 | B160: =IF('DF raw data'!F165="","",'DF raw data'!F165) -> -2.34645e-05 | C160: =IF('DF raw data'!G165="","",'DF raw data'!G165) -> 0.000138863 | D160: =IF('DF raw data'!H165="","",'DF raw data'!H165) -> -2.77243e-05 | F160: -2.35818225e-05 | G160: 0.000139557315 | H160: -2.78629215e-05 | J160: -0.0007009132688 | K160: -0.01779044614 | L160: 0.007157890898 | M160: 0.1799829335 | N160: 0.0008737159466
A161: =IF('DF raw data'!E166="","",'DF raw data'!E166) -> -250.5 | B161: =IF('DF raw data'!F166="","",'DF raw data'!F166) -> -1.3841e-05 | C161: =IF('DF raw data'!G166="","",'DF raw data'!G166) -> 0.000144106 | D161: =IF('DF raw data'!H166="","",'DF raw data'!H166) -> -3.60342e-05 | F161: -1.3910205e-05 | G161: 0.00014482653 | H161: -3.6214371e-05 | J161: -0.0007078683713 | K161: -0.01814438033 | L161: 0.007230304163 | M161: 0.1835980856 | N161: 0.0009001051346
A162: =IF('DF raw data'!E167="","",'DF raw data'!E167) -> -250 | B162: =IF('DF raw data'!F167="","",'DF raw data'!F167) -> -5.96552e-06 | C162: =IF('DF raw data'!G167="","",'DF raw data'!G167) -> 0.000150936 | D162: =IF('DF raw data'!H167="","",'DF raw data'!H167) -> -2.24279e-05 | F162: -5.9953476e-06 | G162: 0.00015169068 | H162: -2.25400395e-05 | J162: -0.0007108660451 | K162: -0.01849981335 | L162: 0.007306149503 | M162: 0.1872511603 | N162: 0.0009270477101
A163: =IF('DF raw data'!E168="","",'DF raw data'!E168) -> -249.5 | B163: =IF('DF raw data'!F168="","",'DF raw data'!F168) -> -1.96826e-05 | C163: =IF('DF raw data'!G168="","",'DF raw data'!G168) -> 0.000152182 | D163: =IF('DF raw data'!H168="","",'DF raw data'!H168) -> -2.35545e-05 | F163: -1.9781013e-05 | G163: 0.00015294291 | H163: -2.36722725e-05 | J163: -0.0007207565516 | K163: -0.01886019163 | L163: 0.007382620958 | M163: 0.1909424708 | N163: 0.0009545590012
A164: =IF('DF raw data'!E169="","",'DF raw data'!E169) -> -249 | B164: =IF('DF raw data'!F169="","",'DF raw data'!F169) -> -1.06437e-05 | C164: =IF('DF raw data'!G169="","",'DF raw data'!G169) -> 0.000146353 | D164: =IF('DF raw data'!H169="","",'DF raw data'!H169) -> -2.54803e-05 | F164: -1.06969185e-05 | G164: 0.000147084765 | H164: -2.56077015e-05 | J164: -0.0007261050109 | K164: -0.01922324413 | L164: 0.00745616334 | M164: 0.1946705525 | N164: 0.0009826198013
A165: =IF('DF raw data'!E170="","",'DF raw data'!E170) -> -248.5 | B165: =IF('DF raw data'!F170="","",'DF raw data'!F170) -> 4.10298e-06 | C165: =IF('DF raw data'!G170="","",'DF raw data'!G170) -> 0.000154396 | D165: =IF('DF raw data'!H170="","",'DF raw data'!H170) -> -2.74302e-05 | F165: 4.1234949e-06 | G165: 0.00015516798 | H165: -2.7567351e-05 | J165: -0.0007240432634 | K165: -0.01958526576 | L165: 0.00753374733 | M165: 0.1984374261 | N165: 0.001011260595
A166: =IF('DF raw data'!E171="","",'DF raw data'!E171) -> -248 | B166: =IF('DF raw data'!F171="","",'DF raw data'!F171) -> -3.98262e-06 | C166: =IF('DF raw data'!G171="","",'DF raw data'!G171) -> 0.000157113 | D166: =IF('DF raw data'!H171="","",'DF raw data'!H171) -> -1.52645e-05 | F166: -4.0025331e-06 | G166: 0.000157898565 | H166: -1.53408225e-05 | J166: -0.00072604453 | K166: -0.01994828803 | L166: 0.007612696613 | M166: 0.2022437744 | N166: 0.00104050074
A167: =IF('DF raw data'!E172="","",'DF raw data'!E172) -> -247.5 | B167: =IF('DF raw data'!F172="","",'DF raw data'!F172) -> -2.34026e-05 | C167: =IF('DF raw data'!G172="","",'DF raw data'!G172) -> 0.000153025 | D167: =IF('DF raw data'!H172="","",'DF raw data'!H172) -> -2.09715e-05 | F167: -2.3519613e-05 | G167: 0.000153790125 | H167: -2.10763575e-05 | J167: -0.0007378043365 | K167: -0.0203171902 | L167: 0.007689591675 | M167: 0.2060885703 | N167: 0.001070337828
A168: =IF('DF raw data'!E173="","",'DF raw data'!E173) -> -247 | B168: =IF('DF raw data'!F173="","",'DF raw data'!F173) -> -2.34675e-05 | C168: =IF('DF raw data'!G173="","",'DF raw data'!G173) -> 0.000149456 | D168: =IF('DF raw data'!H173="","",'DF raw data'!H173) -> -2.31525e-05 | F168: -2.35848375e-05 | G168: 0.00015020328 | H168: -2.32682625e-05 | J168: -0.0007495967552 | K168: -0.02069198858 | L168: 0.007764693315 | M168: 0.2099709169 | N168: 0.001100764007
A169: =IF('DF raw data'!E174="","",'DF raw data'!E174) -> -246.5 | B169: =IF('DF raw data'!F174="","",'DF raw data'!F174) -> -2.46231e-05 | C169: =IF('DF raw data'!G174="","",'DF raw data'!G174) -> 0.000149782 | D169: =IF('DF raw data'!H174="","",'DF raw data'!H174) -> -1.69696e-05 | F169: -2.47462155e-05 | G169: 0.00015053091 | H169: -1.7054448e-05 | J169: -0.000761969863 | K169: -0.02107297351 | L169: 0.00783995877 | M169: 0.2138908963 | N169: 0.001131786783
A170: =IF('DF raw data'!E175="","",'DF raw data'!E175) -> -246 | B170: =IF('DF raw data'!F175="","",'DF raw data'!F175) -> -1.68653e-05 | C170: =IF('DF raw data'!G175="","",'DF raw data'!G175) -> 0.000151507 | D170: =IF('DF raw data'!H175="","",'DF raw data'!H175) -> -2.11225e-05 | F170: -1.69496265e-05 | G170: 0.000152264535 | H170: -2.12281125e-05 | J170: -0.0007704446762 | K170: -0.02145819584 | L170: 0.007916091038 | M170: 0.2178489418 | N170: 0.001163415824
A171: =IF('DF raw data'!E176="","",'DF raw data'!E176) -> -245.5 | B171: =IF('DF raw data'!F176="","",'DF raw data'!F176) -> -1.57026e-05 | C171: =IF('DF raw data'!G176="","",'DF raw data'!G176) -> 0.000147494 | D171: =IF('DF raw data'!H176="","",'DF raw data'!H176) -> -3.21649e-05 | F171: -1.5781113e-05 | G171: 0.00014823147 | H171: -3.23257245e-05 | J171: -0.0007783352327 | K171: -0.02184736346 | L171: 0.007990206773 | M171: 0.2218440452 | N171: 0.001195640429
A172: =IF('DF raw data'!E177="","",'DF raw data'!E177) -> -245 | B172: =IF('DF raw data'!F177="","",'DF raw data'!F177) -> -2.08393e-05 | C172: =IF('DF raw data'!G177="","",'DF raw data'!G177) -> 0.000146893 | D172: =IF('DF raw data'!H177="","",'DF raw data'!H177) -> -2.23461e-05 | F172: -2.09434965e-05 | G172: 0.000147627465 | H172: -2.24578305e-05 | J172: -0.000788806981 | K172: -0.02224176695 | L172: 0.008064020505 | M172: 0.2258760555 | N172: 0.00122846575
A173: =IF('DF raw data'!E178="","",'DF raw data'!E178) -> -244.5 | B173: =IF('DF raw data'!F178="","",'DF raw data'!F178) -> -1.20494e-05 | C173: =IF('DF raw data'!G178="","",'DF raw data'!G178) -> 0.000152094 | D173: =IF('DF raw data'!H178="","",'DF raw data'!H178) -> -3.09623e-05 | F173: -1.2109647e-05 | G173: 0.00015285447 | H173: -3.11171115e-05 | J173: -0.0007948618045 | K173: -0.02263919785 | L173: 0.00814044774 | M173: 0.2299462793 | N173: 0.001261915098
A174: =IF('DF raw data'!E179="","",'DF raw data'!E179) -> -244 | B174: =IF('DF raw data'!F179="","",'DF raw data'!F179) -> -1.92411e-05 | C174: =IF('DF raw data'!G179="","",'DF raw data'!G179) -> 0.000139054 | D174: =IF('DF raw data'!H179="","",'DF raw data'!H179) -> -1.55165e-05 | F174: -1.93373055e-05 | G174: 0.00013974927 | H174: -1.55940825e-05 | J174: -0.0008045304572 | K174: -0.02304146308 | L174: 0.008210322375 | M174: 0.2340514405 | N174: 0.001295943429
A175: =IF('DF raw data'!E180="","",'DF raw data'!E180) -> -243.5 | B175: =IF('DF raw data'!F180="","",'DF raw data'!F180) -> -1.64131e-05 | C175: =IF('DF raw data'!G180="","",'DF raw data'!G180) -> 0.000141457 | D175: =IF('DF raw data'!H180="","",'DF raw data'!H180) -> -2.38413e-05 | F175: -1.64951655e-05 | G175: 0.000142164285 | H175: -2.39605065e-05 | J175: -0.00081277804 | K175: -0.0234478521 | L175: 0.008281404518 | M175: 0.2381921428 | N175: 0.001330564563
A176: =IF('DF raw data'!E181="","",'DF raw data'!E181) -> -243 | B176: =IF('DF raw data'!F181="","",'DF raw data'!F181) -> -1.39753e-05 | C176: =IF('DF raw data'!G181="","",'DF raw data'!G181) -> 0.000138524 | D176: =IF('DF raw data'!H181="","",'DF raw data'!H181) -> -2.85035e-05 | F176: -1.40451765e-05 | G176: 0.00013921662 | H176: -2.86460175e-05 | J176: -0.0008198006282 | K176: -0.02385775242 | L176: 0.008351012828 | M176: 0.2423676492 | N176: 0.001365770308
A177: =IF('DF raw data'!E182="","",'DF raw data'!E182) -> -242.5 | B177: =IF('DF raw data'!F182="","",'DF raw data'!F182) -> -1.4559e-05 | C177: =IF('DF raw data'!G182="","",'DF raw data'!G182) -> 0.000142098 | D177: =IF('DF raw data'!H182="","",'DF raw data'!H182) -> -1.65993e-05 | F177: -1.4631795e-05 | G177: 0.00014280849 | H177: -1.66822965e-05 | J177: -0.0008271165257 | K177: -0.02427131068 | L177: 0.008422417073 | M177: 0.2465788577 | N177: 0.001401580923
A178: =IF('DF raw data'!E183="","",'DF raw data'!E183) -> -242 | B178: =IF('DF raw data'!F183="","",'DF raw data'!F183) -> -1.95606e-05 | C178: =IF('DF raw data'!G183="","",'DF raw data'!G183) -> 0.000136454 | D178: =IF('DF raw data'!H183="","",'DF raw data'!H183) -> -1.67174e-05 | F178: -1.9658403e-05 | G178: 0.00013713627 | H178: -1.6800987e-05 | J178: -0.0008369457272 | K178: -0.02468978354 | L178: 0.008490985208 | M178: 0.2508243503 | N178: 0.001437979577
A179: =IF('DF raw data'!E184="","",'DF raw data'!E184) -> -241.5 | B179: =IF('DF raw data'!F184="","",'DF raw data'!F184) -> -1.10249e-05 | C179: =IF('DF raw data'!G184="","",'DF raw data'!G184) -> 0.000135666 | D179: =IF('DF raw data'!H184="","",'DF raw data'!H184) -> -2.92469e-05 | F179: -1.10800245e-05 | G179: 0.00013634433 | H179: -2.93931345e-05 | J179: -0.0008424857395 | K179: -0.02511102641 | L179: 0.008559157373 | M179: 0.255103929 | N179: 0.001474964056
A180: =IF('DF raw data'!E185="","",'DF raw data'!E185) -> -241 | B180: =IF('DF raw data'!F185="","",'DF raw data'!F185) -> -1.98806e-05 | C180: =IF('DF raw data'!G185="","",'DF raw data'!G185) -> 0.000135927 | D180: =IF('DF raw data'!H185="","",'DF raw data'!H185) -> -1.77899e-05 | F180: -1.9980003e-05 | G180: 0.000136606635 | H180: -1.78788495e-05 | J180: -0.000852475741 | K180: -0.02553726428 | L180: 0.00862746069 | M180: 0.2594176594 | N180: 0.001512543952
A181: =IF('DF raw data'!E186="","",'DF raw data'!E186) -> -240.5 | B181: =IF('DF raw data'!F186="","",'DF raw data'!F186) -> -2.14688e-05 | C181: =IF('DF raw data'!G186="","",'DF raw data'!G186) -> 0.000134636 | D181: =IF('DF raw data'!H186="","",'DF raw data'!H186) -> -3.78687e-05 | F181: -2.1576144e-05 | G181: 0.00013530918 | H181: -3.80580435e-05 | J181: -0.000863263813 | K181: -0.02596889619 | L181: 0.00869511528 | M181: 0.263765217 | N181: 0.001550719079
A182: =IF('DF raw data'!E187="","",'DF raw data'!E187) -> -240 | B182: =IF('DF raw data'!F187="","",'DF raw data'!F187) -> -1.83977e-05 | C182: =IF('DF raw data'!G187="","",'DF raw data'!G187) -> 0.000129968 | D182: =IF('DF raw data'!H187="","",'DF raw data'!H187) -> -3.03614e-05 | F182: -1.84896885e-05 | G182: 0.00013061784 | H182: -3.0513207e-05 | J182: -0.0008725086572 | K182: -0.02640515052 | L182: 0.0087604242 | M182: 0.2681454291 | N182: 0.001589472231
A183: =IF('DF raw data'!E188="","",'DF raw data'!E188) -> -239.5 | B183: =IF('DF raw data'!F188="","",'DF raw data'!F188) -> -6.92387e-06 | C183: =IF('DF raw data'!G188="","",'DF raw data'!G188) -> 0.000141064 | D183: =IF('DF raw data'!H188="","",'DF raw data'!H188) -> -2.64046e-05 | F183: -6.95848935e-06 | G183: 0.00014176932 | H183: -2.6536623e-05 | J183: -0.0008759879019 | K183: -0.02684314447 | L183: 0.00883130886 | M183: 0.2725610835 | N183: 0.001628851916
A184: =IF('DF raw data'!E189="","",'DF raw data'!E189) -> -239 | B184: =IF('DF raw data'!F189="","",'DF raw data'!F189) -> -1.46225e-05 | C184: =IF('DF raw data'!G189="","",'DF raw data'!G189) -> 0.000136598 | D184: =IF('DF raw data'!H189="","",'DF raw data'!H189) -> -1.89366e-05 | F184: -1.46956125e-05 | G184: 0.00013728099 | H184: -1.9031283e-05 | J184: -0.0008833357081 | K184: -0.02728481232 | L184: 0.008899949355 | M184: 0.2770110582 | N184: 0.001668846607
A185: =IF('DF raw data'!E190="","",'DF raw data'!E190) -> -238.5 | B185: =IF('DF raw data'!F190="","",'DF raw data'!F190) -> -1.22413e-05 | C185: =IF('DF raw data'!G190="","",'DF raw data'!G190) -> 0.000136335 | D185: =IF('DF raw data'!H190="","",'DF raw data'!H190) -> -3.16915e-05 | F185: -1.23025065e-05 | G185: 0.000137016675 | H185: -3.18499575e-05 | J185: -0.0008894869614 | K185: -0.0277295558 | L185: 0.008968457693 | M185: 0.2814952871 | N185: 0.001709458817
A186: =IF('DF raw data'!E191="","",'DF raw data'!E191) -> -238 | B186: =IF('DF raw data'!F191="","",'DF raw data'!F191) -> -2.667e-05 | C186: =IF('DF raw data'!G191="","",'DF raw data'!G191) -> 0.000138545 | D186: =IF('DF raw data'!H191="","",'DF raw data'!H191) -> -2.74824e-05 | F186: -2.680335e-05 | G186: 0.000139237725 | H186: -2.7619812e-05 | J186: -0.0009028886364 | K186: -0.02818100012 | L186: 0.009038076555 | M186: 0.2860143253 | N186: 0.001750709835
A187: =IF('DF raw data'!E192="","",'DF raw data'!E192) -> -237.5 | B187: =IF('DF raw data'!F192="","",'DF raw data'!F192) -> -1.19873e-05 | C187: =IF('DF raw data'!G192="","",'DF raw data'!G192) -> 0.000136821 | D187: =IF('DF raw data'!H192="","",'DF raw data'!H192) -> -2.78883e-05 | F187: -1.20472365e-05 | G187: 0.000137505105 | H187: -2.80277415e-05 | J187: -0.0009089122546 | K187: -0.02863545625 | L187: 0.009106829108 | M187: 0.2905677399 | N187: 0.001792590064
A188: =IF('DF raw data'!E193="","",'DF raw data'!E193) -> -237 | B188: =IF('DF raw data'!F193="","",'DF raw data'!F193) -> -9.93465e-06 | C188: =IF('DF raw data'!G193="","",'DF raw data'!G193) -> 0.000136529 | D188: =IF('DF raw data'!H193="","",'DF raw data'!H193) -> -3.09297e-05 | F188: -9.98432325e-06 | G188: 0.000137211645 | H188: -3.10843485e-05 | J188: -0.0009139044163 | K188: -0.02909240846 | L188: 0.00917543493 | M188: 0.2951554574 | N188: 0.001835101977
A189: =IF('DF raw data'!E194="","",'DF raw data'!E194) -> -236.5 | B189: =IF('DF raw data'!F194="","",'DF raw data'!F194) -> -8.26661e-06 | C189: =IF('DF raw data'!G194="","",'DF raw data'!G194) -> 0.000133633 | D189: =IF('DF raw data'!H194="","",'DF raw data'!H194) -> -3.19734e-05 | F189: -8.30794305e-06 | G189: 0.000134301165 | H189: -3.2133267e-05 | J189: -0.0009180583878 | K189: -0.02955143765 | L189: 0.009242585513 | M189: 0.2997767501 | N189: 0.001878236087
A190: =IF('DF raw data'!E195="","",'DF raw data'!E195) -> -236 | B190: =IF('DF raw data'!F195="","",'DF raw data'!F195) -> -8.71492e-06 | C190: =IF('DF raw data'!G195="","",'DF raw data'!G195) -> 0.000143353 | D190: =IF('DF raw data'!H195="","",'DF raw data'!H195) -> -3.33311e-05 | F190: -8.7584946e-06 | G190: 0.000144069765 | H190: -3.34977555e-05 | J190: -0.0009224376351 | K190: -0.03001265647 | L190: 0.009314620395 | M190: 0.3044340603 | N190: 0.001922042609
A191: =IF('DF raw data'!E196="","",'DF raw data'!E196) -> -235.5 | B191: =IF('DF raw data'!F196="","",'DF raw data'!F196) -> -9.47715e-06 | C191: =IF('DF raw data'!G196="","",'DF raw data'!G196) -> 0.000145206 | D191: =IF('DF raw data'!H196="","",'DF raw data'!H196) -> -4.36411e-05 | F191: -9.52453575e-06 | G191: 0.00014593203 | H191: -4.38593055e-05 | J191: -0.000927199903 | K191: -0.03047625642 | L191: 0.00938758641 | M191: 0.3091278535 | N191: 0.001966535848
A192: =IF('DF raw data'!E197="","",'DF raw data'!E197) -> -235 | B192: =IF('DF raw data'!F197="","",'DF raw data'!F197) -> -1.66062e-05 | C192: =IF('DF raw data'!G197="","",'DF raw data'!G197) -> 0.000136039 | D192: =IF('DF raw data'!H197="","",'DF raw data'!H197) -> -2.49096e-05 | F192: =(1-$G$1*($B$49-$G$2))*B192 -> -1.6689231e-05 | G192: 0.000136719195 | H192: -2.5034148e-05 | J192: =F192*$G$3+J191 -> -0.0009355445185 | K192: =J192*$G$3+K191 -> -0.03094402868 | L192: =G192*$G$3+L191 -> 0.009455946008 | M192: =L192*$G$3+M191 -> 0.3138558265 | N192: =(J192^2+L192^2)*$G$3+N191 -> 0.002011680927
A193: =IF('DF raw data'!E198="","",'DF raw data'!E198) -> -234.5 | B193: =IF('DF raw data'!F198="","",'DF raw data'!F198) -> -1.69875e-05 | C193: =IF('DF raw data'!G198="","",'DF raw data'!G198) -> 0.00014722 | D193: =IF('DF raw data'!H198="","",'DF raw data'!H198) -> -2.83751e-05 | F193: -1.70724375e-05 | G193: 0.0001479561 | H193: -2.85169755e-05 | J193: -0.0009440807372 | K193: -0.03141606905 | L193: 0.009529924058 | M193: 0.3186207886 | N193: 0.002057536297
A194: =IF('DF raw data'!E199="","",'DF raw data'!E199) -> -234 | B194: =IF('DF raw data'!F199="","",'DF raw data'!F199) -> -1.2375e-05 | C194: =IF('DF raw data'!G199="","",'DF raw data'!G199) -> 0.000151437 | D194: =IF('DF raw data'!H199="","",'DF raw data'!H199) -> -2.44158e-05 | F194: -1.2436875e-05 | G194: 0.000152194185 | H194: -2.4537879e-05 | J194: -0.0009502991747 | K194: -0.03189121864 | L194: 0.00960602115 | M194: 0.3234237991 | N194: 0.002104125653
A195: =IF('DF raw data'!E200="","",'DF raw data'!E200) -> -233.5 | B195: =IF('DF raw data'!F200="","",'DF raw data'!F200) -> -1.09632e-05 | C195: =IF('DF raw data'!G200="","",'DF raw data'!G200) -> 0.000156809 | D195: =IF('DF raw data'!H200="","",'DF raw data'!H200) -> -2.55305e-05 | F195: -1.1018016e-05 | G195: 0.000157593045 | H195: -2.56581525e-05 | J195: -0.0009558081827 | K195: -0.03236912273 | L195: 0.009684817673 | M195: 0.328266208 | N195: 0.002151480284
A196: =IF('DF raw data'!E201="","",'DF raw data'!E201) -> -233 | B196: =IF('DF raw data'!F201="","",'DF raw data'!F201) -> -1.36507e-05 | C196: =IF('DF raw data'!G201="","",'DF raw data'!G201) -> 0.000149811 | D196: =IF('DF raw data'!H201="","",'DF raw data'!H201) -> -3.47874e-05 | F196: -1.37189535e-05 | G196: 0.000150560055 | H196: -3.4961337e-05 | J196: -0.0009626676595 | K196: -0.03285045656 | L196: 0.0097600977 | M196: 0.3331462568 | N196: 0.002199573402
A197: =IF('DF raw data'!E202="","",'DF raw data'!E202) -> -232.5 | B197: =IF('DF raw data'!F202="","",'DF raw data'!F202) -> -3.97438e-06 | C197: =IF('DF raw data'!G202="","",'DF raw data'!G202) -> 0.000151548 | D197: =IF('DF raw data'!H202="","",'DF raw data'!H202) -> -2.74652e-05 | F197: -3.9942519e-06 | G197: 0.00015230574 | H197: -2.7602526e-05 | J197: -0.0009646647854 | K197: -0.03333278895 | L197: 0.00983625057 | M197: 0.3380643821 | N197: 0.002248414604
A198: =IF('DF raw data'!E203="","",'DF raw data'!E203) -> -232 | B198: =IF('DF raw data'!F203="","",'DF raw data'!F203) -> -7.11709e-06 | C198: =IF('DF raw data'!G203="","",'DF raw data'!G203) -> 0.000152644 | D198: =IF('DF raw data'!H203="","",'DF raw data'!H203) -> -2.59453e-05 | F198: -7.15267545e-06 | G198: 0.00015340722 | H198: -2.60750265e-05 | J198: -0.0009682411231 | K198: -0.03381690951 | L198: 0.00991295418 | M198: 0.3430208592 | N198: 0.00229801668
A199: =IF('DF raw data'!E204="","",'DF raw data'!E204) -> -231.5 | B199: =IF('DF raw data'!F204="","",'DF raw data'!F204) -> -5.12501e-06 | C199: =IF('DF raw data'!G204="","",'DF raw data'!G204) -> 0.000146698 | D199: =IF('DF raw data'!H204="","",'DF raw data'!H204) -> -3.2468e-05 | F199: -5.15063505e-06 | G199: 0.00014743149 | H199: -3.263034e-05 | J199: -0.0009708164407 | K199: -0.03430231773 | L199: 0.009986669925 | M199: 0.3480141942 | N199: 0.00234835471
A200: =IF('DF raw data'!E205="","",'DF raw data'!E205) -> -231 | B200: =IF('DF raw data'!F205="","",'DF raw data'!F205) -> -2.00042e-05 | C200: =IF('DF raw data'!G205="","",'DF raw data'!G205) -> 0.00014473 | D200: =IF('DF raw data'!H205="","",'DF raw data'!H205) -> -2.47294e-05 | F200: -2.0104221e-05 | G200: 0.00014545365 | H200: -2.4853047e-05 | J200: -0.0009808685512 | K200: -0.03479275201 | L200: 0.01005939675 | M200: 0.3530438925 | N200: 0.002399431493
A201: =IF('DF raw data'!E206="","",'DF raw data'!E206) -> -230.5 | B201: =IF('DF raw data'!F206="","",'DF raw data'!F206) -> -1.09584e-05 | C201: =IF('DF raw data'!G206="","",'DF raw data'!G206) -> 0.000148214 | D201: =IF('DF raw data'!H206="","",'DF raw data'!H206) -> -3.28885e-05 | F201: -1.1013192e-05 | G201: 0.00014895507 | H201: -3.30529425e-05 | J201: -0.0009863751472 | K201: -0.03528593958 | L201: 0.01013387429 | M201: 0.3581108297 | N201: 0.002451265665
... 1061 more rows

Sheet 10 x=0
A1: =IF('DF raw data'!I1="","",'DF raw data'!I1) -> Number of header lines | B1: =IF('DF raw data'!J1="","",'DF raw data'!J1) -> 54 | C1: =IF('DF raw data'!K1="","",'DF raw data'!K1) ->  | D1: =IF('DF raw data'!L1="","",'DF raw data'!L1) ->  | F1: T_coeff | G1: -0.001 | H1: /degC | J1: IBy total | K1: =J1262*1000 -> -1.875332979 | L1: muTm | M1: =L1262*1000 -> 67.46204743 | R1: DF ref | S1: ='10 x=-2'!S1 -> 1
A2: =IF('DF raw data'!I2="","",'DF raw data'!I2) -> Measured by | B2: =IF('DF raw data'!J2="","",'DF raw data'!J2) -> Danfysik | C2: =IF('DF raw data'!K2="","",'DF raw data'!K2) ->  | D2: =IF('DF raw data'!L2="","",'DF raw data'!L2) ->  | F2: Tcorr | G2: 20 | H2: degC | J2: JBy total | K2: =K1262 -> -15.77515357 | L2: muTm^2 | M2: =M1262 -> 20.40566513
A3: =IF('DF raw data'!I3="","",'DF raw data'!I3) -> Operator | B3: =IF('DF raw data'!J3="","",'DF raw data'!J3) -> PMHA | C3: =IF('DF raw data'!K3="","",'DF raw data'!K3) ->  | D3: =IF('DF raw data'!L3="","",'DF raw data'!L3) ->  | F3: Step | G3: =A63-A62 -> 0.5 | H3: mm | J3: PI total | K3: =N1262 -> 10446.63204 | L3: T^2mm^3
A4: =IF('DF raw data'!I4="","",'DF raw data'!I4) -> Data-time | B4: =IF('DF raw data'!J4="","",'DF raw data'!J4) -> 04-09-2024, 13:05:10 | C4: =IF('DF raw data'!K4="","",'DF raw data'!K4) ->  | D4: =IF('DF raw data'!L4="","",'DF raw data'!L4) -> 
A5: =IF('DF raw data'!I5="","",'DF raw data'!I5) -> Project | B5: =IF('DF raw data'!J5="","",'DF raw data'!J5) -> 504314 | C5: =IF('DF raw data'!K5="","",'DF raw data'!K5) ->  | D5: =IF('DF raw data'!L5="","",'DF raw data'!L5) -> 
A6: =IF('DF raw data'!I6="","",'DF raw data'!I6) -> Magnet type | B6: =IF('DF raw data'!J6="","",'DF raw data'!J6) -> Dipole | C6: =IF('DF raw data'!K6="","",'DF raw data'!K6) ->  | D6: =IF('DF raw data'!L6="","",'DF raw data'!L6) -> 
A7: =IF('DF raw data'!I7="","",'DF raw data'!I7) -> Magnet nr. | B7: =IF('DF raw data'!J7="","",'DF raw data'!J7) -> 2410093 | C7: =IF('DF raw data'!K7="","",'DF raw data'!K7) ->  | D7: =IF('DF raw data'!L7="","",'DF raw data'!L7) -> 
A8: =IF('DF raw data'!I8="","",'DF raw data'!I8) -> Meas. number | B8: =IF('DF raw data'!J8="","",'DF raw data'!J8) -> 341 | C8: =IF('DF raw data'!K8="","",'DF raw data'!K8) ->  | D8: =IF('DF raw data'!L8="","",'DF raw data'!L8) -> 
A9: =IF('DF raw data'!I9="","",'DF raw data'!I9) -> Add. info | B9: =IF('DF raw data'!J9="","",'DF raw data'!J9) -> X-alignment scan 3) | C9: =IF('DF raw data'!K9="","",'DF raw data'!K9) ->  | D9: =IF('DF raw data'!L9="","",'DF raw data'!L9) -> 
A10: =IF('DF raw data'!I10="","",'DF raw data'!I10) -> Device | B10: =IF('DF raw data'!J10="","",'DF raw data'!J10) -> (HAL) HALL-PROBE | C10: =IF('DF raw data'!K10="","",'DF raw data'!K10) ->  | D10: =IF('DF raw data'!L10="","",'DF raw data'!L10) -> 
A11: =IF('DF raw data'!I11="","",'DF raw data'!I11) -> Goal | B11: =IF('DF raw data'!J11="","",'DF raw data'!J11) -> (AXI) AXis Integral (Line, EFB) | C11: =IF('DF raw data'!K11="","",'DF raw data'!K11) ->  | D11: =IF('DF raw data'!L11="","",'DF raw data'!L11) -> 
A12: =IF('DF raw data'!I12="","",'DF raw data'!I12) -> Power supply mode | B12: =IF('DF raw data'!J12="","",'DF raw data'!J12) -> (PM) Permanent Magnet (no MPS in use) | C12: =IF('DF raw data'!K12="","",'DF raw data'!K12) ->  | D12: =IF('DF raw data'!L12="","",'DF raw data'!L12) -> 
A13: =IF('DF raw data'!I13="","",'DF raw data'!I13) -> Data format | B13: =IF('DF raw data'!J13="","",'DF raw data'!J13) -> Raw data text file | C13: =IF('DF raw data'!K13="","",'DF raw data'!K13) ->  | D13: =IF('DF raw data'!L13="","",'DF raw data'!L13) -> 
A14: =IF('DF raw data'!I14="","",'DF raw data'!I14) -> Direction of the pos. x-axis | B14: =IF('DF raw data'!J14="","",'DF raw data'!J14) -> See test program | C14: =IF('DF raw data'!K14="","",'DF raw data'!K14) ->  | D14: =IF('DF raw data'!L14="","",'DF raw data'!L14) -> 
A15: =IF('DF raw data'!I15="","",'DF raw data'!I15) -> Direction of the pos. y-axis | B15: =IF('DF raw data'!J15="","",'DF raw data'!J15) -> Vertical up | C15: =IF('DF raw data'!K15="","",'DF raw data'!K15) ->  | D15: =IF('DF raw data'!L15="","",'DF raw data'!L15) -> 
A16: =IF('DF raw data'!I16="","",'DF raw data'!I16) -> Direction of the pos. z-axis | B16: =IF('DF raw data'!J16="","",'DF raw data'!J16) -> See test program | C16: =IF('DF raw data'!K16="","",'DF raw data'!K16) ->  | D16: =IF('DF raw data'!L16="","",'DF raw data'!L16) -> 
A17: =IF('DF raw data'!I17="","",'DF raw data'!I17) -> Mapper type | B17: =IF('DF raw data'!J17="","",'DF raw data'!J17) -> Precision Hall Mapper | C17: =IF('DF raw data'!K17="","",'DF raw data'!K17) ->  | D17: =IF('DF raw data'!L17="","",'DF raw data'!L17) -> 
A18: =IF('DF raw data'!I18="","",'DF raw data'!I18) -> Mapper Danfysik Reg. Number | B18: =IF('DF raw data'!J18="","",'DF raw data'!J18) -> 2033-D (mapper 1) | C18: =IF('DF raw data'!K18="","",'DF raw data'!K18) ->  | D18: =IF('DF raw data'!L18="","",'DF raw data'!L18) -> 
A19: =IF('DF raw data'!I19="","",'DF raw data'!I19) -> Measurement consept | B19: =IF('DF raw data'!J19="","",'DF raw data'!J19) -> Square line grid | C19: =IF('DF raw data'!K19="","",'DF raw data'!K19) ->  | D19: =IF('DF raw data'!L19="","",'DF raw data'!L19) -> 
A20: =IF('DF raw data'!I20="","",'DF raw data'!I20) -> Mode | B20: =IF('DF raw data'!J20="","",'DF raw data'!J20) -> On-the-fly measurement | C20: =IF('DF raw data'!K20="","",'DF raw data'!K20) ->  | D20: =IF('DF raw data'!L20="","",'DF raw data'!L20) -> 
A21: =IF('DF raw data'!I21="","",'DF raw data'!I21) ->  | B21: =IF('DF raw data'!J21="","",'DF raw data'!J21) ->  | C21: =IF('DF raw data'!K21="","",'DF raw data'!K21) ->  | D21: =IF('DF raw data'!L21="","",'DF raw data'!L21) -> 
A22: =IF('DF raw data'!I22="","",'DF raw data'!I22) -> Probe Name | B22: =IF('DF raw data'!J22="","",'DF raw data'!J22) -> ID12_By | C22: =IF('DF raw data'!K22="","",'DF raw data'!K22) ->  | D22: =IF('DF raw data'!L22="","",'DF raw data'!L22) -> 
A23: =IF('DF raw data'!I23="","",'DF raw data'!I23) -> Probe Type | B23: =IF('DF raw data'!J23="","",'DF raw data'!J23) -> DF_ID_3D_Bxyz | C23: =IF('DF raw data'!K23="","",'DF raw data'!K23) ->  | D23: =IF('DF raw data'!L23="","",'DF raw data'!L23) -> 
A24: =IF('DF raw data'!I24="","",'DF raw data'!I24) -> Probe Danfysik Reg. Number | B24: =IF('DF raw data'!J24="","",'DF raw data'!J24) -> 2277 | C24: =IF('DF raw data'!K24="","",'DF raw data'!K24) ->  | D24: =IF('DF raw data'!L24="","",'DF raw data'!L24) -> 
A25: =IF('DF raw data'!I25="","",'DF raw data'!I25) -> Probe Axis | B25: =IF('DF raw data'!J25="","",'DF raw data'!J25) -> By | C25: =IF('DF raw data'!K25="","",'DF raw data'!K25) ->  | D25: =IF('DF raw data'!L25="","",'DF raw data'!L25) -> 
A26: =IF('DF raw data'!I26="","",'DF raw data'!I26) -> Probe Current Supply | B26: =IF('DF raw data'!J26="","",'DF raw data'!J26) -> 1825-D | C26: =IF('DF raw data'!K26="","",'DF raw data'!K26) ->  | D26: =IF('DF raw data'!L26="","",'DF raw data'!L26) -> 
A27: =IF('DF raw data'!I27="","",'DF raw data'!I27) -> Probe Gain Correction | B27: =IF('DF raw data'!J27="","",'DF raw data'!J27) -> 0.99616 | C27: =IF('DF raw data'!K27="","",'DF raw data'!K27) ->  | D27: =IF('DF raw data'!L27="","",'DF raw data'!L27) -> 
A28: =IF('DF raw data'!I28="","",'DF raw data'!I28) -> Probe Offset Correction | B28: =IF('DF raw data'!J28="","",'DF raw data'!J28) -> 0.0027367 | C28: =IF('DF raw data'!K28="","",'DF raw data'!K28) ->  | D28: =IF('DF raw data'!L28="","",'DF raw data'!L28) -> 
A29: =IF('DF raw data'!I29="","",'DF raw data'!I29) -> DVM Number | B29: =IF('DF raw data'!J29="","",'DF raw data'!J29) -> 2 | C29: =IF('DF raw data'!K29="","",'DF raw data'!K29) ->  | D29: =IF('DF raw data'!L29="","",'DF raw data'!L29) -> 
A30: =IF('DF raw data'!I30="","",'DF raw data'!I30) -> DVM Type | B30: =IF('DF raw data'!J30="","",'DF raw data'!J30) -> K2701 | C30: =IF('DF raw data'!K30="","",'DF raw data'!K30) ->  | D30: =IF('DF raw data'!L30="","",'DF raw data'!L30) -> 
A31: =IF('DF raw data'!I31="","",'DF raw data'!I31) -> DVM Danfysik Reg. Number | B31: =IF('DF raw data'!J31="","",'DF raw data'!J31) -> 1743-D | C31: =IF('DF raw data'!K31="","",'DF raw data'!K31) ->  | D31: =IF('DF raw data'!L31="","",'DF raw data'!L31) -> 
A32: =IF('DF raw data'!I32="","",'DF raw data'!I32) -> Probe Name | B32: =IF('DF raw data'!J32="","",'DF raw data'!J32) -> ID12_Bx | C32: =IF('DF raw data'!K32="","",'DF raw data'!K32) ->  | D32: =IF('DF raw data'!L32="","",'DF raw data'!L32) -> 
A33: =IF('DF raw data'!I33="","",'DF raw data'!I33) -> Probe Type | B33: =IF('DF raw data'!J33="","",'DF raw data'!J33) -> DF_ID_3D_Bxyz | C33: =IF('DF raw data'!K33="","",'DF raw data'!K33) ->  | D33: =IF('DF raw data'!L33="","",'DF raw data'!L33) -> 
A34: =IF('DF raw data'!I34="","",'DF raw data'!I34) -> Probe Danfysik Reg. Number | B34: =IF('DF raw data'!J34="","",'DF raw data'!J34) -> 2277 | C34: =IF('DF raw data'!K34="","",'DF raw data'!K34) ->  | D34: =IF('DF raw data'!L34="","",'DF raw data'!L34) -> 
A35: =IF('DF raw data'!I35="","",'DF raw data'!I35) -> Probe Axis | B35: =IF('DF raw data'!J35="","",'DF raw data'!J35) -> Bx | C35: =IF('DF raw data'!K35="","",'DF raw data'!K35) ->  | D35: =IF('DF raw data'!L35="","",'DF raw data'!L35) -> 
A36: =IF('DF raw data'!I36="","",'DF raw data'!I36) -> Probe Current Supply | B36: =IF('DF raw data'!J36="","",'DF raw data'!J36) -> 1825-D | C36: =IF('DF raw data'!K36="","",'DF raw data'!K36) ->  | D36: =IF('DF raw data'!L36="","",'DF raw data'!L36) -> 
A37: =IF('DF raw data'!I37="","",'DF raw data'!I37) -> Probe Gain Correction | B37: =IF('DF raw data'!J37="","",'DF raw data'!J37) -> 1 | C37: =IF('DF raw data'!K37="","",'DF raw data'!K37) ->  | D37: =IF('DF raw data'!L37="","",'DF raw data'!L37) -> 
A38: =IF('DF raw data'!I38="","",'DF raw data'!I38) -> Probe Offset Correction | B38: =IF('DF raw data'!J38="","",'DF raw data'!J38) -> -0.1757 | C38: =IF('DF raw data'!K38="","",'DF raw data'!K38) ->  | D38: =IF('DF raw data'!L38="","",'DF raw data'!L38) -> 
A39: =IF('DF raw data'!I39="","",'DF raw data'!I39) -> DVM Number | B39: =IF('DF raw data'!J39="","",'DF raw data'!J39) -> 3 | C39: =IF('DF raw data'!K39="","",'DF raw data'!K39) ->  | D39: =IF('DF raw data'!L39="","",'DF raw data'!L39) -> 
A40: =IF('DF raw data'!I40="","",'DF raw data'!I40) -> DVM Type | B40: =IF('DF raw data'!J40="","",'DF raw data'!J40) -> K2701 | C40: =IF('DF raw data'!K40="","",'DF raw data'!K40) ->  | D40: =IF('DF raw data'!L40="","",'DF raw data'!L40) -> 
A41: =IF('DF raw data'!I41="","",'DF raw data'!I41) -> DVM Danfysik Reg. Number | B41: =IF('DF raw data'!J41="","",'DF raw data'!J41) -> 1744-D | C41: =IF('DF raw data'!K41="","",'DF raw data'!K41) ->  | D41: =IF('DF raw data'!L41="","",'DF raw data'!L41) -> 
A42: =IF('DF raw data'!I42="","",'DF raw data'!I42) -> Probe Name | B42: =IF('DF raw data'!J42="","",'DF raw data'!J42) -> ID12_Bz | C42: =IF('DF raw data'!K42="","",'DF raw data'!K42) ->  | D42: =IF('DF raw data'!L42="","",'DF raw data'!L42) -> 
A43: =IF('DF raw data'!I43="","",'DF raw data'!I43) -> Probe Type | B43: =IF('DF raw data'!J43="","",'DF raw data'!J43) -> DF_ID_3D_Bxyz | C43: =IF('DF raw data'!K43="","",'DF raw data'!K43) ->  | D43: =IF('DF raw data'!L43="","",'DF raw data'!L43) -> 
A44: =IF('DF raw data'!I44="","",'DF raw data'!I44) -> Probe Danfysik Reg. Number | B44: =IF('DF raw data'!J44="","",'DF raw data'!J44) -> 2277 | C44: =IF('DF raw data'!K44="","",'DF raw data'!K44) ->  | D44: =IF('DF raw data'!L44="","",'DF raw data'!L44) -> 
A45: =IF('DF raw data'!I45="","",'DF raw data'!I45) -> Probe Axis | B45: =IF('DF raw data'!J45="","",'DF raw data'!J45) -> Bz | C45: =IF('DF raw data'!K45="","",'DF raw data'!K45) ->  | D45: =IF('DF raw data'!L45="","",'DF raw data'!L45) -> 
A46: =IF('DF raw data'!I46="","",'DF raw data'!I46) -> Probe Current Supply | B46: =IF('DF raw data'!J46="","",'DF raw data'!J46) -> 1825-D | C46: =IF('DF raw data'!K46="","",'DF raw data'!K46) ->  | D46: =IF('DF raw data'!L46="","",'DF raw data'!L46) -> 
A47: =IF('DF raw data'!I47="","",'DF raw data'!I47) -> Probe Gain Correction | B47: =IF('DF raw data'!J47="","",'DF raw data'!J47) -> 1 | C47: =IF('DF raw data'!K47="","",'DF raw data'!K47) ->  | D47: =IF('DF raw data'!L47="","",'DF raw data'!L47) -> 
A48: =IF('DF raw data'!I53="","",'DF raw data'!I53) -> PS-Gap: | B48: =IF('DF raw data'!J53="","",'DF raw data'!J53) -> 10 | C48: =IF('DF raw data'!K53="","",'DF raw data'!K53) ->  | D48: =IF('DF raw data'!L53="","",'DF raw data'!L53) -> 
A49: =IF('DF raw data'!I54="","",'DF raw data'!I54) -> PS-Temperature: | B49: =IF('DF raw data'!J54="","",'DF raw data'!J54) -> 25 | C49: =IF('DF raw data'!K54="","",'DF raw data'!K54) ->  | D49: =IF('DF raw data'!L54="","",'DF raw data'!L54) -> 
A50: =IF('DF raw data'!I55="","",'DF raw data'!I55) -> PS-Encoder: | B50: =IF('DF raw data'!J55="","",'DF raw data'!J55) -> 19.9702 | C50: =IF('DF raw data'!K55="","",'DF raw data'!K55) ->  | D50: =IF('DF raw data'!L55="","",'DF raw data'!L55) -> 
A51: =IF('DF raw data'!I56="","",'DF raw data'!I56) ->  | B51: =IF('DF raw data'!J56="","",'DF raw data'!J56) ->  | C51: =IF('DF raw data'!K56="","",'DF raw data'!K56) ->  | D51: =IF('DF raw data'!L56="","",'DF raw data'!L56) -> 
A52: =IF('DF raw data'!I57="","",'DF raw data'!I57) -> Monitor-Index | B52: =IF('DF raw data'!J57="","",'DF raw data'!J57) -> [1,1,4] | C52: =IF('DF raw data'!K57="","",'DF raw data'!K57) ->  | D52: =IF('DF raw data'!L57="","",'DF raw data'!L57) -> 
A53: =IF('DF raw data'!I58="","",'DF raw data'!I58) ->  | B53: =IF('DF raw data'!J58="","",'DF raw data'!J58) ->  | C53: =IF('DF raw data'!K58="","",'DF raw data'!K58) ->  | D53: =IF('DF raw data'!L58="","",'DF raw data'!L58) -> 
A54: =IF('DF raw data'!I59="","",'DF raw data'!I59) -> Time [s] | B54: =IF('DF raw data'!J59="","",'DF raw data'!J59) -> Y [mm] | C54: =IF('DF raw data'!K59="","",'DF raw data'!K59) -> X [mm] | D54: =IF('DF raw data'!L59="","",'DF raw data'!L59) -> Nominal current [A]
A55: =IF('DF raw data'!I60="","",'DF raw data'!I60) ->  | B55: =IF('DF raw data'!J60="","",'DF raw data'!J60) ->  | C55: =IF('DF raw data'!K60="","",'DF raw data'!K60) ->  | D55: =IF('DF raw data'!L60="","",'DF raw data'!L60) -> 
A56: =IF('DF raw data'!I61="","",'DF raw data'!I61) -> 208.7 | B56: =IF('DF raw data'!J61="","",'DF raw data'!J61) -> 31.46 | C56: =IF('DF raw data'!K61="","",'DF raw data'!K61) -> 301.8 | D56: =IF('DF raw data'!L61="","",'DF raw data'!L61) -> 0
A57: =IF('DF raw data'!I62="","",'DF raw data'!I62) ->  | B57: =IF('DF raw data'!J62="","",'DF raw data'!J62) ->  | C57: =IF('DF raw data'!K62="","",'DF raw data'!K62) ->  | D57: =IF('DF raw data'!L62="","",'DF raw data'!L62) -> 
A58: =IF('DF raw data'!I63="","",'DF raw data'!I63) -> Measurement-Index | B58: =IF('DF raw data'!J63="","",'DF raw data'!J63) -> [1,1,1201,2] | C58: =IF('DF raw data'!K63="","",'DF raw data'!K63) ->  | D58: =IF('DF raw data'!L63="","",'DF raw data'!L63) -> 
A59: =IF('DF raw data'!I64="","",'DF raw data'!I64) ->  | B59: =IF('DF raw data'!J64="","",'DF raw data'!J64) ->  | C59: =IF('DF raw data'!K64="","",'DF raw data'!K64) ->  | D59: =IF('DF raw data'!L64="","",'DF raw data'!L64) -> 
A60: =IF('DF raw data'!I65="","",'DF raw data'!I65) -> Z [mm] | B60: By [T] | C60: Bx [T] | D60: Bz [T] | F60: By_corr | G60: Bx_corr | H60: Bz_corr | J60: Iy | K60: Jy | L60: Ix | M60: Jx | N60: PI
A62: =IF('DF raw data'!I67="","",'DF raw data'!I67) -> -300 | B62: =IF('DF raw data'!J67="","",'DF raw data'!J67) -> -8.07461e-06 | C62: =IF('DF raw data'!K67="","",'DF raw data'!K67) -> 0.000137842 | D62: =IF('DF raw data'!L67="","",'DF raw data'!L67) -> -1.98033e-05 | F62: =(1-$G$1*($B$49))*B62 -> -8.27647525e-06 | G62: =(1-$G$1*($B$49-$G$2))*C62 -> 0.00013853121 | H62: =(1-$G$1*($B$49-$G$2))*D62 -> -1.99023165e-05 | J62: =F62*$G$3 -> -4.138237625e-06 | K62: =J62*$G$3 -> -2.069118812e-06 | L62: =G62*$G$3 -> 6.9265605e-05 | M62: =L62*$G$3 -> 3.46328025e-05 | N62: =(J62^2+L62^2)*$G$3 -> 2.407424523e-09
A63: =IF('DF raw data'!I68="","",'DF raw data'!I68) -> -299.5 | B63: =IF('DF raw data'!J68="","",'DF raw data'!J68) -> -1.28196e-05 | C63: =IF('DF raw data'!K68="","",'DF raw data'!K68) -> 0.000142525 | D63: =IF('DF raw data'!L68="","",'DF raw data'!L68) -> -1.93756e-05 | F63: =(1-$G$1*($B$49-$G$2))*B63 -> -1.2883698e-05 | G63: =(1-$G$1*($B$49-$G$2))*C63 -> 0.000143237625 | H63: -1.9472478e-05 | J63: =F63*$G$3+J62 -> -1.058008662e-05 | K63: =J63*$G$3+K62 -> -7.359162125e-06 | L63: =G63*$G$3+L62 -> 0.0001408844175 | M63: =L63*$G$3+M62 -> 0.0001050750112 | N63: =(J63^2+L63^2)*$G$3+N62 -> 1.238760319e-08
A64: =IF('DF raw data'!I69="","",'DF raw data'!I69) -> -299 | B64: =IF('DF raw data'!J69="","",'DF raw data'!J69) -> -2.00646e-05 | C64: =IF('DF raw data'!K69="","",'DF raw data'!K69) -> 0.000145907 | D64: =IF('DF raw data'!L69="","",'DF raw data'!L69) -> -1.85171e-05 | F64: =(1-$G$1*($B$49-$G$2))*B64 -> -2.0164923e-05 | G64: 0.000146636535 | H64: -1.86096855e-05 | J64: =F64*$G$3+J63 -> -2.066254812e-05 | K64: =J64*$G$3+K63 -> -1.769043619e-05 | L64: =G64*$G$3+L63 -> 0.000214202685 | M64: =L64*$G$3+M63 -> 0.0002121763537 | N64: =(J64^2+L64^2)*$G$3+N63 -> 3.554246877e-08
A65: =IF('DF raw data'!I70="","",'DF raw data'!I70) -> -298.5 | B65: =IF('DF raw data'!J70="","",'DF raw data'!J70) -> -1.16016e-05 | C65: =IF('DF raw data'!K70="","",'DF raw data'!K70) -> 0.000144886 | D65: =IF('DF raw data'!L70="","",'DF raw data'!L70) -> -1.80526e-05 | F65: -1.1659608e-05 | G65: 0.00014561043 | H65: -1.8142863e-05 | J65: -2.649235212e-05 | K65: -3.093661225e-05 | L65: 0.0002870079 | M65: 0.0003556803037 | N65: 7.708015846e-08
A66: =IF('DF raw data'!I71="","",'DF raw data'!I71) -> -298 | B66: =IF('DF raw data'!J71="","",'DF raw data'!J71) -> -1.24359e-05 | C66: =IF('DF raw data'!K71="","",'DF raw data'!K71) -> 0.00014733 | D66: =IF('DF raw data'!L71="","",'DF raw data'!L71) -> -1.79094e-05 | F66: -1.24980795e-05 | G66: 0.00014806665 | H66: -1.7998947e-05 | J66: -3.274139187e-05 | K66: -4.730730819e-05 | L66: 0.000361041225 | M66: 0.0005362009162 | N66: 1.427915409e-07
A67: =IF('DF raw data'!I72="","",'DF raw data'!I72) -> -297.5 | B67: =IF('DF raw data'!J72="","",'DF raw data'!J72) -> -1.8269e-05 | C67: =IF('DF raw data'!K72="","",'DF raw data'!K72) -> 0.000137041 | D67: =IF('DF raw data'!L72="","",'DF raw data'!L72) -> -1.77648e-05 | F67: -1.8360345e-05 | G67: 0.000137726205 | H67: -1.7853624e-05 | J67: -4.192156437e-05 | K67: -6.826809037e-05 | L67: 0.0004299043275 | M67: 0.00075115308 | N67: 2.360791151e-07
A68: =IF('DF raw data'!I73="","",'DF raw data'!I73) -> -297 | B68: =IF('DF raw data'!J73="","",'DF raw data'!J73) -> -1.92143e-06 | C68: =IF('DF raw data'!K73="","",'DF raw data'!K73) -> 0.000138391 | D68: =IF('DF raw data'!L73="","",'DF raw data'!L73) -> -1.79242e-05 | F68: -1.93103715e-06 | G68: 0.000139082955 | H68: -1.8013821e-05 | J68: -4.288708295e-05 | K68: -8.971163185e-05 | L68: 0.000499445805 | M68: 0.001000875982 | N68: 3.617218221e-07
A69: =IF('DF raw data'!I74="","",'DF raw data'!I74) -> -296.5 | B69: =IF('DF raw data'!J74="","",'DF raw data'!J74) -> -1.55761e-05 | C69: =IF('DF raw data'!K74="","",'DF raw data'!K74) -> 0.000147376 | D69: =IF('DF raw data'!L74="","",'DF raw data'!L74) -> -1.79881e-05 | F69: -1.56539805e-05 | G69: 0.00014811288 | H69: -1.80780405e-05 | J69: -5.07140732e-05 | K69: -0.0001150686684 | L69: 0.000573502245 | M69: 0.001287627105 | N69: 5.274601932e-07
A70: =IF('DF raw data'!I75="","",'DF raw data'!I75) -> -296 | B70: =IF('DF raw data'!J75="","",'DF raw data'!J75) -> -7.69159e-06 | C70: =IF('DF raw data'!K75="","",'DF raw data'!K75) -> 0.000134988 | D70: =IF('DF raw data'!L75="","",'DF raw data'!L75) -> -1.78798e-05 | F70: -7.73004795e-06 | G70: 0.00013566294 | H70: -1.7969199e-05 | J70: -5.457909717e-05 | K70: -0.000142358217 | L70: 0.000641333715 | M70: 0.001608293962 | N70: 7.346040991e-07
A71: =IF('DF raw data'!I76="","",'DF raw data'!I76) -> -295.5 | B71: =IF('DF raw data'!J76="","",'DF raw data'!J76) -> -5.76787e-06 | C71: =IF('DF raw data'!K76="","",'DF raw data'!K76) -> 0.000136613 | D71: =IF('DF raw data'!L76="","",'DF raw data'!L76) -> -1.79386e-05 | F71: -5.79670935e-06 | G71: 0.000137296065 | H71: -1.8028293e-05 | J71: -5.747745185e-05 | K71: -0.000171096943 | L71: 0.0007099817475 | M71: 0.001963284836 | N71: 9.882929688e-07
A72: =IF('DF raw data'!I77="","",'DF raw data'!I77) -> -295 | B72: =IF('DF raw data'!J77="","",'DF raw data'!J77) -> -5.89645e-06 | C72: =IF('DF raw data'!K77="","",'DF raw data'!K77) -> 0.000137164 | D72: =IF('DF raw data'!L77="","",'DF raw data'!L77) -> -1.80175e-05 | F72: -5.92593225e-06 | G72: 0.00013784982 | H72: -1.81075875e-05 | J72: -6.044041797e-05 | K72: -0.0002013171519 | L72: 0.0007789066575 | M72: 0.002352738165 | N72: 1.293467281e-06
A73: =IF('DF raw data'!I78="","",'DF raw data'!I78) -> -294.5 | B73: =IF('DF raw data'!J78="","",'DF raw data'!J78) -> -1.05116e-05 | C73: =IF('DF raw data'!K78="","",'DF raw data'!K78) -> 0.00013658 | D73: =IF('DF raw data'!L78="","",'DF raw data'!L78) -> -1.80328e-05 | F73: -1.0564158e-05 | G73: 0.0001372629 | H73: -1.8122964e-05 | J73: -6.572249697e-05 | K73: -0.0002341784004 | L73: 0.0008475381075 | M73: 0.002776507219 | N73: 1.654787427e-06
A74: =IF('DF raw data'!I79="","",'DF raw data'!I79) -> -294 | B74: =IF('DF raw data'!J79="","",'DF raw data'!J79) -> 4.49024e-06 | C74: =IF('DF raw data'!K79="","",'DF raw data'!K79) -> 0.000149985 | D74: =IF('DF raw data'!L79="","",'DF raw data'!L79) -> -1.85685e-05 | F74: 4.5126912e-06 | G74: 0.000150734925 | H74: -1.86613425e-05 | J74: -6.346615137e-05 | K74: -0.0002659114761 | L74: 0.00092290557 | M74: 0.003237960004 | N74: 2.082678748e-06
A75: =IF('DF raw data'!I80="","",'DF raw data'!I80) -> -293.5 | B75: =IF('DF raw data'!J80="","",'DF raw data'!J80) -> -1.28189e-05 | C75: =IF('DF raw data'!K80="","",'DF raw data'!K80) -> 0.000150969 | D75: =IF('DF raw data'!L80="","",'DF raw data'!L80) -> -1.90937e-05 | F75: -1.28829945e-05 | G75: 0.000151723845 | H75: -1.91891685e-05 | J75: -6.990764862e-05 | K75: -0.0003008653004 | L75: 0.0009987674925 | M75: 0.00373734375 | N75: 2.58389054e-06
A76: =IF('DF raw data'!I81="","",'DF raw data'!I81) -> -293 | B76: =IF('DF raw data'!J81="","",'DF raw data'!J81) -> -6.60084e-06 | C76: =IF('DF raw data'!K81="","",'DF raw data'!K81) -> 0.000144573 | D76: =IF('DF raw data'!L81="","",'DF raw data'!L81) -> -1.90822e-05 | F76: -6.6338442e-06 | G76: 0.000145295865 | H76: -1.9177611e-05 | J76: -7.322457072e-05 | K76: -0.0003374775858 | L76: 0.001071415425 | M76: 0.004273051463 | N76: 3.160536965e-06
A77: =IF('DF raw data'!I82="","",'DF raw data'!I82) -> -292.5 | B77: =IF('DF raw data'!J82="","",'DF raw data'!J82) -> -1.51911e-05 | C77: =IF('DF raw data'!K82="","",'DF raw data'!K82) -> 0.000154215 | D77: =IF('DF raw data'!L82="","",'DF raw data'!L82) -> -1.85014e-05 | F77: -1.52670555e-05 | G77: 0.000154986075 | H77: -1.8593907e-05 | J77: -8.085809847e-05 | K77: -0.000377906635 | L77: 0.001148908463 | M77: 0.004847505694 | N77: 3.823801309e-06
A78: =IF('DF raw data'!I83="","",'DF raw data'!I83) -> -292 | B78: =IF('DF raw data'!J83="","",'DF raw data'!J83) -> -1.30771e-05 | C78: =IF('DF raw data'!K83="","",'DF raw data'!K83) -> 0.000153613 | D78: =IF('DF raw data'!L83="","",'DF raw data'!L83) -> -1.79514e-05 | F78: -1.31424855e-05 | G78: 0.000154381065 | H78: -1.8041157e-05 | J78: -8.742934122e-05 | K78: -0.0004216213056 | L78: 0.001226098995 | M78: 0.005460555191 | N78: 4.579282627e-06
A79: =IF('DF raw data'!I84="","",'DF raw data'!I84) -> -291.5 | B79: =IF('DF raw data'!J84="","",'DF raw data'!J84) -> -6.66115e-06 | C79: =IF('DF raw data'!K84="","",'DF raw data'!K84) -> 0.000145075 | D79: =IF('DF raw data'!L84="","",'DF raw data'!L84) -> -2.43739e-05 | F79: -6.69445575e-06 | G79: 0.000145800375 | H79: -2.44957695e-05 | J79: -9.07765691e-05 | K79: -0.0004670095902 | L79: 0.001298999183 | M79: 0.006110054783 | N79: 5.427102257e-06
A80: =IF('DF raw data'!I85="","",'DF raw data'!I85) -> -291 | B80: =IF('DF raw data'!J85="","",'DF raw data'!J85) -> -1.09579e-05 | C80: =IF('DF raw data'!K85="","",'DF raw data'!K85) -> 0.000139535 | D80: =IF('DF raw data'!L85="","",'DF raw data'!L85) -> -2.3091e-05 | F80: -1.10126895e-05 | G80: 0.000140232675 | H80: -2.3206455e-05 | J80: -9.628291385e-05 | K80: -0.0005151510471 | L80: 0.00136911552 | M80: 0.006794612543 | N80: 6.368976111e-06
A81: =IF('DF raw data'!I86="","",'DF raw data'!I86) -> -290.5 | B81: =IF('DF raw data'!J86="","",'DF raw data'!J86) -> -5.88875e-06 | C81: =IF('DF raw data'!K86="","",'DF raw data'!K86) -> 0.000138434 | D81: =IF('DF raw data'!L86="","",'DF raw data'!L86) -> -2.92424e-05 | F81: -5.91819375e-06 | G81: 0.00013912617 | H81: -2.9388612e-05 | J81: -9.924201072e-05 | K81: -0.0005647720525 | L81: 0.001438678605 | M81: 0.007513951845 | N81: 7.408798663e-06
A82: =IF('DF raw data'!I87="","",'DF raw data'!I87) -> -290 | B82: =IF('DF raw data'!J87="","",'DF raw data'!J87) -> -8.00392e-06 | C82: =IF('DF raw data'!K87="","",'DF raw data'!K87) -> 0.000132341 | D82: =IF('DF raw data'!L87="","",'DF raw data'!L87) -> -3.03717e-05 | F82: -8.0439396e-06 | G82: 0.000133002705 | H82: -3.05235585e-05 | J82: -0.0001032639805 | K82: -0.0006164040427 | L82: 0.001505179958 | M82: 0.008266541824 | N82: 8.54691374e-06
A83: =IF('DF raw data'!I88="","",'DF raw data'!I88) -> -289.5 | B83: =IF('DF raw data'!J88="","",'DF raw data'!J88) -> -1.39618e-05 | C83: =IF('DF raw data'!K88="","",'DF raw data'!K88) -> 0.000139949 | D83: =IF('DF raw data'!L88="","",'DF raw data'!L88) -> -3.60652e-05 | F83: -1.4031609e-05 | G83: 0.000140648745 | H83: -3.6245526e-05 | J83: -0.000110279785 | K83: -0.0006715439353 | L83: 0.00157550433 | M83: 0.009054293989 | N83: 9.794101503e-06
A84: =IF('DF raw data'!I89="","",'DF raw data'!I89) -> -289 | B84: =IF('DF raw data'!J89="","",'DF raw data'!J89) -> -1.55102e-05 | C84: =IF('DF raw data'!K89="","",'DF raw data'!K89) -> 0.000142011 | D84: =IF('DF raw data'!L89="","",'DF raw data'!L89) -> -2.26967e-05 | F84: -1.5587751e-05 | G84: 0.000142721055 | H84: -2.28101835e-05 | J84: -0.0001180736605 | K84: -0.0007305807655 | L84: 0.001646864857 | M84: 0.009877726418 | N84: 1.115715413e-05
A85: =IF('DF raw data'!I90="","",'DF raw data'!I90) -> -288.5 | B85: =IF('DF raw data'!J90="","",'DF raw data'!J90) -> -3.20276e-06 | C85: =IF('DF raw data'!K90="","",'DF raw data'!K90) -> 0.000141375 | D85: =IF('DF raw data'!L90="","",'DF raw data'!L90) -> -1.89023e-05 | F85: -3.2187738e-06 | G85: 0.000142081875 | H85: -1.89968115e-05 | J85: -0.0001196830474 | K85: -0.0007904222892 | L85: 0.001717905795 | M85: 0.01073667932 | N85: 1.26399163e-05
A86: =IF('DF raw data'!I91="","",'DF raw data'!I91) -> -288 | B86: =IF('DF raw data'!J91="","",'DF raw data'!J91) -> -1.24386e-05 | C86: =IF('DF raw data'!K91="","",'DF raw data'!K91) -> 0.000139731 | D86: =IF('DF raw data'!L91="","",'DF raw data'!L91) -> -1.39702e-05 | F86: -1.2500793e-05 | G86: 0.000140429655 | H86: -1.4040051e-05 | J86: -0.0001259334439 | K86: -0.0008533890112 | L86: 0.001788120622 | M86: 0.01163073963 | N86: 1.42465336e-05
A87: =IF('DF raw data'!I92="","",'DF raw data'!I92) -> -287.5 | B87: =IF('DF raw data'!J92="","",'DF raw data'!J92) -> -1.3961e-05 | C87: =IF('DF raw data'!K92="","",'DF raw data'!K92) -> 0.000140693 | D87: =IF('DF raw data'!L92="","",'DF raw data'!L92) -> -3.7181e-05 | F87: -1.4030805e-05 | G87: 0.000141396465 | H87: -3.7366905e-05 | J87: -0.0001329488464 | K87: -0.0009198634344 | L87: 0.001858818855 | M87: 0.01256014905 | N87: 1.598297507e-05
A88: =IF('DF raw data'!I93="","",'DF raw data'!I93) -> -287 | B88: =IF('DF raw data'!J93="","",'DF raw data'!J93) -> -1.78793e-05 | C88: =IF('DF raw data'!K93="","",'DF raw data'!K93) -> 0.000140125 | D88: =IF('DF raw data'!L93="","",'DF raw data'!L93) -> -2.75623e-05 | F88: -1.79686965e-05 | G88: 0.000140825625 | H88: -2.77001115e-05 | J88: -0.0001419331947 | K88: -0.0009908300317 | L88: 0.001929231667 | M88: 0.01352476489 | N88: 1.785401499e-05
A89: =IF('DF raw data'!I94="","",'DF raw data'!I94) -> -286.5 | B89: =IF('DF raw data'!J94="","",'DF raw data'!J94) -> -1.34543e-05 | C89: =IF('DF raw data'!K94="","",'DF raw data'!K94) -> 0.000136099 | D89: =IF('DF raw data'!L94="","",'DF raw data'!L94) -> -2.76863e-05 | F89: -1.35215715e-05 | G89: 0.000136779495 | H89: -2.78247315e-05 | J89: -0.0001486939804 | K89: -0.001065177022 | L89: 0.001997621415 | M89: 0.0145235756 | N89: 1.98603156e-05
A90: =IF('DF raw data'!I95="","",'DF raw data'!I95) -> -286 | B90: =IF('DF raw data'!J95="","",'DF raw data'!J95) -> -1.35836e-05 | C90: =IF('DF raw data'!K95="","",'DF raw data'!K95) -> 0.000136444 | D90: =IF('DF raw data'!L95="","",'DF raw data'!L95) -> -2.79658e-05 | F90: -1.3651518e-05 | G90: 0.00013712622 | H90: -2.8105629e-05 | J90: -0.0001555197394 | K90: -0.001142936892 | L90: 0.002066184525 | M90: 0.01555666786 | N90: 2.200696804e-05
A91: =IF('DF raw data'!I96="","",'DF raw data'!I96) -> -285.5 | B91: =IF('DF raw data'!J96="","",'DF raw data'!J96) -> -2.10849e-05 | C91: =IF('DF raw data'!K96="","",'DF raw data'!K96) -> 0.000133818 | D91: =IF('DF raw data'!L96="","",'DF raw data'!L96) -> -2.43844e-05 | F91: -2.11903245e-05 | G91: 0.00013448709 | H91: -2.4506322e-05 | J91: -0.0001661149017 | K91: -0.001225994343 | L91: 0.00213342807 | M91: 0.01662338189 | N91: 2.429652279e-05
A92: =IF('DF raw data'!I97="","",'DF raw data'!I97) -> -285 | B92: =IF('DF raw data'!J97="","",'DF raw data'!J97) -> -1.66662e-05 | C92: =IF('DF raw data'!K97="","",'DF raw data'!K97) -> 0.000144577 | D92: =IF('DF raw data'!L97="","",'DF raw data'!L97) -> -1.97637e-05 | F92: -1.6749531e-05 | G92: 0.000145299885 | H92: -1.98625185e-05 | J92: -0.0001744896672 | K92: -0.001313239176 | L92: 0.002206078012 | M92: 0.0177264209 | N92: 2.674513621e-05
A93: =IF('DF raw data'!I98="","",'DF raw data'!I98) -> -284.5 | B93: =IF('DF raw data'!J98="","",'DF raw data'!J98) -> -1.31942e-05 | C93: =IF('DF raw data'!K98="","",'DF raw data'!K98) -> 0.000150478 | D93: =IF('DF raw data'!L98="","",'DF raw data'!L98) -> -3.34005e-05 | F93: -1.3260171e-05 | G93: 0.00015123039 | H93: -3.35675025e-05 | J93: -0.0001811197527 | K93: -0.001403799052 | L93: 0.002281693207 | M93: 0.0188672675 | N93: 2.936460034e-05
A94: =IF('DF raw data'!I99="","",'DF raw data'!I99) -> -284 | B94: =IF('DF raw data'!J99="","",'DF raw data'!J99) -> -1.35835e-05 | C94: =IF('DF raw data'!K99="","",'DF raw data'!K99) -> 0.000141954 | D94: =IF('DF raw data'!L99="","",'DF raw data'!L99) -> -2.81703e-05 | F94: -1.36514175e-05 | G94: 0.00014266377 | H94: -2.83111515e-05 | J94: -0.0001879454614 | K94: -0.001497771783 | L94: 0.002353025092 | M94: 0.02004378005 | N94: 3.215062563e-05
A95: =IF('DF raw data'!I100="","",'DF raw data'!I100) -> -283.5 | B95: =IF('DF raw data'!J100="","",'DF raw data'!J100) -> -1.39622e-05 | C95: =IF('DF raw data'!K100="","",'DF raw data'!K100) -> 0.000143381 | D95: =IF('DF raw data'!L100="","",'DF raw data'!L100) -> -3.52028e-05 | F95: -1.4032011e-05 | G95: 0.000144097905 | H95: -3.5378814e-05 | J95: -0.0001949614669 | K95: -0.001595252517 | L95: 0.002425074045 | M95: 0.02125631707 | N95: 3.511012268e-05
A96: =IF('DF raw data'!I101="","",'DF raw data'!I101) -> -283 | B96: =IF('DF raw data'!J101="","",'DF raw data'!J101) -> -5.70124e-06 | C96: =IF('DF raw data'!K101="","",'DF raw data'!K101) -> 0.000144982 | D96: =IF('DF raw data'!L101="","",'DF raw data'!L101) -> -2.23579e-05 | F96: -5.7297462e-06 | G96: 0.00014570691 | H96: -2.24696895e-05 | J96: -0.00019782634 | K96: -0.001694165687 | L96: 0.0024979275 | M96: 0.02250528082 | N96: 3.824951121e-05
A97: =IF('DF raw data'!I102="","",'DF raw data'!I102) -> -282.5 | B97: =IF('DF raw data'!J102="","",'DF raw data'!J102) -> -2.14095e-05 | C97: =IF('DF raw data'!K102="","",'DF raw data'!K102) -> 0.000143744 | D97: =IF('DF raw data'!L102="","",'DF raw data'!L102) -> -1.84379e-05 | F97: -2.15165475e-05 | G97: 0.00014446272 | H97: -1.85300895e-05 | J97: -0.0002085846138 | K97: -0.001798457994 | L97: 0.00257015886 | M97: 0.02379036025 | N97: 4.157412326e-05
A98: =IF('DF raw data'!I103="","",'DF raw data'!I103) -> -282 | B98: =IF('DF raw data'!J103="","",'DF raw data'!J103) -> -2.30111e-05 | C98: =IF('DF raw data'!K103="","",'DF raw data'!K103) -> 0.000143962 | D98: =IF('DF raw data'!L103="","",'DF raw data'!L103) -> -2.31217e-05 | F98: -2.31261555e-05 | G98: 0.00014468181 | H98: -2.32373085e-05 | J98: -0.0002201476915 | K98: -0.001908531839 | L98: 0.002642499765 | M98: 0.02511161013 | N98: 4.508975827e-05
A99: =IF('DF raw data'!I104="","",'DF raw data'!I104) -> -281.5 | B99: =IF('DF raw data'!J104="","",'DF raw data'!J104) -> -1.0313e-05 | C99: =IF('DF raw data'!K104="","",'DF raw data'!K104) -> 0.00014317 | D99: =IF('DF raw data'!L104="","",'DF raw data'!L104) -> -2.77268e-05 | F99: -1.0364565e-05 | G99: 0.00014388585 | H99: -2.7865434e-05 | J99: -0.000225329974 | K99: -0.002021196826 | L99: 0.00271444269 | M99: 0.02646883148 | N99: 4.879924462e-05
A100: =IF('DF raw data'!I105="","",'DF raw data'!I105) -> -281 | B100: =IF('DF raw data'!J105="","",'DF raw data'!J105) -> -9.28636e-06 | C100: =IF('DF raw data'!K105="","",'DF raw data'!K105) -> 0.000143507 | D100: =IF('DF raw data'!L105="","",'DF raw data'!L105) -> -3.05813e-05 | F100: -9.3327918e-06 | G100: 0.000144224535 | H100: -3.07342065e-05 | J100: -0.0002299963699 | K100: -0.002136195011 | L100: 0.002786554957 | M100: 0.02786210896 | N100: 5.270813805e-05
A101: =IF('DF raw data'!I106="","",'DF raw data'!I106) -> -280.5 | B101: =IF('DF raw data'!J106="","",'DF raw data'!J106) -> -2.72424e-05 | C101: =IF('DF raw data'!K106="","",'DF raw data'!K106) -> 0.000144663 | D101: =IF('DF raw data'!L106="","",'DF raw data'!L106) -> -1.96951e-05 | F101: -2.7378612e-05 | G101: 0.000145386315 | H101: -1.97935755e-05 | J101: -0.0002436856759 | K101: -0.002258037849 | L101: 0.002859248115 | M101: 0.02929173301 | N101: 5.68254793e-05
A102: =IF('DF raw data'!I107="","",'DF raw data'!I107) -> -280 | B102: =IF('DF raw data'!J107="","",'DF raw data'!J107) -> -1.92249e-05 | C102: =IF('DF raw data'!K107="","",'DF raw data'!K107) -> 0.000146036 | D102: =IF('DF raw data'!L107="","",'DF raw data'!L107) -> -2.85346e-05 | F102: -1.93210245e-05 | G102: 0.00014676618 | H102: -2.8677273e-05 | J102: -0.0002533461882 | K102: -0.002384710943 | L102: 0.002932631205 | M102: 0.03075804862 | N102: 6.115773434e-05
A103: =IF('DF raw data'!I108="","",'DF raw data'!I108) -> -279.5 | B103: =IF('DF raw data'!J108="","",'DF raw data'!J108) -> -1.21713e-05 | C103: =IF('DF raw data'!K108="","",'DF raw data'!K108) -> 0.000146945 | D103: =IF('DF raw data'!L108="","",'DF raw data'!L108) -> -2.86023e-05 | F103: -1.22321565e-05 | G103: 0.000147679725 | H103: -2.87453115e-05 | J103: -0.0002594622664 | K103: -0.002514442077 | L103: 0.003006471067 | M103: 0.03226128415 | N103: 6.571082881e-05
A104: =IF('DF raw data'!I109="","",'DF raw data'!I109) -> -279 | B104: =IF('DF raw data'!J109="","",'DF raw data'!J109) -> -1.90374e-05 | C104: =IF('DF raw data'!K109="","",'DF raw data'!K109) -> 0.000150007 | D104: =IF('DF raw data'!L109="","",'DF raw data'!L109) -> -2.13017e-05 | F104: -1.9132587e-05 | G104: 0.000150757035 | H104: -2.14082085e-05 | J104: -0.0002690285599 | K104: -0.002648956356 | L104: 0.003081849585 | M104: 0.03380220894 | N104: 7.049591543e-05
A105: =IF('DF raw data'!I110="","",'DF raw data'!I110) -> -278.5 | B105: =IF('DF raw data'!J110="","",'DF raw data'!J110) -> -1.57666e-05 | C105: =IF('DF raw data'!K110="","",'DF raw data'!K110) -> 0.000156383 | D105: =IF('DF raw data'!L110="","",'DF raw data'!L110) -> -2.07139e-05 | F105: -1.5845433e-05 | G105: 0.000157164915 | H105: -2.08174695e-05 | J105: -0.0002769512764 | K105: -0.002787431995 | L105: 0.003160432042 | M105: 0.03538242496 | N105: 7.552843178e-05
A106: =IF('DF raw data'!I111="","",'DF raw data'!I111) -> -278 | B106: =IF('DF raw data'!J111="","",'DF raw data'!J111) -> -1.73727e-05 | C106: =IF('DF raw data'!K111="","",'DF raw data'!K111) -> 0.000158684 | D106: =IF('DF raw data'!L111="","",'DF raw data'!L111) -> -1.7859e-05 | F106: -1.74595635e-05 | G106: 0.00015947742 | H106: -1.7948295e-05 | J106: -0.0002856810582 | K106: -0.002930272524 | L106: 0.003240170752 | M106: 0.03700251034 | N106: 8.081859187e-05
A107: =IF('DF raw data'!I112="","",'DF raw data'!I112) -> -277.5 | B107: =IF('DF raw data'!J112="","",'DF raw data'!J112) -> -1.33157e-05 | C107: =IF('DF raw data'!K112="","",'DF raw data'!K112) -> 0.0001516 | D107: =IF('DF raw data'!L112="","",'DF raw data'!L112) -> -4.3751e-05 | F107: -1.33822785e-05 | G107: 0.000152358 | H107: -4.3969755e-05 | J107: -0.0002923721974 | K107: -0.003076458622 | L107: 0.003316349752 | M107: 0.03866068522 | N107: 8.636042046e-05
A108: =IF('DF raw data'!I113="","",'DF raw data'!I113) -> -277 | B108: =IF('DF raw data'!J113="","",'DF raw data'!J113) -> -1.76858e-05 | C108: =IF('DF raw data'!K113="","",'DF raw data'!K113) -> 0.000148377 | D108: =IF('DF raw data'!L113="","",'DF raw data'!L113) -> -2.90645e-05 | F108: -1.7774229e-05 | G108: 0.000149118885 | H108: -2.92098225e-05 | J108: -0.0003012593119 | K108: -0.003227088278 | L108: 0.003390909195 | M108: 0.04035613981 | N108: 9.215493163e-05
A109: =IF('DF raw data'!I114="","",'DF raw data'!I114) -> -276.5 | B109: =IF('DF raw data'!J114="","",'DF raw data'!J114) -> -2.02501e-05 | C109: =IF('DF raw data'!K114="","",'DF raw data'!K114) -> 0.000152909 | D109: =IF('DF raw data'!L114="","",'DF raw data'!L114) -> -2.71079e-05 | F109: -2.03513505e-05 | G109: 0.000153673545 | H109: -2.72434395e-05 | J109: -0.0003114349872 | K109: -0.003382805772 | L109: 0.003467745967 | M109: 0.0420900128 | N109: 9.821605855e-05
A110: =IF('DF raw data'!I115="","",'DF raw data'!I115) -> -276 | B110: =IF('DF raw data'!J115="","",'DF raw data'!J115) -> -2.60204e-05 | C110: =IF('DF raw data'!K115="","",'DF raw data'!K115) -> 0.00014733 | D110: =IF('DF raw data'!L115="","",'DF raw data'!L115) -> -2.91909e-05 | F110: -2.6150502e-05 | G110: 0.00014806665 | H110: -2.93368545e-05 | J110: -0.0003245102382 | K110: -0.003545060891 | L110: 0.003541779292 | M110: 0.04386090244 | N110: 0.0001045408123
A111: =IF('DF raw data'!I116="","",'DF raw data'!I116) -> -275.5 | B111: =IF('DF raw data'!J116="","",'DF raw data'!J116) -> -2.39714e-05 | C111: =IF('DF raw data'!K116="","",'DF raw data'!K116) -> 0.000146224 | D111: =IF('DF raw data'!L116="","",'DF raw data'!L116) -> -2.21331e-05 | F111: -2.4091257e-05 | G111: 0.00014695512 | H111: -2.22437655e-05 | J111: -0.0003365558667 | K111: -0.003713338824 | L111: 0.003615256852 | M111: 0.04566853087 | N111: 0.0001111324883
A112: =IF('DF raw data'!I117="","",'DF raw data'!I117) -> -275 | B112: =IF('DF raw data'!J117="","",'DF raw data'!J117) -> -7.75403e-06 | C112: =IF('DF raw data'!K117="","",'DF raw data'!K117) -> 0.000148255 | D112: =IF('DF raw data'!L117="","",'DF raw data'!L117) -> -2.03561e-05 | F112: -7.79280015e-06 | G112: 0.000148996275 | H112: -2.04578805e-05 | J112: -0.0003404522667 | K112: -0.003883564958 | L112: 0.00368975499 | M112: 0.04751340837 | N112: 0.0001179975881
A113: =IF('DF raw data'!I118="","",'DF raw data'!I118) -> -274.5 | B113: =IF('DF raw data'!J118="","",'DF raw data'!J118) -> -1.50617e-05 | C113: =IF('DF raw data'!K118="","",'DF raw data'!K118) -> 0.000148157 | D113: =IF('DF raw data'!L118="","",'DF raw data'!L118) -> -2.02921e-05 | F113: -1.51370085e-05 | G113: 0.000148897785 | H113: -2.03935605e-05 | J113: -0.000348020771 | K113: -0.004057575343 | L113: 0.003764203882 | M113: 0.04939551031 | N113: 0.0001251427627
A114: =IF('DF raw data'!I119="","",'DF raw data'!I119) -> -274 | B114: =IF('DF raw data'!J119="","",'DF raw data'!J119) -> -2.0518e-05 | C114: =IF('DF raw data'!K119="","",'DF raw data'!K119) -> 0.000154806 | D114: =IF('DF raw data'!L119="","",'DF raw data'!L119) -> -1.19853e-05 | F114: -2.062059e-05 | G114: 0.00015558003 | H114: -1.20452265e-05 | J114: -0.000358331066 | K114: -0.004236740876 | L114: 0.003841993897 | M114: 0.05131650726 | N114: 0.0001325874219
A115: =IF('DF raw data'!I120="","",'DF raw data'!I120) -> -273.5 | B115: =IF('DF raw data'!J120="","",'DF raw data'!J120) -> -1.32616e-05 | C115: =IF('DF raw data'!K120="","",'DF raw data'!K120) -> 0.000157389 | D115: =IF('DF raw data'!L120="","",'DF raw data'!L120) -> -2.81352e-05 | F115: -1.3327908e-05 | G115: 0.000158175945 | H115: -2.8275876e-05 | J115: -0.00036499502 | K115: -0.004419238386 | L115: 0.00392108187 | M115: 0.05327704819 | N115: 0.0001403414741
A116: =IF('DF raw data'!I121="","",'DF raw data'!I121) -> -273 | B116: =IF('DF raw data'!J121="","",'DF raw data'!J121) -> -1.49342e-05 | C116: =IF('DF raw data'!K121="","",'DF raw data'!K121) -> 0.000148746 | D116: =IF('DF raw data'!L121="","",'DF raw data'!L121) -> -2.11524e-05 | F116: -1.5008871e-05 | G116: 0.00014948973 | H116: -2.1258162e-05 | J116: -0.0003724994555 | K116: -0.004605488114 | L116: 0.003995826735 | M116: 0.05527496156 | N116: 0.0001483941676
A117: =IF('DF raw data'!I122="","",'DF raw data'!I122) -> -272.5 | B117: =IF('DF raw data'!J122="","",'DF raw data'!J122) -> -1.4101e-05 | C117: =IF('DF raw data'!K122="","",'DF raw data'!K122) -> 0.000145538 | D117: =IF('DF raw data'!L122="","",'DF raw data'!L122) -> -1.893e-05 | F117: -1.4171505e-05 | G117: 0.00014626569 | H117: -1.902465e-05 | J117: -0.000379585208 | K117: -0.004795280718 | L117: 0.00406895958 | M117: 0.05730944135 | N117: 0.0001567444261
A118: =IF('DF raw data'!I123="","",'DF raw data'!I123) -> -272 | B118: =IF('DF raw data'!J123="","",'DF raw data'!J123) -> -6.73422e-06 | C118: =IF('DF raw data'!K123="","",'DF raw data'!K123) -> 0.000145547 | D118: =IF('DF raw data'!L123="","",'DF raw data'!L123) -> -1.12471e-05 | F118: -6.7678911e-06 | G118: 0.000146274735 | H118: -1.13033355e-05 | J118: -0.0003829691535 | K118: -0.004986765295 | L118: 0.004142096947 | M118: 0.05938048982 | N118: 0.0001653962424
A119: =IF('DF raw data'!I124="","",'DF raw data'!I124) -> -271.5 | B119: =IF('DF raw data'!J124="","",'DF raw data'!J124) -> -1.89089e-05 | C119: =IF('DF raw data'!K124="","",'DF raw data'!K124) -> 0.000147767 | D119: =IF('DF raw data'!L124="","",'DF raw data'!L124) -> -1.89444e-05 | F119: -1.90034445e-05 | G119: 0.000148505835 | H119: -1.9039122e-05 | J119: -0.0003924708758 | K119: -0.005183000733 | L119: 0.004216349865 | M119: 0.06148866475 | N119: 0.0001743620622
A120: =IF('DF raw data'!I125="","",'DF raw data'!I125) -> -271 | B120: =IF('DF raw data'!J125="","",'DF raw data'!J125) -> -1.10838e-05 | C120: =IF('DF raw data'!K125="","",'DF raw data'!K125) -> 0.000150795 | D120: =IF('DF raw data'!L125="","",'DF raw data'!L125) -> -2.70103e-05 | F120: -1.1139219e-05 | G120: 0.000151548975 | H120: -2.71453515e-05 | J120: -0.0003980404853 | K120: -0.005382020975 | L120: 0.004292124352 | M120: 0.06363472693 | N120: 0.000183652446
A121: =IF('DF raw data'!I126="","",'DF raw data'!I126) -> -270.5 | B121: =IF('DF raw data'!J126="","",'DF raw data'!J126) -> -1.33307e-05 | C121: =IF('DF raw data'!K126="","",'DF raw data'!K126) -> 0.000156749 | D121: =IF('DF raw data'!L126="","",'DF raw data'!L126) -> -2.04865e-05 | F121: -1.33973535e-05 | G121: 0.000157532745 | H121: -2.05889325e-05 | J121: -0.000404739162 | K121: -0.005584390556 | L121: 0.004370890725 | M121: 0.06582017229 | N121: 0.0001932866958
A122: =IF('DF raw data'!I127="","",'DF raw data'!I127) -> -270 | B122: =IF('DF raw data'!J127="","",'DF raw data'!J127) -> -1.47432e-05 | C122: =IF('DF raw data'!K127="","",'DF raw data'!K127) -> 0.00015718 | D122: =IF('DF raw data'!L127="","",'DF raw data'!L127) -> -1.93239e-05 | F122: -1.4816916e-05 | G122: 0.0001579659 | H122: -1.94205195e-05 | J122: -0.00041214762 | K122: -0.005790464366 | L122: 0.004449873675 | M122: 0.06804510913 | N122: 0.0002032723165
A123: =IF('DF raw data'!I128="","",'DF raw data'!I128) -> -269.5 | B123: =IF('DF raw data'!J128="","",'DF raw data'!J128) -> -1.69107e-05 | C123: =IF('DF raw data'!K128="","",'DF raw data'!K128) -> 0.000155566 | D123: =IF('DF raw data'!L128="","",'DF raw data'!L128) -> -3.56289e-05 | F123: -1.69952535e-05 | G123: 0.00015634383 | H123: -3.58070445e-05 | J123: -0.0004206452468 | K123: -0.00600078699 | L123: 0.00452804559 | M123: 0.07030913193 | N123: 0.0002136123861
A124: =IF('DF raw data'!I129="","",'DF raw data'!I129) -> -269 | B124: =IF('DF raw data'!J129="","",'DF raw data'!J129) -> -6.98389e-06 | C124: =IF('DF raw data'!K129="","",'DF raw data'!K129) -> 0.0001606 | D124: =IF('DF raw data'!L129="","",'DF raw data'!L129) -> -2.17538e-05 | F124: -7.01880945e-06 | G124: 0.000161403 | H124: -2.1862569e-05 | J124: -0.0004241546515 | K124: -0.006212864316 | L124: 0.00460874709 | M124: 0.07261350547 | N124: 0.0002243226146
A125: =IF('DF raw data'!I130="","",'DF raw data'!I130) -> -268.5 | B125: =IF('DF raw data'!J130="","",'DF raw data'!J130) -> -1.30038e-05 | C125: =IF('DF raw data'!K130="","",'DF raw data'!K130) -> 0.000151447 | D125: =IF('DF raw data'!L130="","",'DF raw data'!L130) -> -3.00267e-05 | F125: -1.3068819e-05 | G125: 0.000152204235 | H125: -3.01768335e-05 | J125: -0.000430689061 | K125: -0.006428208846 | L125: 0.004684849207 | M125: 0.07495593007 | N125: 0.0002353892671
A126: =IF('DF raw data'!I131="","",'DF raw data'!I131) -> -268 | B126: =IF('DF raw data'!J131="","",'DF raw data'!J131) -> -1.07671e-05 | C126: =IF('DF raw data'!K131="","",'DF raw data'!K131) -> 0.000153418 | D126: =IF('DF raw data'!L131="","",'DF raw data'!L131) -> -2.08295e-05 | F126: -1.08209355e-05 | G126: 0.00015418509 | H126: -2.09336475e-05 | J126: -0.0004360995288 | K126: -0.006646258611 | L126: 0.004761941752 | M126: 0.07733690095 | N126: 0.0002468224032
A127: =IF('DF raw data'!I132="","",'DF raw data'!I132) -> -267.5 | B127: =IF('DF raw data'!J132="","",'DF raw data'!J132) -> -5.12925e-06 | C127: =IF('DF raw data'!K132="","",'DF raw data'!K132) -> 0.000147956 | D127: =IF('DF raw data'!L132="","",'DF raw data'!L132) -> -1.40522e-05 | F127: -5.15489625e-06 | G127: 0.00014869578 | H127: -1.4122461e-05 | J127: -0.0004386769769 | K127: -0.006865597099 | L127: 0.004836289642 | M127: 0.07975504577 | N127: 0.0002586134707
A128: =IF('DF raw data'!I133="","",'DF raw data'!I133) -> -267 | B128: =IF('DF raw data'!J133="","",'DF raw data'!J133) -> -1.96795e-05 | C128: =IF('DF raw data'!K133="","",'DF raw data'!K133) -> 0.000144503 | D128: =IF('DF raw data'!L133="","",'DF raw data'!L133) -> -1.99088e-05 | F128: =(1-$G$1*($B$49-$G$2))*B128 -> -1.97778975e-05 | G128: 0.000145225515 | H128: -2.0008344e-05 | J128: =F128*$G$3+J127 -> -0.0004485659256 | K128: =J128*$G$3+K127 -> -0.007089880062 | L128: =G128*$G$3+L127 -> 0.0049089024 | M128: =L128*$G$3+M127 -> 0.08220949697 | N128: =(J128^2+L128^2)*$G$3+N127 -> 0.0002707627377
A129: =IF('DF raw data'!I134="","",'DF raw data'!I134) -> -266.5 | B129: =IF('DF raw data'!J134="","",'DF raw data'!J134) -> -2.16683e-05 | C129: =IF('DF raw data'!K134="","",'DF raw data'!K134) -> 0.000150045 | D129: =IF('DF raw data'!L134="","",'DF raw data'!L134) -> -1.46993e-05 | F129: -2.17766415e-05 | G129: 0.000150795225 | H129: -1.47727965e-05 | J129: -0.0004594542464 | K129: -0.007319607185 | L129: 0.004984300012 | M129: 0.08470164698 | N129: 0.0002832899102
A130: =IF('DF raw data'!I135="","",'DF raw data'!I135) -> -266 | B130: =IF('DF raw data'!J135="","",'DF raw data'!J135) -> -1.76959e-05 | C130: =IF('DF raw data'!K135="","",'DF raw data'!K135) -> 0.00015578 | D130: =IF('DF raw data'!L135="","",'DF raw data'!L135) -> -1.38209e-05 | F130: -1.77843795e-05 | G130: 0.0001565589 | H130: -1.38900045e-05 | J130: -0.0004683464361 | K130: -0.007553780403 | L130: 0.005062579462 | M130: 0.08723293671 | N130: 0.0002962144398
A131: =IF('DF raw data'!I136="","",'DF raw data'!I136) -> -265.5 | B131: =IF('DF raw data'!J136="","",'DF raw data'!J136) -> -9.79819e-06 | C131: =IF('DF raw data'!K136="","",'DF raw data'!K136) -> 0.000155537 | D131: =IF('DF raw data'!L136="","",'DF raw data'!L136) -> -3.07602e-05 | F131: -9.84718095e-06 | G131: 0.000156314685 | H131: -3.0914001e-05 | J131: -0.0004732700266 | K131: -0.007790415416 | L131: 0.005140736805 | M131: 0.08980330511 | N131: 0.0003095400195
A132: =IF('DF raw data'!I137="","",'DF raw data'!I137) -> -265 | B132: =IF('DF raw data'!J137="","",'DF raw data'!J137) -> -8.84456e-06 | C132: =IF('DF raw data'!K137="","",'DF raw data'!K137) -> 0.000144106 | D132: =IF('DF raw data'!L137="","",'DF raw data'!L137) -> -1.96498e-05 | F132: -8.8887828e-06 | G132: 0.00014482653 | H132: -1.9748049e-05 | J132: -0.000477714418 | K132: -0.008029272625 | L132: 0.00521315007 | M132: 0.09240988015 | N132: 0.0003232425918
A133: =IF('DF raw data'!I138="","",'DF raw data'!I138) -> -264.5 | B133: =IF('DF raw data'!J138="","",'DF raw data'!J138) -> -1.08969e-05 | C133: =IF('DF raw data'!K138="","",'DF raw data'!K138) -> 0.000148608 | D133: =IF('DF raw data'!L138="","",'DF raw data'!L138) -> -1.68486e-05 | F133: -1.09513845e-05 | G133: 0.00014935104 | H133: -1.6932843e-05 | J133: -0.0004831901103 | K133: -0.008270867681 | L133: 0.00528782559 | M133: 0.09505379294 | N133: 0.0003373398779
A134: =IF('DF raw data'!I139="","",'DF raw data'!I139) -> -264 | B134: =IF('DF raw data'!J139="","",'DF raw data'!J139) -> -1.56345e-05 | C134: =IF('DF raw data'!K139="","",'DF raw data'!K139) -> 0.000144727 | D134: =IF('DF raw data'!L139="","",'DF raw data'!L139) -> -2.88874e-05 | F134: -1.57126725e-05 | G134: 0.000145450635 | H134: -2.9031837e-05 | J134: -0.0004910464465 | K134: -0.008516390904 | L134: 0.005360550907 | M134: 0.0977340684 | N134: 0.0003518281942
A135: =IF('DF raw data'!I140="","",'DF raw data'!I140) -> -263.5 | B135: =IF('DF raw data'!J140="","",'DF raw data'!J140) -> -1.4869e-05 | C135: =IF('DF raw data'!K140="","",'DF raw data'!K140) -> 0.000154132 | D135: =IF('DF raw data'!L140="","",'DF raw data'!L140) -> -2.08373e-05 | F135: -1.4943345e-05 | G135: 0.00015490266 | H135: -2.09414865e-05 | J135: -0.000498518119 | K135: -0.008765649963 | L135: 0.005438002237 | M135: 0.1004530695 | N135: 0.0003667383885
A136: =IF('DF raw data'!I141="","",'DF raw data'!I141) -> -263 | B136: =IF('DF raw data'!J141="","",'DF raw data'!J141) -> -1.49899e-05 | C136: =IF('DF raw data'!K141="","",'DF raw data'!K141) -> 0.000160841 | D136: =IF('DF raw data'!L141="","",'DF raw data'!L141) -> -3.42559e-05 | F136: -1.50648495e-05 | G136: 0.000161645205 | H136: -3.44271795e-05 | J136: -0.0005060505438 | K136: -0.009018675235 | L136: 0.00551882484 | M136: 0.1032124819 | N136: 0.0003820951459
A137: =IF('DF raw data'!I142="","",'DF raw data'!I142) -> -262.5 | B137: =IF('DF raw data'!J142="","",'DF raw data'!J142) -> -1.78774e-05 | C137: =IF('DF raw data'!K142="","",'DF raw data'!K142) -> 0.000158318 | D137: =IF('DF raw data'!L142="","",'DF raw data'!L142) -> -2.80233e-05 | F137: -1.7966787e-05 | G137: 0.00015910959 | H137: -2.81634165e-05 | J137: -0.0005150339373 | K137: -0.009276192204 | L137: 0.005598379635 | M137: 0.1060116718 | N137: 0.0003978987032
A138: =IF('DF raw data'!I143="","",'DF raw data'!I143) -> -262 | B138: =IF('DF raw data'!J143="","",'DF raw data'!J143) -> -1.89086e-05 | C138: =IF('DF raw data'!K143="","",'DF raw data'!K143) -> 0.000149312 | D138: =IF('DF raw data'!L143="","",'DF raw data'!L143) -> -2.21465e-05 | F138: -1.9003143e-05 | G138: 0.00015005856 | H138: -2.22572325e-05 | J138: -0.0005245355088 | K138: -0.009538459958 | L138: 0.005673408915 | M138: 0.1088483762 | N138: 0.0004141300563
A139: =IF('DF raw data'!I144="","",'DF raw data'!I144) -> -261.5 | B139: =IF('DF raw data'!J144="","",'DF raw data'!J144) -> -1.63483e-05 | C139: =IF('DF raw data'!K144="","",'DF raw data'!K144) -> 0.000144134 | D139: =IF('DF raw data'!L144="","",'DF raw data'!L144) -> -1.3494e-05 | F139: -1.64300415e-05 | G139: 0.00014485467 | H139: -1.356147e-05 | J139: -0.0005327505295 | K139: -0.009804835223 | L139: 0.00574583625 | M139: 0.1117212943 | N139: 0.000430779285
A140: =IF('DF raw data'!I145="","",'DF raw data'!I145) -> -261 | B140: =IF('DF raw data'!J145="","",'DF raw data'!J145) -> -1.87205e-05 | C140: =IF('DF raw data'!K145="","",'DF raw data'!K145) -> 0.000143938 | D140: =IF('DF raw data'!L145="","",'DF raw data'!L145) -> -1.54288e-05 | F140: -1.88141025e-05 | G140: 0.00014465769 | H140: -1.5505944e-05 | J140: -0.0005421575808 | K140: -0.01007591401 | L140: 0.005818165095 | M140: 0.1146303769 | N140: 0.0004478517749
A141: =IF('DF raw data'!I146="","",'DF raw data'!I146) -> -260.5 | B141: =IF('DF raw data'!J146="","",'DF raw data'!J146) -> -5.96291e-06 | C141: =IF('DF raw data'!K146="","",'DF raw data'!K146) -> 0.000143374 | D141: =IF('DF raw data'!L146="","",'DF raw data'!L146) -> -1.34274e-05 | F141: -5.99272455e-06 | G141: 0.00014409087 | H141: -1.3494537e-05 | J141: -0.000545153943 | K141: -0.01034849098 | L141: 0.00589021053 | M141: 0.1175754821 | N141: 0.0004653476614
A142: =IF('DF raw data'!I147="","",'DF raw data'!I147) -> -260 | B142: =IF('DF raw data'!J147="","",'DF raw data'!J147) -> -8.32848e-06 | C142: =IF('DF raw data'!K147="","",'DF raw data'!K147) -> 0.000149654 | D142: =IF('DF raw data'!L147="","",'DF raw data'!L147) -> -2.45294e-05 | F142: -8.3701224e-06 | G142: 0.00015040227 | H142: -2.4652047e-05 | J142: -0.0005493390042 | K142: -0.01062316049 | L142: 0.005965411665 | M142: 0.120558188 | N142: 0.0004832916162
A143: =IF('DF raw data'!I148="","",'DF raw data'!I148) -> -259.5 | B143: =IF('DF raw data'!J148="","",'DF raw data'!J148) -> -6.27339e-06 | C143: =IF('DF raw data'!K148="","",'DF raw data'!K148) -> 0.00014982 | D143: =IF('DF raw data'!L148="","",'DF raw data'!L148) -> -2.91216e-05 | F143: -6.30475695e-06 | G143: 0.0001505691 | H143: -2.9267208e-05 | J143: -0.0005524913827 | K143: -0.01089940618 | L143: 0.006040696215 | M143: 0.1235785361 | N143: 0.0005016892449
A144: =IF('DF raw data'!I149="","",'DF raw data'!I149) -> -259 | B144: =IF('DF raw data'!J149="","",'DF raw data'!J149) -> -2.03765e-05 | C144: =IF('DF raw data'!K149="","",'DF raw data'!K149) -> 0.00015347 | D144: =IF('DF raw data'!L149="","",'DF raw data'!L149) -> -3.26363e-05 | F144: -2.04783825e-05 | G144: 0.00015423735 | H144: -3.27994815e-05 | J144: -0.000562730574 | K144: -0.01118077147 | L144: 0.00611781489 | M144: 0.1266374435 | N144: 0.0005205614073
A145: =IF('DF raw data'!I150="","",'DF raw data'!I150) -> -258.5 | B145: =IF('DF raw data'!J150="","",'DF raw data'!J150) -> -2.12783e-05 | C145: =IF('DF raw data'!K150="","",'DF raw data'!K150) -> 0.000150586 | D145: =IF('DF raw data'!L150="","",'DF raw data'!L150) -> -2.3089e-05 | F145: -2.13846915e-05 | G145: 0.00015133893 | H145: -2.3204445e-05 | J145: -0.0005734229197 | K145: -0.01146748293 | L145: 0.006193484355 | M145: 0.1297341857 | N145: 0.0005399054385
A146: =IF('DF raw data'!I151="","",'DF raw data'!I151) -> -258 | B146: =IF('DF raw data'!J151="","",'DF raw data'!J151) -> -1.8133e-05 | C146: =IF('DF raw data'!K151="","",'DF raw data'!K151) -> 0.000147811 | D146: =IF('DF raw data'!L151="","",'DF raw data'!L151) -> -3.20257e-05 | F146: -1.8223665e-05 | G146: 0.000148550055 | H146: -3.21858285e-05 | J146: -0.0005825347522 | K146: -0.0117587503 | L146: 0.006267759382 | M146: 0.1328680654 | N146: 0.0005597175157
A147: =IF('DF raw data'!I152="","",'DF raw data'!I152) -> -257.5 | B147: =IF('DF raw data'!J152="","",'DF raw data'!J152) -> -1.01837e-05 | C147: =IF('DF raw data'!K152="","",'DF raw data'!K152) -> 0.000148415 | D147: =IF('DF raw data'!L152="","",'DF raw data'!L152) -> -2.93251e-05 | F147: -1.02346185e-05 | G147: 0.000149157075 | H147: -2.94717255e-05 | J147: -0.0005876520615 | K147: -0.01205257633 | L147: 0.00634233792 | M147: 0.1360392344 | N147: 0.0005800028083
A148: =IF('DF raw data'!I153="","",'DF raw data'!I153) -> -257 | B148: =IF('DF raw data'!J153="","",'DF raw data'!J153) -> -1.05084e-05 | C148: =IF('DF raw data'!K153="","",'DF raw data'!K153) -> 0.000145942 | D148: =IF('DF raw data'!L153="","",'DF raw data'!L153) -> -2.43666e-05 | F148: -1.0560942e-05 | G148: 0.00014667171 | H148: -2.4488433e-05 | J148: -0.0005929325325 | K148: -0.0123490426 | L148: 0.006415673775 | M148: 0.1392470712 | N148: 0.0006007590278
A149: =IF('DF raw data'!I154="","",'DF raw data'!I154) -> -256.5 | B149: =IF('DF raw data'!J154="","",'DF raw data'!J154) -> -1.39578e-05 | C149: =IF('DF raw data'!K154="","",'DF raw data'!K154) -> 0.000154542 | D149: =IF('DF raw data'!L154="","",'DF raw data'!L154) -> -4.19842e-05 | F149: -1.4027589e-05 | G149: 0.00015531471 | H149: -4.2194121e-05 | J149: -0.000599946327 | K149: -0.01264901576 | L149: 0.00649333113 | M149: 0.1424937368 | N149: 0.0006220206702
A150: =IF('DF raw data'!I155="","",'DF raw data'!I155) -> -256 | B150: =IF('DF raw data'!J155="","",'DF raw data'!J155) -> -7.29789e-06 | C150: =IF('DF raw data'!K155="","",'DF raw data'!K155) -> 0.000156057 | D150: =IF('DF raw data'!L155="","",'DF raw data'!L155) -> -3.20589e-05 | F150: -7.33437945e-06 | G150: 0.000156837285 | H150: -3.22191945e-05 | J150: -0.0006036135167 | K150: -0.01295082252 | L150: 0.006571749772 | M150: 0.1457796117 | N150: 0.0006437967923
A151: =IF('DF raw data'!I156="","",'DF raw data'!I156) -> -255.5 | B151: =IF('DF raw data'!J156="","",'DF raw data'!J156) -> -1.88327e-05 | C151: =IF('DF raw data'!K156="","",'DF raw data'!K156) -> 0.000147838 | D151: =IF('DF raw data'!L156="","",'DF raw data'!L156) -> -3.7341e-05 | F151: -1.89268635e-05 | G151: 0.00014857719 | H151: -3.7527705e-05 | J151: -0.0006130769485 | K151: -0.01325736099 | L151: 0.006646038367 | M151: 0.1491026309 | N151: 0.000666069637
A152: =IF('DF raw data'!I157="","",'DF raw data'!I157) -> -255 | B152: =IF('DF raw data'!J157="","",'DF raw data'!J157) -> -3.00583e-05 | C152: =IF('DF raw data'!K157="","",'DF raw data'!K157) -> 0.000145786 | D152: =IF('DF raw data'!L157="","",'DF raw data'!L157) -> -3.14233e-05 | F152: -3.02085915e-05 | G152: 0.00014651493 | H152: -3.15804165e-05 | J152: -0.0006281812442 | K152: -0.01357145162 | L152: 0.006719295832 | M152: 0.1524622788 | N152: 0.0006888414111
A153: =IF('DF raw data'!I158="","",'DF raw data'!I158) -> -254.5 | B153: =IF('DF raw data'!J158="","",'DF raw data'!J158) -> -2.73702e-05 | C153: =IF('DF raw data'!K158="","",'DF raw data'!K158) -> 0.000154305 | D153: =IF('DF raw data'!L158="","",'DF raw data'!L158) -> -1.98529e-05 | F153: -2.7507051e-05 | G153: 0.000155076525 | H153: -1.99521645e-05 | J153: -0.0006419347697 | K153: -0.013892419 | L153: 0.006796834095 | M153: 0.1558606958 | N153: 0.0007121459281
A154: =IF('DF raw data'!I159="","",'DF raw data'!I159) -> -254 | B154: =IF('DF raw data'!J159="","",'DF raw data'!J159) -> -1.011e-05 | C154: =IF('DF raw data'!K159="","",'DF raw data'!K159) -> 0.000147847 | D154: =IF('DF raw data'!L159="","",'DF raw data'!L159) -> -4.55319e-05 | F154: -1.016055e-05 | G154: 0.000148586235 | H154: -4.57595595e-05 | J154: -0.0006470150447 | K154: -0.01421592652 | L154: 0.006871127212 | M154: 0.1592962595 | N154: 0.0007359614369
A155: =IF('DF raw data'!I160="","",'DF raw data'!I160) -> -253.5 | B155: =IF('DF raw data'!J160="","",'DF raw data'!J160) -> -8.89403e-06 | C155: =IF('DF raw data'!K160="","",'DF raw data'!K160) -> 0.000150202 | D155: =IF('DF raw data'!L160="","",'DF raw data'!L160) -> -4.09876e-05 | F155: -8.93850015e-06 | G155: 0.00015095301 | H155: -4.1192538e-05 | J155: -0.0006514842948 | K155: -0.01454166867 | L155: 0.006946603717 | M155: 0.1627695613 | N155: 0.0007603013044
A156: =IF('DF raw data'!I161="","",'DF raw data'!I161) -> -253 | B156: =IF('DF raw data'!J161="","",'DF raw data'!J161) -> -2.03737e-05 | C156: =IF('DF raw data'!K161="","",'DF raw data'!K161) -> 0.000152397 | D156: =IF('DF raw data'!L161="","",'DF raw data'!L161) -> -3.72366e-05 | F156: -2.04755685e-05 | G156: 0.000153158985 | H156: -3.7422783e-05 | J156: -0.000661722079 | K156: -0.01487252971 | L156: 0.00702318321 | M156: 0.1662811529 | N156: 0.0007851827936
A157: =IF('DF raw data'!I162="","",'DF raw data'!I162) -> -252.5 | B157: =IF('DF raw data'!J162="","",'DF raw data'!J162) -> -2.08814e-05 | C157: =IF('DF raw data'!K162="","",'DF raw data'!K162) -> 0.000146337 | D157: =IF('DF raw data'!L162="","",'DF raw data'!L162) -> -4.16201e-05 | F157: -2.0985807e-05 | G157: 0.000147068685 | H157: -4.18282005e-05 | J157: -0.0006722149825 | K157: -0.0152086372 | L157: 0.007096717552 | M157: 0.1698295117 | N157: 0.0008105904301
A158: =IF('DF raw data'!I163="","",'DF raw data'!I163) -> -252 | B158: =IF('DF raw data'!J163="","",'DF raw data'!J163) -> -1.19756e-05 | C158: =IF('DF raw data'!K163="","",'DF raw data'!K163) -> 0.00013838 | D158: =IF('DF raw data'!L163="","",'DF raw data'!L163) -> -3.60084e-05 | F158: -1.2035478e-05 | G158: 0.0001390719 | H158: -3.6188442e-05 | J158: -0.0006782327215 | K158: -0.01554775356 | L158: 0.007166253502 | M158: 0.1734126384 | N158: 0.0008364980246
A159: =IF('DF raw data'!I164="","",'DF raw data'!I164) -> -251.5 | B159: =IF('DF raw data'!J164="","",'DF raw data'!J164) -> -2.18433e-05 | C159: =IF('DF raw data'!K164="","",'DF raw data'!K164) -> 0.000144676 | D159: =IF('DF raw data'!L164="","",'DF raw data'!L164) -> -4.09779e-05 | F159: -2.19525165e-05 | G159: 0.00014539938 | H159: -4.11827895e-05 | J159: -0.0006892089798 | K159: -0.01589235805 | L159: 0.007238953192 | M159: 0.177032115 | N159: 0.0008629367507
A160: =IF('DF raw data'!I165="","",'DF raw data'!I165) -> -251 | B160: =IF('DF raw data'!J165="","",'DF raw data'!J165) -> -1.84618e-05 | C160: =IF('DF raw data'!K165="","",'DF raw data'!K165) -> 0.000143599 | D160: =IF('DF raw data'!L165="","",'DF raw data'!L165) -> -1.917e-05 | F160: -1.8554109e-05 | G160: 0.000144316995 | H160: -1.926585e-05 | J160: -0.0006984860343 | K160: -0.01624160107 | L160: 0.00731111169 | M160: 0.1806876709 | N160: 0.0008899068692
A161: =IF('DF raw data'!I166="","",'DF raw data'!I166) -> -250.5 | B161: =IF('DF raw data'!J166="","",'DF raw data'!J166) -> -1.53801e-05 | C161: =IF('DF raw data'!K166="","",'DF raw data'!K166) -> 0.000144722 | D161: =IF('DF raw data'!L166="","",'DF raw data'!L166) -> -2.3415e-05 | F161: -1.54570005e-05 | G161: 0.00014544561 | H161: -2.3532075e-05 | J161: -0.0007062145345 | K161: -0.01659470834 | L161: 0.007383834495 | M161: 0.1843795881 | N161: 0.0009174167446
A162: =IF('DF raw data'!I167="","",'DF raw data'!I167) -> -250 | B162: =IF('DF raw data'!J167="","",'DF raw data'!J167) -> -1.62728e-05 | C162: =IF('DF raw data'!K167="","",'DF raw data'!K167) -> 0.000150264 | D162: =IF('DF raw data'!L167="","",'DF raw data'!L167) -> -3.34248e-05 | F162: -1.6354164e-05 | G162: 0.00015101532 | H162: -3.3591924e-05 | J162: -0.0007143916165 | K162: -0.01695190415 | L162: 0.007459342155 | M162: 0.1881092592 | N162: 0.000945492815
A163: =IF('DF raw data'!I168="","",'DF raw data'!I168) -> -249.5 | B163: =IF('DF raw data'!J168="","",'DF raw data'!J168) -> -9.15927e-06 | C163: =IF('DF raw data'!K168="","",'DF raw data'!K168) -> 0.000155854 | D163: =IF('DF raw data'!L168="","",'DF raw data'!L168) -> -2.74394e-05 | F163: -9.20506635e-06 | G163: 0.00015663327 | H163: -2.7576597e-05 | J163: -0.0007189941497 | K163: -0.01731140122 | L163: 0.00753765879 | M163: 0.1918780886 | N163: 0.0009741594413
A164: =IF('DF raw data'!I169="","",'DF raw data'!I169) -> -249 | B164: =IF('DF raw data'!J169="","",'DF raw data'!J169) -> -1.81311e-05 | C164: =IF('DF raw data'!K169="","",'DF raw data'!K169) -> 0.0001602 | D164: =IF('DF raw data'!L169="","",'DF raw data'!L169) -> -3.50546e-05 | F164: -1.82217555e-05 | G164: 0.000161001 | H164: -3.5229873e-05 | J164: -0.0007281050274 | K164: -0.01767545373 | L164: 0.00761815929 | M164: 0.1956871683 | N164: 0.001003442685
A165: =IF('DF raw data'!I170="","",'DF raw data'!I170) -> -248.5 | B165: =IF('DF raw data'!J170="","",'DF raw data'!J170) -> -1.18484e-05 | C165: =IF('DF raw data'!K170="","",'DF raw data'!K170) -> 0.00016126 | D165: =IF('DF raw data'!L170="","",'DF raw data'!L170) -> -3.23885e-05 | F165: -1.1907642e-05 | G165: 0.0001620663 | H165: -3.25504425e-05 | J165: -0.0007340588484 | K165: -0.01804248316 | L165: 0.00769919244 | M165: 0.1995367645 | N165: 0.001033350889
A166: =IF('DF raw data'!I171="","",'DF raw data'!I171) -> -248 | B166: =IF('DF raw data'!J171="","",'DF raw data'!J171) -> -1.66651e-05 | C166: =IF('DF raw data'!K171="","",'DF raw data'!K171) -> 0.000159326 | D166: =IF('DF raw data'!L171="","",'DF raw data'!L171) -> -2.1609e-05 | F166: -1.67484255e-05 | G166: 0.00016012263 | H166: -2.1717045e-05 | J166: -0.0007424330612 | K166: -0.01841369969 | L166: 0.007779253755 | M166: 0.2034263913 | N166: 0.001063884886
A167: =IF('DF raw data'!I172="","",'DF raw data'!I172) -> -247.5 | B167: =IF('DF raw data'!J172="","",'DF raw data'!J172) -> -1.67854e-05 | C167: =IF('DF raw data'!K172="","",'DF raw data'!K172) -> 0.00015775 | D167: =IF('DF raw data'!L172="","",'DF raw data'!L172) -> -3.11257e-05 | F167: -1.6869327e-05 | G167: 0.00015853875 | H167: -3.12813285e-05 | J167: -0.0007508677247 | K167: -0.01878913355 | L167: 0.00785852313 | M167: 0.2073556529 | N167: 0.001095044981
A168: =IF('DF raw data'!I173="","",'DF raw data'!I173) -> -247 | B168: =IF('DF raw data'!J173="","",'DF raw data'!J173) -> -2.03185e-05 | C168: =IF('DF raw data'!K173="","",'DF raw data'!K173) -> 0.000157721 | D168: =IF('DF raw data'!L173="","",'DF raw data'!L173) -> -2.32123e-05 | F168: -2.04200925e-05 | G168: 0.000158509605 | H168: -2.33283615e-05 | J168: -0.0007610777709 | K168: -0.01916967244 | L168: 0.007937777932 | M168: 0.2113245419 | N168: 0.001126838759
A169: =IF('DF raw data'!I174="","",'DF raw data'!I174) -> -246.5 | B169: =IF('DF raw data'!J174="","",'DF raw data'!J174) -> -1.83225e-05 | C169: =IF('DF raw data'!K174="","",'DF raw data'!K174) -> 0.00015895 | D169: =IF('DF raw data'!L174="","",'DF raw data'!L174) -> -3.33439e-05 | F169: -1.84141125e-05 | G169: 0.00015974475 | H169: -3.35106195e-05 | J169: -0.0007702848272 | K169: -0.01955481485 | L169: 0.008017650307 | M169: 0.215333367 | N169: 0.001159276787
A170: =IF('DF raw data'!I175="","",'DF raw data'!I175) -> -246 | B170: =IF('DF raw data'!J175="","",'DF raw data'!J175) -> -1.31339e-05 | C170: =IF('DF raw data'!K175="","",'DF raw data'!K175) -> 0.000149983 | D170: =IF('DF raw data'!L175="","",'DF raw data'!L175) -> -2.91932e-05 | F170: -1.31995695e-05 | G170: 0.000150732915 | H170: -2.9339166e-05 | J170: -0.000776884612 | K170: -0.01994325716 | L170: 0.008093016765 | M170: 0.2193798754 | N170: 0.001192327022
A171: =IF('DF raw data'!I176="","",'DF raw data'!I176) -> -245.5 | B171: =IF('DF raw data'!J176="","",'DF raw data'!J176) -> -1.49934e-05 | C171: =IF('DF raw data'!K176="","",'DF raw data'!K176) -> 0.000148641 | D171: =IF('DF raw data'!L176="","",'DF raw data'!L176) -> -2.66118e-05 | F171: -1.5068367e-05 | G171: 0.000149384205 | H171: -2.6744859e-05 | J171: -0.0007844187955 | K171: -0.02033546655 | L171: 0.008167708867 | M171: 0.2234637298 | N171: 0.001225990413
A172: =IF('DF raw data'!I177="","",'DF raw data'!I177) -> -245 | B172: =IF('DF raw data'!J177="","",'DF raw data'!J177) -> -1.51791e-05 | C172: =IF('DF raw data'!K177="","",'DF raw data'!K177) -> 0.00015431 | D172: =IF('DF raw data'!L177="","",'DF raw data'!L177) -> -3.89165e-05 | F172: -1.52549955e-05 | G172: 0.00015508155 | H172: -3.91110825e-05 | J172: -0.0007920462932 | K172: -0.0207314897 | L172: 0.008245249642 | M172: 0.2275863547 | N172: 0.001260296152
A173: =IF('DF raw data'!I178="","",'DF raw data'!I178) -> -244.5 | B173: =IF('DF raw data'!J178="","",'DF raw data'!J178) -> -2.47999e-05 | C173: =IF('DF raw data'!K178="","",'DF raw data'!K178) -> 0.000161863 | D173: =IF('DF raw data'!L178="","",'DF raw data'!L178) -> -2.95013e-05 | F173: -2.49238995e-05 | G173: 0.000162672315 | H173: -2.96488065e-05 | J173: -0.000804508243 | K173: -0.02113374382 | L173: 0.0083265858 | M173: 0.2317496476 | N173: 0.001295285784
A174: =IF('DF raw data'!I179="","",'DF raw data'!I179) -> -244 | B174: =IF('DF raw data'!J179="","",'DF raw data'!J179) -> -1.26196e-05 | C174: =IF('DF raw data'!K179="","",'DF raw data'!K179) -> 0.000158945 | D174: =IF('DF raw data'!L179="","",'DF raw data'!L179) -> -3.14379e-05 | F174: -1.2682698e-05 | G174: 0.000159739725 | H174: -3.15950895e-05 | J174: -0.000810849592 | K174: -0.02153916862 | L174: 0.008406455662 | M174: 0.2359528754 | N174: 0.001330948771
A175: =IF('DF raw data'!I180="","",'DF raw data'!I180) -> -243.5 | B175: =IF('DF raw data'!J180="","",'DF raw data'!J180) -> -4.47911e-06 | C175: =IF('DF raw data'!K180="","",'DF raw data'!K180) -> 0.000158609 | D175: =IF('DF raw data'!L180="","",'DF raw data'!L180) -> -2.76644e-05 | F175: -4.50150555e-06 | G175: 0.000159402045 | H175: -2.7802722e-05 | J175: -0.0008131003447 | K175: -0.02194571879 | L175: 0.008486156685 | M175: 0.2401959537 | N175: 0.001367286765
A176: =IF('DF raw data'!I181="","",'DF raw data'!I181) -> -243 | B176: =IF('DF raw data'!J181="","",'DF raw data'!J181) -> -1.33254e-05 | C176: =IF('DF raw data'!K181="","",'DF raw data'!K181) -> 0.000158524 | D176: =IF('DF raw data'!L181="","",'DF raw data'!L181) -> -3.07316e-05 | F176: -1.3392027e-05 | G176: 0.00015931662 | H176: -3.0885258e-05 | J176: -0.0008197963582 | K176: -0.02235561697 | L176: 0.008565814995 | M176: 0.2444788612 | N176: 0.001404309391
A177: =IF('DF raw data'!I182="","",'DF raw data'!I182) -> -242.5 | B177: =IF('DF raw data'!J182="","",'DF raw data'!J182) -> -2.51163e-05 | C177: =IF('DF raw data'!K182="","",'DF raw data'!K182) -> 0.000155053 | D177: =IF('DF raw data'!L182="","",'DF raw data'!L182) -> -3.56011e-05 | F177: -2.52418815e-05 | G177: 0.000155828265 | H177: -3.57791055e-05 | J177: -0.000832417299 | K177: -0.02277182562 | L177: 0.008643729127 | M177: 0.2488007258 | N177: 0.001442012877
A178: =IF('DF raw data'!I183="","",'DF raw data'!I183) -> -242 | B178: =IF('DF raw data'!J183="","",'DF raw data'!J183) -> -1.33883e-05 | C178: =IF('DF raw data'!K183="","",'DF raw data'!K183) -> 0.000153942 | D178: =IF('DF raw data'!L183="","",'DF raw data'!L183) -> -3.23983e-05 | F178: -1.34552415e-05 | G178: 0.00015471171 | H178: -3.25602915e-05 | J178: -0.0008391449197 | K178: -0.02319139808 | L178: 0.008721084982 | M178: 0.2531612683 | N178: 0.001480393621
A179: =IF('DF raw data'!I184="","",'DF raw data'!I184) -> -241.5 | B179: =IF('DF raw data'!J184="","",'DF raw data'!J184) -> -1.90958e-05 | C179: =IF('DF raw data'!K184="","",'DF raw data'!K184) -> 0.000151017 | D179: =IF('DF raw data'!L184="","",'DF raw data'!L184) -> -2.6865e-05 | F179: -1.9191279e-05 | G179: 0.000151772085 | H179: -2.6999325e-05 | J179: -0.0008487405592 | K179: -0.02361576836 | L179: 0.008796971025 | M179: 0.2575597538 | N179: 0.001519447151
A180: =IF('DF raw data'!I185="","",'DF raw data'!I185) -> -241 | B180: =IF('DF raw data'!J185="","",'DF raw data'!J185) -> -8.78332e-06 | C180: =IF('DF raw data'!K185="","",'DF raw data'!K185) -> 0.00014937 | D180: =IF('DF raw data'!L185="","",'DF raw data'!L185) -> -1.54884e-05 | F180: -8.8272366e-06 | G180: 0.00015011685 | H180: -1.5565842e-05 | J180: -0.0008531541775 | K180: -0.02404234545 | L180: 0.00887202945 | M180: 0.2619957685 | N180: 0.00155916754
A181: =IF('DF raw data'!I186="","",'DF raw data'!I186) -> -240.5 | B181: =IF('DF raw data'!J186="","",'DF raw data'!J186) -> -1.72983e-05 | C181: =IF('DF raw data'!K186="","",'DF raw data'!K186) -> 0.00015057 | D181: =IF('DF raw data'!L186="","",'DF raw data'!L186) -> -3.08331e-05 | F181: -1.73847915e-05 | G181: 0.00015132285 | H181: -3.09872655e-05 | J181: -0.0008618465733 | K181: -0.02447326873 | L181: 0.008947690875 | M181: 0.266469614 | N181: 0.001599569516
A182: =IF('DF raw data'!I187="","",'DF raw data'!I187) -> -240 | B182: =IF('DF raw data'!J187="","",'DF raw data'!J187) -> -1.35824e-05 | C182: =IF('DF raw data'!K187="","",'DF raw data'!K187) -> 0.000155763 | D182: =IF('DF raw data'!L187="","",'DF raw data'!L187) -> -2.98737e-05 | F182: -1.3650312e-05 | G182: 0.000156541815 | H182: -3.00230685e-05 | J182: -0.0008686717293 | K182: -0.0249076046 | L182: 0.009025961782 | M182: 0.2709825949 | N182: 0.001640680804
A183: =IF('DF raw data'!I188="","",'DF raw data'!I188) -> -239.5 | B183: =IF('DF raw data'!J188="","",'DF raw data'!J188) -> -2.42256e-05 | C183: =IF('DF raw data'!K188="","",'DF raw data'!K188) -> 0.000154791 | D183: =IF('DF raw data'!L188="","",'DF raw data'!L188) -> -2.49209e-05 | F183: -2.4346728e-05 | G183: 0.000155564955 | H183: -2.50455045e-05 | J183: -0.0008808450933 | K183: -0.02534802714 | L183: 0.00910374426 | M183: 0.275534467 | N183: 0.001682507828
A184: =IF('DF raw data'!I189="","",'DF raw data'!I189) -> -239 | B184: =IF('DF raw data'!J189="","",'DF raw data'!J189) -> -2.10209e-05 | C184: =IF('DF raw data'!K189="","",'DF raw data'!K189) -> 0.000152407 | D184: =IF('DF raw data'!L189="","",'DF raw data'!L189) -> -2.79425e-05 | F184: -2.11260045e-05 | G184: 0.000153169035 | H184: -2.80822125e-05 | J184: -0.0008914080955 | K184: -0.02579373119 | L184: 0.009180328777 | M184: 0.2801246314 | N184: 0.00172504435
A185: =IF('DF raw data'!I190="","",'DF raw data'!I190) -> -238.5 | B185: =IF('DF raw data'!J190="","",'DF raw data'!J190) -> -1.17899e-05 | C185: =IF('DF raw data'!K190="","",'DF raw data'!K190) -> 0.000149581 | D185: =IF('DF raw data'!L190="","",'DF raw data'!L190) -> -2.3469e-05 | F185: -1.18488495e-05 | G185: 0.000150328905 | H185: -2.3586345e-05 | J185: -0.0008973325203 | K185: -0.02624239745 | L185: 0.00925549323 | M185: 0.284752378 | N185: 0.001768279031
A186: =IF('DF raw data'!I191="","",'DF raw data'!I191) -> -238 | B186: =IF('DF raw data'!J191="","",'DF raw data'!J191) -> -2.64689e-05 | C186: =IF('DF raw data'!K191="","",'DF raw data'!K191) -> 0.000150428 | D186: =IF('DF raw data'!L191="","",'DF raw data'!L191) -> -3.02206e-05 | F186: -2.66012445e-05 | G186: 0.00015118014 | H186: -3.0371703e-05 | J186: -0.0009106331425 | K186: -0.02669771402 | L186: 0.0093310833 | M186: 0.2894179196 | N186: 0.001812228215
A187: =IF('DF raw data'!I192="","",'DF raw data'!I192) -> -237.5 | B187: =IF('DF raw data'!J192="","",'DF raw data'!J192) -> -2.3382e-05 | C187: =IF('DF raw data'!K192="","",'DF raw data'!K192) -> 0.000154746 | D187: =IF('DF raw data'!L192="","",'DF raw data'!L192) -> -4.0539e-05 | F187: -2.349891e-05 | G187: 0.00015551973 | H187: -4.0741695e-05 | J187: -0.0009223825975 | K187: -0.02715890532 | L187: 0.009408843165 | M187: 0.2941223412 | N187: 0.001856916775
A188: =IF('DF raw data'!I193="","",'DF raw data'!I193) -> -237 | B188: =IF('DF raw data'!J193="","",'DF raw data'!J193) -> -1.2297e-05 | C188: =IF('DF raw data'!K193="","",'DF raw data'!K193) -> 0.000148588 | D188: =IF('DF raw data'!L193="","",'DF raw data'!L193) -> -3.44141e-05 | F188: -1.2358485e-05 | G188: 0.00014933094 | H188: -3.45861705e-05 | J188: -0.00092856184 | K188: -0.02762318624 | L188: 0.009483508635 | M188: 0.2988640955 | N188: 0.001902316356
A189: =IF('DF raw data'!I194="","",'DF raw data'!I194) -> -236.5 | B189: =IF('DF raw data'!J194="","",'DF raw data'!J194) -> -1.3071e-05 | C189: =IF('DF raw data'!K194="","",'DF raw data'!K194) -> 0.00015344 | D189: =IF('DF raw data'!L194="","",'DF raw data'!L194) -> -2.5403e-05 | F189: -1.3136355e-05 | G189: 0.0001542072 | H189: -2.5530015e-05 | J189: -0.0009351300175 | K189: -0.02809075125 | L189: 0.009560612235 | M189: 0.3036444017 | N189: 0.001948456243
A190: =IF('DF raw data'!I195="","",'DF raw data'!I195) -> -236 | B190: =IF('DF raw data'!J195="","",'DF raw data'!J195) -> -2.31326e-05 | C190: =IF('DF raw data'!K195="","",'DF raw data'!K195) -> 0.000152888 | D190: =IF('DF raw data'!L195="","",'DF raw data'!L195) -> -3.37547e-05 | F190: -2.3248263e-05 | G190: 0.00015365244 | H190: -3.39234735e-05 | J190: -0.000946754149 | K190: -0.02856412833 | L190: 0.009637438455 | M190: 0.3084631209 | N190: 0.001995344525
A191: =IF('DF raw data'!I196="","",'DF raw data'!I196) -> -235.5 | B191: =IF('DF raw data'!J196="","",'DF raw data'!J196) -> -1.98541e-05 | C191: =IF('DF raw data'!K196="","",'DF raw data'!K196) -> 0.000154401 | D191: =IF('DF raw data'!L196="","",'DF raw data'!L196) -> -4.37387e-05 | F191: -1.99533705e-05 | G191: 0.000155173005 | H191: -4.39573935e-05 | J191: -0.0009567308343 | K191: -0.02904249374 | L191: 0.009715024957 | M191: 0.3133206334 | N191: 0.002042993047
A192: =IF('DF raw data'!I197="","",'DF raw data'!I197) -> -235 | B192: =IF('DF raw data'!J197="","",'DF raw data'!J197) -> -1.67195e-05 | C192: =IF('DF raw data'!K197="","",'DF raw data'!K197) -> 0.000150361 | D192: =IF('DF raw data'!L197="","",'DF raw data'!L197) -> -3.68609e-05 | F192: =(1-$G$1*($B$49-$G$2))*B192 -> -1.68030975e-05 | G192: 0.000151112805 | H192: -3.70452045e-05 | J192: =F192*$G$3+J191 -> -0.000965132383 | K192: =J192*$G$3+K191 -> -0.02952505993 | L192: =G192*$G$3+L191 -> 0.00979058136 | M192: =L192*$G$3+M191 -> 0.3182159241 | N192: =(J192^2+L192^2)*$G$3+N191 -> 0.002091386529
A193: =IF('DF raw data'!I198="","",'DF raw data'!I198) -> -234.5 | B193: =IF('DF raw data'!J198="","",'DF raw data'!J198) -> -2.7745e-05 | C193: =IF('DF raw data'!K198="","",'DF raw data'!K198) -> 0.000149218 | D193: =IF('DF raw data'!L198="","",'DF raw data'!L198) -> -3.49064e-05 | F193: -2.7883725e-05 | G193: 0.00014996409 | H193: -3.5080932e-05 | J193: -0.0009790742455 | K193: -0.03001459706 | L193: 0.009865563405 | M193: 0.3231487058 | N193: 0.002140530493
A194: =IF('DF raw data'!I199="","",'DF raw data'!I199) -> -234 | B194: =IF('DF raw data'!J199="","",'DF raw data'!J199) -> -1.54446e-05 | C194: =IF('DF raw data'!K199="","",'DF raw data'!K199) -> 0.000144803 | D194: =IF('DF raw data'!L199="","",'DF raw data'!L199) -> -2.52043e-05 | F194: -1.5521823e-05 | G194: 0.000145527015 | H194: -2.53303215e-05 | J194: -0.000986835157 | K194: -0.03050801464 | L194: 0.009938326912 | M194: 0.3281178692 | N194: 0.002190402585
A195: =IF('DF raw data'!I200="","",'DF raw data'!I200) -> -233.5 | B195: =IF('DF raw data'!J200="","",'DF raw data'!J200) -> -1.55657e-05 | C195: =IF('DF raw data'!K200="","",'DF raw data'!K200) -> 0.000148643 | D195: =IF('DF raw data'!L200="","",'DF raw data'!L200) -> -3.33848e-05 | F195: -1.56435285e-05 | G195: 0.000149386215 | H195: -3.3551724e-05 | J195: -0.0009946569213 | K195: -0.0310053431 | L195: 0.01001302002 | M195: 0.3331243792 | N195: 0.002241027542
A196: =IF('DF raw data'!I201="","",'DF raw data'!I201) -> -233 | B196: =IF('DF raw data'!J201="","",'DF raw data'!J201) -> -2.77486e-05 | C196: =IF('DF raw data'!K201="","",'DF raw data'!K201) -> 0.000156224 | D196: =IF('DF raw data'!L201="","",'DF raw data'!L201) -> -3.41796e-05 | F196: -2.7887343e-05 | G196: 0.00015700512 | H196: -3.4350498e-05 | J196: -0.001008600593 | K196: -0.03150964339 | L196: 0.01009152258 | M196: 0.3381701405 | N196: 0.002292455593
A197: =IF('DF raw data'!I202="","",'DF raw data'!I202) -> -232.5 | B197: =IF('DF raw data'!J202="","",'DF raw data'!J202) -> -2.09583e-05 | C197: =IF('DF raw data'!K202="","",'DF raw data'!K202) -> 0.000146459 | D197: =IF('DF raw data'!L202="","",'DF raw data'!L202) -> -2.16968e-05 | F197: -2.10630915e-05 | G197: 0.000147191295 | H197: -2.1805284e-05 | J197: -0.001019132139 | K197: -0.03201920946 | L197: 0.01016511823 | M197: 0.3432526996 | N197: 0.002344639723
A198: =IF('DF raw data'!I203="","",'DF raw data'!I203) -> -232 | B198: =IF('DF raw data'!J203="","",'DF raw data'!J203) -> -2.12144e-05 | C198: =IF('DF raw data'!K203="","",'DF raw data'!K203) -> 0.000143934 | D198: =IF('DF raw data'!L203="","",'DF raw data'!L203) -> -2.59039e-05 | F198: -2.1320472e-05 | G198: 0.00014465367 | H198: -2.60334195e-05 | J198: -0.001029792375 | K198: -0.03253410565 | L198: 0.01023744506 | M198: 0.3483714222 | N198: 0.0023975726
A199: =IF('DF raw data'!I204="","",'DF raw data'!I204) -> -231.5 | B199: =IF('DF raw data'!J204="","",'DF raw data'!J204) -> -2.52476e-05 | C199: =IF('DF raw data'!K204="","",'DF raw data'!K204) -> 0.000148536 | D199: =IF('DF raw data'!L204="","",'DF raw data'!L204) -> -3.05451e-05 | F199: -2.5373838e-05 | G199: 0.00014927868 | H199: -3.06978255e-05 | J199: -0.001042479294 | K199: -0.0330553453 | L199: 0.0103120844 | M199: 0.3535274644 | N199: 0.002451285523
A200: =IF('DF raw data'!I205="","",'DF raw data'!I205) -> -231 | B200: =IF('DF raw data'!J205="","",'DF raw data'!J205) -> -2.12737e-05 | C200: =IF('DF raw data'!K205="","",'DF raw data'!K205) -> 0.000150397 | D200: =IF('DF raw data'!L205="","",'DF raw data'!L205) -> -3.35164e-05 | F200: -2.13800685e-05 | G200: 0.000151148985 | H200: -3.3683982e-05 | J200: -0.001053169328 | K200: -0.03358192996 | L200: 0.01038765889 | M200: 0.3587212938 | N200: 0.002505791835
A201: =IF('DF raw data'!I206="","",'DF raw data'!I206) -> -230.5 | B201: =IF('DF raw data'!J206="","",'DF raw data'!J206) -> -2.13279e-05 | C201: =IF('DF raw data'!K206="","",'DF raw data'!K206) -> 0.000148259 | D201: =IF('DF raw data'!L206="","",'DF raw data'!L206) -> -4.48664e-05 | F201: -2.14345395e-05 | G201: 0.000149000295 | H201: -4.5090732e-05 | J201: -0.001063886598 | K201: -0.03411387326 | L201: 0.01046215904 | M201: 0.3639523733 | N201: 0.002561086148
... 1061 more rows

Sheet 10 x=1
A1: =IF('DF raw data'!M1="","",'DF raw data'!M1) -> Number of header lines | B1: =IF('DF raw data'!N1="","",'DF raw data'!N1) -> 54 | C1: =IF('DF raw data'!O1="","",'DF raw data'!O1) ->  | D1: =IF('DF raw data'!P1="","",'DF raw data'!P1) ->  | F1: T_coeff | G1: -0.001 | H1: /degC | J1: ='10 x=-2'!J1 -> IBy total | K1: ='10 x=-2'!K1 -> -2.232211213 | L1: ='10 x=-2'!L1 -> muTm | R1: ='10 x=-2'!R1 -> DF ref | S1: ='10 x=-2'!S1 -> 1
A2: =IF('DF raw data'!M2="","",'DF raw data'!M2) -> Measured by | B2: =IF('DF raw data'!N2="","",'DF raw data'!N2) -> Danfysik | C2: =IF('DF raw data'!O2="","",'DF raw data'!O2) ->  | D2: =IF('DF raw data'!P2="","",'DF raw data'!P2) ->  | F2: Tcorr | G2: 20 | H2: degC | J2: JBy total | K2: =K1262 -> -16.6256963 | L2: muTm^2 | M2: =M1262 -> 16.34037001
A3: =IF('DF raw data'!M3="","",'DF raw data'!M3) -> Operator | B3: =IF('DF raw data'!N3="","",'DF raw data'!N3) -> PMHA | C3: =IF('DF raw data'!O3="","",'DF raw data'!O3) ->  | D3: =IF('DF raw data'!P3="","",'DF raw data'!P3) ->  | F3: Step | G3: =A63-A62 -> 0.5 | H3: mm | J3: PI total | K3: =N1262 -> 10444.07492 | L3: T^2mm^3
A4: =IF('DF raw data'!M4="","",'DF raw data'!M4) -> Data-time | B4: =IF('DF raw data'!N4="","",'DF raw data'!N4) -> 04-09-2024, 13:08:40 | C4: =IF('DF raw data'!O4="","",'DF raw data'!O4) ->  | D4: =IF('DF raw data'!P4="","",'DF raw data'!P4) -> 
A5: =IF('DF raw data'!M5="","",'DF raw data'!M5) -> Project | B5: =IF('DF raw data'!N5="","",'DF raw data'!N5) -> 504314 | C5: =IF('DF raw data'!O5="","",'DF raw data'!O5) ->  | D5: =IF('DF raw data'!P5="","",'DF raw data'!P5) -> 
A6: =IF('DF raw data'!M6="","",'DF raw data'!M6) -> Magnet type | B6: =IF('DF raw data'!N6="","",'DF raw data'!N6) -> Dipole | C6: =IF('DF raw data'!O6="","",'DF raw data'!O6) ->  | D6: =IF('DF raw data'!P6="","",'DF raw data'!P6) -> 
A7: =IF('DF raw data'!M7="","",'DF raw data'!M7) -> Magnet nr. | B7: =IF('DF raw data'!N7="","",'DF raw data'!N7) -> 2410093 | C7: =IF('DF raw data'!O7="","",'DF raw data'!O7) ->  | D7: =IF('DF raw data'!P7="","",'DF raw data'!P7) -> 
A8: =IF('DF raw data'!M8="","",'DF raw data'!M8) -> Meas. number | B8: =IF('DF raw data'!N8="","",'DF raw data'!N8) -> 342 | C8: =IF('DF raw data'!O8="","",'DF raw data'!O8) ->  | D8: =IF('DF raw data'!P8="","",'DF raw data'!P8) -> 
A9: =IF('DF raw data'!M9="","",'DF raw data'!M9) -> Add. info | B9: =IF('DF raw data'!N9="","",'DF raw data'!N9) -> X-alignment scan 4) | C9: =IF('DF raw data'!O9="","",'DF raw data'!O9) ->  | D9: =IF('DF raw data'!P9="","",'DF raw data'!P9) -> 
A10: =IF('DF raw data'!M10="","",'DF raw data'!M10) -> Device | B10: =IF('DF raw data'!N10="","",'DF raw data'!N10) -> (HAL) HALL-PROBE | C10: =IF('DF raw data'!O10="","",'DF raw data'!O10) ->  | D10: =IF('DF raw data'!P10="","",'DF raw data'!P10) -> 
A11: =IF('DF raw data'!M11="","",'DF raw data'!M11) -> Goal | B11: =IF('DF raw data'!N11="","",'DF raw data'!N11) -> (AXI) AXis Integral (Line, EFB) | C11: =IF('DF raw data'!O11="","",'DF raw data'!O11) ->  | D11: =IF('DF raw data'!P11="","",'DF raw data'!P11) -> 
A12: =IF('DF raw data'!M12="","",'DF raw data'!M12) -> Power supply mode | B12: =IF('DF raw data'!N12="","",'DF raw data'!N12) -> (PM) Permanent Magnet (no MPS in use) | C12: =IF('DF raw data'!O12="","",'DF raw data'!O12) ->  | D12: =IF('DF raw data'!P12="","",'DF raw data'!P12) -> 
A13: =IF('DF raw data'!M13="","",'DF raw data'!M13) -> Data format | B13: =IF('DF raw data'!N13="","",'DF raw data'!N13) -> Raw data text file | C13: =IF('DF raw data'!O13="","",'DF raw data'!O13) ->  | D13: =IF('DF raw data'!P13="","",'DF raw data'!P13) -> 
A14: =IF('DF raw data'!M14="","",'DF raw data'!M14) -> Direction of the pos. x-axis | B14: =IF('DF raw data'!N14="","",'DF raw data'!N14) -> See test program | C14: =IF('DF raw data'!O14="","",'DF raw data'!O14) ->  | D14: =IF('DF raw data'!P14="","",'DF raw data'!P14) -> 
A15: =IF('DF raw data'!M15="","",'DF raw data'!M15) -> Direction of the pos. y-axis | B15: =IF('DF raw data'!N15="","",'DF raw data'!N15) -> Vertical up | C15: =IF('DF raw data'!O15="","",'DF raw data'!O15) ->  | D15: =IF('DF raw data'!P15="","",'DF raw data'!P15) -> 
A16: =IF('DF raw data'!M16="","",'DF raw data'!M16) -> Direction of the pos. z-axis | B16: =IF('DF raw data'!N16="","",'DF raw data'!N16) -> See test program | C16: =IF('DF raw data'!O16="","",'DF raw data'!O16) ->  | D16: =IF('DF raw data'!P16="","",'DF raw data'!P16) -> 
A17: =IF('DF raw data'!M17="","",'DF raw data'!M17) -> Mapper type | B17: =IF('DF raw data'!N17="","",'DF raw data'!N17) -> Precision Hall Mapper | C17: =IF('DF raw data'!O17="","",'DF raw data'!O17) ->  | D17: =IF('DF raw data'!P17="","",'DF raw data'!P17) -> 
A18: =IF('DF raw data'!M18="","",'DF raw data'!M18) -> Mapper Danfysik Reg. Number | B18: =IF('DF raw data'!N18="","",'DF raw data'!N18) -> 2033-D (mapper 1) | C18: =IF('DF raw data'!O18="","",'DF raw data'!O18) ->  | D18: =IF('DF raw data'!P18="","",'DF raw data'!P18) -> 
A19: =IF('DF raw data'!M19="","",'DF raw data'!M19) -> Measurement consept | B19: =IF('DF raw data'!N19="","",'DF raw data'!N19) -> Square line grid | C19: =IF('DF raw data'!O19="","",'DF raw data'!O19) ->  | D19: =IF('DF raw data'!P19="","",'DF raw data'!P19) -> 
A20: =IF('DF raw data'!M20="","",'DF raw data'!M20) -> Mode | B20: =IF('DF raw data'!N20="","",'DF raw data'!N20) -> On-the-fly measurement | C20: =IF('DF raw data'!O20="","",'DF raw data'!O20) ->  | D20: =IF('DF raw data'!P20="","",'DF raw data'!P20) -> 
A21: =IF('DF raw data'!M21="","",'DF raw data'!M21) ->  | B21: =IF('DF raw data'!N21="","",'DF raw data'!N21) ->  | C21: =IF('DF raw data'!O21="","",'DF raw data'!O21) ->  | D21: =IF('DF raw data'!P21="","",'DF raw data'!P21) -> 
A22: =IF('DF raw data'!M22="","",'DF raw data'!M22) -> Probe Name | B22: =IF('DF raw data'!N22="","",'DF raw data'!N22) -> ID12_By | C22: =IF('DF raw data'!O22="","",'DF raw data'!O22) ->  | D22: =IF('DF raw data'!P22="","",'DF raw data'!P22) -> 
A23: =IF('DF raw data'!M23="","",'DF raw data'!M23) -> Probe Type | B23: =IF('DF raw data'!N23="","",'DF raw data'!N23) -> DF_ID_3D_Bxyz | C23: =IF('DF raw data'!O23="","",'DF raw data'!O23) ->  | D23: =IF('DF raw data'!P23="","",'DF raw data'!P23) -> 
A24: =IF('DF raw data'!M24="","",'DF raw data'!M24) -> Probe Danfysik Reg. Number | B24: =IF('DF raw data'!N24="","",'DF raw data'!N24) -> 2277 | C24: =IF('DF raw data'!O24="","",'DF raw data'!O24) ->  | D24: =IF('DF raw data'!P24="","",'DF raw data'!P24) -> 
A25: =IF('DF raw data'!M25="","",'DF raw data'!M25) -> Probe Axis | B25: =IF('DF raw data'!N25="","",'DF raw data'!N25) -> By | C25: =IF('DF raw data'!O25="","",'DF raw data'!O25) ->  | D25: =IF('DF raw data'!P25="","",'DF raw data'!P25) -> 
A26: =IF('DF raw data'!M26="","",'DF raw data'!M26) -> Probe Current Supply | B26: =IF('DF raw data'!N26="","",'DF raw data'!N26) -> 1825-D | C26: =IF('DF raw data'!O26="","",'DF raw data'!O26) ->  | D26: =IF('DF raw data'!P26="","",'DF raw data'!P26) -> 
A27: =IF('DF raw data'!M27="","",'DF raw data'!M27) -> Probe Gain Correction | B27: =IF('DF raw data'!N27="","",'DF raw data'!N27) -> 0.99616 | C27: =IF('DF raw data'!O27="","",'DF raw data'!O27) ->  | D27: =IF('DF raw data'!P27="","",'DF raw data'!P27) -> 
A28: =IF('DF raw data'!M28="","",'DF raw data'!M28) -> Probe Offset Correction | B28: =IF('DF raw data'!N28="","",'DF raw data'!N28) -> 0.0027367 | C28: =IF('DF raw data'!O28="","",'DF raw data'!O28) ->  | D28: =IF('DF raw data'!P28="","",'DF raw data'!P28) -> 
A29: =IF('DF raw data'!M29="","",'DF raw data'!M29) -> DVM Number | B29: =IF('DF raw data'!N29="","",'DF raw data'!N29) -> 2 | C29: =IF('DF raw data'!O29="","",'DF raw data'!O29) ->  | D29: =IF('DF raw data'!P29="","",'DF raw data'!P29) -> 
A30: =IF('DF raw data'!M30="","",'DF raw data'!M30) -> DVM Type | B30: =IF('DF raw data'!N30="","",'DF raw data'!N30) -> K2701 | C30: =IF('DF raw data'!O30="","",'DF raw data'!O30) ->  | D30: =IF('DF raw data'!P30="","",'DF raw data'!P30) -> 
A31: =IF('DF raw data'!M31="","",'DF raw data'!M31) -> DVM Danfysik Reg. Number | B31: =IF('DF raw data'!N31="","",'DF raw data'!N31) -> 1743-D | C31: =IF('DF raw data'!O31="","",'DF raw data'!O31) ->  | D31: =IF('DF raw data'!P31="","",'DF raw data'!P31) -> 
A32: =IF('DF raw data'!M32="","",'DF raw data'!M32) -> Probe Name | B32: =IF('DF raw data'!N32="","",'DF raw data'!N32) -> ID12_Bx | C32: =IF('DF raw data'!O32="","",'DF raw data'!O32) ->  | D32: =IF('DF raw data'!P32="","",'DF raw data'!P32) -> 
A33: =IF('DF raw data'!M33="","",'DF raw data'!M33) -> Probe Type | B33: =IF('DF raw data'!N33="","",'DF raw data'!N33) -> DF_ID_3D_Bxyz | C33: =IF('DF raw data'!O33="","",'DF raw data'!O33) ->  | D33: =IF('DF raw data'!P33="","",'DF raw data'!P33) -> 
A34: =IF('DF raw data'!M34="","",'DF raw data'!M34) -> Probe Danfysik Reg. Number | B34: =IF('DF raw data'!N34="","",'DF raw data'!N34) -> 2277 | C34: =IF('DF raw data'!O34="","",'DF raw data'!O34) ->  | D34: =IF('DF raw data'!P34="","",'DF raw data'!P34) -> 
A35: =IF('DF raw data'!M35="","",'DF raw data'!M35) -> Probe Axis | B35: =IF('DF raw data'!N35="","",'DF raw data'!N35) -> Bx | C35: =IF('DF raw data'!O35="","",'DF raw data'!O35) ->  | D35: =IF('DF raw data'!P35="","",'DF raw data'!P35) -> 
A36: =IF('DF raw data'!M36="","",'DF raw data'!M36) -> Probe Current Supply | B36: =IF('DF raw data'!N36="","",'DF raw data'!N36) -> 1825-D | C36: =IF('DF raw data'!O36="","",'DF raw data'!O36) ->  | D36: =IF('DF raw data'!P36="","",'DF raw data'!P36) -> 
A37: =IF('DF raw data'!M37="","",'DF raw data'!M37) -> Probe Gain Correction | B37: =IF('DF raw data'!N37="","",'DF raw data'!N37) -> 1 | C37: =IF('DF raw data'!O37="","",'DF raw data'!O37) ->  | D37: =IF('DF raw data'!P37="","",'DF raw data'!P37) -> 
A38: =IF('DF raw data'!M38="","",'DF raw data'!M38) -> Probe Offset Correction | B38: =IF('DF raw data'!N38="","",'DF raw data'!N38) -> -0.1757 | C38: =IF('DF raw data'!O38="","",'DF raw data'!O38) ->  | D38: =IF('DF raw data'!P38="","",'DF raw data'!P38) -> 
A39: =IF('DF raw data'!M39="","",'DF raw data'!M39) -> DVM Number | B39: =IF('DF raw data'!N39="","",'DF raw data'!N39) -> 3 | C39: =IF('DF raw data'!O39="","",'DF raw data'!O39) ->  | D39: =IF('DF raw data'!P39="","",'DF raw data'!P39) -> 
A40: =IF('DF raw data'!M40="","",'DF raw data'!M40) -> DVM Type | B40: =IF('DF raw data'!N40="","",'DF raw data'!N40) -> K2701 | C40: =IF('DF raw data'!O40="","",'DF raw data'!O40) ->  | D40: =IF('DF raw data'!P40="","",'DF raw data'!P40) -> 
A41: =IF('DF raw data'!M41="","",'DF raw data'!M41) -> DVM Danfysik Reg. Number | B41: =IF('DF raw data'!N41="","",'DF raw data'!N41) -> 1744-D | C41: =IF('DF raw data'!O41="","",'DF raw data'!O41) ->  | D41: =IF('DF raw data'!P41="","",'DF raw data'!P41) -> 
A42: =IF('DF raw data'!M42="","",'DF raw data'!M42) -> Probe Name | B42: =IF('DF raw data'!N42="","",'DF raw data'!N42) -> ID12_Bz | C42: =IF('DF raw data'!O42="","",'DF raw data'!O42) ->  | D42: =IF('DF raw data'!P42="","",'DF raw data'!P42) -> 
A43: =IF('DF raw data'!M43="","",'DF raw data'!M43) -> Probe Type | B43: =IF('DF raw data'!N43="","",'DF raw data'!N43) -> DF_ID_3D_Bxyz | C43: =IF('DF raw data'!O43="","",'DF raw data'!O43) ->  | D43: =IF('DF raw data'!P43="","",'DF raw data'!P43) -> 
A44: =IF('DF raw data'!M44="","",'DF raw data'!M44) -> Probe Danfysik Reg. Number | B44: =IF('DF raw data'!N44="","",'DF raw data'!N44) -> 2277 | C44: =IF('DF raw data'!O44="","",'DF raw data'!O44) ->  | D44: =IF('DF raw data'!P44="","",'DF raw data'!P44) -> 
A45: =IF('DF raw data'!M45="","",'DF raw data'!M45) -> Probe Axis | B45: =IF('DF raw data'!N45="","",'DF raw data'!N45) -> Bz | C45: =IF('DF raw data'!O45="","",'DF raw data'!O45) ->  | D45: =IF('DF raw data'!P45="","",'DF raw data'!P45) -> 
A46: =IF('DF raw data'!M46="","",'DF raw data'!M46) -> Probe Current Supply | B46: =IF('DF raw data'!N46="","",'DF raw data'!N46) -> 1825-D | C46: =IF('DF raw data'!O46="","",'DF raw data'!O46) ->  | D46: =IF('DF raw data'!P46="","",'DF raw data'!P46) -> 
A47: =IF('DF raw data'!M47="","",'DF raw data'!M47) -> Probe Gain Correction | B47: =IF('DF raw data'!N47="","",'DF raw data'!N47) -> 1 | C47: =IF('DF raw data'!O47="","",'DF raw data'!O47) ->  | D47: =IF('DF raw data'!P47="","",'DF raw data'!P47) -> 
A48: =IF('DF raw data'!M53="","",'DF raw data'!M53) -> PS-Gap: | B48: =IF('DF raw data'!N53="","",'DF raw data'!N53) -> 10 | C48: =IF('DF raw data'!O53="","",'DF raw data'!O53) ->  | D48: =IF('DF raw data'!P53="","",'DF raw data'!P53) -> 
A49: =IF('DF raw data'!M54="","",'DF raw data'!M54) -> PS-Temperature: | B49: =IF('DF raw data'!N54="","",'DF raw data'!N54) -> 25 | C49: =IF('DF raw data'!O54="","",'DF raw data'!O54) ->  | D49: =IF('DF raw data'!P54="","",'DF raw data'!P54) -> 
A50: =IF('DF raw data'!M55="","",'DF raw data'!M55) -> PS-Encoder: | B50: =IF('DF raw data'!N55="","",'DF raw data'!N55) -> 19.9702 | C50: =IF('DF raw data'!O55="","",'DF raw data'!O55) ->  | D50: =IF('DF raw data'!P55="","",'DF raw data'!P55) -> 
A51: =IF('DF raw data'!M56="","",'DF raw data'!M56) ->  | B51: =IF('DF raw data'!N56="","",'DF raw data'!N56) ->  | C51: =IF('DF raw data'!O56="","",'DF raw data'!O56) ->  | D51: =IF('DF raw data'!P56="","",'DF raw data'!P56) -> 
A52: =IF('DF raw data'!M57="","",'DF raw data'!M57) -> Monitor-Index | B52: =IF('DF raw data'!N57="","",'DF raw data'!N57) -> [1,1,4] | C52: =IF('DF raw data'!O57="","",'DF raw data'!O57) ->  | D52: =IF('DF raw data'!P57="","",'DF raw data'!P57) -> 
A53: =IF('DF raw data'!M58="","",'DF raw data'!M58) ->  | B53: =IF('DF raw data'!N58="","",'DF raw data'!N58) ->  | C53: =IF('DF raw data'!O58="","",'DF raw data'!O58) ->  | D53: =IF('DF raw data'!P58="","",'DF raw data'!P58) -> 
A54: =IF('DF raw data'!M59="","",'DF raw data'!M59) -> Time [s] | B54: =IF('DF raw data'!N59="","",'DF raw data'!N59) -> Y [mm] | C54: =IF('DF raw data'!O59="","",'DF raw data'!O59) -> X [mm] | D54: =IF('DF raw data'!P59="","",'DF raw data'!P59) -> Nominal current [A]
A55: =IF('DF raw data'!M60="","",'DF raw data'!M60) ->  | B55: =IF('DF raw data'!N60="","",'DF raw data'!N60) ->  | C55: =IF('DF raw data'!O60="","",'DF raw data'!O60) ->  | D55: =IF('DF raw data'!P60="","",'DF raw data'!P60) -> 
A56: =IF('DF raw data'!M61="","",'DF raw data'!M61) -> 209.8 | B56: =IF('DF raw data'!N61="","",'DF raw data'!N61) -> 31.46 | C56: =IF('DF raw data'!O61="","",'DF raw data'!O61) -> 302.8 | D56: =IF('DF raw data'!P61="","",'DF raw data'!P61) -> 0
A57: =IF('DF raw data'!M62="","",'DF raw data'!M62) ->  | B57: =IF('DF raw data'!N62="","",'DF raw data'!N62) ->  | C57: =IF('DF raw data'!O62="","",'DF raw data'!O62) ->  | D57: =IF('DF raw data'!P62="","",'DF raw data'!P62) -> 
A58: =IF('DF raw data'!M63="","",'DF raw data'!M63) -> Measurement-Index | B58: =IF('DF raw data'!N63="","",'DF raw data'!N63) -> [1,1,1201,2] | C58: =IF('DF raw data'!O63="","",'DF raw data'!O63) ->  | D58: =IF('DF raw data'!P63="","",'DF raw data'!P63) -> 
A59: =IF('DF raw data'!M64="","",'DF raw data'!M64) ->  | B59: =IF('DF raw data'!N64="","",'DF raw data'!N64) ->  | C59: =IF('DF raw data'!O64="","",'DF raw data'!O64) ->  | D59: =IF('DF raw data'!P64="","",'DF raw data'!P64) -> 
A60: =IF('DF raw data'!M65="","",'DF raw data'!M65) -> Z [mm] | B60: By [T] | C60: Bx [T] | D60: Bz [T] | F60: By_corr | G60: Bx_corr | H60: Bz_corr | J60: Iy | K60: Jy | L60: Ix | M60: Jx | N60: PI
A62: =IF('DF raw data'!M67="","",'DF raw data'!M67) -> -300 | B62: =IF('DF raw data'!N67="","",'DF raw data'!N67) -> -2.03726e-05 | C62: =IF('DF raw data'!O67="","",'DF raw data'!O67) -> 0.000125458 | D62: =IF('DF raw data'!P67="","",'DF raw data'!P67) -> -3.01142e-05 | F62: =(1-$G$1*($B$49))*B62 -> -2.0881915e-05 | G62: =(1-$G$1*($B$49-$G$2))*C62 -> 0.00012608529 | H62: =(1-$G$1*($B$49-$G$2))*D62 -> -3.0264771e-05 | J62: =F62*$G$3 -> -1.04409575e-05 | K62: =J62*$G$3 -> -5.22047875e-06 | L62: =G62*$G$3 -> 6.3042645e-05 | M62: =L62*$G$3 -> 3.15213225e-05 | N62: =(J62^2+L62^2)*$G$3 -> 2.041694341e-09
A63: =IF('DF raw data'!M68="","",'DF raw data'!M68) -> -299.5 | B63: =IF('DF raw data'!N68="","",'DF raw data'!N68) -> -1.80026e-05 | C63: =IF('DF raw data'!O68="","",'DF raw data'!O68) -> 0.000134448 | D63: =IF('DF raw data'!P68="","",'DF raw data'!P68) -> -3.00641e-05 | F63: =(1-$G$1*($B$49-$G$2))*B63 -> -1.8092613e-05 | G63: =(1-$G$1*($B$49-$G$2))*C63 -> 0.00013512024 | H63: -3.02144205e-05 | J63: =F63*$G$3+J62 -> -1.9487264e-05 | K63: =J63*$G$3+K62 -> -1.496411075e-05 | L63: =G63*$G$3+L62 -> 0.000130602765 | M63: =L63*$G$3+M62 -> 9.6822705e-05 | N63: =(J63^2+L63^2)*$G$3+N62 -> 1.076011218e-08
A64: =IF('DF raw data'!M69="","",'DF raw data'!M69) -> -299 | B64: =IF('DF raw data'!N69="","",'DF raw data'!N69) -> -2.03107e-05 | C64: =IF('DF raw data'!O69="","",'DF raw data'!O69) -> 0.000136989 | D64: =IF('DF raw data'!P69="","",'DF raw data'!P69) -> -3.00425e-05 | F64: =(1-$G$1*($B$49-$G$2))*B64 -> -2.04122535e-05 | G64: 0.000137673945 | H64: -3.01927125e-05 | J64: =F64*$G$3+J63 -> -2.969339075e-05 | K64: =J64*$G$3+K63 -> -2.981080612e-05 | L64: =G64*$G$3+L63 -> 0.0001994397375 | M64: =L64*$G$3+M63 -> 0.0001965425737 | N64: =(J64^2+L64^2)*$G$3+N63 -> 3.108906536e-08
A65: =IF('DF raw data'!M70="","",'DF raw data'!M70) -> -298.5 | B65: =IF('DF raw data'!N70="","",'DF raw data'!N70) -> -1.24233e-05 | C65: =IF('DF raw data'!O70="","",'DF raw data'!O70) -> 0.000138485 | D65: =IF('DF raw data'!P70="","",'DF raw data'!P70) -> -3.04804e-05 | F65: -1.24854165e-05 | G65: 0.000139177425 | H65: -3.0632802e-05 | J65: -3.5936099e-05 | K65: -4.777885562e-05 | L65: 0.00026902845 | M65: 0.0003310567987 | N65: 6.792292042e-08
A66: =IF('DF raw data'!M71="","",'DF raw data'!M71) -> -298 | B66: =IF('DF raw data'!N71="","",'DF raw data'!N71) -> -1.62067e-05 | C66: =IF('DF raw data'!O71="","",'DF raw data'!O71) -> 0.000147347 | D66: =IF('DF raw data'!P71="","",'DF raw data'!P71) -> -3.12484e-05 | F66: -1.62877335e-05 | G66: 0.000148083735 | H66: -3.1404642e-05 | J66: -4.407996575e-05 | K66: -6.98188385e-05 | L66: 0.0003430703175 | M66: 0.0005025919575 | N66: 1.277430635e-07
A67: =IF('DF raw data'!M72="","",'DF raw data'!M72) -> -297.5 | B67: =IF('DF raw data'!N72="","",'DF raw data'!N72) -> -2.0051e-05 | C67: =IF('DF raw data'!O72="","",'DF raw data'!O72) -> 0.000142491 | D67: =IF('DF raw data'!P72="","",'DF raw data'!P72) -> -3.17014e-05 | F67: -2.0151255e-05 | G67: 0.000143203455 | H67: -3.1859907e-05 | J67: -5.415559325e-05 | K67: -9.689663512e-05 | L67: 0.000414672045 | M67: 0.00070992798 | N67: 2.151859301e-07
A68: =IF('DF raw data'!M73="","",'DF raw data'!M73) -> -297 | B68: =IF('DF raw data'!N73="","",'DF raw data'!N73) -> -2.65288e-05 | C68: =IF('DF raw data'!O73="","",'DF raw data'!O73) -> 0.000136795 | D68: =IF('DF raw data'!P73="","",'DF raw data'!P73) -> -3.14671e-05 | F68: -2.6661444e-05 | G68: 0.000137478975 | H68: -3.16244355e-05 | J68: -6.748631525e-05 | K68: -0.0001306397927 | L68: 0.0004834115325 | M68: 0.0009516337462 | N68: 3.343064863e-07
A69: =IF('DF raw data'!M74="","",'DF raw data'!M74) -> -296.5 | B69: =IF('DF raw data'!N74="","",'DF raw data'!N74) -> -2.63341e-05 | C69: =IF('DF raw data'!O74="","",'DF raw data'!O74) -> 0.000136131 | D69: =IF('DF raw data'!P74="","",'DF raw data'!P74) -> -3.07028e-05 | F69: -2.64657705e-05 | G69: 0.000136811655 | H69: -3.0856314e-05 | J69: -8.07192005e-05 | K69: -0.000170999393 | L69: 0.00055181736 | M69: 0.001227542426 | N69: 4.898154804e-07
A70: =IF('DF raw data'!M75="","",'DF raw data'!M75) -> -296 | B70: =IF('DF raw data'!N75="","",'DF raw data'!N75) -> -3.06329e-05 | C70: =IF('DF raw data'!O75="","",'DF raw data'!O75) -> 0.000136009 | D70: =IF('DF raw data'!P75="","",'DF raw data'!P75) -> -2.96749e-05 | F70: -3.07860645e-05 | G70: 0.000136689045 | H70: -2.98232745e-05 | J70: -9.611223275e-05 | K70: -0.0002190555094 | L70: 0.0006201618825 | M70: 0.001537623367 | N70: 6.867346413e-07
A71: =IF('DF raw data'!M76="","",'DF raw data'!M76) -> -295.5 | B71: =IF('DF raw data'!N76="","",'DF raw data'!N76) -> -1.96041e-05 | C71: =IF('DF raw data'!O76="","",'DF raw data'!O76) -> 0.000133033 | D71: =IF('DF raw data'!P76="","",'DF raw data'!P76) -> -2.91281e-05 | F71: -1.97021205e-05 | G71: 0.000133698165 | H71: -2.92737405e-05 | J71: -0.000105963293 | K71: -0.0002720371559 | L71: 0.000687010965 | M71: 0.00188112885 | N71: 9.28340784e-07
A72: =IF('DF raw data'!M77="","",'DF raw data'!M77) -> -295 | B72: =IF('DF raw data'!N77="","",'DF raw data'!N77) -> -1.77463e-05 | C72: =IF('DF raw data'!O77="","",'DF raw data'!O77) -> 0.000127815 | D72: =IF('DF raw data'!P77="","",'DF raw data'!P77) -> -2.96602e-05 | F72: -1.78350315e-05 | G72: 0.000128454075 | H72: -2.9808501e-05 | J72: -0.0001148808087 | K72: -0.0003294775602 | L72: 0.0007512380025 | M72: 0.002256747851 | N72: 1.217118852e-06
A73: =IF('DF raw data'!M78="","",'DF raw data'!M78) -> -294.5 | B73: =IF('DF raw data'!N78="","",'DF raw data'!N78) -> -8.25624e-06 | C73: =IF('DF raw data'!O78="","",'DF raw data'!O78) -> 0.000133693 | D73: =IF('DF raw data'!P78="","",'DF raw data'!P78) -> -3.07908e-05 | F73: -8.2975212e-06 | G73: 0.000134361465 | H73: -3.0944754e-05 | J73: -0.0001190295693 | K73: -0.0003889923449 | L73: 0.000818418735 | M73: 0.002665957219 | N73: 1.559107484e-06
A74: =IF('DF raw data'!M79="","",'DF raw data'!M79) -> -294 | B74: =IF('DF raw data'!N79="","",'DF raw data'!N79) -> -2.49259e-05 | C74: =IF('DF raw data'!O79="","",'DF raw data'!O79) -> 0.00013762 | D74: =IF('DF raw data'!P79="","",'DF raw data'!P79) -> -3.10174e-05 | F74: -2.50505295e-05 | G74: 0.0001383081 | H74: -3.1172487e-05 | J74: -0.0001315548341 | K74: -0.000454769762 | L74: 0.000887572785 | M74: 0.003109743611 | N74: 1.961653546e-06
A75: =IF('DF raw data'!M80="","",'DF raw data'!M80) -> -293.5 | B75: =IF('DF raw data'!N80="","",'DF raw data'!N80) -> -1.98598e-05 | C75: =IF('DF raw data'!O80="","",'DF raw data'!O80) -> 0.000139424 | D75: =IF('DF raw data'!P80="","",'DF raw data'!P80) -> -3.04192e-05 | F75: -1.9959099e-05 | G75: 0.00014012112 | H75: -3.0571296e-05 | J75: -0.0001415343836 | K75: -0.0005255369538 | L75: 0.000957633345 | M75: 0.003588560284 | N75: 2.430200349e-06
A76: =IF('DF raw data'!M81="","",'DF raw data'!M81) -> -293 | B76: =IF('DF raw data'!N81="","",'DF raw data'!N81) -> -1.71048e-05 | C76: =IF('DF raw data'!O81="","",'DF raw data'!O81) -> 0.000143584 | D76: =IF('DF raw data'!P81="","",'DF raw data'!P81) -> -3.01563e-05 | F76: -1.7190324e-05 | G76: 0.00014430192 | H76: -3.03070815e-05 | J76: -0.0001501295456 | K76: -0.0006006017266 | L76: 0.001029784305 | M76: 0.004103452436 | N76: 2.971697646e-06
A77: =IF('DF raw data'!M82="","",'DF raw data'!M82) -> -292.5 | B77: =IF('DF raw data'!N82="","",'DF raw data'!N82) -> -1.5244e-05 | C77: =IF('DF raw data'!O82="","",'DF raw data'!O82) -> 0.000132886 | D77: =IF('DF raw data'!P82="","",'DF raw data'!P82) -> -3.05562e-05 | F77: -1.532022e-05 | G77: 0.00013355043 | H77: -3.0708981e-05 | J77: -0.0001577896556 | K77: -0.0006794965544 | L77: 0.00109655952 | M77: 0.004651732196 | N77: 3.585367824e-06
A78: =IF('DF raw data'!M83="","",'DF raw data'!M83) -> -292 | B78: =IF('DF raw data'!N83="","",'DF raw data'!N83) -> -1.89635e-05 | C78: =IF('DF raw data'!O83="","",'DF raw data'!O83) -> 0.000126871 | D78: =IF('DF raw data'!P83="","",'DF raw data'!P83) -> -3.10225e-05 | F78: -1.90583175e-05 | G78: 0.000127505355 | H78: -3.11776125e-05 | J78: -0.0001673188143 | K78: -0.0007631559615 | L78: 0.001160312197 | M78: 0.005231888295 | N78: 4.272527815e-06
A79: =IF('DF raw data'!M84="","",'DF raw data'!M84) -> -291.5 | B79: =IF('DF raw data'!N84="","",'DF raw data'!N84) -> -1.8266e-05 | C79: =IF('DF raw data'!O84="","",'DF raw data'!O84) -> 0.00012653 | D79: =IF('DF raw data'!P84="","",'DF raw data'!P84) -> -1.67638e-05 | F79: -1.835733e-05 | G79: 0.00012716265 | H79: -1.6847619e-05 | J79: -0.0001764974794 | K79: -0.0008514047012 | L79: 0.001223893522 | M79: 0.005843835056 | N79: 5.037061172e-06
A80: =IF('DF raw data'!M85="","",'DF raw data'!M85) -> -291 | B80: =IF('DF raw data'!N85="","",'DF raw data'!N85) -> -2.42842e-05 | C80: =IF('DF raw data'!O85="","",'DF raw data'!O85) -> 0.00012699 | D80: =IF('DF raw data'!P85="","",'DF raw data'!P85) -> -3.1969e-05 | F80: -2.4405621e-05 | G80: 0.00012762495 | H80: -3.2128845e-05 | J80: -0.0001887002898 | K80: -0.0009457548461 | L80: 0.001287705997 | M80: 0.006487688055 | N80: 5.88395844e-06
A81: =IF('DF raw data'!M86="","",'DF raw data'!M86) -> -290.5 | B81: =IF('DF raw data'!N86="","",'DF raw data'!N86) -> -2.58242e-05 | C81: =IF('DF raw data'!O86="","",'DF raw data'!O86) -> 0.000132071 | D81: =IF('DF raw data'!P86="","",'DF raw data'!P86) -> -2.67111e-05 | F81: -2.5953321e-05 | G81: 0.000132731355 | H81: -2.68446555e-05 | J81: -0.0002016769504 | K81: -0.001046593321 | L81: 0.001354071675 | M81: 0.007164723892 | N81: 6.821050287e-06
A82: =IF('DF raw data'!M87="","",'DF raw data'!M87) -> -290 | B82: =IF('DF raw data'!N87="","",'DF raw data'!N87) -> -2.64656e-05 | C82: =IF('DF raw data'!O87="","",'DF raw data'!O87) -> 0.000129217 | D82: =IF('DF raw data'!P87="","",'DF raw data'!P87) -> -2.93664e-05 | F82: -2.6597928e-05 | G82: 0.000129863085 | H82: -2.9513232e-05 | J82: -0.0002149759143 | K82: -0.001154081278 | L82: 0.001419003217 | M82: 0.007874225501 | N82: 7.850942674e-06
A83: =IF('DF raw data'!M88="","",'DF raw data'!M88) -> -289.5 | B83: =IF('DF raw data'!N88="","",'DF raw data'!N88) -> -2.30095e-05 | C83: =IF('DF raw data'!O88="","",'DF raw data'!O88) -> 0.000131554 | D83: =IF('DF raw data'!P88="","",'DF raw data'!P88) -> -1.76004e-05 | F83: -2.31245475e-05 | G83: 0.00013221177 | H83: -1.7688402e-05 | J83: -0.0002265381881 | K83: -0.001267350373 | L83: 0.001485109102 | M83: 0.008616780052 | N83: 8.979376973e-06
A84: =IF('DF raw data'!M89="","",'DF raw data'!M89) -> -289 | B84: =IF('DF raw data'!N89="","",'DF raw data'!N89) -> -2.48722e-05 | C84: =IF('DF raw data'!O89="","",'DF raw data'!O89) -> 0.000127054 | D84: =IF('DF raw data'!P89="","",'DF raw data'!P89) -> -1.46902e-05 | F84: -2.4996561e-05 | G84: 0.00012768927 | H84: -1.4763651e-05 | J84: -0.0002390364686 | K84: -0.001386868607 | L84: 0.001548953737 | M84: 0.009391256921 | N84: 1.020757503e-05
A85: =IF('DF raw data'!M90="","",'DF raw data'!M90) -> -288.5 | B85: =IF('DF raw data'!N90="","",'DF raw data'!N90) -> -4.2868e-06 | C85: =IF('DF raw data'!O90="","",'DF raw data'!O90) -> 0.000124911 | D85: =IF('DF raw data'!P90="","",'DF raw data'!P90) -> -2.26653e-05 | F85: -4.308234e-06 | G85: 0.000125535555 | H85: -2.27786265e-05 | J85: -0.0002411905856 | K85: -0.0015074639 | L85: 0.001611721515 | M85: 0.01019711768 | N85: 1.15354846e-05
A86: =IF('DF raw data'!M91="","",'DF raw data'!M91) -> -288 | B86: =IF('DF raw data'!N91="","",'DF raw data'!N91) -> -1.24851e-05 | C86: =IF('DF raw data'!O91="","",'DF raw data'!O91) -> 0.000128513 | D86: =IF('DF raw data'!P91="","",'DF raw data'!P91) -> -3.55201e-05 | F86: -1.25475255e-05 | G86: 0.000129155565 | H86: -3.56977005e-05 | J86: -0.0002474643483 | K86: -0.001631196074 | L86: 0.001676299297 | M86: 0.01103526733 | N86: 1.297109357e-05
A87: =IF('DF raw data'!M92="","",'DF raw data'!M92) -> -287.5 | B87: =IF('DF raw data'!N92="","",'DF raw data'!N92) -> -1.94094e-05 | C87: =IF('DF raw data'!O92="","",'DF raw data'!O92) -> 0.000135462 | D87: =IF('DF raw data'!P92="","",'DF raw data'!P92) -> -3.30875e-05 | F87: -1.9506447e-05 | G87: 0.00013613931 | H87: -3.32529375e-05 | J87: -0.0002572175718 | K87: -0.00175980486 | L87: 0.001744368952 | M87: 0.0119074518 | N87: 1.452558553e-05
A88: =IF('DF raw data'!M93="","",'DF raw data'!M93) -> -287 | B88: =IF('DF raw data'!N93="","",'DF raw data'!N93) -> -2.99954e-05 | C88: =IF('DF raw data'!O93="","",'DF raw data'!O93) -> 0.000133257 | D88: =IF('DF raw data'!P93="","",'DF raw data'!P93) -> -2.3429e-05 | F88: -3.0145377e-05 | G88: 0.000133923285 | H88: -2.3546145e-05 | J88: -0.0002722902603 | K88: -0.00189594999 | L88: 0.001811330595 | M88: 0.0128131171 | N88: 1.620311579e-05
A89: =IF('DF raw data'!M94="","",'DF raw data'!M94) -> -286.5 | B89: =IF('DF raw data'!N94="","",'DF raw data'!N94) -> -2.81946e-05 | C89: =IF('DF raw data'!O94="","",'DF raw data'!O94) -> 0.00012806 | D89: =IF('DF raw data'!P94="","",'DF raw data'!P94) -> -2.95144e-05 | F89: -2.8335573e-05 | G89: 0.0001287003 | H89: -2.9661972e-05 | J89: -0.0002864580468 | K89: -0.002039179013 | L89: 0.001875680745 | M89: 0.01375095747 | N89: 1.800323402e-05
A90: =IF('DF raw data'!M95="","",'DF raw data'!M95) -> -286 | B90: =IF('DF raw data'!N95="","",'DF raw data'!N95) -> -2.05668e-05 | C90: =IF('DF raw data'!O95="","",'DF raw data'!O95) -> 0.000127818 | D90: =IF('DF raw data'!P95="","",'DF raw data'!P95) -> -2.9722e-05 | F90: -2.0669634e-05 | G90: 0.00012845709 | H90: -2.987061e-05 | J90: -0.0002967928638 | K90: -0.002187575445 | L90: 0.00193990929 | M90: 0.01472091212 | N90: 1.992890105e-05
A91: =IF('DF raw data'!M96="","",'DF raw data'!M96) -> -285.5 | B91: =IF('DF raw data'!N96="","",'DF raw data'!N96) -> -1.29446e-05 | C91: =IF('DF raw data'!O96="","",'DF raw data'!O96) -> 0.000131368 | D91: =IF('DF raw data'!P96="","",'DF raw data'!P96) -> -1.78911e-05 | F91: -1.3009323e-05 | G91: 0.00013202484 | H91: -1.79805555e-05 | J91: -0.0003032975254 | K91: -0.002339224208 | L91: 0.00200592171 | M91: 0.01572387297 | N91: 2.19867567e-05
A92: =IF('DF raw data'!M97="","",'DF raw data'!M97) -> -285 | B92: =IF('DF raw data'!N97="","",'DF raw data'!N97) -> -3.05766e-05 | C92: =IF('DF raw data'!O97="","",'DF raw data'!O97) -> 0.000130936 | D92: =IF('DF raw data'!P97="","",'DF raw data'!P97) -> -1.6912e-05 | F92: -3.0729483e-05 | G92: 0.00013159068 | H92: -1.699656e-05 | J92: -0.0003186622668 | K92: -0.002498555341 | L92: 0.00207171705 | M92: 0.0167597315 | N92: 2.418353528e-05
A93: =IF('DF raw data'!M98="","",'DF raw data'!M98) -> -284.5 | B93: =IF('DF raw data'!N98="","",'DF raw data'!N98) -> -2.49262e-05 | C93: =IF('DF raw data'!O98="","",'DF raw data'!O98) -> 0.000133641 | D93: =IF('DF raw data'!P98="","",'DF raw data'!P98) -> -2.79547e-05 | F93: -2.5050831e-05 | G93: 0.000134309205 | H93: -2.80944735e-05 | J93: -0.0003311876824 | K93: -0.002664149183 | L93: 0.002138871652 | M93: 0.01782916732 | N93: 2.65257639e-05
A94: =IF('DF raw data'!M99="","",'DF raw data'!M99) -> -284 | B94: =IF('DF raw data'!N99="","",'DF raw data'!N99) -> -2.0063e-05 | C94: =IF('DF raw data'!O99="","",'DF raw data'!O99) -> 0.000129385 | D94: =IF('DF raw data'!P99="","",'DF raw data'!P99) -> -1.56378e-05 | F94: -2.0163315e-05 | G94: 0.000130031925 | H94: -1.5715989e-05 | J94: -0.0003412693398 | K94: -0.002834783852 | L94: 0.002203887615 | M94: 0.01893111113 | N94: 2.901255659e-05
A95: =IF('DF raw data'!M100="","",'DF raw data'!M100) -> -283.5 | B95: =IF('DF raw data'!N100="","",'DF raw data'!N100) -> -9.7443e-06 | C95: =IF('DF raw data'!O100="","",'DF raw data'!O100) -> 0.000136839 | D95: =IF('DF raw data'!P100="","",'DF raw data'!P100) -> -9.83907e-06 | F95: -9.7930215e-06 | G95: 0.000137523195 | H95: -9.88826535e-06 | J95: -0.0003461658506 | K95: -0.003007866778 | L95: 0.002272649212 | M95: 0.02006743574 | N95: 3.165493921e-05
A96: =IF('DF raw data'!M101="","",'DF raw data'!M101) -> -283 | B96: =IF('DF raw data'!N101="","",'DF raw data'!N101) -> -2.02581e-05 | C96: =IF('DF raw data'!O101="","",'DF raw data'!O101) -> 0.000135492 | D96: =IF('DF raw data'!P101="","",'DF raw data'!P101) -> -1.13895e-05 | F96: -2.03593905e-05 | G96: 0.00013616946 | H96: -1.14464475e-05 | J96: -0.0003563455459 | K96: -0.003186039551 | L96: 0.002340733942 | M96: 0.02123780271 | N96: 3.445794798e-05
A97: =IF('DF raw data'!M102="","",'DF raw data'!M102) -> -282.5 | B97: =IF('DF raw data'!N102="","",'DF raw data'!N102) -> -1.09539e-05 | C97: =IF('DF raw data'!O102="","",'DF raw data'!O102) -> 0.000127115 | D97: =IF('DF raw data'!P102="","",'DF raw data'!P102) -> -2.29483e-05 | F97: -1.10086695e-05 | G97: 0.000127750575 | H97: -2.30630415e-05 | J97: -0.0003618498806 | K97: -0.003366964491 | L97: 0.00240460923 | M97: 0.02244010732 | N97: 3.741448842e-05
A98: =IF('DF raw data'!M103="","",'DF raw data'!M103) -> -282 | B98: =IF('DF raw data'!N103="","",'DF raw data'!N103) -> -1.85244e-05 | C98: =IF('DF raw data'!O103="","",'DF raw data'!O103) -> 0.000134786 | D98: =IF('DF raw data'!P103="","",'DF raw data'!P103) -> -1.54495e-05 | F98: -1.8617022e-05 | G98: 0.00013545993 | H98: -1.55267475e-05 | J98: -0.0003711583916 | K98: -0.003552543687 | L98: 0.002472339195 | M98: 0.02367627692 | N98: 4.053959824e-05
A99: =IF('DF raw data'!M104="","",'DF raw data'!M104) -> -281.5 | B99: =IF('DF raw data'!N104="","",'DF raw data'!N104) -> -1.32594e-05 | C99: =IF('DF raw data'!O104="","",'DF raw data'!O104) -> 0.000133835 | D99: =IF('DF raw data'!P104="","",'DF raw data'!P104) -> -2.67121e-05 | F99: -1.3325697e-05 | G99: 0.000134504175 | H99: -2.68456605e-05 | J99: -0.0003778212401 | K99: -0.003741454307 | L99: 0.002539591282 | M99: 0.02494607256 | N99: 4.383573463e-05
A100: =IF('DF raw data'!M105="","",'DF raw data'!M105) -> -281 | B100: =IF('DF raw data'!N105="","",'DF raw data'!N105) -> -1.26867e-05 | C100: =IF('DF raw data'!O105="","",'DF raw data'!O105) -> 0.000128714 | D100: =IF('DF raw data'!P105="","",'DF raw data'!P105) -> -2.10764e-05 | F100: -1.27501335e-05 | G100: 0.00012935757 | H100: -2.1181782e-05 | J100: -0.0003841963069 | K100: -0.00393355246 | L100: 0.002604270068 | M100: 0.0262482076 | N100: 4.730064932e-05
A101: =IF('DF raw data'!M106="","",'DF raw data'!M106) -> -280.5 | B101: =IF('DF raw data'!N106="","",'DF raw data'!N106) -> -1.94771e-05 | C101: =IF('DF raw data'!O106="","",'DF raw data'!O106) -> 0.000131287 | D101: =IF('DF raw data'!P106="","",'DF raw data'!P106) -> -2.80958e-05 | F101: -1.95744855e-05 | G101: 0.000131943435 | H101: -2.8236279e-05 | J101: -0.0003939835496 | K101: -0.004130544235 | L101: 0.002670241785 | M101: 0.02758332849 | N101: 5.094335644e-05
A102: =IF('DF raw data'!M107="","",'DF raw data'!M107) -> -280 | B102: =IF('DF raw data'!N107="","",'DF raw data'!N107) -> -1.8258e-05 | C102: =IF('DF raw data'!O107="","",'DF raw data'!O107) -> 0.000140221 | D102: =IF('DF raw data'!P107="","",'DF raw data'!P107) -> -3.09214e-05 | F102: -1.834929e-05 | G102: 0.000140922105 | H102: -3.1076007e-05 | J102: -0.0004031581946 | K102: -0.004332123332 | L102: 0.002740702838 | M102: 0.02895367991 | N102: 5.478035072e-05
A103: =IF('DF raw data'!M108="","",'DF raw data'!M108) -> -279.5 | B103: =IF('DF raw data'!N108="","",'DF raw data'!N108) -> -1.18496e-05 | C103: =IF('DF raw data'!O108="","",'DF raw data'!O108) -> 0.000144885 | D103: =IF('DF raw data'!P108="","",'DF raw data'!P108) -> -2.57808e-05 | F103: -1.1908848e-05 | G103: 0.000145609425 | H103: -2.5909704e-05 | J103: -0.0004091126186 | K103: -0.004536679642 | L103: 0.00281350755 | M103: 0.03036043368 | N103: 5.882194966e-05
A104: =IF('DF raw data'!M109="","",'DF raw data'!M109) -> -279 | B104: =IF('DF raw data'!N109="","",'DF raw data'!N109) -> -1.78176e-05 | C104: =IF('DF raw data'!O109="","",'DF raw data'!O109) -> 0.000142823 | D104: =IF('DF raw data'!P109="","",'DF raw data'!P109) -> -1.7843e-05 | F104: -1.7906688e-05 | G104: 0.000143537115 | H104: -1.7932215e-05 | J104: -0.0004180659626 | K104: -0.004745712623 | L104: 0.002885276108 | M104: 0.03180307174 | N104: 6.307174834e-05
A105: =IF('DF raw data'!M110="","",'DF raw data'!M110) -> -278.5 | B105: =IF('DF raw data'!N110="","",'DF raw data'!N110) -> -8.13733e-06 | C105: =IF('DF raw data'!O110="","",'DF raw data'!O110) -> 0.000135075 | D105: =IF('DF raw data'!P110="","",'DF raw data'!P110) -> -1.66936e-05 | F105: -8.17801665e-06 | G105: 0.000135750375 | H105: -1.6777068e-05 | J105: -0.0004221549709 | K105: -0.004956790108 | L105: 0.002953151295 | M105: 0.03327964738 | N105: 6.752140704e-05
A106: =IF('DF raw data'!M111="","",'DF raw data'!M111) -> -278 | B106: =IF('DF raw data'!N111="","",'DF raw data'!N111) -> -2.88376e-05 | C106: =IF('DF raw data'!O111="","",'DF raw data'!O111) -> 0.000126466 | D106: =IF('DF raw data'!P111="","",'DF raw data'!P111) -> -2.91098e-05 | F106: -2.8981788e-05 | G106: 0.00012709833 | H106: -2.9255349e-05 | J106: -0.0004366458649 | K106: -0.005175113041 | L106: 0.00301670046 | M106: 0.03478799761 | N106: 7.216697767e-05
A107: =IF('DF raw data'!M112="","",'DF raw data'!M112) -> -277.5 | B107: =IF('DF raw data'!N112="","",'DF raw data'!N112) -> -2.01256e-05 | C107: =IF('DF raw data'!O112="","",'DF raw data'!O112) -> 0.00013153 | D107: =IF('DF raw data'!P112="","",'DF raw data'!P112) -> -1.64264e-05 | F107: -2.0226228e-05 | G107: 0.00013218765 | H107: -1.6508532e-05 | J107: -0.0004467589789 | K107: -0.00539849253 | L107: 0.003082794285 | M107: 0.03632939476 | N107: 7.701858477e-05
A108: =IF('DF raw data'!M113="","",'DF raw data'!M113) -> -277 | B108: =IF('DF raw data'!N113="","",'DF raw data'!N113) -> -2.60183e-05 | C108: =IF('DF raw data'!O113="","",'DF raw data'!O113) -> 0.000128714 | D108: =IF('DF raw data'!P113="","",'DF raw data'!P113) -> -2.68343e-05 | F108: -2.61483915e-05 | G108: 0.00012935757 | H108: -2.69684715e-05 | J108: -0.0004598331747 | K108: -0.005628409118 | L108: 0.00314747307 | M108: 0.03790313129 | N108: 8.207760141e-05
A109: =IF('DF raw data'!M114="","",'DF raw data'!M114) -> -276.5 | B109: =IF('DF raw data'!N114="","",'DF raw data'!N114) -> -2.74954e-05 | C109: =IF('DF raw data'!O114="","",'DF raw data'!O114) -> 0.000125186 | D109: =IF('DF raw data'!P114="","",'DF raw data'!P114) -> -2.03909e-05 | F109: -2.7632877e-05 | G109: 0.00012581193 | H109: -2.04928545e-05 | J109: -0.0004736496132 | K109: -0.005865233924 | L109: 0.003210379035 | M109: 0.03950832081 | N109: 8.734304016e-05
A110: =IF('DF raw data'!M115="","",'DF raw data'!M115) -> -276 | B110: =IF('DF raw data'!N115="","",'DF raw data'!N115) -> -1.60201e-05 | C110: =IF('DF raw data'!O115="","",'DF raw data'!O115) -> 0.000135833 | D110: =IF('DF raw data'!P115="","",'DF raw data'!P115) -> -2.15464e-05 | F110: -1.61002005e-05 | G110: 0.000136512165 | H110: -2.1654132e-05 | J110: -0.0004816997134 | K110: -0.006106083781 | L110: 0.003278635117 | M110: 0.04114763837 | N110: 9.283378158e-05
A111: =IF('DF raw data'!M116="","",'DF raw data'!M116) -> -275.5 | B111: =IF('DF raw data'!N116="","",'DF raw data'!N116) -> -1.28085e-05 | C111: =IF('DF raw data'!O116="","",'DF raw data'!O116) -> 0.000136038 | D111: =IF('DF raw data'!P116="","",'DF raw data'!P116) -> -3.00563e-05 | F111: -1.28725425e-05 | G111: 0.00013671819 | H111: -3.02065815e-05 | J111: -0.0004881359847 | K111: -0.006350151773 | L111: 0.003346994213 | M111: 0.04282113547 | N111: 9.855410508e-05
A112: =IF('DF raw data'!M117="","",'DF raw data'!M117) -> -275 | B112: =IF('DF raw data'!N117="","",'DF raw data'!N117) -> -2.71746e-05 | C112: =IF('DF raw data'!O117="","",'DF raw data'!O117) -> 0.00013014 | D112: =IF('DF raw data'!P117="","",'DF raw data'!P117) -> -2.30549e-05 | F112: -2.7310473e-05 | G112: 0.0001307907 | H112: -2.31701745e-05 | J112: -0.0005017912212 | K112: -0.006601047384 | L112: 0.003412389563 | M112: 0.04452733026 | N112: 0.0001045022036
A113: =IF('DF raw data'!M118="","",'DF raw data'!M118) -> -274.5 | B113: =IF('DF raw data'!N118="","",'DF raw data'!N118) -> -1.84562e-05 | C113: =IF('DF raw data'!O118="","",'DF raw data'!O118) -> 0.000139868 | D113: =IF('DF raw data'!P118="","",'DF raw data'!P118) -> -2.0242e-05 | F113: -1.8548481e-05 | G113: 0.00014056734 | H113: -2.034321e-05 | J113: -0.0005110654617 | K113: -0.006856580115 | L113: 0.003482673233 | M113: 0.04626866687 | N113: 0.0001106973039
A114: =IF('DF raw data'!M119="","",'DF raw data'!M119) -> -274 | B114: =IF('DF raw data'!N119="","",'DF raw data'!N119) -> -1.01181e-05 | C114: =IF('DF raw data'!O119="","",'DF raw data'!O119) -> 0.000137358 | D114: =IF('DF raw data'!P119="","",'DF raw data'!P119) -> -2.72399e-05 | F114: -1.01686905e-05 | G114: 0.00013804479 | H114: -2.73760995e-05 | J114: -0.0005161498069 | K114: -0.007114655018 | L114: 0.003551695627 | M114: 0.04804451469 | N114: 0.0001171377802
A115: =IF('DF raw data'!M120="","",'DF raw data'!M120) -> -273.5 | B115: =IF('DF raw data'!N120="","",'DF raw data'!N120) -> -9.03823e-06 | C115: =IF('DF raw data'!O120="","",'DF raw data'!O120) -> 0.000136596 | D115: =IF('DF raw data'!P120="","",'DF raw data'!P120) -> -1.14788e-05 | F115: -9.08342115e-06 | G115: 0.00013727898 | H115: -1.1536194e-05 | J115: -0.0005206915175 | K115: -0.007375000777 | L115: 0.003620335117 | M115: 0.04985468224 | N115: 0.0001238267532
A116: =IF('DF raw data'!M121="","",'DF raw data'!M121) -> -273 | B116: =IF('DF raw data'!N121="","",'DF raw data'!N121) -> -9.41528e-06 | C116: =IF('DF raw data'!O121="","",'DF raw data'!O121) -> 0.000134908 | D116: =IF('DF raw data'!P121="","",'DF raw data'!P121) -> -2.37379e-05 | F116: -9.4623564e-06 | G116: 0.00013558254 | H116: -2.38565895e-05 | J116: -0.0005254226957 | K116: -0.007637712125 | L116: 0.003688126387 | M116: 0.05169874544 | N116: 0.0001307659258
A117: =IF('DF raw data'!M122="","",'DF raw data'!M122) -> -272.5 | B117: =IF('DF raw data'!N122="","",'DF raw data'!N122) -> -1.19811e-05 | C117: =IF('DF raw data'!O122="","",'DF raw data'!O122) -> 0.000136576 | D117: =IF('DF raw data'!P122="","",'DF raw data'!P122) -> -2.09026e-05 | F117: -1.20410055e-05 | G117: 0.00013725888 | H117: -2.1007113e-05 | J117: -0.0005314431984 | K117: -0.007903433724 | L117: 0.003756755828 | M117: 0.05357712335 | N117: 0.0001379637489
A118: =IF('DF raw data'!M123="","",'DF raw data'!M123) -> -272 | B118: =IF('DF raw data'!N123="","",'DF raw data'!N123) -> -1.78744e-05 | C118: =IF('DF raw data'!O123="","",'DF raw data'!O123) -> 0.000132459 | D118: =IF('DF raw data'!P123="","",'DF raw data'!P123) -> -2.89181e-05 | F118: -1.7963772e-05 | G118: 0.000133121295 | H118: -2.90626905e-05 | J118: -0.0005404250844 | K118: -0.008173646266 | L118: 0.003823316475 | M118: 0.05548878159 | N118: 0.000145418653
A119: =IF('DF raw data'!M124="","",'DF raw data'!M124) -> -271.5 | B119: =IF('DF raw data'!N124="","",'DF raw data'!N124) -> -8.12569e-06 | C119: =IF('DF raw data'!O124="","",'DF raw data'!O124) -> 0.000133247 | D119: =IF('DF raw data'!P124="","",'DF raw data'!P124) -> -3.47952e-05 | F119: -8.16631845e-06 | G119: 0.000133913235 | H119: -3.4969176e-05 | J119: -0.0005445082437 | K119: -0.008445900388 | L119: 0.003890273092 | M119: 0.05743391814 | N119: 0.00015313401
A120: =IF('DF raw data'!M125="","",'DF raw data'!M125) -> -271 | B120: =IF('DF raw data'!N125="","",'DF raw data'!N125) -> -1.72334e-05 | C120: =IF('DF raw data'!O125="","",'DF raw data'!O125) -> 0.000139503 | D120: =IF('DF raw data'!P125="","",'DF raw data'!P125) -> -2.88559e-05 | F120: -1.7319567e-05 | G120: 0.000140200515 | H120: -2.90001795e-05 | J120: -0.0005531680272 | K120: -0.008722484402 | L120: 0.00396037335 | M120: 0.05941410481 | N120: 0.0001611292859
A121: =IF('DF raw data'!M126="","",'DF raw data'!M126) -> -270.5 | B121: =IF('DF raw data'!N126="","",'DF raw data'!N126) -> -2.48585e-05 | C121: =IF('DF raw data'!O126="","",'DF raw data'!O126) -> 0.000140194 | D121: =IF('DF raw data'!P126="","",'DF raw data'!P126) -> -3.41414e-05 | F121: -2.49827925e-05 | G121: 0.00014089497 | H121: -3.4312107e-05 | J121: -0.0005656594234 | K121: -0.009005314113 | L121: 0.004030820835 | M121: 0.06142951523 | N121: 0.0001694130295
A122: =IF('DF raw data'!M127="","",'DF raw data'!M127) -> -270 | B122: =IF('DF raw data'!N127="","",'DF raw data'!N127) -> -1.89692e-05 | C122: =IF('DF raw data'!O127="","",'DF raw data'!O127) -> 0.000137035 | D122: =IF('DF raw data'!P127="","",'DF raw data'!P127) -> -2.12623e-05 | F122: -1.9064046e-05 | G122: 0.000137720175 | H122: -2.13686115e-05 | J122: -0.0005751914464 | K122: -0.009292909837 | L122: 0.004099680922 | M122: 0.06347935569 | N122: 0.000177982144
A123: =IF('DF raw data'!M128="","",'DF raw data'!M128) -> -269.5 | B123: =IF('DF raw data'!N128="","",'DF raw data'!N128) -> -2.83849e-05 | C123: =IF('DF raw data'!O128="","",'DF raw data'!O128) -> 0.00014195 | D123: =IF('DF raw data'!P128="","",'DF raw data'!P128) -> -3.34086e-05 | F123: -2.85268245e-05 | G123: 0.00014265975 | H123: -3.3575643e-05 | J123: -0.0005894548587 | K123: -0.009587637266 | L123: 0.004171010797 | M123: 0.06556486109 | N123: 0.000186854538
A124: =IF('DF raw data'!M129="","",'DF raw data'!M129) -> -269 | B124: =IF('DF raw data'!N129="","",'DF raw data'!N129) -> -1.95486e-05 | C124: =IF('DF raw data'!O129="","",'DF raw data'!O129) -> 0.000151825 | D124: =IF('DF raw data'!P129="","",'DF raw data'!P129) -> -1.72675e-05 | F124: -1.9646343e-05 | G124: 0.000152584125 | H124: -1.73538375e-05 | J124: -0.0005992780302 | K124: -0.009887276281 | L124: 0.00424730286 | M124: 0.06768851252 | N124: 0.0001960538959
A125: =IF('DF raw data'!M130="","",'DF raw data'!M130) -> -268.5 | B125: =IF('DF raw data'!N130="","",'DF raw data'!N130) -> -1.65981e-05 | C125: =IF('DF raw data'!O130="","",'DF raw data'!O130) -> 0.000155769 | D125: =IF('DF raw data'!P130="","",'DF raw data'!P130) -> -1.94986e-05 | F125: -1.66810905e-05 | G125: 0.000156547845 | H125: -1.9596093e-05 | J125: -0.0006076185754 | K125: -0.01019108557 | L125: 0.004325576782 | M125: 0.06985130091 | N125: 0.0002055938033
A126: =IF('DF raw data'!M131="","",'DF raw data'!M131) -> -268 | B126: =IF('DF raw data'!N131="","",'DF raw data'!N131) -> -1.47496e-05 | C126: =IF('DF raw data'!O131="","",'DF raw data'!O131) -> 0.000144301 | D126: =IF('DF raw data'!P131="","",'DF raw data'!P131) -> -3.10141e-06 | F126: -1.4823348e-05 | G126: 0.000145022505 | H126: -3.11691705e-06 | J126: -0.0006150302494 | K126: -0.01049860069 | L126: 0.004398088035 | M126: 0.07205034493 | N126: 0.0002154545236
A127: =IF('DF raw data'!M132="","",'DF raw data'!M132) -> -267.5 | B127: =IF('DF raw data'!N132="","",'DF raw data'!N132) -> -2.87146e-05 | C127: =IF('DF raw data'!O132="","",'DF raw data'!O132) -> 0.000133697 | D127: =IF('DF raw data'!P132="","",'DF raw data'!P132) -> -1.96555e-05 | F127: -2.8858173e-05 | G127: 0.000134365485 | H127: -1.97537775e-05 | J127: -0.0006294593359 | K127: -0.01081333036 | L127: 0.004465270777 | M127: 0.07428298032 | N127: 0.0002256219547
A128: =IF('DF raw data'!M133="","",'DF raw data'!M133) -> -267 | B128: =IF('DF raw data'!N133="","",'DF raw data'!N133) -> -1.95446e-05 | C128: =IF('DF raw data'!O133="","",'DF raw data'!O133) -> 0.000128911 | D128: =IF('DF raw data'!P133="","",'DF raw data'!P133) -> -2.34253e-05 | F128: =(1-$G$1*($B$49-$G$2))*B128 -> -1.9642323e-05 | G128: 0.000129555555 | H128: -2.35424265e-05 | J128: =F128*$G$3+J127 -> -0.0006392804974 | K128: =J128*$G$3+K127 -> -0.01113297061 | L128: =G128*$G$3+L127 -> 0.004530048555 | M128: =L128*$G$3+M127 -> 0.07654800459 | N128: =(J128^2+L128^2)*$G$3+N127 -> 0.0002360869644
A129: =IF('DF raw data'!M134="","",'DF raw data'!M134) -> -266.5 | B129: =IF('DF raw data'!N134="","",'DF raw data'!N134) -> -2.65917e-05 | C129: =IF('DF raw data'!O134="","",'DF raw data'!O134) -> 0.000136574 | D129: =IF('DF raw data'!P134="","",'DF raw data'!P134) -> -3.08405e-05 | F129: -2.67246585e-05 | G129: 0.00013725687 | H129: -3.09947025e-05 | J129: -0.0006526428267 | K129: -0.01145929202 | L129: 0.00459867699 | M129: 0.07884734309 | N129: 0.0002468738508
A130: =IF('DF raw data'!M135="","",'DF raw data'!M135) -> -266 | B130: =IF('DF raw data'!N135="","",'DF raw data'!N135) -> -2.83275e-05 | C130: =IF('DF raw data'!O135="","",'DF raw data'!O135) -> 0.000140447 | D130: =IF('DF raw data'!P135="","",'DF raw data'!P135) -> -2.37233e-05 | F130: -2.84691375e-05 | G130: 0.000141149235 | H130: -2.38419165e-05 | J130: -0.0006668773954 | K130: -0.01179273072 | L130: 0.004669251608 | M130: 0.08118196889 | N130: 0.0002579971688
A131: =IF('DF raw data'!M136="","",'DF raw data'!M136) -> -265.5 | B131: =IF('DF raw data'!N136="","",'DF raw data'!N136) -> -1.28773e-05 | C131: =IF('DF raw data'!O136="","",'DF raw data'!O136) -> 0.000143995 | D131: =IF('DF raw data'!P136="","",'DF raw data'!P136) -> -2.30115e-05 | F131: -1.29416865e-05 | G131: 0.000144714975 | H131: -2.31265575e-05 | J131: -0.0006733482387 | K131: -0.01212940484 | L131: 0.004741609095 | M131: 0.08355277344 | N131: 0.0002694652961
A132: =IF('DF raw data'!M137="","",'DF raw data'!M137) -> -265 | B132: =IF('DF raw data'!N137="","",'DF raw data'!N137) -> -1.5834e-05 | C132: =IF('DF raw data'!O137="","",'DF raw data'!O137) -> 0.000144982 | D132: =IF('DF raw data'!P137="","",'DF raw data'!P137) -> -1.16932e-05 | F132: -1.591317e-05 | G132: 0.00014570691 | H132: -1.1751666e-05 | J132: -0.0006813048237 | K132: -0.01247005725 | L132: 0.00481446255 | M132: 0.08596000471 | N132: 0.0002812869091
A133: =IF('DF raw data'!M138="","",'DF raw data'!M138) -> -264.5 | B133: =IF('DF raw data'!N138="","",'DF raw data'!N138) -> -1.31901e-05 | C133: =IF('DF raw data'!O138="","",'DF raw data'!O138) -> 0.000144589 | D133: =IF('DF raw data'!P138="","",'DF raw data'!P138) -> -3.51622e-05 | F133: -1.32560505e-05 | G133: 0.000145311945 | H133: -3.5338011e-05 | J133: -0.0006879328489 | K133: -0.01281402368 | L133: 0.004887118523 | M133: 0.08840356398 | N133: 0.0002934654986
A134: =IF('DF raw data'!M139="","",'DF raw data'!M139) -> -264 | B134: =IF('DF raw data'!N139="","",'DF raw data'!N139) -> -1.92885e-05 | C134: =IF('DF raw data'!O139="","",'DF raw data'!O139) -> 0.000137934 | D134: =IF('DF raw data'!P139="","",'DF raw data'!P139) -> -2.29482e-05 | F134: -1.93849425e-05 | G134: 0.00013862367 | H134: -2.3062941e-05 | J134: -0.0006976253202 | K134: -0.01316283634 | L134: 0.004956430358 | M134: 0.09088177915 | N134: 0.0003059919401
A135: =IF('DF raw data'!M140="","",'DF raw data'!M140) -> -263.5 | B135: =IF('DF raw data'!N140="","",'DF raw data'!N140) -> -2.95439e-05 | C135: =IF('DF raw data'!O140="","",'DF raw data'!O140) -> 0.000136819 | D135: =IF('DF raw data'!P140="","",'DF raw data'!P140) -> -2.56865e-05 | F135: -2.96916195e-05 | G135: 0.000137503095 | H135: -2.58149325e-05 | J135: -0.0007124711299 | K135: -0.0135190719 | L135: 0.005025181905 | M135: 0.09339437011 | N135: 0.0003188719742
A136: =IF('DF raw data'!M141="","",'DF raw data'!M141) -> -263 | B136: =IF('DF raw data'!N141="","",'DF raw data'!N141) -> -2.14654e-05 | C136: =IF('DF raw data'!O141="","",'DF raw data'!O141) -> 0.000141327 | D136: =IF('DF raw data'!P141="","",'DF raw data'!P141) -> -2.7227e-05 | F136: -2.1572727e-05 | G136: 0.000142033635 | H136: -2.7363135e-05 | J136: -0.0007232574934 | K136: -0.01388070065 | L136: 0.005096198723 | M136: 0.09594246947 | N136: 0.0003321191456
A137: =IF('DF raw data'!M142="","",'DF raw data'!M142) -> -262.5 | B137: =IF('DF raw data'!N142="","",'DF raw data'!N142) -> -2.14047e-05 | C137: =IF('DF raw data'!O142="","",'DF raw data'!O142) -> 0.000142128 | D137: =IF('DF raw data'!P142="","",'DF raw data'!P142) -> -2.18221e-05 | F137: -2.15117235e-05 | G137: 0.00014283864 | H137: -2.19312105e-05 | J137: -0.0007340133552 | K137: -0.01424770733 | L137: 0.005167618043 | M137: 0.09852627849 | N137: 0.0003457406716
A138: =IF('DF raw data'!M143="","",'DF raw data'!M143) -> -262 | B138: =IF('DF raw data'!N143="","",'DF raw data'!N143) -> -2.08272e-05 | C138: =IF('DF raw data'!O143="","",'DF raw data'!O143) -> 0.000140944 | D138: =IF('DF raw data'!P143="","",'DF raw data'!P143) -> -2.28545e-05 | F138: -2.0931336e-05 | G138: 0.00014164872 | H138: -2.29687725e-05 | J138: -0.0007444790232 | K138: -0.01461994684 | L138: 0.005238442403 | M138: 0.1011454997 | N138: 0.0003597384355
A139: =IF('DF raw data'!M144="","",'DF raw data'!M144) -> -261.5 | B139: =IF('DF raw data'!N144="","",'DF raw data'!N144) -> -2.55672e-05 | C139: =IF('DF raw data'!O144="","",'DF raw data'!O144) -> 0.00014695 | D139: =IF('DF raw data'!P144="","",'DF raw data'!P144) -> -2.86452e-05 | F139: -2.5695036e-05 | G139: 0.00014768475 | H139: -2.8788426e-05 | J139: -0.0007573265412 | K139: -0.01499861011 | L139: 0.005312284778 | M139: 0.1038016421 | N139: 0.000374135392
A140: =IF('DF raw data'!M145="","",'DF raw data'!M145) -> -261 | B140: =IF('DF raw data'!N145="","",'DF raw data'!N145) -> -2.35072e-05 | C140: =IF('DF raw data'!O145="","",'DF raw data'!O145) -> 0.00013982 | D140: =IF('DF raw data'!P145="","",'DF raw data'!P145) -> -4.26426e-05 | F140: -2.3624736e-05 | G140: 0.0001405191 | H140: -4.2855813e-05 | J140: -0.0007691389092 | K140: -0.01538317956 | L140: 0.005382544328 | M140: 0.1064929142 | N140: 0.000388917071
A141: =IF('DF raw data'!M146="","",'DF raw data'!M146) -> -260.5 | B141: =IF('DF raw data'!N146="","",'DF raw data'!N146) -> -2.15959e-05 | C141: =IF('DF raw data'!O146="","",'DF raw data'!O146) -> 0.000139998 | D141: =IF('DF raw data'!P146="","",'DF raw data'!P146) -> -2.33559e-05 | F141: -2.17038795e-05 | G141: 0.00014069799 | H141: -2.34726795e-05 | J141: -0.0007799908489 | K141: -0.01577317499 | L141: 0.005452893323 | M141: 0.1092193609 | N141: 0.0004040882867
A142: =IF('DF raw data'!M147="","",'DF raw data'!M147) -> -260 | B142: =IF('DF raw data'!N147="","",'DF raw data'!N147) -> -2.3257e-05 | C142: =IF('DF raw data'!O147="","",'DF raw data'!O147) -> 0.000136474 | D142: =IF('DF raw data'!P147="","",'DF raw data'!P147) -> -3.29762e-05 | F142: -2.3373285e-05 | G142: 0.00013715637 | H142: -3.3141081e-05 | J142: -0.0007916774914 | K142: -0.01616901373 | L142: 0.005521471508 | M142: 0.1119800967 | N142: 0.0004196449871
A143: =IF('DF raw data'!M148="","",'DF raw data'!M148) -> -259.5 | B143: =IF('DF raw data'!N148="","",'DF raw data'!N148) -> -1.64625e-05 | C143: =IF('DF raw data'!O148="","",'DF raw data'!O148) -> 0.000140276 | D143: =IF('DF raw data'!P148="","",'DF raw data'!P148) -> -3.09785e-05 | F143: -1.65448125e-05 | G143: 0.00014097738 | H143: -3.11333925e-05 | J143: -0.0007999498977 | K143: -0.01656898868 | L143: 0.005591960198 | M143: 0.1147760768 | N143: 0.0004355999565
A144: =IF('DF raw data'!M149="","",'DF raw data'!M149) -> -259 | B144: =IF('DF raw data'!N149="","",'DF raw data'!N149) -> -1.77415e-05 | C144: =IF('DF raw data'!O149="","",'DF raw data'!O149) -> 0.000145279 | D144: =IF('DF raw data'!P149="","",'DF raw data'!P149) -> -3.58976e-05 | F144: -1.78302075e-05 | G144: 0.000146005395 | H144: -3.6077088e-05 | J144: -0.0008088650014 | K144: -0.01697342118 | L144: 0.005664962895 | M144: 0.1176085582 | N144: 0.0004519729901
A145: =IF('DF raw data'!M150="","",'DF raw data'!M150) -> -258.5 | B145: =IF('DF raw data'!N150="","",'DF raw data'!N150) -> -2.24835e-05 | C145: =IF('DF raw data'!O150="","",'DF raw data'!O150) -> 0.000139698 | D145: =IF('DF raw data'!P150="","",'DF raw data'!P150) -> -3.91189e-05 | F145: -2.25959175e-05 | G145: 0.00014039649 | H145: -3.93144945e-05 | J145: -0.0008201629602 | K145: -0.01738350266 | L145: 0.00573516114 | M145: 0.1204761388 | N145: 0.0004687553604
A146: =IF('DF raw data'!M151="","",'DF raw data'!M151) -> -258 | B146: =IF('DF raw data'!N151="","",'DF raw data'!N151) -> -2.16566e-05 | C146: =IF('DF raw data'!O151="","",'DF raw data'!O151) -> 0.000141005 | D146: =IF('DF raw data'!P151="","",'DF raw data'!P151) -> -2.90985e-05 | F146: -2.1764883e-05 | G146: 0.000141710025 | H146: -2.92439925e-05 | J146: -0.0008310454017 | K146: -0.01779902536 | L146: 0.005806016153 | M146: 0.1233791469 | N146: 0.0004859555904
A147: =IF('DF raw data'!M152="","",'DF raw data'!M152) -> -257.5 | B147: =IF('DF raw data'!N152="","",'DF raw data'!N152) -> -2.89616e-05 | C147: =IF('DF raw data'!O152="","",'DF raw data'!O152) -> 0.000146542 | D147: =IF('DF raw data'!P152="","",'DF raw data'!P152) -> -3.44195e-05 | F147: -2.9106408e-05 | G147: 0.00014727471 | H147: -3.45915975e-05 | J147: -0.0008455986057 | K147: -0.01822182467 | L147: 0.005879653508 | M147: 0.1263189736 | N147: 0.0005035982715
